Workbook

Sheet Figure 2
A1: (a) 0.2 mM Cys-FeS (5:1:1) | F1: (b) 5 mM Cys-FeS (5:1:1)
A2: i | B2: ii | C2: iii | D2: Av | E2: SD | F2: i | G2: ii | H2: iii | I2: Av | J2: SD
A3: 0.264 | B3: 0.223 | C3: 0.17 | D3: =AVERAGE(A3:C3) -> 0.219 | E3: =STDEV(A3:C3) -> 0.04712748667 | F3: 0.555 | G3: 0.745 | H3: 0.95 | I3: =AVERAGE(F3:H3) -> 0.75 | J3: =STDEV(F3:H3) -> 0.1975474627
A4: 0.311 | B4: 0.302 | C4: 0.129 | D4: =AVERAGE(A4:C4) -> 0.2473333333 | E4: =STDEV(A4:C4) -> 0.1025784253 | F4: 0.623 | G4: 0.482 | H4: 0.854 | I4: =AVERAGE(F4:H4) -> 0.653 | J4: =STDEV(F4:H4) -> 0.1878057507
A5: 0.279 | B5: 0.297 | C5: 0.112 | D5: 0.2293333333 | E5: 0.1020114373 | F5: 0.708 | G5: 0.522 | H5: 0.978 | I5: 0.736 | J5: 0.2292858478
A6: 0.161 | B6: 0.281 | C6: 0.031 | D6: 0.1576666667 | E6: 0.1250333289 | F6: 0.876 | G6: 0.824 | H6: 0.844 | I6: 0.848 | J6: 0.0262297541
A7: 0.092 | B7: 0.073 | C7: 0.059 | D7: 0.07466666667 | E7: 0.016563011 | F7: 0.728 | G7: 0.876 | H7: 0.809 | I7: 0.8043333333 | J7: 0.07411027819
A8: -0.022 | B8: 0.193 | C8: -0.024 | D8: 0.049 | E8: 0.1247116675 | F8: 0.794 | G8: 0.984 | H8: 0.817 | I8: 0.865 | J8: 0.103696673
A9: 0.047 | B9: 0.199 | C9: 0.187 | D9: 0.1443333333 | E9: 0.08450641001 | F9: 0.679 | G9: 1.152 | H9: 0.748 | I9: 0.8596666667 | J9: 0.2555079907
A10: 0.128 | B10: 0.21 | C10: 0.334 | D10: 0.224 | E10: 0.1037111373 | F10: 0.498 | G10: 1.027 | H10: 0.624 | I10: 0.7163333333 | J10: 0.2763228788
A11: 0.047 | B11: 0.248 | C11: 0.235 | D11: 0.1766666667 | E11: 0.1124825912 | F11: 0.472 | G11: 1.032 | H11: 0.496 | I11: 0.6666666667 | J11: 0.3166154345
A12: 0.064 | B12: 0.213 | C12: 0.109 | D12: 0.1286666667 | E12: 0.0764220736 | F12: 0.575 | G12: 0.704 | H12: 0.494 | I12: 0.591 | J12: 0.1059103394
A13: -0.321 | B13: -0.084 | C13: -0.23 | D13: -0.2116666667 | E13: 0.1195589116 | F13: 0.769 | G13: 0.556 | H13: 0.859 | I13: 0.728 | J13: 0.1556052698
A14: -0.131 | B14: -0.118 | C14: -0.288 | D14: -0.179 | E14: 0.09462029381 | F14: 0.791 | G14: 0.658 | H14: 1.11 | I14: 0.853 | J14: 0.2322907661
A15: 0.191 | B15: -0.009 | C15: -0.144 | D15: 0.01266666667 | E15: 0.1685477183 | F15: 0.379 | G15: 0.468 | H15: 0.936 | I15: 0.5943333333 | J15: 0.2992195404
A16: 0.306 | B16: 0.003 | C16: -0.111 | D16: 0.066 | E16: 0.2155203007 | F16: 0.238 | G16: 0.458 | H16: 0.688 | I16: 0.4613333333 | J16: 0.2250185178
A17: 0.47 | B17: 0.092 | C17: 0.204 | D17: 0.2553333333 | E17: 0.1941580113 | F17: 0.254 | G17: 0.539 | H17: 0.764 | I17: 0.519 | J17: 0.2555875584
A18: 0.081 | B18: -0.128 | C18: 0.215 | D18: 0.056 | E18: 0.172861216 | F18: 0.557 | G18: 0.671 | H18: 0.735 | I18: 0.6543333333 | J18: 0.09016281569
A19: -0.034 | B19: -0.037 | C19: 0.152 | D19: 0.027 | E19: 0.1082635673 | F19: 0.722 | G19: 0.712 | H19: 0.772 | I19: 0.7353333333 | J19: 0.03214550254
A20: -0.027 | B20: 0.111 | C20: 0.159 | D20: 0.081 | E20: 0.09656086164 | F20: 0.845 | G20: 0.523 | H20: 0.517 | I20: 0.6283333333 | J20: 0.1876628182
A21: -0.042 | B21: 0.097 | C21: 0.01 | D21: 0.02166666667 | E21: 0.07023057264 | F21: 0.797 | G21: 0.62 | H21: 0.54 | I21: 0.6523333333 | J21: 0.1315155251
A22: 0.081 | B22: 0.213 | C22: 0.108 | D22: 0.134 | E22: 0.06973521349 | F22: 0.745 | G22: 0.777 | H22: 0.836 | I22: 0.786 | J22: 0.04616275555
A23: 0.153 | B23: 0.117 | C23: 0.138 | D23: 0.136 | E23: 0.01808314132 | F23: 0.848 | G23: 0.791 | H23: 0.668 | I23: 0.769 | J23: 0.09199456506
A24: 0.129 | B24: 0.134 | C24: 0.109 | D24: 0.124 | E24: 0.01322875656 | F24: 0.721 | G24: 0.745 | H24: 0.617 | I24: 0.6943333333 | J24: 0.06803920438
A25: 0.041 | B25: 0.127 | C25: 0.036 | D25: 0.068 | E25: 0.05115662225 | F25: 0.63 | G25: 0.796 | H25: 0.675 | I25: 0.7003333333 | J25: 0.0858506455
A26: -0.025 | B26: 0.082 | C26: 0.001 | D26: 0.01933333333 | E26: 0.05580621232 | F26: 0.593 | G26: 0.94 | H26: 1.008 | I26: 0.847 | J26: 0.2225825689
A27: 0.05 | B27: 0.137 | C27: 0.046 | D27: 0.07766666667 | E27: 0.05142308172 | F27: 0.484 | G27: 0.767 | H27: 1.29 | I27: 0.847 | J27: 0.408911971
A28: 0.127 | B28: 0.103 | C28: 0.07 | D28: 0.1 | E28: 0.02861817604 | F28: 0.702 | G28: 0.731 | H28: 1.259 | I28: 0.8973333333 | J28: 0.3135479761
A29: 0.121 | B29: 0.092 | C29: 0.074 | D29: 0.09566666667 | E29: 0.02371356855 | F29: 0.81 | G29: 0.69 | H29: 1.079 | I29: 0.8596666667 | J29: 0.1991992303
A30: 0.099 | B30: 0.081 | C30: 0.129 | D30: 0.103 | E30: 0.02424871131 | F30: 0.782 | G30: 0.714 | H30: 0.689 | I30: 0.7283333333 | J30: 0.04812830075
A31: 0.104 | B31: 0.075 | C31: 0.147 | D31: 0.1086666667 | E31: 0.03622614157 | F31: 0.726 | G31: 0.591 | H31: 0.425 | I31: 0.5806666667 | J31: 0.1507658228
A32: 0.159 | B32: 0.06 | C32: 0.183 | D32: 0.134 | E32: 0.06519969325 | F32: 0.615 | G32: 0.414 | H32: 0.383 | I32: 0.4706666667 | J32: 0.1259536952
A33: 0.106 | B33: 0.089 | C33: 0.109 | D33: 0.1013333333 | E33: 0.01078579312 | F33: 0.8 | G33: 0.579 | H33: 0.691 | I33: 0.69 | J33: 0.1105033936
A34: 0.02 | B34: 0.058 | C34: 0.008 | D34: 0.02866666667 | E34: 0.0261023626 | F34: 0.823 | G34: 0.601 | H34: 0.921 | I34: 0.7816666667 | J34: 0.1639552785
A35: 0.016 | B35: 0.014 | C35: -0.017 | D35: 0.004333333333 | E35: 0.01850225212 | F35: 0.787 | G35: 0.722 | H35: 1.014 | I35: 0.841 | J35: 0.1533068818
A36: 0.057 | B36: -0.005 | C36: -0.056 | D36: -0.001333333333 | E36: 0.05658916268 | F36: 0.559 | G36: 0.88 | H36: 1.185 | I36: 0.8746666667 | J36: 0.313034077
A37: 0.056 | B37: -0.037 | C37: -0.016 | D37: 0.001 | E37: 0.04877499359 | F37: 0.584 | G37: 0.719 | H37: 0.942 | I37: 0.7483333333 | J37: 0.1807936208
A38: 0.023 | B38: -0.023 | C38: 0.028 | D38: 0.009333333333 | E38: 0.02811286775 | F38: 0.602 | G38: 0.813 | H38: 1.024 | I38: 0.813 | J38: 0.211
A39: 0.006 | B39: 0.022 | C39: 0.07 | D39: 0.03266666667 | E39: 0.03330665599 | F39: 0.504 | G39: 0.797 | H39: 0.956 | I39: 0.7523333333 | J39: 0.2292865747
A40: 0.034 | B40: 0.11 | C40: 0.08 | D40: 0.07466666667 | E40: 0.03827967259 | F40: 0.598 | G40: 0.907 | H40: 0.871 | I40: 0.792 | J40: 0.1689704116
A41: 0.043 | B41: 0.148 | C41: 0.068 | D41: 0.08633333333 | E41: 0.05484827557 | F41: 0.482 | G41: 1.144 | H41: 0.814 | I41: 0.8133333333 | J41: 0.3310005035
A42: 0.069 | B42: 0.15 | C42: 0.081 | D42: 0.1 | E42: 0.04371498599 | F42: 0.766 | G42: 0.906 | H42: 0.54 | I42: 0.7373333333 | J42: 0.1846762934
A43: 0.031 | B43: 0.106 | C43: 0.032 | D43: 0.05633333333 | E43: 0.04301550108 | F43: 0.996 | G43: 1.011 | H43: 0.754 | I43: 0.9203333333 | J43: 0.1442440062
A44: 0.035 | B44: 0.079 | C44: 0.009 | D44: 0.041 | E44: 0.03538361203 | F44: 1.027 | G44: 0.953 | H44: 0.883 | I44: 0.9543333333 | J44: 0.07200925866
A45: 0.051 | B45: 0.118 | C45: -0.006 | D45: 0.05433333333 | E45: 0.06206716792 | F45: 0.999 | G45: 0.809 | H45: 1.057 | I45: 0.955 | J45: 0.1297227813
A46: 0.058 | B46: 0.078 | C46: -0.017 | D46: 0.03966666667 | E46: 0.050083264 | F46: 0.782 | G46: 0.836 | H46: 1.209 | I46: 0.9423333333 | J46: 0.2325130821
A47: 0.136 | B47: 0.056 | C47: 0.028 | D47: 0.07333333333 | E47: 0.05604759882 | F47: 1.059 | G47: 0.773 | H47: 1.026 | I47: 0.9526666667 | J47: 0.1564683142
A48: 0.096 | B48: -0.021 | C48: 0 | D48: 0.025 | E48: 0.0623778807 | F48: 1.113 | G48: 0.842 | H48: 0.886 | I48: 0.947 | J48: 0.1454338338
A49: 0.026 | B49: -0.051 | C49: -0.007 | D49: -0.01066666667 | E49: 0.03863073043 | F49: 1.036 | G49: 0.921 | H49: 0.799 | I49: 0.9186666667 | J49: 0.118517228
A50: -0.02 | B50: -0.004 | C50: -0.003 | D50: -0.009 | E50: 0.009539392014 | F50: 0.84 | G50: 0.741 | H50: 0.691 | I50: 0.7573333333 | J50: 0.07583095234
A51: 0.002 | B51: 0.01 | C51: 0.04 | D51: 0.01733333333 | E51: 0.0200333056 | F51: 0.797 | G51: 0.745 | H51: 0.932 | I51: 0.8246666667 | J51: 0.09652115485
A52: 0.101 | B52: 0.032 | C52: 0.117 | D52: 0.08333333333 | E52: 0.04517004907 | F52: 0.971 | G52: 0.677 | H52: 0.814 | I52: 0.8206666667 | J52: 0.147113335
A53: 0.062 | B53: -0.002 | C53: 0.123 | D53: 0.061 | E53: 0.06250599971 | F53: 1.038 | G53: 0.676 | H53: 0.956 | I53: 0.89 | J53: 0.1898104317
A54: 0.034 | B54: 0.025 | C54: 0.121 | D54: 0.06 | E54: 0.05301886457 | F54: 1.088 | G54: 0.75 | H54: 0.941 | I54: 0.9263333333 | J54: 0.1694766454
A55: 0.035 | B55: 0.014 | C55: 0.046 | D55: 0.03166666667 | E55: 0.0162583312 | F55: 1.134 | G55: 0.868 | H55: 0.756 | I55: 0.9193333333 | J55: 0.1941580113
A56: 0.038 | B56: 0.034 | C56: 0.018 | D56: 0.03 | E56: 0.01058300524 | F56: 1.147 | G56: 0.929 | H56: 1.026 | I56: 1.034 | J56: 0.1092199615
A57: 0.056 | B57: 0.022 | C57: -0.011 | D57: 0.02233333333 | E57: 0.03350124376 | F57: 1.177 | G57: 0.852 | H57: 0.976 | I57: 1.001666667 | J57: 0.1640132109
A58: 0.025 | B58: 0.043 | C58: 0.01 | D58: 0.026 | E58: 0.01652271164 | F58: 1.17 | G58: 0.704 | H58: 1.187 | I58: 1.020333333 | J58: 0.2740845368
A59: 0.022 | B59: 0.057 | C59: 0.04 | D59: 0.03966666667 | E59: 0.01750238079 | F59: 1.033 | G59: 0.752 | H59: 1.031 | I59: 0.9386666667 | J59: 0.1616611683
A60: 0.033 | B60: 0.012 | C60: 0.028 | D60: 0.02433333333 | E60: 0.01096965511 | F60: 1.133 | G60: 1.041 | H60: 0.714 | I60: 0.9626666667 | J60: 0.2202097485
A61: 0.033 | B61: -0.022 | C61: -0.001 | D61: 0.003333333333 | E61: 0.02775487945 | F61: 1.06 | G61: 1.141 | H61: 0.798 | I61: 0.9996666667 | J61: 0.1792828306
A62: 0.052 | B62: -0.018 | C62: -0.031 | D62: 0.001 | E62: 0.04464302857 | F62: 1.032 | G62: 1.097 | H62: 0.912 | I62: 1.013666667 | J62: 0.0938527215
A63: 0.05 | B63: 0 | C63: -0.005 | D63: 0.015 | E63: 0.03041381265 | F63: 0.78 | G63: 0.87 | H63: 1.092 | I63: 0.914 | J63: 0.1605864253
A64: 0.056 | B64: 0.033 | C64: 0.053 | D64: 0.04733333333 | E64: 0.01250333289 | F64: 0.691 | G64: 0.894 | H64: 0.869 | I64: 0.818 | J64: 0.1106932699
A65: 0.03 | B65: 0.032 | C65: 0.087 | D65: 0.04966666667 | E65: 0.03234707612 | F65: 0.763 | G65: 0.837 | H65: 0.62 | I65: 0.74 | J65: 0.1103131905
A66: 0.052 | B66: 0.034 | C66: 0.077 | D66: 0.05433333333 | E66: 0.02159475245 | F66: 0.737 | G66: 0.74 | H66: 0.691 | I66: 0.7226666667 | J66: 0.02746512941
A67: 0.074 | B67: 0.102 | C67: 0.088 | D67: 0.088 | E67: 0.014 | F67: 0.726 | G67: 0.722 | H67: 0.856 | I67: 0.768 | J67: 0.07623647421
A68: 0.1 | B68: 0.109 | C68: 0.095 | D68: =AVERAGE(A68:C68) -> 0.1013333333 | E68: =STDEV(A68:C68) -> 0.007094598885 | F68: 0.784 | G68: 0.814 | H68: 1.178 | I68: =AVERAGE(F68:H68) -> 0.9253333333 | J68: =STDEV(F68:H68) -> 0.2193292806
A69: 0.098 | B69: 0.108 | C69: 0.106 | D69: 0.104 | E69: 0.005291502622 | F69: 1.203 | G69: 0.863 | H69: 1.107 | I69: 1.057666667 | J69: 0.1752864323
A70: 0.113 | B70: 0.071 | C70: 0.114 | D70: 0.09933333333 | E70: 0.02454248018 | F70: 1.181 | G70: 0.854 | H70: 1.007 | I70: 1.014 | J70: 0.1636123467
A71: 0.125 | B71: 0.052 | C71: 0.097 | D71: 0.09133333333 | E71: 0.03682843105 | F71: 1.171 | G71: 0.76 | H71: 0.904 | I71: 0.945 | J71: 0.2085449592
A72: 0.124 | B72: 0.029 | C72: 0.05 | D72: 0.06766666667 | E72: 0.04990323971 | F72: 0.911 | G72: 0.788 | H72: 0.704 | I72: 0.801 | J72: 0.1041105182
A73: 0.102 | B73: 0.006 | C73: 0.032 | D73: 0.04666666667 | E73: 0.04965212315 | F73: 0.845 | G73: 0.921 | H73: 0.727 | I73: 0.831 | J73: 0.09775479528
A74: 0.048 | B74: -0.02 | C74: -0.002 | D74: 0.008666666667 | E74: 0.0352325607 | F74: 0.948 | G74: 0.821 | H74: 0.663 | I74: 0.8106666667 | J74: 0.1427807177
A75: 0.055 | B75: 0.007 | C75: 0.028 | D75: 0.03 | E75: 0.02406241883 | F75: 0.985 | G75: 0.73 | H75: 0.786 | I75: 0.8336666667 | J75: 0.1340161682
A76: 0.067 | B76: 0.075 | C76: 0.06 | D76: 0.06733333333 | E76: 0.007505553499 | F76: 1.149 | G76: 0.689 | H76: 0.791 | I76: 0.8763333333 | J76: 0.2415809043
A77: 0.073 | B77: 0.079 | C77: 0.07 | D77: 0.074 | E77: 0.004582575695 | F77: 1.056 | G77: 0.725 | H77: 0.913 | I77: 0.898 | J77: 0.1660090359
A78: 0.061 | B78: 0.081 | C78: 0.061 | D78: 0.06766666667 | E78: 0.01154700538 | F78: 1.063 | G78: 0.814 | H78: 1.152 | I78: 1.009666667 | J78: 0.1751979832
A79: 0.034 | B79: 0.048 | C79: 0.055 | D79: 0.04566666667 | E79: 0.01069267662 | F79: 0.883 | G79: 0.835 | H79: 1.211 | I79: 0.9763333333 | J79: 0.2046395205
A80: 0.044 | B80: 0.051 | C80: 0.095 | D80: 0.06333333333 | E80: 0.02764657905 | F80: 0.914 | G80: 0.701 | H80: 1.032 | I80: 0.8823333333 | J80: 0.1677567684
A81: 0.063 | B81: 0.074 | C81: 0.139 | D81: 0.092 | E81: 0.04107310556 | F81: 0.989 | G81: 0.744 | H81: 0.741 | I81: 0.8246666667 | J81: 0.142324746
A82: 0.06 | B82: 0.044 | C82: 0.141 | D82: 0.08166666667 | E82: 0.05200320503 | F82: 1.177 | G82: 1.06 | H82: 0.563 | I82: 0.9333333333 | J82: 0.3260097136
A83: 0.041 | B83: 0.01 | C83: 0.067 | D83: 0.03933333333 | E83: 0.0285365263 | F83: 1.278 | G83: 1.527 | H83: 0.827 | I83: 1.210666667 | J83: 0.3548243697
A84: 0.032 | B84: 0.009 | C84: 0.03 | D84: 0.02366666667 | E84: 0.0127410099 | F84: 1.127 | G84: 1.501 | H84: 0.942 | I84: 1.19 | J84: 0.2847753501
A85: 0.043 | B85: 0.029 | C85: 0.018 | D85: 0.03 | E85: 0.01252996409 | F85: 0.941 | G85: 1.135 | H85: 0.975 | I85: 1.017 | J85: 0.1035953667
A86: 0.044 | B86: 0.068 | C86: 0.059 | D86: 0.057 | E86: 0.01212435565 | F86: 0.734 | G86: 0.83 | H86: 0.885 | I86: 0.8163333333 | J86: 0.0764220736
A87: 0.055 | B87: 0.087 | C87: 0.067 | D87: 0.06966666667 | E87: 0.01616580754 | F87: 0.874 | G87: 0.695 | H87: 0.758 | I87: 0.7756666667 | J87: 0.09079831129
A88: 0.032 | B88: 0.072 | C88: 0.05 | D88: 0.05133333333 | E88: 0.0200333056 | F88: 0.892 | G88: 0.876 | H88: 0.975 | I88: 0.9143333333 | J88: 0.05314445722
A89: 0.034 | B89: 0.073 | C89: 0.041 | D89: 0.04933333333 | E89: 0.0207926269 | F89: 0.953 | G89: 0.813 | H89: 0.971 | I89: 0.9123333333 | J89: 0.08649470119
A90: 0.01 | B90: 0.035 | C90: 0.005 | D90: 0.01666666667 | E90: 0.01607275127 | F90: 0.951 | G90: 0.879 | H90: 1.016 | I90: 0.9486666667 | J90: 0.06852979887
A91: 0.034 | B91: 0.041 | C91: 0.032 | D91: 0.03566666667 | E91: 0.004725815626 | F91: 0.785 | G91: 0.939 | H91: 1.046 | I91: 0.9233333333 | J91: 0.1312034044
A92: 0.066 | B92: 0.029 | C92: 0.036 | D92: 0.04366666667 | E92: 0.01965536398 | F92: 0.639 | G92: 0.854 | H92: 1.035 | I92: 0.8426666667 | J92: 0.1982431167
A93: 0.08 | B93: 0.058 | C93: 0.063 | D93: 0.067 | E93: 0.01153256259 | F93: 0.597 | G93: 0.802 | H93: 1.261 | I93: 0.8866666667 | J93: 0.3400004902
A94: 0.087 | B94: 0.081 | C94: 0.073 | D94: 0.08033333333 | E94: 0.007023769169 | F94: 0.759 | G94: 0.803 | H94: 1.288 | I94: 0.95 | J94: 0.2935421605
A95: 0.066 | B95: 0.083 | C95: 0.084 | D95: 0.07766666667 | E95: 0.01011599394 | F95: 0.833 | G95: 1.207 | H95: 1.222 | I95: 1.087333333 | J95: 0.2203867812
A96: 0.084 | B96: 0.095 | C96: 0.078 | D96: 0.08566666667 | E96: 0.008621678104 | F96: 0.86 | G96: 1.23 | H96: 1.08 | I96: 1.056666667 | J96: 0.1861003314
A97: 0.086 | B97: 0.088 | C97: 0.066 | D97: 0.08 | E97: 0.01216552506 | F97: 0.861 | G97: 1.167 | H97: 0.843 | I97: 0.957 | J97: 0.1820878909
A98: 0.082 | B98: 0.095 | C98: 0.081 | D98: 0.086 | E98: 0.007810249676 | F98: 1.045 | G98: 1.08 | H98: 1.004 | I98: 1.043 | J98: 0.0380394532
A99: 0.086 | B99: 0.099 | C99: 0.097 | D99: 0.094 | E99: 0.007 | F99: 1.192 | G99: 1.168 | H99: 1.33 | I99: 1.23 | J99: 0.08742997198
A100: 0.104 | B100: 0.113 | C100: 0.129 | D100: 0.1153333333 | E100: 0.01266227994 | F100: 1.277 | G100: 1.473 | H100: 1.671 | I100: 1.473666667 | J100: 0.197000846
A101: 0.124 | B101: 0.129 | C101: 0.138 | D101: 0.1303333333 | E101: 0.007094598885 | F101: 1.539 | G101: 1.559 | H101: 1.891 | I101: 1.663 | J101: 0.1977068537
A102: 0.134 | B102: 0.144 | C102: 0.133 | D102: 0.137 | E102: 0.00608276253 | F102: 1.491 | G102: 1.54 | H102: 1.774 | I102: 1.601666667 | J102: 0.1512426307
A103: 0.131 | B103: 0.137 | C103: 0.136 | D103: 0.1346666667 | E103: 0.003214550254 | F103: 1.637 | G103: 1.746 | H103: 1.769 | I103: 1.717333333 | J103: 0.07051477387
A104: 0.138 | B104: 0.135 | C104: 0.131 | D104: 0.1346666667 | E104: 0.003511884584 | F104: 1.694 | G104: 1.889 | H104: 1.472 | I104: 1.685 | J104: 0.2086456326
A105: 0.141 | B105: 0.141 | C105: 0.133 | D105: 0.1383333333 | E105: 0.004618802154 | F105: 1.709 | G105: 1.875 | H105: 1.719 | I105: 1.767666667 | J105: 0.0930877722
A106: 0.146 | B106: 0.146 | C106: 0.138 | D106: 0.1433333333 | E106: 0.004618802154 | F106: 1.939 | G106: 1.892 | H106: 1.945 | I106: 1.925333333 | J106: 0.0290229794
A107: 0.153 | B107: 0.154 | C107: 0.145 | D107: 0.1506666667 | E107: 0.004932882862 | F107: 1.972 | G107: 1.957 | H107: 2.205 | I107: 2.044666667 | J107: 0.1390551449
A108: 0.152 | B108: 0.154 | C108: 0.152 | D108: 0.1526666667 | E108: 0.001154700538 | F108: 2.09 | G108: 2.336 | H108: 2.305 | I108: 2.243666667 | J108: 0.1339788541
A109: 0.156 | B109: 0.156 | C109: 0.15 | D109: 0.154 | E109: 0.003464101615 | F109: 2.295 | G109: 2.515 | H109: 2.268 | I109: 2.359333333 | J109: 0.1354855466
A110: 0.157 | B110: 0.157 | C110: 0.149 | D110: 0.1543333333 | E110: 0.004618802154 | F110: 2.408 | G110: 2.466 | H110: 2.457 | I110: 2.443666667 | J110: 0.03121431296
A111: 0.159 | B111: 0.16 | C111: 0.152 | D111: 0.157 | E111: 0.004358898944 | F111: 2.682 | G111: 2.34 | H111: 2.553 | I111: 2.525 | J111: 0.1727107408
A112: 0.159 | B112: 0.16 | C112: 0.153 | D112: 0.1573333333 | E112: 0.003785938897 | F112: 2.786 | G112: 2.35 | H112: 2.506 | I112: 2.547333333 | J112: 0.2209192914
A113: 0.159 | B113: 0.159 | C113: 0.153 | D113: 0.157 | E113: 0.003464101615 | F113: 2.835 | G113: 2.399 | H113: 2.389 | I113: 2.541 | J113: 0.2546605584
A114: 0.159 | B114: 0.158 | C114: 0.152 | D114: 0.1563333333 | E114: 0.003785938897 | F114: 2.736 | G114: 2.398 | H114: 2.441 | I114: 2.525 | J114: 0.1839918476
A115: 0.159 | B115: 0.158 | C115: 0.152 | D115: 0.1563333333 | E115: 0.003785938897 | F115: 2.472 | G115: 2.412 | H115: 2.453 | I115: 2.445666667 | J115: 0.03066485502
A116: 0.159 | B116: 0.158 | C116: 0.151 | D116: 0.156 | E116: 0.004358898944 | F116: 2.449 | G116: 2.404 | H116: 2.439 | I116: 2.430666667 | J116: 0.02362907813
A117: 0.158 | B117: 0.158 | C117: 0.15 | D117: 0.1553333333 | E117: 0.004618802154 | F117: 2.384 | G117: 2.575 | H117: 2.453 | I117: 2.470666667 | J117: 0.09671780257
A118: 0.156 | B118: 0.157 | C118: 0.149 | D118: 0.154 | E118: 0.004358898944 | F118: 2.503 | G118: 2.65 | H118: 2.516 | I118: 2.556333333 | J118: 0.08137772013
A119: 0.156 | B119: 0.157 | C119: 0.149 | D119: 0.154 | E119: 0.004358898944 | F119: 2.449 | G119: 2.571 | H119: 2.603 | I119: 2.541 | J119: 0.08126499862
A120: 0.158 | B120: 0.158 | C120: 0.149 | D120: 0.155 | E120: 0.005196152423 | F120: 2.487 | G120: 2.454 | H120: 2.541 | I120: 2.494 | J120: 0.04392038251
A121: 0.158 | B121: 0.158 | C121: 0.151 | D121: 0.1556666667 | E121: 0.004041451884 | F121: 2.388 | G121: 2.325 | H121: 2.423 | I121: 2.378666667 | J121: 0.04966219219
A122: 0.159 | B122: 0.157 | C122: 0.151 | D122: 0.1556666667 | E122: 0.004163331999 | F122: 2.357 | G122: 2.324 | H122: 2.452 | I122: 2.377666667 | J122: 0.06645549889
A123: 0.159 | B123: 0.157 | C123: 0.151 | D123: 0.1556666667 | E123: 0.004163331999 | F123: 2.385 | G123: 2.309 | H123: 2.498 | I123: 2.397333333 | J123: 0.09510169995
A124: 0.159 | B124: 0.157 | C124: 0.151 | D124: 0.1556666667 | E124: 0.004163331999 | F124: 2.395 | G124: 2.396 | H124: 2.507 | I124: 2.432666667 | J124: 0.06437649675
A125: 0.16 | B125: 0.158 | C125: 0.151 | D125: 0.1563333333 | E125: 0.004725815626 | F125: 2.363 | G125: 2.388 | H125: 2.444 | I125: 2.398333333 | J125: 0.0414769012
A126: 0.16 | B126: 0.159 | C126: 0.151 | D126: 0.1566666667 | E126: 0.004932882862 | F126: 2.302 | G126: 2.456 | H126: 2.356 | I126: 2.371333333 | J126: 0.07813663247
A127: 0.158 | B127: 0.158 | C127: 0.15 | D127: 0.1553333333 | E127: 0.004618802154 | F127: 2.22 | G127: 2.448 | H127: 2.407 | I127: 2.358333333 | J127: 0.1215414881
A128: 0.158 | B128: 0.157 | C128: 0.15 | D128: 0.155 | E128: 0.004358898944 | F128: 2.355 | G128: 2.433 | H128: 2.362 | I128: 2.383333333 | J128: 0.04315476026
A129: 0.156 | B129: 0.155 | C129: 0.147 | D129: 0.1526666667 | E129: 0.004932882862 | F129: 2.568 | G129: 2.413 | H129: 2.294 | I129: 2.425 | J129: 0.1373935952
A130: 0.155 | B130: 0.154 | C130: 0.147 | D130: 0.152 | E130: 0.004358898944 | F130: 2.632 | G130: 2.283 | H130: 2.283 | I130: 2.399333333 | J130: 0.2014952439
A131: 0.153 | B131: 0.153 | C131: 0.146 | D131: 0.1506666667 | E131: 0.004041451884 | F131: 2.551 | G131: 2.225 | H131: 2.263 | I131: 2.346333333 | J131: 0.1782619795
A132: 0.15 | B132: 0.15 | C132: 0.144 | D132: =AVERAGE(A132:C132) -> 0.148 | E132: =STDEV(A132:C132) -> 0.003464101615 | F132: 2.338 | G132: 2.225 | H132: 2.319 | I132: =AVERAGE(F132:H132) -> 2.294 | J132: =STDEV(F132:H132) -> 0.06050619803
A133: 0.148 | B133: 0.148 | C133: 0.142 | D133: 0.146 | E133: 0.003464101615 | F133: 2.283 | G133: 2.315 | H133: 2.278 | I133: 2.292 | J133: 0.0200748599
A134: 0.146 | B134: 0.146 | C134: 0.14 | D134: 0.144 | E134: 0.003464101615 | F134: 2.245 | G134: 2.386 | H134: 2.195 | I134: 2.275333333 | J134: 0.09904712683
A135: 0.145 | B135: 0.145 | C135: 0.139 | D135: 0.143 | E135: 0.003464101615 | F135: 2.218 | G135: 2.389 | H135: 2.194 | I135: 2.267 | J135: 0.1063343783
A136: 0.145 | B136: 0.145 | C136: 0.138 | D136: 0.1426666667 | E136: 0.004041451884 | F136: 2.189 | G136: 2.305 | H136: 2.234 | I136: 2.242666667 | J136: 0.05848361594
A137: 0.144 | B137: 0.143 | C137: 0.137 | D137: 0.1413333333 | E137: 0.003785938897 | F137: 2.231 | G137: 2.259 | H137: 2.283 | I137: 2.257666667 | J137: 0.02602562839
A138: 0.143 | B138: 0.142 | C138: 0.136 | D138: 0.1403333333 | E138: 0.003785938897 | F138: 2.279 | G138: 2.221 | H138: 2.278 | I138: 2.259333333 | J138: 0.03320140559
A139: 0.143 | B139: 0.142 | C139: 0.135 | D139: 0.14 | E139: 0.004358898944 | F139: 2.35 | G139: 2.263 | H139: 2.233 | I139: 2.282 | J139: 0.06077005842
A140: 0.143 | B140: 0.142 | C140: 0.135 | D140: 0.14 | E140: 0.004358898944 | F140: 2.354 | G140: 2.243 | H140: 2.242 | I140: 2.279666667 | J140: 0.06437649675
A141: 0.141 | B141: 0.141 | C141: 0.134 | D141: 0.1386666667 | E141: 0.004041451884 | F141: 2.304 | G141: 2.209 | H141: 2.233 | I141: 2.248666667 | J141: 0.04939973009
A142: 0.14 | B142: 0.139 | C142: 0.133 | D142: 0.1373333333 | E142: 0.003785938897 | F142: 2.241 | G142: 2.207 | H142: 2.188 | I142: 2.212 | J142: 0.02685144316
A143: 0.138 | B143: 0.137 | C143: 0.13 | D143: 0.135 | E143: 0.004358898944 | F143: 2.202 | G143: 2.223 | H143: 2.188 | I143: 2.204333333 | J143: 0.01761628035
A144: 0.136 | B144: 0.136 | C144: 0.128 | D144: 0.1333333333 | E144: 0.004618802154 | F144: 2.212 | G144: 2.292 | H144: 2.165 | I144: 2.223 | J144: 0.06421059103
A145: 0.135 | B145: 0.134 | C145: 0.128 | D145: 0.1323333333 | E145: 0.003785938897 | F145: 2.199 | G145: 2.314 | H145: 2.228 | I145: 2.247 | J145: 0.05980802622
A146: 0.132 | B146: 0.132 | C146: 0.125 | D146: 0.1296666667 | E146: 0.004041451884 | F146: 2.209 | G146: 2.32 | H146: 2.229 | I146: 2.252666667 | J146: 0.05916361494
A147: 0.131 | B147: 0.13 | C147: 0.122 | D147: 0.1276666667 | E147: 0.004932882862 | F147: 2.17 | G147: 2.23 | H147: 2.209 | I147: 2.203 | J147: 0.0304466747
A148: 0.129 | B148: 0.127 | C148: 0.12 | D148: 0.1253333333 | E148: 0.004725815626 | F148: 2.143 | G148: 2.18 | H148: 2.169 | I148: 2.164 | J148: 0.019
A149: 0.128 | B149: 0.126 | C149: 0.119 | D149: 0.1243333333 | E149: 0.004725815626 | F149: 2.178 | G149: 2.13 | H149: 2.12 | I149: 2.142666667 | J149: 0.03100537588
A150: 0.127 | B150: 0.126 | C150: 0.119 | D150: 0.124 | E150: 0.004358898944 | F150: 2.153 | G150: 2.13 | H150: 2.154 | I150: 2.145666667 | J150: 0.01357694124
A151: 0.126 | B151: 0.125 | C151: 0.118 | D151: 0.123 | E151: 0.004358898944 | F151: 2.164 | G151: 2.148 | H151: 2.163 | I151: 2.158333333 | J151: 0.00896288644
A152: 0.124 | B152: 0.123 | C152: 0.117 | D152: 0.1213333333 | E152: 0.003785938897 | F152: 2.131 | G152: 2.088 | H152: 2.164 | I152: 2.127666667 | J152: 0.03810949138
A153: 0.123 | B153: 0.123 | C153: 0.116 | D153: 0.1206666667 | E153: 0.004041451884 | F153: 2.138 | G153: 2.098 | H153: 2.134 | I153: 2.123333333 | J153: 0.02203028219
A154: 0.121 | B154: 0.122 | C154: 0.114 | D154: 0.119 | E154: 0.004358898944 | F154: 2.122 | G154: 2.093 | H154: 2.132 | I154: 2.115666667 | J154: 0.02025668614
A155: 0.12 | B155: 0.121 | C155: 0.113 | D155: 0.118 | E155: 0.004358898944 | F155: 2.089 | G155: 2.111 | H155: 2.1 | I155: 2.1 | J155: 0.011
A156: 0.121 | B156: 0.12 | C156: 0.113 | D156: 0.118 | E156: 0.004358898944 | F156: 2.067 | G156: 2.1 | H156: 2.057 | I156: 2.074666667 | J156: 0.02250185178
A157: 0.12 | B157: 0.118 | C157: 0.113 | D157: 0.117 | E157: 0.003605551275 | F157: 2.033 | G157: 2.071 | H157: 2.019 | I157: 2.041 | J157: 0.02690724809
A158: 0.121 | B158: 0.119 | C158: 0.113 | D158: 0.1176666667 | E158: 0.004163331999 | F158: 2.049 | G158: 2.048 | H158: 2.007 | I158: 2.034666667 | J158: 0.02396525262
A159: 0.12 | B159: 0.119 | C159: 0.113 | D159: 0.1173333333 | E159: 0.003785938897 | F159: 2.046 | G159: 2.023 | H159: 2.027 | I159: 2.032 | J159: 0.01228820573
A160: 0.12 | B160: 0.119 | C160: 0.113 | D160: 0.1173333333 | E160: 0.003785938897 | F160: 2.053 | G160: 2.018 | H160: 2.005 | I160: 2.025333333 | J160: 0.02482606158
A161: 0.12 | B161: 0.12 | C161: 0.112 | D161: 0.1173333333 | E161: 0.004618802154 | F161: 2.059 | G161: 2.021 | H161: 1.999 | I161: 2.026333333 | J161: 0.03035347317
A162: 0.12 | B162: 0.119 | C162: 0.112 | D162: 0.117 | E162: 0.004358898944 | F162: 2.022 | G162: 2.043 | H162: 2.01 | I162: 2.025 | J162: 0.01670329309
A163: 0.12 | B163: 0.118 | C163: 0.111 | D163: 0.1163333333 | E163: 0.004725815626 | F163: 2 | G163: 2.06 | H163: 1.994 | I163: 2.018 | J163: 0.03649657518
A164: 0.117 | B164: 0.116 | C164: 0.11 | D164: 0.1143333333 | E164: 0.003785938897 | F164: 1.976 | G164: 2.037 | H164: 1.969 | I164: 1.994 | J164: 0.03740320842
A165: 0.117 | B165: 0.116 | C165: 0.109 | D165: 0.114 | E165: 0.004358898944 | F165: 1.982 | G165: 1.999 | H165: 1.968 | I165: 1.983 | J165: 0.0155241747
A166: 0.118 | B166: 0.117 | C166: 0.109 | D166: 0.1146666667 | E166: 0.004932882862 | F166: 1.984 | G166: 1.964 | H166: 1.993 | I166: 1.980333333 | J166: 0.01484362939
A167: 0.118 | B167: 0.116 | C167: 0.109 | D167: 0.1143333333 | E167: 0.004725815626 | F167: 1.98 | G167: 1.958 | H167: 2.001 | I167: 1.979666667 | J167: 0.0215019379
A168: 0.117 | B168: 0.116 | C168: 0.109 | D168: 0.114 | E168: 0.004358898944 | F168: 1.979 | G168: 1.975 | H168: 1.998 | I168: 1.984 | J168: 0.01228820573
A169: 0.116 | B169: 0.115 | C169: 0.108 | D169: 0.113 | E169: 0.004358898944 | F169: 1.959 | G169: 1.984 | H169: 1.978 | I169: 1.973666667 | J169: 0.0130511813
A170: 0.116 | B170: 0.115 | C170: 0.108 | D170: 0.113 | E170: 0.004358898944 | F170: 1.967 | G170: 1.981 | H170: 1.963 | I170: 1.970333333 | J170: 0.009451631253
A171: 0.115 | B171: 0.114 | C171: 0.107 | D171: 0.112 | E171: 0.004358898944 | F171: 1.964 | G171: 1.96 | H171: 1.929 | I171: 1.951 | J171: 0.01915724406
A172: 0.114 | B172: 0.113 | C172: 0.106 | D172: 0.111 | E172: 0.004358898944 | F172: 1.968 | G172: 1.934 | H172: 1.914 | I172: 1.938666667 | J172: 0.02730079364
A173: 0.114 | B173: 0.113 | C173: 0.106 | D173: 0.111 | E173: 0.004358898944 | F173: 1.966 | G173: 1.939 | H173: 1.932 | I173: 1.945666667 | J173: 0.01795364401
A174: 0.114 | B174: 0.113 | C174: 0.106 | D174: 0.111 | E174: 0.004358898944 | F174: 1.946 | G174: 1.936 | H174: 1.944 | I174: 1.942 | J174: 0.005291502622
A175: 0.114 | B175: 0.113 | C175: 0.106 | D175: 0.111 | E175: 0.004358898944 | F175: 1.94 | G175: 1.921 | H175: 1.955 | I175: 1.938666667 | J175: 0.01703917056
A176: 0.112 | B176: 0.112 | C176: 0.105 | D176: 0.1096666667 | E176: 0.004041451884 | F176: 1.925 | G176: 1.913 | H176: 1.935 | I176: 1.924333333 | J176: 0.01101514109
A177: 0.112 | B177: 0.111 | C177: 0.104 | D177: 0.109 | E177: 0.004358898944 | F177: 1.915 | G177: 1.905 | H177: 1.914 | I177: 1.911333333 | J177: 0.005507570547
A178: 0.111 | B178: 0.11 | C178: 0.103 | D178: 0.108 | E178: 0.004358898944 | F178: 1.92 | G178: 1.924 | H178: 1.896 | I178: 1.913333333 | J178: 0.01514375559
A179: 0.111 | B179: 0.109 | C179: 0.102 | D179: 0.1073333333 | E179: 0.004725815626 | F179: 1.92 | G179: 1.918 | H179: 1.901 | I179: 1.913 | J179: 0.01044030651
A180: 0.111 | B180: 0.109 | C180: 0.103 | D180: 0.1076666667 | E180: 0.004163331999 | F180: 1.908 | G180: 1.913 | H180: 1.902 | I180: 1.907666667 | J180: 0.005507570547
A181: 0.11 | B181: 0.108 | C181: 0.102 | D181: 0.1066666667 | E181: 0.004163331999 | F181: 1.907 | G181: 1.899 | H181: 1.904 | I181: 1.903333333 | J181: 0.004041451884
A182: 0.108 | B182: 0.107 | C182: 0.101 | D182: 0.1053333333 | E182: 0.003785938897 | F182: 1.897 | G182: 1.908 | H182: 1.914 | I182: 1.906333333 | J182: 0.008621678104
A183: 0.107 | B183: 0.106 | C183: 0.1 | D183: 0.1043333333 | E183: 0.003785938897 | F183: 1.888 | G183: 1.912 | H183: 1.902 | I183: 1.900666667 | J183: 0.01205542755
A184: 0.106 | B184: 0.106 | C184: 0.099 | D184: 0.1036666667 | E184: 0.004041451884 | F184: 1.892 | G184: 1.895 | H184: 1.887 | I184: 1.891333333 | J184: 0.004041451884
A185: 0.105 | B185: 0.106 | C185: 0.1 | D185: 0.1036666667 | E185: 0.003214550254 | F185: 1.888 | G185: 1.877 | H185: 1.861 | I185: 1.875333333 | J185: 0.01357694124
A186: 0.106 | B186: 0.106 | C186: 0.1 | D186: 0.104 | E186: 0.003464101615 | F186: 1.892 | G186: 1.867 | H186: 1.851 | I186: 1.87 | J186: 0.02066397832
A187: 0.106 | B187: 0.105 | C187: 0.1 | D187: 0.1036666667 | E187: 0.003214550254 | F187: 1.889 | G187: 1.874 | H187: 1.851 | I187: 1.871333333 | J187: 0.01913983629
A188: 0.106 | B188: 0.105 | C188: 0.1 | D188: 0.1036666667 | E188: 0.003214550254 | F188: 1.888 | G188: 1.872 | H188: 1.842 | I188: 1.867333333 | J188: 0.02335237318
A189: 0.105 | B189: 0.104 | C189: 0.099 | D189: 0.1026666667 | E189: 0.003214550254 | F189: 1.896 | G189: 1.859 | H189: 1.843 | I189: 1.866 | J189: 0.02718455444
A190: 0.104 | B190: 0.104 | C190: 0.099 | D190: 0.1023333333 | E190: 0.002886751346 | F190: 1.889 | G190: 1.864 | H190: 1.852 | I190: 1.868333333 | J190: 0.01887679351
A191: 0.103 | B191: 0.103 | C191: 0.098 | D191: 0.1013333333 | E191: 0.002886751346 | F191: 1.876 | G191: 1.865 | H191: 1.849 | I191: 1.863333333 | J191: 0.01357694124
A192: 0.102 | B192: 0.101 | C192: 0.095 | D192: 0.09933333333 | E192: 0.003785938897 | F192: 1.852 | G192: 1.849 | H192: 1.857 | I192: 1.852666667 | J192: 0.004041451884
A193: 0.1 | B193: 0.099 | C193: 0.094 | D193: 0.09766666667 | E193: 0.003214550254 | F193: 1.835 | G193: 1.845 | H193: 1.852 | I193: 1.844 | J193: 0.008544003745
A194: 0.099 | B194: 0.098 | C194: 0.092 | D194: 0.09633333333 | E194: 0.003785938897 | F194: 1.821 | G194: 1.839 | H194: 1.844 | I194: 1.834666667 | J194: 0.01209683154
A195: 0.098 | B195: 0.097 | C195: 0.092 | D195: 0.09566666667 | E195: 0.003214550254 | F195: 1.833 | G195: 1.852 | H195: 1.823 | I195: 1.836 | J195: 0.01473091986
A196: 0.097 | B196: 0.097 | C196: 0.092 | D196: =AVERAGE(A196:C196) -> 0.09533333333 | E196: =STDEV(A196:C196) -> 0.002886751346 | F196: 1.829 | G196: 1.845 | H196: 1.827 | I196: =AVERAGE(F196:H196) -> 1.833666667 | J196: =STDEV(F196:H196) -> 0.009865765725
A197: 0.097 | B197: 0.096 | C197: 0.091 | D197: 0.09466666667 | E197: 0.003214550254 | F197: 1.838 | G197: 1.826 | H197: 1.846 | I197: 1.836666667 | J197: 0.01006644591
A198: 0.096 | B198: 0.095 | C198: 0.09 | D198: 0.09366666667 | E198: 0.003214550254 | F198: 1.839 | G198: 1.828 | H198: 1.849 | I198: 1.838666667 | J198: 0.0105039675
A199: 0.094 | B199: 0.094 | C199: 0.089 | D199: 0.09233333333 | E199: 0.002886751346 | F199: 1.851 | G199: 1.834 | H199: 1.837 | I199: 1.840666667 | J199: 0.009073771726
A200: 0.093 | B200: 0.092 | C200: 0.088 | D200: 0.091 | E200: 0.002645751311 | F200: 1.853 | G200: 1.844 | H200: 1.813 | I200: 1.836666667 | J200: 0.02098412098
... 453 more rows

Sheet Figure 3
B1: 0.1 mM Cys-FeS (5:1:1) | G1: 0.2 mM Cys-FeS (5:1:1) | L1: 0.4 mM Cys-FeS (5:1:1) | Q1: 0.6 mM Cys-FeS (5:1:1) | V1: 0.8 mM Cys-FeS (5:1:1) | AA1: 1 mM Cys-FeS (5:1:1) | AF1: 2 mM Cys-FeS (5:1:1) | AK1: 3 mM Cys-FeS (5:1:1) | AP1: 4 mM Cys-FeS (5:1:1) | AU1: 5 mM Cys-FeS (5:1:1)
A2: Wavelength | B2: i | C2: ii | D2: iii | E2: Av | F2: SD | G2: i | H2: ii | I2: iii | J2: Av | K2: SD | L2: i | M2: ii | N2: iii | O2: Av | P2: SD | Q2: i | R2: ii | S2: iii | T2: Av | U2: SD | V2: i | W2: ii | X2: iii | Y2: Av | Z2: SD | AA2: i | AB2: ii | AC2: iii | AD2: Av | AE2: SD | AF2: i | AG2: ii | AH2: iii | AI2: Av | AJ2: SD | AK2: i | AL2: ii | AM2: iii | AN2: Av | AO2: SD | AP2: i | AQ2: ii | AR2: iii | AS2: Av | AT2: SD | AU2: i | AV2: ii | AW2: iii | AX2: Av | AY2: SD
A3: 190 | B3: 0.13 | C3: 0.007 | D3: 0.109 | E3: =AVERAGE(B3:D3) -> 0.082 | F3: =STDEV(B3:D3) -> 0.0657951366 | G3: 0.264 | H3: 0.223 | I3: 0.17 | J3: =AVERAGE(G3:I3) -> 0.219 | K3: =STDEV(G3:I3) -> 0.04712748667 | L3: 0.173 | M3: 0.348 | N3: 0.232 | O3: =AVERAGE(L3:N3) -> 0.251 | P3: =STDEV(L3:N3) -> 0.08903370148 | Q3: 0.289 | R3: 0.355 | S3: 0.184 | T3: =AVERAGE(Q3:S3) -> 0.276 | U3: =STDEV(Q3:S3) -> 0.08623804265 | V3: 0.265 | W3: 0.353 | X3: 0.27 | Y3: =AVERAGE(V3:X3) -> 0.296 | Z3: =STDEV(V3:X3) -> 0.04942671343 | AA3: 0.203 | AB3: 0.278 | AC3: 0.276 | AD3: =AVERAGE(AA3:AC3) -> 0.2523333333 | AE3: =STDEV(AA3:AC3) -> 0.04273562136 | AF3: 0.199 | AG3: 0.395 | AH3: 0.331 | AI3: =AVERAGE(AF3:AH3) -> 0.3083333333 | AJ3: =STDEV(AF3:AH3) -> 0.09994665244 | AK3: 0.484 | AL3: 0.702 | AM3: 0.666 | AN3: =AVERAGE(AK3:AM3) -> 0.6173333333 | AO3: =STDEV(AK3:AM3) -> 0.116864594 | AP3: 0.573 | AQ3: 0.455 | AR3: 0.911 | AS3: =AVERAGE(AP3:AR3) -> 0.6463333333 | AT3: =STDEV(AP3:AR3) -> 0.2366798118 | AU3: 0.555 | AV3: 0.745 | AW3: 0.95 | AX3: =AVERAGE(AU3:AW3) -> 0.75 | AY3: =STDEV(AU3:AW3) -> 0.1975474627
A4: 191 | B4: 0.151 | C4: 0.009 | D4: 0.113 | E4: =AVERAGE(B4:D4) -> 0.091 | F4: =STDEV(B4:D4) -> 0.0735119038 | G4: 0.311 | H4: 0.302 | I4: 0.129 | J4: =AVERAGE(G4:I4) -> 0.2473333333 | K4: =STDEV(G4:I4) -> 0.1025784253 | L4: 0.269 | M4: 0.373 | N4: 0.247 | O4: =AVERAGE(L4:N4) -> 0.2963333333 | P4: =STDEV(L4:N4) -> 0.06730032194 | Q4: 0.35 | R4: 0.322 | S4: 0.29 | T4: =AVERAGE(Q4:S4) -> 0.3206666667 | U4: =STDEV(Q4:S4) -> 0.030022214 | V4: 0.236 | W4: 0.395 | X4: 0.548 | Y4: =AVERAGE(V4:X4) -> 0.393 | Z4: =STDEV(V4:X4) -> 0.1560096151 | AA4: 0.223 | AB4: 0.32 | AC4: 0.424 | AD4: =AVERAGE(AA4:AC4) -> 0.3223333333 | AE4: =STDEV(AA4:AC4) -> 0.100520313 | AF4: 0.11 | AG4: 0.333 | AH4: 0.184 | AI4: =AVERAGE(AF4:AH4) -> 0.209 | AJ4: =STDEV(AF4:AH4) -> 0.1135825691 | AK4: 0.59 | AL4: 0.368 | AM4: 0.802 | AN4: =AVERAGE(AK4:AM4) -> 0.5866666667 | AO4: =STDEV(AK4:AM4) -> 0.2170192004 | AP4: 0.624 | AQ4: 0.495 | AR4: 0.947 | AS4: =AVERAGE(AP4:AR4) -> 0.6886666667 | AT4: =STDEV(AP4:AR4) -> 0.2328354211 | AU4: 0.623 | AV4: 0.482 | AW4: 0.854 | AX4: =AVERAGE(AU4:AW4) -> 0.653 | AY4: =STDEV(AU4:AW4) -> 0.1878057507
A5: 192 | B5: 0.046 | C5: -0.019 | D5: 0.04 | E5: 0.02233333333 | F5: 0.03592121008 | G5: 0.279 | H5: 0.297 | I5: 0.112 | J5: 0.2293333333 | K5: 0.1020114373 | L5: 0.224 | M5: 0.397 | N5: 0.199 | O5: 0.2733333333 | P5: 0.1078254763 | Q5: 0.188 | R5: 0.319 | S5: 0.287 | T5: 0.2646666667 | U5: 0.06829592472 | V5: 0.312 | W5: 0.355 | X5: 0.799 | Y5: 0.4886666667 | Z5: 0.2696151578 | AA5: 0.255 | AB5: 0.263 | AC5: 0.434 | AD5: 0.3173333333 | AE5: 0.1011154456 | AF5: 0.164 | AG5: 0.36 | AH5: 0.326 | AI5: 0.2833333333 | AJ5: 0.1047345852 | AK5: 0.677 | AL5: 0.286 | AM5: 0.857 | AN5: 0.6066666667 | AO5: 0.2919252187 | AP5: 0.693 | AQ5: 0.566 | AR5: 0.742 | AS5: 0.667 | AT5: 0.09083501527 | AU5: 0.708 | AV5: 0.522 | AW5: 0.978 | AX5: 0.736 | AY5: 0.2292858478
A6: 193 | B6: -0.053 | C6: 0.034 | D6: 0.061 | E6: 0.014 | F6: 0.05957348403 | G6: 0.161 | H6: 0.281 | I6: 0.031 | J6: 0.1576666667 | K6: 0.1250333289 | L6: 0.203 | M6: 0.4 | N6: 0.126 | O6: 0.243 | P6: 0.1413117122 | Q6: 0.138 | R6: 0.305 | S6: 0.232 | T6: 0.225 | U6: 0.08371977066 | V6: 0.418 | W6: 0.199 | X6: 0.776 | Y6: 0.4643333333 | Z6: 0.2912770731 | AA6: 0.23 | AB6: 0.241 | AC6: 0.481 | AD6: 0.3173333333 | AE6: 0.1418461608 | AF6: 0.28 | AG6: 0.402 | AH6: 0.466 | AI6: 0.3826666667 | AJ6: 0.09449514979 | AK6: 0.795 | AL6: 0.526 | AM6: 0.945 | AN6: 0.7553333333 | AO6: 0.2122977469 | AP6: 0.734 | AQ6: 0.54 | AR6: 0.507 | AS6: 0.5936666667 | AT6: 0.1226471905 | AU6: 0.876 | AV6: 0.824 | AW6: 0.844 | AX6: 0.848 | AY6: 0.0262297541
A7: 194 | B7: 0 | C7: -0.005 | D7: 0.059 | E7: 0.018 | F7: 0.03559494346 | G7: 0.092 | H7: 0.073 | I7: 0.059 | J7: 0.07466666667 | K7: 0.016563011 | L7: 0.137 | M7: 0.321 | N7: -0.02 | O7: 0.146 | P7: 0.1706780595 | Q7: 0.066 | R7: 0.308 | S7: 0.116 | T7: 0.1633333333 | U7: 0.1277549738 | V7: 0.37 | W7: 0.187 | X7: 0.463 | Y7: 0.34 | Z7: 0.1404243569 | AA7: 0.323 | AB7: 0.142 | AC7: 0.294 | AD7: 0.253 | AE7: 0.09721625379 | AF7: 0.315 | AG7: 0.362 | AH7: 0.505 | AI7: 0.394 | AJ7: 0.09895958771 | AK7: 0.848 | AL7: 0.655 | AM7: 0.613 | AN7: 0.7053333333 | AO7: 0.1253249111 | AP7: 0.732 | AQ7: 0.618 | AR7: 0.161 | AS7: 0.5036666667 | AT7: 0.3021826159 | AU7: 0.728 | AV7: 0.876 | AW7: 0.809 | AX7: 0.8043333333 | AY7: 0.07411027819
A8: 195 | B8: 0.055 | C8: 0 | D8: 0.046 | E8: 0.03366666667 | F8: 0.0295014124 | G8: -0.022 | H8: 0.193 | I8: -0.024 | J8: 0.049 | K8: 0.1247116675 | L8: 0.081 | M8: 0.29 | N8: 0.177 | O8: 0.1826666667 | P8: 0.1046151678 | Q8: 0.18 | R8: 0.292 | S8: 0.219 | T8: 0.2303333333 | U8: 0.0568536132 | V8: 0.324 | W8: 0.152 | X8: 0.175 | Y8: 0.217 | Z8: 0.09337558567 | AA8: 0.302 | AB8: 0.302 | AC8: 0.043 | AD8: 0.2156666667 | AE8: 0.1495337197 | AF8: 0.316 | AG8: 0.367 | AH8: 0.335 | AI8: 0.3393333333 | AJ8: 0.02577466456 | AK8: 0.796 | AL8: 1.027 | AM8: 0.439 | AN8: 0.754 | AO8: 0.2962414556 | AP8: 0.862 | AQ8: 0.822 | AR8: 0.146 | AS8: 0.61 | AT8: 0.4023331952 | AU8: 0.794 | AV8: 0.984 | AW8: 0.817 | AX8: 0.865 | AY8: 0.103696673
A9: 196 | B9: 0.072 | C9: 0.028 | D9: 0.127 | E9: 0.07566666667 | F9: 0.04960174728 | G9: 0.047 | H9: 0.199 | I9: 0.187 | J9: 0.1443333333 | K9: 0.08450641001 | L9: 0.174 | M9: 0.127 | N9: 0.37 | O9: 0.2236666667 | P9: 0.128888841 | Q9: 0.286 | R9: 0.239 | S9: 0.351 | T9: 0.292 | U9: 0.05624055476 | V9: 0.206 | W9: 0.235 | X9: 0.271 | Y9: 0.2373333333 | Z9: 0.03256275992 | AA9: 0.311 | AB9: 0.298 | AC9: 0.249 | AD9: 0.286 | AE9: 0.03269556545 | AF9: 0.261 | AG9: 0.487 | AH9: 0.284 | AI9: 0.344 | AJ9: 0.1243744347 | AK9: 0.64 | AL9: 0.967 | AM9: 0.343 | AN9: 0.65 | AO9: 0.3121201692 | AP9: 0.705 | AQ9: 0.791 | AR9: 0.375 | AS9: 0.6236666667 | AT9: 0.2196026715 | AU9: 0.679 | AV9: 1.152 | AW9: 0.748 | AX9: 0.8596666667 | AY9: 0.2555079907
A10: 197 | B10: 0.041 | C10: 0.082 | D10: 0.095 | E10: 0.07266666667 | F10: 0.02818391977 | G10: 0.128 | H10: 0.21 | I10: 0.334 | J10: 0.224 | K10: 0.1037111373 | L10: 0.164 | M10: 0.099 | N10: 0.407 | O10: 0.2233333333 | P10: 0.1623463376 | Q10: 0.345 | R10: 0.231 | S10: 0.343 | T10: 0.3063333333 | U10: 0.06524824391 | V10: 0.162 | W10: 0.37 | X10: 0.292 | Y10: 0.2746666667 | Z10: 0.105077749 | AA10: 0.433 | AB10: 0.272 | AC10: 0.35 | AD10: 0.3516666667 | AE10: 0.08051293892 | AF10: 0.306 | AG10: 0.593 | AH10: 0.453 | AI10: 0.4506666667 | AJ10: 0.1435142269 | AK10: 0.259 | AL10: 0.657 | AM10: 0.25 | AN10: 0.3886666667 | AO10: 0.2324270495 | AP10: 0.412 | AQ10: 0.856 | AR10: 0.593 | AS10: 0.6203333333 | AT10: 0.2232584452 | AU10: 0.498 | AV10: 1.027 | AW10: 0.624 | AX10: 0.7163333333 | AY10: 0.2763228788
A11: 198 | B11: -0.1 | C11: 0.16 | D11: -0.012 | E11: 0.016 | F11: 0.132242202 | G11: 0.047 | H11: 0.248 | I11: 0.235 | J11: 0.1766666667 | K11: 0.1124825912 | L11: 0.088 | M11: 0.093 | N11: 0.244 | O11: 0.1416666667 | P11: 0.08865852093 | Q11: 0.235 | R11: 0.05 | S11: 0.117 | T11: 0.134 | U11: 0.09366429416 | V11: 0.088 | W11: 0.349 | X11: 0.225 | Y11: 0.2206666667 | Z11: 0.130553948 | AA11: 0.346 | AB11: 0.176 | AC11: 0.429 | AD11: 0.317 | AE11: 0.1289689885 | AF11: 0.626 | AG11: 0.669 | AH11: 0.645 | AI11: 0.6466666667 | AJ11: 0.02154839515 | AK11: 0.263 | AL11: 0.68 | AM11: 0.504 | AN11: 0.4823333333 | AO11: 0.2093426219 | AP11: 0.364 | AQ11: 0.693 | AR11: 0.831 | AS11: 0.6293333333 | AT11: 0.2399215149 | AU11: 0.472 | AV11: 1.032 | AW11: 0.496 | AX11: 0.6666666667 | AY11: 0.3166154345
A12: 199 | B12: -0.014 | C12: 0.269 | D12: 0.027 | E12: 0.094 | F12: 0.1529346266 | G12: 0.064 | H12: 0.213 | I12: 0.109 | J12: 0.1286666667 | K12: 0.0764220736 | L12: 0.105 | M12: 0.158 | N12: 0.063 | O12: 0.1086666667 | P12: 0.04760602203 | Q12: 0.205 | R12: 0.167 | S12: 0.077 | T12: 0.1496666667 | U12: 0.06573684913 | V12: 0.093 | W12: 0.377 | X12: 0.243 | Y12: 0.2376666667 | Z12: 0.1420750975 | AA12: 0.382 | AB12: 0.15 | AC12: 0.308 | AD12: 0.28 | AE12: 0.1185073837 | AF12: 0.604 | AG12: 0.605 | AH12: 0.587 | AI12: 0.5986666667 | AJ12: 0.01011599394 | AK12: 0.387 | AL12: 0.49 | AM12: 0.564 | AN12: 0.4803333333 | AO12: 0.08889506923 | AP12: 0.537 | AQ12: 0.73 | AR12: 0.678 | AS12: 0.6483333333 | AT12: 0.09986157085 | AU12: 0.575 | AV12: 0.704 | AW12: 0.494 | AX12: 0.591 | AY12: 0.1059103394
A13: 200 | B13: -0.198 | C13: 0.087 | D13: -0.088 | E13: -0.06633333333 | F13: 0.1437300711 | G13: -0.321 | H13: -0.084 | I13: -0.23 | J13: -0.2116666667 | K13: 0.1195589116 | L13: -0.074 | M13: -0.135 | N13: -0.097 | O13: -0.102 | P13: 0.0308058436 | Q13: 0.05 | R13: 0.019 | S13: -0.018 | T13: 0.017 | U13: 0.03404408906 | V13: 0.032 | W13: 0.061 | X13: 0.075 | Y13: 0.056 | Z13: 0.0219317122 | AA13: 0.159 | AB13: 0.015 | AC13: 0.055 | AD13: 0.07633333333 | AE13: 0.07433258595 | AF13: 0.348 | AG13: 0.342 | AH13: 0.372 | AI13: 0.354 | AJ13: 0.01587450787 | AK13: 0.363 | AL13: 0.41 | AM13: 0.487 | AN13: 0.42 | AO13: 0.0626019169 | AP13: 0.494 | AQ13: 0.45 | AR13: 0.594 | AS13: 0.5126666667 | AT13: 0.07379250188 | AU13: 0.769 | AV13: 0.556 | AW13: 0.859 | AX13: 0.728 | AY13: 0.1556052698
A14: 201 | B14: -0.281 | C14: -0.183 | D14: -0.184 | E14: -0.216 | F14: 0.05629387178 | G14: -0.131 | H14: -0.118 | I14: -0.288 | J14: -0.179 | K14: 0.09462029381 | L14: -0.135 | M14: -0.131 | N14: -0.105 | O14: -0.1236666667 | P14: 0.01628905563 | Q14: -0.144 | R14: -0.04 | S14: -0.133 | T14: -0.1056666667 | U14: 0.0571343446 | V14: -0.04 | W14: -0.055 | X14: -0.001 | Y14: -0.032 | Z14: 0.02787471973 | AA14: 0.12 | AB14: -0.049 | AC14: 0.024 | AD14: 0.03166666667 | AE14: 0.08476044675 | AF14: 0.136 | AG14: 0.368 | AH14: 0.257 | AI14: 0.2536666667 | AJ14: 0.116035914 | AK14: 0.287 | AL14: 0.643 | AM14: 0.442 | AN14: 0.4573333333 | AO14: 0.1784946311 | AP14: 0.778 | AQ14: 0.297 | AR14: 0.704 | AS14: 0.593 | AT14: 0.259 | AU14: 0.791 | AV14: 0.658 | AW14: 1.11 | AX14: 0.853 | AY14: 0.2322907661
A15: 202 | B15: -0.175 | C15: -0.185 | D15: -0.131 | E15: -0.1636666667 | F15: 0.02872861524 | G15: 0.191 | H15: -0.009 | I15: -0.144 | J15: 0.01266666667 | K15: 0.1685477183 | L15: -0.046 | M15: 0.081 | N15: 0.05 | O15: 0.02833333333 | P15: 0.06621429856 | Q15: -0.005 | R15: 0.023 | S15: -0.034 | T15: -0.005333333333 | U15: 0.02850146195 | V15: 0.015 | W15: 0.053 | X15: 0.006 | Y15: 0.02466666667 | Z15: 0.02494660966 | AA15: 0.295 | AB15: 0.228 | AC15: 0.221 | AD15: 0.248 | AE15: 0.04085339643 | AF15: 0.136 | AG15: 0.25 | AH15: 0.298 | AI15: 0.228 | AJ15: 0.08321057625 | AK15: 0.155 | AL15: 0.665 | AM15: 0.19 | AN15: 0.3366666667 | AO15: 0.2848830169 | AP15: 0.553 | AQ15: 0.295 | AR15: 0.537 | AS15: 0.4616666667 | AT15: 0.1445590998 | AU15: 0.379 | AV15: 0.468 | AW15: 0.936 | AX15: 0.5943333333 | AY15: 0.2992195404
A16: 203 | B16: -0.177 | C16: -0.011 | D16: -0.172 | E16: -0.12 | F16: 0.09442986816 | G16: 0.306 | H16: 0.003 | I16: -0.111 | J16: 0.066 | K16: 0.2155203007 | L16: -0.114 | M16: 0.157 | N16: 0.091 | O16: 0.04466666667 | P16: 0.1413164298 | Q16: -0.062 | R16: 0.034 | S16: -0.045 | T16: -0.02433333333 | U16: 0.05122824742 | V16: 0.169 | W16: 0.188 | X16: 0.027 | Y16: 0.128 | Z16: 0.08798295289 | AA16: 0.306 | AB16: 0.339 | AC16: 0.268 | AD16: 0.3043333333 | AE16: 0.03552933061 | AF16: 0.425 | AG16: 0.353 | AH16: 0.52 | AI16: 0.4326666667 | AJ16: 0.08376355612 | AK16: 0.331 | AL16: 0.864 | AM16: 0.291 | AN16: 0.4953333333 | AO16: 0.3199005054 | AP16: 0.727 | AQ16: 0.564 | AR16: 0.581 | AS16: 0.624 | AT16: 0.08960468738 | AU16: 0.238 | AV16: 0.458 | AW16: 0.688 | AX16: 0.4613333333 | AY16: 0.2250185178
A17: 204 | B17: 0.032 | C17: 0.3 | D17: 0.035 | E17: 0.1223333333 | F17: 0.1538711582 | G17: 0.47 | H17: 0.092 | I17: 0.204 | J17: 0.2553333333 | K17: 0.1941580113 | L17: 0.175 | M17: 0.234 | N17: 0.288 | O17: 0.2323333333 | P17: 0.05651843357 | Q17: 0.134 | R17: 0.28 | S17: 0.158 | T17: 0.1906666667 | U17: 0.07829005897 | V17: 0.42 | W17: 0.468 | X17: 0.203 | Y17: 0.3636666667 | Z17: 0.1411960812 | AA17: 0.294 | AB17: 0.519 | AC17: 0.324 | AD17: 0.379 | AE17: 0.1221679172 | AF17: 0.376 | AG17: 0.442 | AH17: 0.605 | AI17: 0.4743333333 | AJ17: 0.1178742268 | AK17: 0.556 | AL17: 0.625 | AM17: 0.407 | AN17: 0.5293333333 | AO17: 0.1114196272 | AP17: 0.685 | AQ17: 0.738 | AR17: 0.386 | AS17: 0.603 | AT17: 0.1897867224 | AU17: 0.254 | AV17: 0.539 | AW17: 0.764 | AX17: 0.519 | AY17: 0.2555875584
A18: 205 | B18: 0.003 | C18: 0.168 | D18: -0.019 | E18: 0.05066666667 | F18: 0.1022073057 | G18: 0.081 | H18: -0.128 | I18: 0.215 | J18: 0.056 | K18: 0.172861216 | L18: 0.153 | M18: 0.016 | N18: 0.101 | O18: 0.09 | P18: 0.06915923655 | Q18: 0.163 | R18: 0.147 | S18: 0.065 | T18: 0.125 | U18: 0.05257375771 | V18: 0.321 | W18: 0.291 | X18: 0.165 | Y18: 0.259 | Z18: 0.08277680835 | AA18: 0.253 | AB18: 0.288 | AC18: 0.213 | AD18: 0.2513333333 | AE18: 0.0375277675 | AF18: 0.458 | AG18: 0.552 | AH18: 0.571 | AI18: 0.527 | AJ18: 0.06050619803 | AK18: 0.711 | AL18: 0.284 | AM18: 0.492 | AN18: 0.4956666667 | AO18: 0.2135236131 | AP18: 0.828 | AQ18: 0.765 | AR18: 0.445 | AS18: 0.6793333333 | AT18: 0.205368774 | AU18: 0.557 | AV18: 0.671 | AW18: 0.735 | AX18: 0.6543333333 | AY18: 0.09016281569
A19: 206 | B19: -0.051 | C19: 0.024 | D19: -0.14 | E19: -0.05566666667 | F19: 0.08209953309 | G19: -0.034 | H19: -0.037 | I19: 0.152 | J19: 0.027 | K19: 0.1082635673 | L19: 0.114 | M19: -0.052 | N19: -0.034 | O19: 0.009333333333 | P19: 0.09108969938 | Q19: 0.058 | R19: 0.058 | S19: 0.007 | T19: 0.041 | U19: 0.02944486373 | V19: 0.161 | W19: 0.146 | X19: 0.081 | Y19: 0.1293333333 | Z19: 0.04252450274 | AA19: 0.219 | AB19: 0.022 | AC19: 0.085 | AD19: 0.1086666667 | AE19: 0.1006098073 | AF19: 0.479 | AG19: 0.663 | AH19: 0.322 | AI19: 0.488 | AJ19: 0.1706780595 | AK19: 0.844 | AL19: 0.423 | AM19: 0.703 | AN19: 0.6566666667 | AO19: 0.2142903015 | AP19: 1.13 | AQ19: 0.908 | AR19: 0.595 | AS19: 0.8776666667 | AT19: 0.2687867804 | AU19: 0.722 | AV19: 0.712 | AW19: 0.772 | AX19: 0.7353333333 | AY19: 0.03214550254
A20: 207 | B20: 0.045 | C20: -0.082 | D20: -0.068 | E20: -0.035 | F20: 0.06963476143 | G20: -0.027 | H20: 0.111 | I20: 0.159 | J20: 0.081 | K20: 0.09656086164 | L20: 0.165 | M20: 0.16 | N20: -0.019 | O20: 0.102 | P20: 0.1048188914 | Q20: 0.121 | R20: 0.043 | S20: 0.184 | T20: 0.116 | U20: 0.07063285355 | V20: 0.149 | W20: 0.162 | X20: 0.078 | Y20: 0.1296666667 | Z20: 0.04521430452 | AA20: 0.354 | AB20: 0.154 | AC20: 0.167 | AD20: 0.225 | AE20: 0.1119062107 | AF20: 0.537 | AG20: 0.441 | AH20: 0.26 | AI20: 0.4126666667 | AJ20: 0.1406567927 | AK20: 0.748 | AL20: 0.582 | AM20: 0.703 | AN20: 0.6776666667 | AO20: 0.0858506455 | AP20: 0.914 | AQ20: 0.551 | AR20: 0.628 | AS20: 0.6976666667 | AT20: 0.1912650866 | AU20: 0.845 | AV20: 0.523 | AW20: 0.517 | AX20: 0.6283333333 | AY20: 0.1876628182
A21: 208 | B21: 0.036 | C21: 0.072 | D21: -0.008 | E21: 0.03333333333 | F21: 0.0400666112 | G21: -0.042 | H21: 0.097 | I21: 0.01 | J21: 0.02166666667 | K21: 0.07023057264 | L21: 0.066 | M21: 0.232 | N21: 0.002 | O21: 0.1 | P21: 0.11870973 | Q21: 0.079 | R21: 0.091 | S21: 0.27 | T21: 0.1466666667 | U21: 0.1069781909 | V21: 0.227 | W21: 0.289 | X21: 0.067 | Y21: 0.1943333333 | Z21: 0.1145483886 | AA21: 0.303 | AB21: 0.337 | AC21: 0.11 | AD21: 0.25 | AE21: 0.1224295716 | AF21: 0.505 | AG21: 0.468 | AH21: 0.332 | AI21: 0.435 | AJ21: 0.09109884741 | AK21: 0.757 | AL21: 0.597 | AM21: 0.929 | AN21: 0.761 | AO21: 0.1660361406 | AP21: 0.985 | AQ21: 0.554 | AR21: 0.948 | AS21: 0.829 | AT21: 0.238874444 | AU21: 0.797 | AV21: 0.62 | AW21: 0.54 | AX21: 0.6523333333 | AY21: 0.1315155251
A22: 209 | B22: 0.057 | C22: 0.245 | D22: 0.081 | E22: 0.1276666667 | F22: 0.1023197602 | G22: 0.081 | H22: 0.213 | I22: 0.108 | J22: 0.134 | K22: 0.06973521349 | L22: 0.099 | M22: 0.197 | N22: 0.064 | O22: 0.12 | P22: 0.06894200461 | Q22: 0.093 | R22: 0.263 | S22: 0.297 | T22: 0.2176666667 | U22: 0.1092947086 | V22: 0.288 | W22: 0.37 | X22: 0.039 | Y22: 0.2323333333 | Z22: 0.1723784596 | AA22: 0.191 | AB22: 0.513 | AC22: 0.139 | AD22: 0.281 | AE22: 0.2025931884 | AF22: 0.221 | AG22: 0.316 | AH22: 0.41 | AI22: 0.3156666667 | AJ22: 0.09450044092 | AK22: 0.828 | AL22: 0.481 | AM22: 0.782 | AN22: 0.697 | AO22: 0.1884701568 | AP22: 0.611 | AQ22: 0.749 | AR22: 0.957 | AS22: 0.7723333333 | AT22: 0.174176156 | AU22: 0.745 | AV22: 0.777 | AW22: 0.836 | AX22: 0.786 | AY22: 0.04616275555
A23: 210 | B23: 0.101 | C23: 0.218 | D23: 0.128 | E23: 0.149 | F23: 0.06126173357 | G23: 0.153 | H23: 0.117 | I23: 0.138 | J23: 0.136 | K23: 0.01808314132 | L23: 0.12 | M23: 0.195 | N23: 0.117 | O23: 0.144 | P23: 0.04419275959 | Q23: 0.402 | R23: 0.32 | S23: 0.238 | T23: 0.32 | U23: 0.082 | V23: 0.36 | W23: 0.263 | X23: 0.039 | Y23: 0.2206666667 | Z23: 0.1646339374 | AA23: 0.198 | AB23: 0.496 | AC23: 0.193 | AD23: 0.2956666667 | AE23: 0.1735117671 | AF23: 0.398 | AG23: 0.307 | AH23: 0.492 | AI23: 0.399 | AJ23: 0.09250405397 | AK23: 0.824 | AL23: 0.356 | AM23: 0.753 | AN23: 0.6443333333 | AO23: 0.2522148555 | AP23: 0.578 | AQ23: 0.952 | AR23: 0.839 | AS23: 0.7896666667 | AT23: 0.1918184906 | AU23: 0.848 | AV23: 0.791 | AW23: 0.668 | AX23: 0.769 | AY23: 0.09199456506
A24: 211 | B24: 0.079 | C24: 0.116 | D24: 0.077 | E24: 0.09066666667 | F24: 0.02196208855 | G24: 0.129 | H24: 0.134 | I24: 0.109 | J24: 0.124 | K24: 0.01322875656 | L24: 0.118 | M24: 0.087 | N24: 0.069 | O24: 0.09133333333 | P24: 0.02478574859 | Q24: 0.38 | R24: 0.32 | S24: 0.119 | T24: 0.273 | U24: 0.1367004023 | V24: 0.218 | W24: 0.136 | X24: 0.151 | Y24: 0.1683333333 | Z24: 0.04366157731 | AA24: 0.169 | AB24: 0.313 | AC24: 0.247 | AD24: 0.243 | AE24: 0.07208328516 | AF24: 0.434 | AG24: 0.464 | AH24: 0.416 | AI24: 0.438 | AJ24: 0.02424871131 | AK24: 0.793 | AL24: 0.222 | AM24: 0.605 | AN24: 0.54 | AO24: 0.2909965636 | AP24: 0.497 | AQ24: 1.015 | AR24: 0.755 | AS24: 0.7556666667 | AT24: 0.2590006435 | AU24: 0.721 | AV24: 0.745 | AW24: 0.617 | AX24: 0.6943333333 | AY24: 0.06803920438
A25: 212 | B25: 0.1 | C25: -0.034 | D25: 0.035 | E25: 0.03366666667 | F25: 0.06700994951 | G25: 0.041 | H25: 0.127 | I25: 0.036 | J25: 0.068 | K25: 0.05115662225 | L25: 0.142 | M25: 0.094 | N25: 0.145 | O25: 0.127 | P25: 0.02861817604 | Q25: 0.307 | R25: 0.17 | S25: 0.103 | T25: 0.1933333333 | U25: 0.1039823703 | V25: 0.228 | W25: 0.004 | X25: 0.212 | Y25: 0.148 | Z25: 0.1249639948 | AA25: 0.19 | AB25: 0.128 | AC25: 0.37 | AD25: 0.2293333333 | AE25: 0.1257033545 | AF25: 0.439 | AG25: 0.687 | AH25: 0.278 | AI25: 0.468 | AJ25: 0.2060364046 | AK25: 0.544 | AL25: 0.383 | AM25: 0.356 | AN25: 0.4276666667 | AO25: 0.1016480857 | AP25: 0.742 | AQ25: 0.831 | AR25: 0.489 | AS25: 0.6873333333 | AT25: 0.1774326163 | AU25: 0.63 | AV25: 0.796 | AW25: 0.675 | AX25: 0.7003333333 | AY25: 0.0858506455
A26: 213 | B26: 0.054 | C26: 0 | D26: -0.025 | E26: 0.009666666667 | F26: 0.04037738641 | G26: -0.025 | H26: 0.082 | I26: 0.001 | J26: 0.01933333333 | K26: 0.05580621232 | L26: 0.119 | M26: 0.144 | N26: 0.249 | O26: 0.1706666667 | P26: 0.06898067362 | Q26: 0.152 | R26: 0.093 | S26: 0.092 | T26: 0.1123333333 | U26: 0.03435597959 | V26: 0.208 | W26: 0.066 | X26: 0.221 | Y26: 0.165 | Z26: 0.08598255637 | AA26: 0.214 | AB26: 0.23 | AC26: 0.28 | AD26: 0.2413333333 | AE26: 0.03442867022 | AF26: 0.493 | AG26: 0.812 | AH26: 0.28 | AI26: 0.5283333333 | AJ26: 0.2677542406 | AK26: 0.268 | AL26: 0.419 | AM26: 0.457 | AN26: 0.3813333333 | AO26: 0.09997166265 | AP26: 0.96 | AQ26: 0.607 | AR26: 0.393 | AS26: 0.6533333333 | AT26: 0.2863255723 | AU26: 0.593 | AV26: 0.94 | AW26: 1.008 | AX26: 0.847 | AY26: 0.2225825689
A27: 214 | B27: 0.061 | C27: 0.06 | D27: 0.044 | E27: 0.055 | F27: 0.009539392014 | G27: 0.05 | H27: 0.137 | I27: 0.046 | J27: 0.07766666667 | K27: 0.05142308172 | L27: 0.085 | M27: 0.126 | N27: 0.276 | O27: 0.1623333333 | P27: 0.1005501533 | Q27: 0.013 | R27: 0.139 | S27: 0.161 | T27: 0.1043333333 | U27: 0.07985820768 | V27: 0.185 | W27: 0.15 | X27: 0.182 | Y27: 0.1723333333 | Z27: 0.0193993127 | AA27: 0.244 | AB27: 0.271 | AC27: 0.181 | AD27: 0.232 | AE27: 0.04618441296 | AF27: 0.306 | AG27: 0.547 | AH27: 0.201 | AI27: 0.3513333333 | AJ27: 0.1773987974 | AK27: 0.192 | AL27: 0.427 | AM27: 0.288 | AN27: 0.3023333333 | AO27: 0.1181538545 | AP27: 0.896 | AQ27: 0.576 | AR27: 0.448 | AS27: 0.64 | AT27: 0.2307552816 | AU27: 0.484 | AV27: 0.767 | AW27: 1.29 | AX27: 0.847 | AY27: 0.408911971
A28: 215 | B28: 0.048 | C28: 0.118 | D28: 0.073 | E28: 0.07966666667 | F28: 0.03547299442 | G28: 0.127 | H28: 0.103 | I28: 0.07 | J28: 0.1 | K28: 0.02861817604 | L28: 0.052 | M28: 0.122 | N28: 0.248 | O28: 0.1406666667 | P28: 0.09932438438 | Q28: 0.14 | R28: 0.151 | S28: 0.188 | T28: 0.1596666667 | U28: 0.02514623895 | V28: 0.191 | W28: 0.154 | X28: 0.12 | Y28: 0.155 | Z28: 0.03551056181 | AA28: 0.244 | AB28: 0.238 | AC28: 0.28 | AD28: 0.254 | AE28: 0.02271563338 | AF28: 0.358 | AG28: 0.273 | AH28: 0.287 | AI28: 0.306 | AJ28: 0.04557411546 | AK28: 0.208 | AL28: 0.407 | AM28: 0.414 | AN28: 0.343 | AO28: 0.116965807 | AP28: 0.893 | AQ28: 0.644 | AR28: 0.657 | AS28: 0.7313333333 | AT28: 0.1401582439 | AU28: 0.702 | AV28: 0.731 | AW28: 1.259 | AX28: 0.8973333333 | AY28: 0.3135479761
A29: 216 | B29: 0.037 | C29: 0.069 | D29: 0.053 | E29: 0.053 | F29: 0.016 | G29: 0.121 | H29: 0.092 | I29: 0.074 | J29: 0.09566666667 | K29: 0.02371356855 | L29: 0.123 | M29: 0.146 | N29: 0.079 | O29: 0.116 | P29: 0.03404408906 | Q29: 0.214 | R29: 0.216 | S29: 0.191 | T29: 0.207 | U29: 0.01389244399 | V29: 0.086 | W29: 0.094 | X29: 0.138 | Y29: 0.106 | Z29: 0.028 | AA29: 0.244 | AB29: 0.181 | AC29: 0.214 | AD29: 0.213 | AE29: 0.03151190251 | AF29: 0.365 | AG29: 0.298 | AH29: 0.51 | AI29: 0.391 | AJ29: 0.1083651235 | AK29: 0.298 | AL29: 0.36 | AM29: 0.501 | AN29: 0.3863333333 | AO29: 0.1040304443 | AP29: 0.822 | AQ29: 0.722 | AR29: 0.932 | AS29: 0.8253333333 | AT29: 0.105039675 | AU29: 0.81 | AV29: 0.69 | AW29: 1.079 | AX29: 0.8596666667 | AY29: 0.1991992303
A30: 217 | B30: 0.044 | C30: 0.072 | D30: 0.044 | E30: 0.05333333333 | F30: 0.01616580754 | G30: 0.099 | H30: 0.081 | I30: 0.129 | J30: 0.103 | K30: 0.02424871131 | L30: 0.232 | M30: 0.193 | N30: 0.116 | O30: 0.1803333333 | P30: 0.05902824183 | Q30: 0.222 | R30: 0.272 | S30: 0.219 | T30: 0.2376666667 | U30: 0.02977135088 | V30: 0.193 | W30: 0.104 | X30: 0.192 | Y30: 0.163 | Z30: 0.05109794516 | AA30: 0.202 | AB30: 0.056 | AC30: 0.298 | AD30: 0.1853333333 | AE30: 0.1218578407 | AF30: 0.345 | AG30: 0.3 | AH30: 0.513 | AI30: 0.386 | AJ30: 0.1122630839 | AK30: 0.314 | AL30: 0.488 | AM30: 0.491 | AN30: 0.431 | AO30: 0.1013360745 | AP30: 0.953 | AQ30: 0.771 | AR30: 0.748 | AS30: 0.824 | AT30: 0.1123076133 | AU30: 0.782 | AV30: 0.714 | AW30: 0.689 | AX30: 0.7283333333 | AY30: 0.04812830075
A31: 218 | B31: -0.009 | C31: 0.067 | D31: -0.038 | E31: 0.006666666667 | F31: 0.05422484056 | G31: 0.104 | H31: 0.075 | I31: 0.147 | J31: 0.1086666667 | K31: 0.03622614157 | L31: 0.283 | M31: 0.194 | N31: 0.114 | O31: 0.197 | P31: 0.08453993139 | Q31: 0.156 | R31: 0.343 | S31: 0.144 | T31: 0.2143333333 | U31: 0.1115900234 | V31: 0.257 | W31: 0.179 | X31: 0.151 | Y31: 0.1956666667 | Z31: 0.05493025881 | AA31: 0.238 | AB31: 0.182 | AC31: 0.213 | AD31: 0.211 | AE31: 0.02805352028 | AF31: 0.489 | AG31: 0.278 | AH31: 0.651 | AI31: 0.4726666667 | AJ31: 0.1870356472 | AK31: 0.339 | AL31: 0.634 | AM31: 0.629 | AN31: 0.534 | AO31: 0.1688934575 | AP31: 0.985 | AQ31: 0.707 | AR31: 0.729 | AS31: 0.807 | AT31: 0.154544492 | AU31: 0.726 | AV31: 0.591 | AW31: 0.425 | AX31: 0.5806666667 | AY31: 0.1507658228
A32: 219 | B32: 0 | C32: 0.055 | D32: 0.03 | E32: 0.02833333333 | F32: 0.02753785274 | G32: 0.159 | H32: 0.06 | I32: 0.183 | J32: 0.134 | K32: 0.06519969325 | L32: 0.291 | M32: 0.165 | N32: 0.09 | O32: 0.182 | P32: 0.1015726341 | Q32: 0.064 | R32: 0.372 | S32: 0.13 | T32: 0.1886666667 | U32: 0.1621645255 | V32: 0.258 | W32: 0.222 | X32: 0.187 | Y32: 0.2223333333 | Z32: 0.03550117369 | AA32: 0.289 | AB32: 0.291 | AC32: 0.098 | AD32: 0.226 | AE32: 0.1108557621 | AF32: 0.452 | AG32: 0.239 | AH32: 0.595 | AI32: 0.4286666667 | AJ32: 0.1791433318 | AK32: 0.501 | AL32: 0.687 | AM32: 0.648 | AN32: 0.612 | AO32: 0.09808669635 | AP32: 0.878 | AQ32: 0.761 | AR32: 0.76 | AS32: 0.7996666667 | AT32: 0.06784049921 | AU32: 0.615 | AV32: 0.414 | AW32: 0.383 | AX32: 0.4706666667 | AY32: 0.1259536952
A33: 220 | B33: 0.022 | C33: 0.048 | D33: 0.021 | E33: 0.03033333333 | F33: 0.01530795 | G33: 0.106 | H33: 0.089 | I33: 0.109 | J33: 0.1013333333 | K33: 0.01078579312 | L33: 0.145 | M33: 0.071 | N33: 0.039 | O33: 0.085 | P33: 0.05436910888 | Q33: 0.018 | R33: 0.246 | S33: 0.061 | T33: 0.1083333333 | U33: 0.1211459175 | V33: 0.207 | W33: 0.157 | X33: 0.198 | Y33: 0.1873333333 | Z33: 0.02665207934 | AA33: 0.24 | AB33: 0.248 | AC33: 0.185 | AD33: 0.2243333333 | AE33: 0.03429771615 | AF33: 0.452 | AG33: 0.311 | AH33: 0.537 | AI33: 0.4333333333 | AJ33: 0.1141504855 | AK33: 0.729 | AL33: 0.708 | AM33: 0.58 | AN33: 0.6723333333 | AO33: 0.0806494472 | AP33: 0.752 | AQ33: 0.787 | AR33: 0.938 | AS33: 0.8256666667 | AT33: 0.0988449965 | AU33: 0.8 | AV33: 0.579 | AW33: 0.691 | AX33: 0.69 | AY33: 0.1105033936
A34: 221 | B34: -0.036 | C34: -0.053 | D34: -0.025 | E34: -0.038 | F34: 0.01410673598 | G34: 0.02 | H34: 0.058 | I34: 0.008 | J34: 0.02866666667 | K34: 0.0261023626 | L34: 0.013 | M34: -0.017 | N34: -0.074 | O34: -0.026 | P34: 0.04419275959 | Q34: 0.041 | R34: 0.139 | S34: 0.03 | T34: 0.07 | U34: 0.06000833275 | V34: 0.078 | W34: 0.065 | X34: 0.143 | Y34: 0.09533333333 | Z34: 0.0417891533 | AA34: 0.143 | AB34: 0.206 | AC34: 0.148 | AD34: 0.1656666667 | AE34: 0.03501904244 | AF34: 0.376 | AG34: 0.362 | AH34: 0.505 | AI34: 0.4143333333 | AJ34: 0.07883104295 | AK34: 0.852 | AL34: 0.629 | AM34: 0.579 | AN34: 0.6866666667 | AO34: 0.1453490053 | AP34: 0.753 | AQ34: 0.913 | AR34: 0.951 | AS34: 0.8723333333 | AT34: 0.105077749 | AU34: 0.823 | AV34: 0.601 | AW34: 0.921 | AX34: 0.7816666667 | AY34: 0.1639552785
A35: 222 | B35: 0.022 | C35: -0.073 | D35: -0.043 | E35: -0.03133333333 | F35: 0.04856267428 | G35: 0.016 | H35: 0.014 | I35: -0.017 | J35: 0.004333333333 | K35: 0.01850225212 | L35: -0.019 | M35: 0 | N35: -0.024 | O35: -0.01433333333 | P35: 0.01266227994 | Q35: 0.067 | R35: 0.12 | S35: 0.066 | T35: 0.08433333333 | U35: 0.03089228598 | V35: 0.034 | W35: 0.074 | X35: 0.154 | Y35: 0.08733333333 | Z35: 0.06110100927 | AA35: 0.083 | AB35: 0.172 | AC35: 0.239 | AD35: 0.1646666667 | AE35: 0.07825811992 | AF35: 0.293 | AG35: 0.315 | AH35: 0.222 | AI35: 0.2766666667 | AJ35: 0.04860384073 | AK35: 0.695 | AL35: 0.543 | AM35: 0.447 | AN35: 0.5616666667 | AO35: 0.1250493236 | AP35: 0.682 | AQ35: 0.86 | AR35: 0.641 | AS35: 0.7276666667 | AT35: 0.116423079 | AU35: 0.787 | AV35: 0.722 | AW35: 1.014 | AX35: 0.841 | AY35: 0.1533068818
A36: 223 | B36: -0.002 | C36: -0.056 | D36: -0.08 | E36: -0.046 | F36: 0.03994996871 | G36: 0.057 | H36: -0.005 | I36: -0.056 | J36: -0.001333333333 | K36: 0.05658916268 | L36: 0.001 | M36: -0.01 | N36: -0.021 | O36: -0.01 | P36: 0.011 | Q36: 0.076 | R36: 0.1 | S36: 0.079 | T36: 0.085 | U36: 0.01307669683 | V36: 0.078 | W36: 0.142 | X36: 0.078 | Y36: 0.09933333333 | Z36: 0.03695041723 | AA36: 0.111 | AB36: 0.117 | AC36: 0.225 | AD36: 0.151 | AE36: 0.06415605973 | AF36: 0.447 | AG36: 0.429 | AH36: 0.279 | AI36: 0.385 | AJ36: 0.09223882046 | AK36: 0.558 | AL36: 0.596 | AM36: 0.555 | AN36: 0.5696666667 | AO36: 0.02285461296 | AP36: 0.661 | AQ36: 0.782 | AR36: 0.585 | AS36: 0.676 | AT36: 0.09935290635 | AU36: 0.559 | AV36: 0.88 | AW36: 1.185 | AX36: 0.8746666667 | AY36: 0.313034077
A37: 224 | B37: -0.021 | C37: -0.048 | D37: -0.057 | E37: -0.042 | F37: 0.018734994 | G37: 0.056 | H37: -0.037 | I37: -0.016 | J37: 0.001 | K37: 0.04877499359 | L37: 0.046 | M37: 0.027 | N37: 0.032 | O37: 0.035 | P37: 0.009848857802 | Q37: 0.098 | R37: 0.1 | S37: 0.077 | T37: 0.09166666667 | U37: 0.0127410099 | V37: 0.093 | W37: 0.152 | X37: 0.05 | Y37: 0.09833333333 | Z37: 0.05120872322 | AA37: 0.116 | AB37: 0.099 | AC37: 0.216 | AD37: 0.1436666667 | AE37: 0.06321655901 | AF37: 0.454 | AG37: 0.456 | AH37: 0.468 | AI37: 0.4593333333 | AJ37: 0.007571877794 | AK37: 0.507 | AL37: 0.466 | AM37: 0.511 | AN37: 0.4946666667 | AO37: 0.02490649179 | AP37: 0.42 | AQ37: 0.733 | AR37: 0.699 | AS37: 0.6173333333 | AT37: 0.1717391433 | AU37: 0.584 | AV37: 0.719 | AW37: 0.942 | AX37: 0.7483333333 | AY37: 0.1807936208
A38: 225 | B38: 0.007 | C38: -0.04 | D38: -0.006 | E38: -0.013 | F38: 0.0242693222 | G38: 0.023 | H38: -0.023 | I38: 0.028 | J38: 0.009333333333 | K38: 0.02811286775 | L38: 0.065 | M38: 0.045 | N38: 0.045 | O38: 0.05166666667 | P38: 0.01154700538 | Q38: 0.087 | R38: 0.057 | S38: 0.083 | T38: 0.07566666667 | U38: 0.01628905563 | V38: 0.161 | W38: 0.115 | X38: 0.058 | Y38: 0.1113333333 | Z38: 0.05159780357 | AA38: 0.105 | AB38: 0.064 | AC38: 0.169 | AD38: 0.1126666667 | AE38: 0.05291817583 | AF38: 0.391 | AG38: 0.446 | AH38: 0.671 | AI38: 0.5026666667 | AJ38: 0.1483520587 | AK38: 0.486 | AL38: 0.492 | AM38: 0.53 | AN38: 0.5026666667 | AO38: 0.02386070689 | AP38: 0.404 | AQ38: 0.627 | AR38: 0.694 | AS38: 0.575 | AT38: 0.1518321442 | AU38: 0.602 | AV38: 0.813 | AW38: 1.024 | AX38: 0.813 | AY38: 0.211
A39: 226 | B39: 0.003 | C39: -0.056 | D39: 0.049 | E39: -0.001333333333 | F39: 0.05263395609 | G39: 0.006 | H39: 0.022 | I39: 0.07 | J39: 0.03266666667 | K39: 0.03330665599 | L39: 0.077 | M39: 0.078 | N39: 0.069 | O39: 0.07466666667 | P39: 0.004932882862 | Q39: 0.124 | R39: 0.141 | S39: 0.117 | T39: 0.1273333333 | U39: 0.01234233905 | V39: 0.134 | W39: 0.145 | X39: 0.096 | Y39: 0.125 | Z39: 0.02570992026 | AA39: 0.107 | AB39: 0.1 | AC39: 0.166 | AD39: 0.1243333333 | AE39: 0.03625373544 | AF39: 0.304 | AG39: 0.416 | AH39: 0.661 | AI39: 0.4603333333 | AJ39: 0.1825824015 | AK39: 0.528 | AL39: 0.541 | AM39: 0.594 | AN39: 0.5543333333 | AO39: 0.03496188401 | AP39: 0.55 | AQ39: 0.634 | AR39: 0.713 | AS39: 0.6323333333 | AT39: 0.08151278018 | AU39: 0.504 | AV39: 0.797 | AW39: 0.956 | AX39: 0.7523333333 | AY39: 0.2292865747
A40: 227 | B40: 0.013 | C40: -0.01 | D40: 0.048 | E40: 0.017 | F40: 0.02920616373 | G40: 0.034 | H40: 0.11 | I40: 0.08 | J40: 0.07466666667 | K40: 0.03827967259 | L40: 0.101 | M40: 0.119 | N40: 0.118 | O40: 0.1126666667 | P40: 0.01011599394 | Q40: 0.157 | R40: 0.183 | S40: 0.138 | T40: 0.1593333333 | U40: 0.0225905585 | V40: 0.241 | W40: 0.172 | X40: 0.126 | Y40: 0.1796666667 | Z40: 0.057882064 | AA40: 0.176 | AB40: 0.196 | AC40: 0.235 | AD40: 0.2023333333 | AE40: 0.03000555504 | AF40: 0.28 | AG40: 0.339 | AH40: 0.444 | AI40: 0.3543333333 | AJ40: 0.08306824504 | AK40: 0.526 | AL40: 0.444 | AM40: 0.577 | AN40: 0.5156666667 | AO40: 0.06709942871 | AP40: 0.63 | AQ40: 0.66 | AR40: 0.606 | AS40: 0.632 | AT40: 0.02705549852 | AU40: 0.598 | AV40: 0.907 | AW40: 0.871 | AX40: 0.792 | AY40: 0.1689704116
A41: 228 | B41: 0.019 | C41: 0.035 | D41: 0.039 | E41: 0.031 | F41: 0.01058300524 | G41: 0.043 | H41: 0.148 | I41: 0.068 | J41: 0.08633333333 | K41: 0.05484827557 | L41: 0.11 | M41: 0.125 | N41: 0.129 | O41: 0.1213333333 | P41: 0.0100166528 | Q41: 0.165 | R41: 0.173 | S41: 0.196 | T41: 0.178 | U41: 0.01609347694 | V41: 0.292 | W41: 0.219 | X41: 0.112 | Y41: 0.2076666667 | Z41: 0.09053360334 | AA41: 0.205 | AB41: 0.202 | AC41: 0.21 | AD41: 0.2056666667 | AE41: 0.004041451884 | AF41: 0.33 | AG41: 0.358 | AH41: 0.212 | AI41: 0.3 | AJ41: 0.07748548251 | AK41: 0.501 | AL41: 0.401 | AM41: 0.539 | AN41: 0.4803333333 | AO41: 0.07128347167 | AP41: 0.723 | AQ41: 0.645 | AR41: 0.661 | AS41: 0.6763333333 | AT41: 0.04119870548 | AU41: 0.482 | AV41: 1.144 | AW41: 0.814 | AX41: 0.8133333333 | AY41: 0.3310005035
A42: 229 | B42: 0.032 | C42: 0.09 | D42: 0.056 | E42: 0.05933333333 | F42: 0.02914332399 | G42: 0.069 | H42: 0.15 | I42: 0.081 | J42: 0.1 | K42: 0.04371498599 | L42: 0.134 | M42: 0.137 | N42: 0.186 | O42: 0.1523333333 | P42: 0.02919474839 | Q42: 0.195 | R42: 0.178 | S42: 0.231 | T42: 0.2013333333 | U42: 0.02706165799 | V42: 0.285 | W42: 0.237 | X42: 0.166 | Y42: 0.2293333333 | Z42: 0.05986930209 | AA42: 0.254 | AB42: 0.195 | AC42: 0.21 | AD42: 0.2196666667 | AE42: 0.03066485502 | AF42: 0.349 | AG42: 0.319 | AH42: 0.229 | AI42: 0.299 | AJ42: 0.06244997998 | AK42: 0.481 | AL42: 0.404 | AM42: 0.51 | AN42: 0.465 | AO42: 0.0547813837 | AP42: 0.646 | AQ42: 0.749 | AR42: 0.923 | AS42: 0.7726666667 | AT42: 0.1400083331 | AU42: 0.766 | AV42: 0.906 | AW42: 0.54 | AX42: 0.7373333333 | AY42: 0.1846762934
A43: 230 | B43: 0.023 | C43: 0.072 | D43: 0.034 | E43: 0.043 | F43: 0.02570992026 | G43: 0.031 | H43: 0.106 | I43: 0.032 | J43: 0.05633333333 | K43: 0.04301550108 | L43: 0.076 | M43: 0.078 | N43: 0.088 | O43: 0.08066666667 | P43: 0.006429100507 | Q43: 0.128 | R43: 0.107 | S43: 0.228 | T43: 0.1543333333 | U43: 0.06465549732 | V43: 0.234 | W43: 0.21 | X43: 0.132 | Y43: 0.192 | Z43: 0.0533291665 | AA43: 0.198 | AB43: 0.182 | AC43: 0.212 | AD43: 0.1973333333 | AE43: 0.015011107 | AF43: 0.336 | AG43: 0.382 | AH43: 0.322 | AI43: 0.3466666667 | AJ43: 0.03139001965 | AK43: 0.574 | AL43: 0.474 | AM43: 0.618 | AN43: 0.5553333333 | AO43: 0.07379250188 | AP43: 0.719 | AQ43: 0.802 | AR43: 0.939 | AS43: 0.82 | AT43: 0.1110990549 | AU43: 0.996 | AV43: 1.011 | AW43: 0.754 | AX43: 0.9203333333 | AY43: 0.1442440062
A44: 231 | B44: 0.018 | C44: 0.026 | D44: 0.026 | E44: 0.02333333333 | F44: 0.004618802154 | G44: 0.035 | H44: 0.079 | I44: 0.009 | J44: 0.041 | K44: 0.03538361203 | L44: 0.04 | M44: 0.092 | N44: 0.054 | O44: 0.062 | P44: 0.02690724809 | Q44: 0.102 | R44: 0.129 | S44: 0.203 | T44: 0.1446666667 | U44: 0.05229085325 | V44: 0.139 | W44: 0.171 | X44: 0.118 | Y44: 0.1426666667 | Z44: 0.02668957349 | AA44: 0.151 | AB44: 0.204 | AC44: 0.203 | AD44: 0.186 | AE44: 0.03031501278 | AF44: 0.33 | AG44: 0.421 | AH44: 0.389 | AI44: 0.38 | AJ44: 0.04616275555 | AK44: 0.603 | AL44: 0.518 | AM44: 0.662 | AN44: 0.5943333333 | AO44: 0.07239014666 | AP44: 0.593 | AQ44: 0.794 | AR44: 0.822 | AS44: 0.7363333333 | AT44: 0.124917306 | AU44: 1.027 | AV44: 0.953 | AW44: 0.883 | AX44: 0.9543333333 | AY44: 0.07200925866
A45: 232 | B45: 0.01 | C45: 0.014 | D45: -0.004 | E45: 0.006666666667 | F45: 0.009451631253 | G45: 0.051 | H45: 0.118 | I45: -0.006 | J45: 0.05433333333 | K45: 0.06206716792 | L45: 0.031 | M45: 0.06 | N45: 0.059 | O45: 0.05 | P45: 0.01646207763 | Q45: 0.152 | R45: 0.12 | S45: 0.148 | T45: 0.14 | U45: 0.01743559577 | V45: 0.156 | W45: 0.132 | X45: 0.143 | Y45: 0.1436666667 | Z45: 0.01201388086 | AA45: 0.143 | AB45: 0.228 | AC45: 0.232 | AD45: 0.201 | AE45: 0.05026927491 | AF45: 0.304 | AG45: 0.442 | AH45: 0.417 | AI45: 0.3876666667 | AJ45: 0.07352777253 | AK45: 0.587 | AL45: 0.544 | AM45: 0.604 | AN45: 0.5783333333 | AO45: 0.03092463958 | AP45: 0.499 | AQ45: 0.627 | AR45: 0.69 | AS45: 0.6053333333 | AT45: 0.09732591296 | AU45: 0.999 | AV45: 0.809 | AW45: 1.057 | AX45: 0.955 | AY45: 0.1297227813
A46: 233 | B46: 0.013 | C46: 0.011 | D46: -0.021 | E46: 0.001 | F46: 0.01907878403 | G46: 0.058 | H46: 0.078 | I46: -0.017 | J46: 0.03966666667 | K46: 0.050083264 | L46: 0.01 | M46: 0.05 | N46: 0.046 | O46: 0.03533333333 | P46: 0.02203028219 | Q46: 0.144 | R46: 0.093 | S46: 0.08 | T46: 0.1056666667 | U46: 0.03382799629 | V46: 0.124 | W46: 0.084 | X46: 0.133 | Y46: 0.1136666667 | Z46: 0.02608320021 | AA46: 0.162 | AB46: 0.208 | AC46: 0.208 | AD46: 0.1926666667 | AE46: 0.02655811238 | AF46: 0.318 | AG46: 0.388 | AH46: 0.367 | AI46: 0.3576666667 | AJ46: 0.03592121008 | AK46: 0.478 | AL46: 0.499 | AM46: 0.601 | AN46: 0.526 | AO46: 0.0657951366 | AP46: 0.694 | AQ46: 0.658 | AR46: 0.627 | AS46: 0.6596666667 | AT46: 0.03353108011 | AU46: 0.782 | AV46: 0.836 | AW46: 1.209 | AX46: 0.9423333333 | AY46: 0.2325130821
A47: 234 | B47: 0.038 | C47: 0.053 | D47: 0.025 | E47: 0.03866666667 | F47: 0.0140118997 | G47: 0.136 | H47: 0.056 | I47: 0.028 | J47: 0.07333333333 | K47: 0.05604759882 | L47: 0.045 | M47: 0.092 | N47: 0.087 | O47: 0.07466666667 | P47: 0.0258134332 | Q47: 0.224 | R47: 0.141 | S47: 0.13 | T47: 0.165 | U47: 0.05139066063 | V47: 0.106 | W47: 0.135 | X47: 0.177 | Y47: 0.1393333333 | Z47: 0.03569780572 | AA47: 0.219 | AB47: 0.221 | AC47: 0.235 | AD47: 0.225 | AE47: 0.008717797887 | AF47: 0.344 | AG47: 0.452 | AH47: 0.388 | AI47: 0.3946666667 | AJ47: 0.05430776495 | AK47: 0.477 | AL47: 0.491 | AM47: 0.619 | AN47: 0.529 | AO47: 0.07825599019 | AP47: 0.787 | AQ47: 0.703 | AR47: 0.586 | AS47: 0.692 | AT47: 0.1009504829 | AU47: 1.059 | AV47: 0.773 | AW47: 1.026 | AX47: 0.9526666667 | AY47: 0.1564683142
A48: 235 | B48: -0.008 | C48: 0.002 | D48: -0.022 | E48: -0.009333333333 | F48: 0.01205542755 | G48: 0.096 | H48: -0.021 | I48: 0 | J48: 0.025 | K48: 0.0623778807 | L48: 0.028 | M48: 0.04 | N48: -0.008 | O48: 0.02 | P48: 0.02497999199 | Q48: 0.132 | R48: 0.059 | S48: 0.093 | T48: 0.09466666667 | U48: 0.03652852766 | V48: 0.071 | W48: 0.118 | X48: 0.113 | Y48: 0.1006666667 | Z48: 0.0258134332 | AA48: 0.181 | AB48: 0.192 | AC48: 0.2 | AD48: 0.191 | AE48: 0.009539392014 | AF48: 0.403 | AG48: 0.504 | AH48: 0.341 | AI48: 0.416 | AJ48: 0.08227393269 | AK48: 0.615 | AL48: 0.484 | AM48: 0.604 | AN48: 0.5676666667 | AO48: 0.07266590214 | AP48: 0.938 | AQ48: 0.663 | AR48: 0.543 | AS48: 0.7146666667 | AT48: 0.202505144 | AU48: 1.113 | AV48: 0.842 | AW48: 0.886 | AX48: 0.947 | AY48: 0.1454338338
A49: 236 | B49: -0.066 | C49: -0.064 | D49: -0.052 | E49: -0.06066666667 | F49: 0.007571877794 | G49: 0.026 | H49: -0.051 | I49: -0.007 | J49: -0.01066666667 | K49: 0.03863073043 | L49: -0.001 | M49: 0.05 | N49: -0.044 | O49: 0.001666666667 | P49: 0.04705670338 | Q49: 0.038 | R49: 0.013 | S49: 0.054 | T49: 0.035 | U49: 0.02066397832 | V49: 0.063 | W49: 0.086 | X49: 0.058 | Y49: 0.069 | Z49: 0.01493318452 | AA49: 0.147 | AB49: 0.12 | AC49: 0.128 | AD49: 0.1316666667 | AE49: 0.01386842938 | AF49: 0.392 | AG49: 0.455 | AH49: 0.311 | AI49: 0.386 | AJ49: 0.07218725649 | AK49: 0.659 | AL49: 0.4 | AM49: 0.528 | AN49: 0.529 | AO49: 0.1295028957 | AP49: 0.867 | AQ49: 0.593 | AR49: 0.476 | AS49: 0.6453333333 | AT49: 0.2006846614 | AU49: 1.036 | AV49: 0.921 | AW49: 0.799 | AX49: 0.9186666667 | AY49: 0.118517228
A50: 237 | B50: -0.047 | C50: -0.046 | D50: -0.036 | E50: -0.043 | F50: 0.00608276253 | G50: -0.02 | H50: -0.004 | I50: -0.003 | J50: -0.009 | K50: 0.009539392014 | L50: 0.026 | M50: 0.076 | N50: -0.034 | O50: 0.02266666667 | P50: 0.05507570547 | Q50: 0.05 | R50: 0.053 | S50: 0.057 | T50: 0.05333333333 | U50: 0.003511884584 | V50: 0.078 | W50: 0.108 | X50: 0.102 | Y50: 0.096 | Z50: 0.01587450787 | AA50: 0.166 | AB50: 0.089 | AC50: 0.129 | AD50: 0.128 | AE50: 0.03850973903 | AF50: 0.343 | AG50: 0.386 | AH50: 0.389 | AI50: 0.3726666667 | AJ50: 0.02573583753 | AK50: 0.601 | AL50: 0.399 | AM50: 0.345 | AN50: 0.4483333333 | AO50: 0.1349419628 | AP50: 0.878 | AQ50: 0.569 | AR50: 0.668 | AS50: 0.705 | AT50: 0.1577878322 | AU50: 0.84 | AV50: 0.741 | AW50: 0.691 | AX50: 0.7573333333 | AY50: 0.07583095234
A51: 238 | B51: -0.024 | C51: -0.017 | D51: 0.004 | E51: -0.01233333333 | F51: 0.014571662 | G51: 0.002 | H51: 0.01 | I51: 0.04 | J51: 0.01733333333 | K51: 0.0200333056 | L51: 0.049 | M51: 0.106 | N51: 0.023 | O51: 0.05933333333 | P51: 0.04245389656 | Q51: 0.041 | R51: 0.123 | S51: 0.042 | T51: 0.06866666667 | U51: 0.04705670338 | V51: 0.102 | W51: 0.093 | X51: 0.124 | Y51: 0.1063333333 | Z51: 0.01594783162 | AA51: 0.204 | AB51: 0.127 | AC51: 0.163 | AD51: 0.1646666667 | AE51: 0.03852704678 | AF51: 0.306 | AG51: 0.303 | AH51: 0.402 | AI51: 0.337 | AJ51: 0.0563116329 | AK51: 0.541 | AL51: 0.43 | AM51: 0.342 | AN51: 0.4376666667 | AO51: 0.09972127824 | AP51: 0.777 | AQ51: 0.634 | AR51: 0.754 | AS51: 0.7216666667 | AT51: 0.0767875858 | AU51: 0.797 | AV51: 0.745 | AW51: 0.932 | AX51: 0.8246666667 | AY51: 0.09652115485
A52: 239 | B52: 0.036 | C52: 0.05 | D52: 0.064 | E52: 0.05 | F52: 0.014 | G52: 0.101 | H52: 0.032 | I52: 0.117 | J52: 0.08333333333 | K52: 0.04517004907 | L52: 0.12 | M52: 0.133 | N52: 0.082 | O52: 0.1116666667 | P52: 0.02650157228 | Q52: 0.123 | R52: 0.21 | S52: 0.122 | T52: 0.1516666667 | U52: 0.05052062285 | V52: 0.156 | W52: 0.156 | X52: 0.144 | Y52: 0.152 | Z52: 0.00692820323 | AA52: 0.223 | AB52: 0.197 | AC52: 0.23 | AD52: 0.2166666667 | AE52: 0.01738773514 | AF52: 0.296 | AG52: 0.338 | AH52: 0.368 | AI52: 0.334 | AJ52: 0.03616628264 | AK52: 0.436 | AL52: 0.524 | AM52: 0.404 | AN52: 0.4546666667 | AO52: 0.06213962772 | AP52: 0.715 | AQ52: 0.605 | AR52: 0.727 | AS52: 0.6823333333 | AT52: 0.06724086059 | AU52: 0.971 | AV52: 0.677 | AW52: 0.814 | AX52: 0.8206666667 | AY52: 0.147113335
A53: 240 | B53: 0.012 | C53: 0.048 | D53: 0.037 | E53: 0.03233333333 | F53: 0.01844812547 | G53: 0.062 | H53: -0.002 | I53: 0.123 | J53: 0.061 | K53: 0.06250599971 | L53: 0.117 | M53: 0.057 | N53: 0.06 | O53: 0.078 | P53: 0.03380828301 | Q53: 0.086 | R53: 0.125 | S53: 0.077 | T53: 0.096 | U53: 0.02551470164 | V53: 0.18 | W53: 0.126 | X53: 0.087 | Y53: 0.131 | Z53: 0.04670117772 | AA53: 0.172 | AB53: 0.18 | AC53: 0.222 | AD53: 0.1913333333 | AE53: 0.02685764944 | AF53: 0.351 | AG53: 0.355 | AH53: 0.307 | AI53: 0.3376666667 | AJ53: 0.02663331247 | AK53: 0.582 | AL53: 0.673 | AM53: 0.513 | AN53: 0.5893333333 | AO53: 0.08025168742 | AP53: 0.672 | AQ53: 0.562 | AR53: 0.683 | AS53: 0.639 | AT53: 0.06691038783 | AU53: 1.038 | AV53: 0.676 | AW53: 0.956 | AX53: 0.89 | AY53: 0.1898104317
A54: 241 | B54: 0.002 | C54: 0.025 | D54: 0.041 | E54: 0.02266666667 | F54: 0.01960442127 | G54: 0.034 | H54: 0.025 | I54: 0.121 | J54: 0.06 | K54: 0.05301886457 | L54: 0.099 | M54: 0.07 | N54: 0.074 | O54: 0.081 | P54: 0.01571623365 | Q54: 0.097 | R54: 0.092 | S54: 0.079 | T54: 0.08933333333 | U54: 0.009291573243 | V54: 0.171 | W54: 0.129 | X54: 0.059 | Y54: 0.1196666667 | Z54: 0.05658032638 | AA54: 0.137 | AB54: 0.142 | AC54: 0.217 | AD54: 0.1653333333 | AE54: 0.0448144322 | AF54: 0.356 | AG54: 0.358 | AH54: 0.286 | AI54: 0.3333333333 | AJ54: 0.04100406484 | AK54: 0.648 | AL54: 0.564 | AM54: 0.569 | AN54: 0.5936666667 | AO54: 0.04712041313 | AP54: 0.688 | AQ54: 0.623 | AR54: 0.752 | AS54: 0.6876666667 | AT54: 0.06450064599 | AU54: 1.088 | AV54: 0.75 | AW54: 0.941 | AX54: 0.9263333333 | AY54: 0.1694766454
A55: 242 | B55: -0.008 | C55: 0.018 | D55: 0.033 | E55: 0.01433333333 | F55: 0.02074447718 | G55: 0.035 | H55: 0.014 | I55: 0.046 | J55: 0.03166666667 | K55: 0.0162583312 | L55: 0.085 | M55: 0.07 | N55: 0.058 | O55: 0.071 | P55: 0.01352774926 | Q55: 0.084 | R55: 0.108 | S55: 0.078 | T55: 0.09 | U55: 0.01587450787 | V55: 0.121 | W55: 0.165 | X55: 0.055 | Y55: 0.1136666667 | Z55: 0.05536545253 | AA55: 0.145 | AB55: 0.112 | AC55: 0.218 | AD55: 0.1583333333 | AE55: 0.05424327915 | AF55: 0.335 | AG55: 0.366 | AH55: 0.371 | AI55: 0.3573333333 | AJ55: 0.01950213664 | AK55: 0.66 | AL55: 0.597 | AM55: 0.431 | AN55: 0.5626666667 | AO55: 0.1182976472 | AP55: 0.723 | AQ55: 0.784 | AR55: 0.729 | AS55: 0.7453333333 | AT55: 0.0336204303 | AU55: 1.134 | AV55: 0.868 | AW55: 0.756 | AX55: 0.9193333333 | AY55: 0.1941580113
A56: 243 | B56: -0.003 | C56: 0.019 | D56: 0.022 | E56: 0.01266666667 | F56: 0.01365039682 | G56: 0.038 | H56: 0.034 | I56: 0.018 | J56: 0.03 | K56: 0.01058300524 | L56: 0.066 | M56: 0.067 | N56: 0.079 | O56: 0.07066666667 | P56: 0.007234178138 | Q56: 0.088 | R56: 0.159 | S56: 0.085 | T56: 0.1106666667 | U56: 0.04188476254 | V56: 0.079 | W56: 0.159 | X56: 0.093 | Y56: 0.1103333333 | Z56: 0.04272391992 | AA56: 0.187 | AB56: 0.148 | AC56: 0.2 | AD56: 0.1783333333 | AE56: 0.02706165799 | AF56: 0.386 | AG56: 0.423 | AH56: 0.439 | AI56: 0.416 | AJ56: 0.02718455444 | AK56: 0.574 | AL56: 0.582 | AM56: 0.556 | AN56: 0.5706666667 | AO56: 0.01331665624 | AP56: 0.697 | AQ56: 0.802 | AR56: 0.729 | AS56: 0.7426666667 | AT56: 0.05381759316 | AU56: 1.147 | AV56: 0.929 | AW56: 1.026 | AX56: 1.034 | AY56: 0.1092199615
A57: 244 | B57: 0.036 | C57: 0.029 | D57: -0.024 | E57: 0.01366666667 | F57: 0.03280751946 | G57: 0.056 | H57: 0.022 | I57: -0.011 | J57: 0.02233333333 | K57: 0.03350124376 | L57: 0.064 | M57: 0.048 | N57: 0.12 | O57: 0.07733333333 | P57: 0.03780652501 | Q57: 0.075 | R57: 0.142 | S57: 0.09 | T57: 0.1023333333 | U57: 0.03516153201 | V57: 0.088 | W57: 0.156 | X57: 0.092 | Y57: 0.112 | Z57: 0.03815756806 | AA57: 0.163 | AB57: 0.173 | AC57: 0.171 | AD57: 0.169 | AE57: 0.005291502622 | AF57: 0.471 | AG57: 0.381 | AH57: 0.399 | AI57: 0.417 | AJ57: 0.0476235236 | AK57: 0.44 | AL57: 0.567 | AM57: 0.708 | AN57: 0.5716666667 | AO57: 0.1340609314 | AP57: 0.8 | AQ57: 0.69 | AR57: 0.634 | AS57: 0.708 | AT57: 0.08445116932 | AU57: 1.177 | AV57: 0.852 | AW57: 0.976 | AX57: 1.001666667 | AY57: 0.1640132109
A58: 245 | B58: 0.038 | C58: 0.029 | D58: -0.021 | E58: 0.01533333333 | F58: 0.03178574104 | G58: 0.025 | H58: 0.043 | I58: 0.01 | J58: 0.026 | K58: 0.01652271164 | L58: 0.06 | M58: 0.04 | N58: 0.124 | O58: 0.07466666667 | P58: 0.04387862046 | Q58: 0.096 | R58: 0.095 | S58: 0.08 | T58: 0.09033333333 | U58: 0.00896288644 | V58: 0.155 | W58: 0.172 | X58: 0.115 | Y58: 0.1473333333 | Z58: 0.02926317367 | AA58: 0.148 | AB58: 0.164 | AC58: 0.156 | AD58: 0.156 | AE58: 0.008 | AF58: 0.618 | AG58: 0.396 | AH58: 0.374 | AI58: 0.4626666667 | AJ58: 0.134971602 | AK58: 0.607 | AL58: 0.541 | AM58: 0.738 | AN58: 0.6286666667 | AO58: 0.1002712987 | AP58: 0.832 | AQ58: 0.608 | AR58: 0.616 | AS58: 0.6853333333 | AT58: 0.1270800273 | AU58: 1.17 | AV58: 0.704 | AW58: 1.187 | AX58: 1.020333333 | AY58: 0.2740845368
A59: 246 | B59: 0.024 | C59: -0.006 | D59: 0.005 | E59: 0.007666666667 | F59: 0.01517673658 | G59: 0.022 | H59: 0.057 | I59: 0.04 | J59: 0.03966666667 | K59: 0.01750238079 | L59: 0.065 | M59: 0.078 | N59: 0.099 | O59: 0.08066666667 | P59: 0.01715614564 | Q59: 0.115 | R59: 0.102 | S59: 0.079 | T59: 0.09866666667 | U59: 0.01823001189 | V59: 0.159 | W59: 0.177 | X59: 0.139 | Y59: 0.1583333333 | Z59: 0.01900876991 | AA59: 0.133 | AB59: 0.151 | AC59: 0.144 | AD59: 0.1426666667 | AE59: 0.009073771726 | AF59: 0.59 | AG59: 0.441 | AH59: 0.332 | AI59: 0.4543333333 | AJ59: 0.1295157648 | AK59: 0.581 | AL59: 0.442 | AM59: 0.622 | AN59: 0.5483333333 | AO59: 0.09434157797 | AP59: 0.954 | AQ59: 0.605 | AR59: 0.6 | AS59: 0.7196666667 | AT59: 0.2029540178 | AU59: 1.033 | AV59: 0.752 | AW59: 1.031 | AX59: 0.9386666667 | AY59: 0.1616611683
A60: 247 | B60: -0.007 | C60: -0.042 | D60: 0.006 | E60: -0.01433333333 | F60: 0.02482606158 | G60: 0.033 | H60: 0.012 | I60: 0.028 | J60: 0.02433333333 | K60: 0.01096965511 | L60: 0.063 | M60: 0.094 | N60: 0.044 | O60: 0.067 | P60: 0.02523885893 | Q60: 0.116 | R60: 0.09 | S60: 0.051 | T60: 0.08566666667 | U60: 0.03271594922 | V60: 0.14 | W60: 0.146 | X60: 0.123 | Y60: 0.1363333333 | Z60: 0.01193035345 | AA60: 0.13 | AB60: 0.124 | AC60: 0.195 | AD60: 0.1496666667 | AE60: 0.03937427248 | AF60: 0.387 | AG60: 0.422 | AH60: 0.332 | AI60: 0.3803333333 | AJ60: 0.04536885863 | AK60: 0.543 | AL60: 0.482 | AM60: 0.358 | AN60: 0.461 | AO60: 0.09427088628 | AP60: 0.889 | AQ60: 0.58 | AR60: 0.503 | AS60: 0.6573333333 | AT60: 0.2042898268 | AU60: 1.133 | AV60: 1.041 | AW60: 0.714 | AX60: 0.9626666667 | AY60: 0.2202097485
A61: 248 | B61: -0.043 | C61: -0.054 | D61: -0.012 | E61: -0.03633333333 | F61: 0.02177919497 | G61: 0.033 | H61: -0.022 | I61: -0.001 | J61: 0.003333333333 | K61: 0.02775487945 | L61: 0.066 | M61: 0.098 | N61: 0.022 | O61: 0.062 | P61: 0.03815756806 | Q61: 0.109 | R61: 0.093 | S61: 0.029 | T61: 0.077 | U61: 0.04233202098 | V61: 0.073 | W61: 0.101 | X61: 0.121 | Y61: 0.09833333333 | Z61: 0.02411085509 | AA61: 0.165 | AB61: 0.144 | AC61: 0.208 | AD61: 0.1723333333 | AE61: 0.03262412195 | AF61: 0.383 | AG61: 0.444 | AH61: 0.352 | AI61: 0.393 | AJ61: 0.04680811895 | AK61: 0.426 | AL61: 0.447 | AM61: 0.476 | AN61: 0.4496666667 | AO61: 0.02510644008 | AP61: 0.741 | AQ61: 0.623 | AR61: 0.777 | AS61: 0.7136666667 | AT61: 0.08055639846 | AU61: 1.06 | AV61: 1.141 | AW61: 0.798 | AX61: 0.9996666667 | AY61: 0.1792828306
A62: 249 | B62: -0.041 | C62: -0.053 | D62: -0.036 | E62: -0.04333333333 | F62: 0.008736894948 | G62: 0.052 | H62: -0.018 | I62: -0.031 | J62: 0.001 | K62: 0.04464302857 | L62: 0.047 | M62: 0.068 | N62: 0.081 | O62: 0.06533333333 | P62: 0.01715614564 | Q62: 0.075 | R62: 0.077 | S62: 0.047 | T62: 0.06633333333 | U62: 0.01677299417 | V62: 0.078 | W62: 0.082 | X62: 0.11 | Y62: 0.09 | Z62: 0.01743559577 | AA62: 0.13 | AB62: 0.144 | AC62: 0.201 | AD62: 0.1583333333 | AE62: 0.03760762334 | AF62: 0.542 | AG62: 0.393 | AH62: 0.347 | AI62: 0.4273333333 | AJ62: 0.1019329845 | AK62: 0.394 | AL62: 0.426 | AM62: 0.647 | AN62: 0.489 | AO62: 0.1377642915 | AP62: 0.672 | AQ62: 0.73 | AR62: 0.813 | AS62: 0.7383333333 | AT62: 0.07086842268 | AU62: 1.032 | AV62: 1.097 | AW62: 0.912 | AX62: 1.013666667 | AY62: 0.0938527215
A63: 250 | B63: -0.029 | C63: -0.015 | D63: -0.015 | E63: -0.01966666667 | F63: 0.008082903769 | G63: 0.05 | H63: 0 | I63: -0.005 | J63: 0.015 | K63: 0.03041381265 | L63: 0.079 | M63: 0.067 | N63: 0.071 | O63: 0.07233333333 | P63: 0.006110100927 | Q63: 0.072 | R63: 0.119 | S63: 0.096 | T63: 0.09566666667 | U63: 0.02350177298 | V63: 0.133 | W63: 0.161 | X63: 0.152 | Y63: 0.1486666667 | Z63: 0.01429452109 | AA63: 0.132 | AB63: 0.168 | AC63: 0.229 | AD63: 0.1763333333 | AE63: 0.04903400181 | AF63: 0.651 | AG63: 0.372 | AH63: 0.315 | AI63: 0.446 | AJ63: 0.1798082312 | AK63: 0.474 | AL63: 0.442 | AM63: 0.652 | AN63: 0.5226666667 | AO63: 0.1131429774 | AP63: 0.782 | AQ63: 0.779 | AR63: 1.088 | AS63: 0.883 | AT63: 0.1775415444 | AU63: 0.78 | AV63: 0.87 | AW63: 1.092 | AX63: 0.914 | AY63: 0.1605864253
A64: 251 | B64: -0.034 | C64: -0.012 | D64: -0.005 | E64: -0.017 | F64: 0.01513274595 | G64: 0.056 | H64: 0.033 | I64: 0.053 | J64: 0.04733333333 | K64: 0.01250333289 | L64: 0.114 | M64: 0.065 | N64: 0.104 | O64: 0.09433333333 | P64: 0.02589079631 | Q64: 0.079 | R64: 0.135 | S64: 0.129 | T64: 0.1143333333 | U64: 0.03074627349 | V64: 0.179 | W64: 0.206 | X64: 0.15 | Y64: 0.1783333333 | Z64: 0.02800595175 | AA64: 0.15 | AB64: 0.124 | AC64: 0.255 | AD64: 0.1763333333 | AE64: 0.06935656662 | AF64: 0.575 | AG64: 0.385 | AH64: 0.331 | AI64: 0.4303333333 | AJ64: 0.1281613566 | AK64: 0.437 | AL64: 0.439 | AM64: 0.679 | AN64: 0.5183333333 | AO64: 0.1391450083 | AP64: 0.83 | AQ64: 0.659 | AR64: 1.238 | AS64: 0.909 | AT64: 0.2974743686 | AU64: 0.691 | AV64: 0.894 | AW64: 0.869 | AX64: 0.818 | AY64: 0.1106932699
A65: 252 | B65: 0.001 | C65: 0 | D65: -0.033 | E65: -0.01066666667 | F65: 0.01934769581 | G65: 0.03 | H65: 0.032 | I65: 0.087 | J65: 0.04966666667 | K65: 0.03234707612 | L65: 0.117 | M65: 0.067 | N65: 0.076 | O65: 0.08666666667 | P65: 0.02665207934 | Q65: 0.088 | R65: 0.109 | S65: 0.159 | T65: 0.1186666667 | U65: 0.03647373484 | V65: 0.207 | W65: 0.193 | X65: 0.127 | Y65: 0.1756666667 | Z65: 0.04272391992 | AA65: 0.199 | AB65: 0.101 | AC65: 0.217 | AD65: 0.1723333333 | AE65: 0.06242862591 | AF65: 0.356 | AG65: 0.323 | AH65: 0.426 | AI65: 0.3683333333 | AJ65: 0.05259594408 | AK65: 0.392 | AL65: 0.455 | AM65: 0.61 | AN65: 0.4856666667 | AO65: 0.1121888289 | AP65: 0.85 | AQ65: 0.481 | AR65: 1.036 | AS65: 0.789 | AT65: 0.2824836278 | AU65: 0.763 | AV65: 0.837 | AW65: 0.62 | AX65: 0.74 | AY65: 0.1103131905
A66: 253 | B66: 0.02 | C66: 0.003 | D66: -0.034 | E66: -0.003666666667 | F66: 0.02761038452 | G66: 0.052 | H66: 0.034 | I66: 0.077 | J66: 0.05433333333 | K66: 0.02159475245 | L66: 0.129 | M66: 0.096 | N66: 0.075 | O66: 0.1 | P66: 0.02722131518 | Q66: 0.091 | R66: 0.089 | S66: 0.14 | T66: 0.1066666667 | U66: 0.02888482877 | V66: 0.196 | W66: 0.155 | X66: 0.126 | Y66: 0.159 | Z66: 0.03517101079 | AA66: 0.211 | AB66: 0.103 | AC66: 0.22 | AD66: 0.178 | AE66: 0.06510760324 | AF66: 0.298 | AG66: 0.4 | AH66: 0.453 | AI66: 0.3836666667 | AJ66: 0.07878028518 | AK66: 0.391 | AL66: 0.568 | AM66: 0.6 | AN66: 0.5196666667 | AO66: 0.1125714588 | AP66: 0.831 | AQ66: 0.483 | AR66: 0.893 | AS66: 0.7356666667 | AT66: 0.2210007541 | AU66: 0.737 | AV66: 0.74 | AW66: 0.691 | AX66: 0.7226666667 | AY66: 0.02746512941
A67: 254 | B67: 0.056 | C67: 0.034 | D67: 0.014 | E67: 0.03466666667 | F67: 0.02100793501 | G67: 0.074 | H67: 0.102 | I67: 0.088 | J67: 0.088 | K67: 0.014 | L67: 0.122 | M67: 0.097 | N67: 0.106 | O67: 0.1083333333 | P67: 0.01266227994 | Q67: 0.122 | R67: 0.107 | S67: 0.122 | T67: 0.117 | U67: 0.008660254038 | V67: 0.215 | W67: 0.098 | X67: 0.141 | Y67: 0.1513333333 | Z67: 0.05918051481 | AA67: 0.183 | AB67: 0.153 | AC67: 0.238 | AD67: 0.1913333333 | AE67: 0.04310839052 | AF67: 0.271 | AG67: 0.386 | AH67: 0.427 | AI67: 0.3613333333 | AJ67: 0.08087232736 | AK67: 0.373 | AL67: 0.599 | AM67: 0.559 | AN67: 0.5103333333 | AO67: 0.1206040353 | AP67: 0.797 | AQ67: 0.702 | AR67: 0.495 | AS67: 0.6646666667 | AT67: 0.1544225804 | AU67: 0.726 | AV67: 0.722 | AW67: 0.856 | AX67: 0.768 | AY67: 0.07623647421
A68: 255 | B68: 0.064 | C68: 0.082 | D68: 0.044 | E68: =AVERAGE(B68:D68) -> 0.06333333333 | F68: =STDEV(B68:D68) -> 0.01900876991 | G68: 0.1 | H68: 0.109 | I68: 0.095 | J68: =AVERAGE(G68:I68) -> 0.1013333333 | K68: =STDEV(G68:I68) -> 0.007094598885 | L68: 0.122 | M68: 0.113 | N68: 0.099 | O68: =AVERAGE(L68:N68) -> 0.1113333333 | P68: =STDEV(L68:N68) -> 0.01159022577 | Q68: 0.143 | R68: 0.171 | S68: 0.12 | T68: =AVERAGE(Q68:S68) -> 0.1446666667 | U68: =STDEV(Q68:S68) -> 0.02554081701 | V68: 0.206 | W68: 0.093 | X68: 0.19 | Y68: =AVERAGE(V68:X68) -> 0.163 | Z68: =STDEV(V68:X68) -> 0.06114736298 | AA68: 0.141 | AB68: 0.206 | AC68: 0.265 | AD68: =AVERAGE(AA68:AC68) -> 0.204 | AE68: =STDEV(AA68:AC68) -> 0.06202418883 | AF68: 0.289 | AG68: 0.41 | AH68: 0.288 | AI68: =AVERAGE(AF68:AH68) -> 0.329 | AJ68: =STDEV(AF68:AH68) -> 0.07014983963 | AK68: 0.551 | AL68: 0.722 | AM68: 0.373 | AN68: =AVERAGE(AK68:AM68) -> 0.5486666667 | AO68: =STDEV(AK68:AM68) -> 0.1745116997 | AP68: 0.859 | AQ68: 0.854 | AR68: 0.47 | AS68: =AVERAGE(AP68:AR68) -> 0.7276666667 | AT68: =STDEV(AP68:AR68) -> 0.2231598829 | AU68: 0.784 | AV68: 0.814 | AW68: 1.178 | AX68: =AVERAGE(AU68:AW68) -> 0.9253333333 | AY68: =STDEV(AU68:AW68) -> 0.2193292806
A69: 256 | B69: 0.044 | C69: 0.065 | D69: 0.051 | E69: 0.05333333333 | F69: 0.01069267662 | G69: 0.098 | H69: 0.108 | I69: 0.106 | J69: 0.104 | K69: 0.005291502622 | L69: 0.145 | M69: 0.1 | N69: 0.117 | O69: 0.1206666667 | P69: 0.02272296929 | Q69: 0.137 | R69: 0.159 | S69: 0.125 | T69: 0.1403333333 | U69: 0.01724335621 | V69: 0.178 | W69: 0.119 | X69: 0.178 | Y69: 0.1583333333 | Z69: 0.03406366588 | AA69: 0.171 | AB69: 0.229 | AC69: 0.242 | AD69: 0.214 | AE69: 0.03780211634 | AF69: 0.33 | AG69: 0.416 | AH69: 0.441 | AI69: 0.3956666667 | AJ69: 0.05822656896 | AK69: 0.627 | AL69: 0.685 | AM69: 0.52 | AN69: 0.6106666667 | AO69: 0.083703843 | AP69: 0.707 | AQ69: 0.977 | AR69: 0.614 | AS69: 0.766 | AT69: 0.1885550318 | AU69: 1.203 | AV69: 0.863 | AW69: 1.107 | AX69: 1.057666667 | AY69: 0.1752864323
A70: 257 | B70: 0.069 | C70: 0.052 | D70: 0.02 | E70: 0.047 | F70: 0.02487971061 | G70: 0.113 | H70: 0.071 | I70: 0.114 | J70: 0.09933333333 | K70: 0.02454248018 | L70: 0.136 | M70: 0.076 | N70: 0.103 | O70: 0.105 | P70: 0.0300499584 | Q70: 0.146 | R70: 0.183 | S70: 0.124 | T70: 0.151 | U70: 0.02981610303 | V70: 0.161 | W70: 0.137 | X70: 0.181 | Y70: 0.1596666667 | Z70: 0.02203028219 | AA70: 0.232 | AB70: 0.216 | AC70: 0.176 | AD70: 0.208 | AE70: 0.0288444102 | AF70: 0.412 | AG70: 0.338 | AH70: 0.559 | AI70: 0.4363333333 | AJ70: 0.1124914812 | AK70: 0.695 | AL70: 0.658 | AM70: 0.675 | AN70: 0.676 | AO70: 0.01852025918 | AP70: 0.722 | AQ70: 0.976 | AR70: 0.706 | AS70: 0.8013333333 | AT70: 0.151477171 | AU70: 1.181 | AV70: 0.854 | AW70: 1.007 | AX70: 1.014 | AY70: 0.1636123467
A71: 258 | B71: 0.088 | C71: 0.038 | D71: 0.037 | E71: 0.05433333333 | F71: 0.02916047553 | G71: 0.125 | H71: 0.052 | I71: 0.097 | J71: 0.09133333333 | K71: 0.03682843105 | L71: 0.141 | M71: 0.108 | N71: 0.098 | O71: 0.1156666667 | P71: 0.02250185178 | Q71: 0.149 | R71: 0.19 | S71: 0.149 | T71: 0.1626666667 | U71: 0.02367136104 | V71: 0.182 | W71: 0.167 | X71: 0.172 | Y71: 0.1736666667 | Z71: 0.007637626158 | AA71: 0.208 | AB71: 0.205 | AC71: 0.198 | AD71: 0.2036666667 | AE71: 0.005131601439 | AF71: 0.464 | AG71: 0.36 | AH71: 0.611 | AI71: 0.4783333333 | AJ71: 0.1261123837 | AK71: 0.636 | AL71: 0.652 | AM71: 0.785 | AN71: 0.691 | AO71: 0.08179853299 | AP71: 0.695 | AQ71: 0.8 | AR71: 0.802 | AS71: 0.7656666667 | AT71: 0.06120729804 | AU71: 1.171 | AV71: 0.76 | AW71: 0.904 | AX71: 0.945 | AY71: 0.2085449592
A72: 259 | B72: 0.089 | C72: 0.031 | D72: 0.014 | E72: 0.04466666667 | F72: 0.03932344508 | G72: 0.124 | H72: 0.029 | I72: 0.05 | J72: 0.06766666667 | K72: 0.04990323971 | L72: 0.107 | M72: 0.096 | N72: 0.084 | O72: 0.09566666667 | P72: 0.01150362262 | Q72: 0.181 | R72: 0.138 | S72: 0.115 | T72: 0.1446666667 | U72: 0.03350124376 | V72: 0.175 | W72: 0.131 | X72: 0.13 | Y72: 0.1453333333 | Z72: 0.02569695183 | AA72: 0.171 | AB72: 0.204 | AC72: 0.186 | AD72: 0.187 | AE72: 0.01652271164 | AF72: 0.42 | AG72: 0.353 | AH72: 0.536 | AI72: 0.4363333333 | AJ72: 0.09258689612 | AK72: 0.55 | AL72: 0.528 | AM72: 0.691 | AN72: 0.5896666667 | AO72: 0.08844395589 | AP72: 0.608 | AQ72: 0.827 | AR72: 0.763 | AS72: 0.7326666667 | AT72: 0.1126069862 | AU72: 0.911 | AV72: 0.788 | AW72: 0.704 | AX72: 0.801 | AY72: 0.1041105182
A73: 260 | B73: 0.02 | C73: 0.018 | D73: -0.008 | E73: 0.01 | F73: 0.01562049935 | G73: 0.102 | H73: 0.006 | I73: 0.032 | J73: 0.04666666667 | K73: 0.04965212315 | L73: 0.086 | M73: 0.059 | N73: 0.084 | O73: 0.07633333333 | P73: 0.0150443788 | Q73: 0.14 | R73: 0.106 | S73: 0.097 | T73: 0.1143333333 | U73: 0.02267891826 | V73: 0.118 | W73: 0.099 | X73: 0.116 | Y73: 0.111 | Z73: 0.01044030651 | AA73: 0.144 | AB73: 0.151 | AC73: 0.176 | AD73: 0.157 | AE73: 0.01682260384 | AF73: 0.42 | AG73: 0.362 | AH73: 0.381 | AI73: 0.3876666667 | AJ73: 0.02956912804 | AK73: 0.528 | AL73: 0.571 | AM73: 0.53 | AN73: 0.543 | AO73: 0.0242693222 | AP73: 0.588 | AQ73: 0.902 | AR73: 0.716 | AS73: 0.7353333333 | AT73: 0.1578902572 | AU73: 0.845 | AV73: 0.921 | AW73: 0.727 | AX73: 0.831 | AY73: 0.09775479528
A74: 261 | B74: -0.041 | C74: -0.055 | D74: -0.002 | E74: -0.03266666667 | F74: 0.02746512941 | G74: 0.048 | H74: -0.02 | I74: -0.002 | J74: 0.008666666667 | K74: 0.0352325607 | L74: 0.033 | M74: 0.025 | N74: 0.045 | O74: 0.03433333333 | P74: 0.01006644591 | Q74: 0.108 | R74: 0.035 | S74: 0.07 | T74: 0.071 | U74: 0.03651027253 | V74: 0.051 | W74: 0.116 | X74: 0.108 | Y74: 0.09166666667 | Z74: 0.03544479275 | AA74: 0.192 | AB74: 0.112 | AC74: 0.11 | AD74: 0.138 | AE74: 0.04677606225 | AF74: 0.474 | AG74: 0.418 | AH74: 0.376 | AI74: 0.4226666667 | AJ74: 0.04916638418 | AK74: 0.521 | AL74: 0.49 | AM74: 0.678 | AN74: 0.563 | AO74: 0.1007918648 | AP74: 0.618 | AQ74: 0.881 | AR74: 0.661 | AS74: 0.72 | AT74: 0.1410779926 | AU74: 0.948 | AV74: 0.821 | AW74: 0.663 | AX74: 0.8106666667 | AY74: 0.1427807177
A75: 262 | B75: -0.054 | C75: -0.057 | D75: 0.023 | E75: -0.02933333333 | F75: 0.04534681172 | G75: 0.055 | H75: 0.007 | I75: 0.028 | J75: 0.03 | K75: 0.02406241883 | L75: 0.042 | M75: 0.03 | N75: 0.04 | O75: 0.03733333333 | P75: 0.006429100507 | Q75: 0.123 | R75: 0.064 | S75: 0.077 | T75: 0.088 | U75: 0.031 | V75: 0.105 | W75: 0.124 | X75: 0.134 | Y75: 0.121 | Z75: 0.01473091986 | AA75: 0.249 | AB75: 0.131 | AC75: 0.121 | AD75: 0.167 | AE75: 0.07118988692 | AF75: 0.471 | AG75: 0.437 | AH75: 0.293 | AI75: 0.4003333333 | AJ75: 0.09449514979 | AK75: 0.503 | AL75: 0.499 | AM75: 0.78 | AN75: 0.594 | AO75: 0.1610931408 | AP75: 0.653 | AQ75: 0.871 | AR75: 0.676 | AS75: 0.7333333333 | AT75: 0.1197761802 | AU75: 0.985 | AV75: 0.73 | AW75: 0.786 | AX75: 0.8336666667 | AY75: 0.1340161682
A76: 263 | B76: -0.022 | C76: -0.028 | D76: 0.065 | E76: 0.005 | F76: 0.05204805472 | G76: 0.067 | H76: 0.075 | I76: 0.06 | J76: 0.06733333333 | K76: 0.007505553499 | L76: 0.105 | M76: 0.09 | N76: 0.087 | O76: 0.094 | P76: 0.009643650761 | Q76: 0.127 | R76: 0.154 | S76: 0.143 | T76: 0.1413333333 | U76: 0.01357694124 | V76: 0.186 | W76: 0.175 | X76: 0.173 | Y76: 0.178 | Z76: 0.007 | AA76: 0.246 | AB76: 0.176 | AC76: 0.175 | AD76: 0.199 | AE76: 0.04070626487 | AF76: 0.446 | AG76: 0.484 | AH76: 0.274 | AI76: 0.4013333333 | AJ76: 0.1118987638 | AK76: 0.463 | AL76: 0.533 | AM76: 0.789 | AN76: 0.595 | AO76: 0.1716158501 | AP76: 0.628 | AQ76: 0.723 | AR76: 0.829 | AS76: 0.7266666667 | AT76: 0.1005501533 | AU76: 1.149 | AV76: 0.689 | AW76: 0.791 | AX76: 0.8763333333 | AY76: 0.2415809043
A77: 264 | B77: 0.026 | C77: -0.009 | D77: 0.019 | E77: 0.012 | F77: 0.01852025918 | G77: 0.073 | H77: 0.079 | I77: 0.07 | J77: 0.074 | K77: 0.004582575695 | L77: 0.139 | M77: 0.078 | N77: 0.099 | O77: 0.1053333333 | P77: 0.03098924545 | Q77: 0.143 | R77: 0.149 | S77: 0.147 | T77: 0.1463333333 | U77: 0.003055050463 | V77: 0.199 | W77: 0.167 | X77: 0.17 | Y77: 0.1786666667 | Z77: 0.01767295486 | AA77: 0.212 | AB77: 0.177 | AC77: 0.207 | AD77: 0.1986666667 | AE77: 0.01892969449 | AF77: 0.35 | AG77: 0.462 | AH77: 0.306 | AI77: 0.3726666667 | AJ77: 0.08043216604 | AK77: 0.544 | AL77: 0.514 | AM77: 0.571 | AN77: 0.543 | AO77: 0.02851315486 | AP77: 0.735 | AQ77: 0.697 | AR77: 0.824 | AS77: 0.752 | AT77: 0.06518435395 | AU77: 1.056 | AV77: 0.725 | AW77: 0.913 | AX77: 0.898 | AY77: 0.1660090359
A78: 265 | B78: 0.045 | C78: 0.009 | D78: -0.012 | E78: 0.014 | F78: 0.02882707061 | G78: 0.061 | H78: 0.081 | I78: 0.061 | J78: 0.06766666667 | K78: 0.01154700538 | L78: 0.123 | M78: 0.076 | N78: 0.114 | O78: 0.1043333333 | P78: 0.02494660966 | Q78: 0.148 | R78: 0.175 | S78: 0.131 | T78: 0.1513333333 | U78: 0.02218858565 | V78: 0.173 | W78: 0.167 | X78: 0.166 | Y78: 0.1686666667 | Z78: 0.003785938897 | AA78: 0.187 | AB78: 0.164 | AC78: 0.212 | AD78: 0.1876666667 | AE78: 0.02400694344 | AF78: 0.379 | AG78: 0.379 | AH78: 0.386 | AI78: 0.3813333333 | AJ78: 0.004041451884 | AK78: 0.557 | AL78: 0.493 | AM78: 0.403 | AN78: 0.4843333333 | AO78: 0.07736493607 | AP78: 0.912 | AQ78: 0.63 | AR78: 0.753 | AS78: 0.765 | AT78: 0.14138246 | AU78: 1.063 | AV78: 0.814 | AW78: 1.152 | AX78: 1.009666667 | AY78: 0.1751979832
A79: 266 | B79: 0.047 | C79: -0.014 | D79: -0.005 | E79: 0.009333333333 | F79: 0.03292921702 | G79: 0.034 | H79: 0.048 | I79: 0.055 | J79: 0.04566666667 | K79: 0.01069267662 | L79: 0.069 | M79: 0.068 | N79: 0.064 | O79: 0.067 | P79: 0.002645751311 | Q79: 0.151 | R79: 0.151 | S79: 0.106 | T79: 0.136 | U79: 0.02598076211 | V79: 0.129 | W79: 0.139 | X79: 0.147 | Y79: 0.1383333333 | Z79: 0.009018499506 | AA79: 0.181 | AB79: 0.138 | AC79: 0.184 | AD79: 0.1676666667 | AE79: 0.02573583753 | AF79: 0.409 | AG79: 0.425 | AH79: 0.418 | AI79: 0.4173333333 | AJ79: 0.008020806277 | AK79: 0.639 | AL79: 0.552 | AM79: 0.517 | AN79: 0.5693333333 | AO79: 0.06281984824 | AP79: 0.921 | AQ79: 0.689 | AR79: 0.73 | AS79: 0.78 | AT79: 0.1238184154 | AU79: 0.883 | AV79: 0.835 | AW79: 1.211 | AX79: 0.9763333333 | AY79: 0.2046395205
A80: 267 | B80: 0.025 | C80: 0.005 | D80: 0.008 | E80: 0.01266666667 | F80: 0.01078579312 | G80: 0.044 | H80: 0.051 | I80: 0.095 | J80: 0.06333333333 | K80: 0.02764657905 | L80: 0.07 | M80: 0.091 | N80: 0.043 | O80: 0.068 | P80: 0.02406241883 | Q80: 0.141 | R80: 0.134 | S80: 0.104 | T80: 0.1263333333 | U80: 0.01965536398 | V80: 0.134 | W80: 0.122 | X80: 0.154 | Y80: 0.1366666667 | Z80: 0.01616580754 | AA80: 0.193 | AB80: 0.188 | AC80: 0.174 | AD80: 0.185 | AE80: 0.009848857802 | AF80: 0.485 | AG80: 0.396 | AH80: 0.375 | AI80: 0.4186666667 | AJ80: 0.05839805933 | AK80: 0.599 | AL80: 0.591 | AM80: 0.557 | AN80: 0.5823333333 | AO80: 0.02230097158 | AP80: 0.952 | AQ80: 0.842 | AR80: 0.685 | AS80: 0.8263333333 | AT80: 0.1341876795 | AU80: 0.914 | AV80: 0.701 | AW80: 1.032 | AX80: 0.8823333333 | AY80: 0.1677567684
A81: 268 | B81: 0.01 | C81: 0.049 | D81: 0.032 | E81: 0.03033333333 | F81: 0.01955334583 | G81: 0.063 | H81: 0.074 | I81: 0.139 | J81: 0.092 | K81: 0.04107310556 | L81: 0.111 | M81: 0.082 | N81: 0.072 | O81: 0.08833333333 | P81: 0.02025668614 | Q81: 0.143 | R81: 0.138 | S81: 0.132 | T81: 0.1376666667 | U81: 0.005507570547 | V81: 0.178 | W81: 0.139 | X81: 0.164 | Y81: 0.1603333333 | Z81: 0.01975685535 | AA81: 0.209 | AB81: 0.213 | AC81: 0.2 | AD81: 0.2073333333 | AE81: 0.006658328118 | AF81: 0.489 | AG81: 0.404 | AH81: 0.421 | AI81: 0.438 | AJ81: 0.04497777229 | AK81: 0.496 | AL81: 0.5 | AM81: 0.642 | AN81: 0.546 | AO81: 0.08316249155 | AP81: 0.926 | AQ81: 1.008 | AR81: 0.718 | AS81: 0.884 | AT81: 0.1494924747 | AU81: 0.989 | AV81: 0.744 | AW81: 0.741 | AX81: 0.8246666667 | AY81: 0.142324746
A82: 269 | B82: -0.014 | C82: 0.027 | D82: 0 | E82: 0.004333333333 | F82: 0.02084066538 | G82: 0.06 | H82: 0.044 | I82: 0.141 | J82: 0.08166666667 | K82: 0.05200320503 | L82: 0.112 | M82: 0.064 | N82: 0.051 | O82: 0.07566666667 | P82: 0.0321299445 | Q82: 0.12 | R82: 0.097 | S82: 0.155 | T82: 0.124 | U82: 0.02920616373 | V82: 0.18 | W82: 0.144 | X82: 0.153 | Y82: 0.159 | Z82: 0.018734994 | AA82: 0.176 | AB82: 0.183 | AC82: 0.211 | AD82: 0.19 | AE82: 0.01852025918 | AF82: 0.436 | AG82: 0.369 | AH82: 0.436 | AI82: 0.4136666667 | AJ82: 0.03868246804 | AK82: 0.479 | AL82: 0.559 | AM82: 0.591 | AN82: 0.543 | AO82: 0.05768882041 | AP82: 0.847 | AQ82: 1.042 | AR82: 0.745 | AS82: 0.878 | AT82: 0.1509072563 | AU82: 1.177 | AV82: 1.06 | AW82: 0.563 | AX82: 0.9333333333 | AY82: 0.3260097136
A83: 270 | B83: -0.051 | C83: -0.013 | D83: -0.042 | E83: -0.03533333333 | F83: 0.01985782801 | G83: 0.041 | H83: 0.01 | I83: 0.067 | J83: 0.03933333333 | K83: 0.0285365263 | L83: 0.069 | M83: 0.075 | N83: 0.012 | O83: 0.052 | P83: 0.0347706773 | Q83: 0.092 | R83: 0.065 | S83: 0.144 | T83: 0.1003333333 | U83: 0.04015387071 | V83: 0.139 | W83: 0.122 | X83: 0.14 | Y83: 0.1336666667 | Z83: 0.01011599394 | AA83: 0.137 | AB83: 0.177 | AC83: 0.174 | AD83: 0.1626666667 | AE83: 0.02227853975 | AF83: 0.416 | AG83: 0.388 | AH83: 0.464 | AI83: 0.4226666667 | AJ83: 0.03843609415 | AK83: 0.473 | AL83: 0.664 | AM83: 0.522 | AN83: 0.553 | AO83: 0.0992018145 | AP83: 0.83 | AQ83: 0.949 | AR83: 0.796 | AS83: 0.8583333333 | AT83: 0.08033886565 | AU83: 1.278 | AV83: 1.527 | AW83: 0.827 | AX83: 1.210666667 | AY83: 0.3548243697
A84: 271 | B84: -0.052 | C84: -0.043 | D84: -0.026 | E84: -0.04033333333 | F84: 0.01320353488 | G84: 0.032 | H84: 0.009 | I84: 0.03 | J84: 0.02366666667 | K84: 0.0127410099 | L84: 0.034 | M84: 0.097 | N84: 0.01 | O84: 0.047 | P84: 0.04493328388 | Q84: 0.075 | R84: 0.069 | S84: 0.157 | T84: 0.1003333333 | U84: 0.04916638418 | V84: 0.085 | W84: 0.103 | X84: 0.117 | Y84: 0.1016666667 | Z84: 0.01604161255 | AA84: 0.1 | AB84: 0.17 | AC84: 0.187 | AD84: 0.1523333333 | AE84: 0.04611218205 | AF84: 0.376 | AG84: 0.492 | AH84: 0.476 | AI84: 0.448 | AJ84: 0.06286493458 | AK84: 0.478 | AL84: 0.81 | AM84: 0.555 | AN84: 0.6143333333 | AO84: 0.173770922 | AP84: 0.696 | AQ84: 0.96 | AR84: 0.82 | AS84: 0.8253333333 | AT84: 0.1320807834 | AU84: 1.127 | AV84: 1.501 | AW84: 0.942 | AX84: 1.19 | AY84: 0.2847753501
A85: 272 | B85: -0.033 | C85: -0.041 | D85: 0.003 | E85: -0.02366666667 | F85: 0.02343786111 | G85: 0.043 | H85: 0.029 | I85: 0.018 | J85: 0.03 | K85: 0.01252996409 | L85: 0.017 | M85: 0.096 | N85: 0.05 | O85: 0.05433333333 | P85: 0.03967786957 | Q85: 0.081 | R85: 0.074 | S85: 0.133 | T85: 0.096 | U85: 0.03223352292 | V85: 0.095 | W85: 0.131 | X85: 0.15 | Y85: 0.1253333333 | Z85: 0.02793444707 | AA85: 0.111 | AB85: 0.2 | AC85: 0.216 | AD85: 0.1756666667 | AE85: 0.0565714887 | AF85: 0.432 | AG85: 0.459 | AH85: 0.416 | AI85: 0.4356666667 | AJ85: 0.02173323108 | AK85: 0.417 | AL85: 0.747 | AM85: 0.489 | AN85: 0.551 | AO85: 0.1735165698 | AP85: 0.723 | AQ85: 0.933 | AR85: 0.717 | AS85: 0.791 | AT85: 0.1230121945 | AU85: 0.941 | AV85: 1.135 | AW85: 0.975 | AX85: 1.017 | AY85: 0.1035953667
A86: 273 | B86: 0.002 | C86: 0.003 | D86: 0.021 | E86: 0.008666666667 | F86: 0.01069267662 | G86: 0.044 | H86: 0.068 | I86: 0.059 | J86: 0.057 | K86: 0.01212435565 | L86: 0.045 | M86: 0.064 | N86: 0.103 | O86: 0.07066666667 | P86: 0.02956912804 | Q86: 0.138 | R86: 0.116 | S86: 0.134 | T86: 0.1293333333 | U86: 0.01171893055 | V86: 0.132 | W86: 0.131 | X86: 0.166 | Y86: 0.143 | Z86: 0.01992485885 | AA86: 0.119 | AB86: 0.184 | AC86: 0.233 | AD86: 0.1786666667 | AE86: 0.05718682832 | AF86: 0.409 | AG86: 0.406 | AH86: 0.385 | AI86: 0.4 | AJ86: 0.01307669683 | AK86: 0.352 | AL86: 0.516 | AM86: 0.477 | AN86: 0.4483333333 | AO86: 0.0856757453 | AP86: 0.712 | AQ86: 0.824 | AR86: 0.633 | AS86: 0.723 | AT86: 0.0959739548 | AU86: 0.734 | AV86: 0.83 | AW86: 0.885 | AX86: 0.8163333333 | AY86: 0.0764220736
A87: 274 | B87: 0.034 | C87: 0 | D87: 0.019 | E87: 0.01766666667 | F87: 0.01703917056 | G87: 0.055 | H87: 0.087 | I87: 0.067 | J87: 0.06966666667 | K87: 0.01616580754 | L87: 0.089 | M87: 0.073 | N87: 0.097 | O87: 0.08633333333 | P87: 0.01222020185 | Q87: 0.171 | R87: 0.137 | S87: 0.112 | T87: 0.14 | U87: 0.02961418579 | V87: 0.192 | W87: 0.155 | X87: 0.179 | Y87: 0.1753333333 | Z87: 0.0187705443 | AA87: 0.193 | AB87: 0.179 | AC87: 0.212 | AD87: 0.1946666667 | AE87: 0.016563011 | AF87: 0.417 | AG87: 0.325 | AH87: 0.364 | AI87: 0.3686666667 | AJ87: 0.04617719495 | AK87: 0.421 | AL87: 0.441 | AM87: 0.474 | AN87: 0.4453333333 | AO87: 0.02676440422 | AP87: 0.601 | AQ87: 0.727 | AR87: 0.713 | AS87: 0.6803333333 | AT87: 0.06906036007 | AU87: 0.874 | AV87: 0.695 | AW87: 0.758 | AX87: 0.7756666667 | AY87: 0.09079831129
A88: 275 | B88: 0.025 | C88: -0.007 | D88: 0.008 | E88: 0.008666666667 | F88: 0.01601041328 | G88: 0.032 | H88: 0.072 | I88: 0.05 | J88: 0.05133333333 | K88: 0.0200333056 | L88: 0.102 | M88: 0.084 | N88: 0.105 | O88: 0.097 | P88: 0.01135781669 | Q88: 0.184 | R88: 0.132 | S88: 0.115 | T88: 0.1436666667 | U88: 0.035949038 | V88: 0.186 | W88: 0.145 | X88: 0.159 | Y88: 0.1633333333 | Z88: 0.02084066538 | AA88: 0.218 | AB88: 0.17 | AC88: 0.196 | AD88: 0.1946666667 | AE88: 0.02402776172 | AF88: 0.453 | AG88: 0.366 | AH88: 0.363 | AI88: 0.394 | AJ88: 0.05111751168 | AK88: 0.546 | AL88: 0.492 | AM88: 0.513 | AN88: 0.517 | AO88: 0.02722131518 | AP88: 0.576 | AQ88: 0.681 | AR88: 0.727 | AS88: 0.6613333333 | AT88: 0.07739724371 | AU88: 0.892 | AV88: 0.876 | AW88: 0.975 | AX88: 0.9143333333 | AY88: 0.05314445722
A89: 276 | B89: 0.013 | C89: -0.001 | D89: 0.009 | E89: 0.007 | F89: 0.007211102551 | G89: 0.034 | H89: 0.073 | I89: 0.041 | J89: 0.04933333333 | K89: 0.0207926269 | L89: 0.094 | M89: 0.113 | N89: 0.125 | O89: 0.1106666667 | P89: 0.01563116545 | Q89: 0.166 | R89: 0.177 | S89: 0.115 | T89: 0.1526666667 | U89: 0.03308070938 | V89: 0.176 | W89: 0.16 | X89: 0.156 | Y89: 0.164 | Z89: 0.01058300524 | AA89: 0.232 | AB89: 0.142 | AC89: 0.205 | AD89: 0.193 | AE89: 0.04618441296 | AF89: 0.438 | AG89: 0.432 | AH89: 0.411 | AI89: 0.427 | AJ89: 0.01417744688 | AK89: 0.735 | AL89: 0.568 | AM89: 0.657 | AN89: 0.6533333333 | AO89: 0.08356035743 | AP89: 0.73 | AQ89: 0.78 | AR89: 1.002 | AS89: 0.8373333333 | AT89: 0.1447802933 | AU89: 0.953 | AV89: 0.813 | AW89: 0.971 | AX89: 0.9123333333 | AY89: 0.08649470119
A90: 277 | B90: -0.017 | C90: 0.028 | D90: 0.01 | E90: 0.007 | F90: 0.02264950331 | G90: 0.01 | H90: 0.035 | I90: 0.005 | J90: 0.01666666667 | K90: 0.01607275127 | L90: 0.069 | M90: 0.07 | N90: 0.123 | O90: 0.08733333333 | P90: 0.03089228598 | Q90: 0.135 | R90: 0.151 | S90: 0.12 | T90: 0.1353333333 | U90: 0.01550268794 | V90: 0.208 | W90: 0.159 | X90: 0.133 | Y90: 0.1666666667 | Z90: 0.03808324216 | AA90: 0.232 | AB90: 0.117 | AC90: 0.224 | AD90: 0.191 | AE90: 0.06421059103 | AF90: 0.435 | AG90: 0.446 | AH90: 0.383 | AI90: 0.4213333333 | AJ90: 0.03365016097 | AK90: 0.722 | AL90: 0.528 | AM90: 0.718 | AN90: 0.656 | AO90: 0.1108692924 | AP90: 0.879 | AQ90: 0.832 | AR90: 1.039 | AS90: 0.9166666667 | AT90: 0.1085188156 | AU90: 0.951 | AV90: 0.879 | AW90: 1.016 | AX90: 0.9486666667 | AY90: 0.06852979887
A91: 278 | B91: -0.026 | C91: 0.054 | D91: 0.014 | E91: 0.014 | F91: 0.04 | G91: 0.034 | H91: 0.041 | I91: 0.032 | J91: 0.03566666667 | K91: 0.004725815626 | L91: 0.094 | M91: 0.047 | N91: 0.148 | O91: 0.09633333333 | P91: 0.05054041287 | Q91: 0.131 | R91: 0.175 | S91: 0.15 | T91: 0.152 | U91: 0.02206807649 | V91: 0.216 | W91: 0.123 | X91: 0.144 | Y91: 0.161 | Z91: 0.04877499359 | AA91: 0.232 | AB91: 0.142 | AC91: 0.237 | AD91: 0.2036666667 | AE91: 0.05346338311 | AF91: 0.381 | AG91: 0.464 | AH91: 0.394 | AI91: 0.413 | AJ91: 0.04464302857 | AK91: 0.685 | AL91: 0.467 | AM91: 0.663 | AN91: 0.605 | AO91: 0.1200166655 | AP91: 1 | AQ91: 0.919 | AR91: 0.945 | AS91: 0.9546666667 | AT91: 0.04135617648 | AU91: 0.785 | AV91: 0.939 | AW91: 1.046 | AX91: 0.9233333333 | AY91: 0.1312034044
A92: 279 | B92: -0.019 | C92: 0.048 | D92: 0.01 | E92: 0.013 | F92: 0.03360059523 | G92: 0.066 | H92: 0.029 | I92: 0.036 | J92: 0.04366666667 | K92: 0.01965536398 | L92: 0.107 | M92: 0.064 | N92: 0.122 | O92: 0.09766666667 | P92: 0.03010537051 | Q92: 0.113 | R92: 0.166 | S92: 0.12 | T92: 0.133 | U92: 0.0287923601 | V92: 0.207 | W92: 0.147 | X92: 0.169 | Y92: 0.1743333333 | Z92: 0.03035347317 | AA92: 0.25 | AB92: 0.168 | AC92: 0.215 | AD92: 0.211 | AE92: 0.04114608122 | AF92: 0.36 | AG92: 0.408 | AH92: 0.433 | AI92: 0.4003333333 | AJ92: 0.03709896674 | AK92: 0.541 | AL92: 0.576 | AM92: 0.617 | AN92: 0.578 | AO92: 0.0380394532 | AP92: 0.872 | AQ92: 0.853 | AR92: 0.721 | AS92: 0.8153333333 | AT92: 0.08224556726 | AU92: 0.639 | AV92: 0.854 | AW92: 1.035 | AX92: 0.8426666667 | AY92: 0.1982431167
A93: 280 | B93: 0.006 | C93: 0.062 | D93: 0.027 | E93: 0.03166666667 | F93: 0.02829016319 | G93: 0.08 | H93: 0.058 | I93: 0.063 | J93: 0.067 | K93: 0.01153256259 | L93: 0.124 | M93: 0.1 | N93: 0.155 | O93: 0.1263333333 | P93: 0.02757414248 | Q93: 0.145 | R93: 0.183 | S93: 0.144 | T93: 0.1573333333 | U93: 0.02223360819 | V93: 0.17 | W93: 0.189 | X93: 0.173 | Y93: 0.1773333333 | Z93: 0.01021436896 | AA93: 0.243 | AB93: 0.211 | AC93: 0.216 | AD93: 0.2233333333 | AE93: 0.01721433511 | AF93: 0.414 | AG93: 0.458 | AH93: 0.437 | AI93: 0.4363333333 | AJ93: 0.02200757445 | AK93: 0.508 | AL93: 0.572 | AM93: 0.555 | AN93: 0.545 | AO93: 0.03315116891 | AP93: 0.716 | AQ93: 0.898 | AR93: 0.515 | AS93: 0.7096666667 | AT93: 0.1915785305 | AU93: 0.597 | AV93: 0.802 | AW93: 1.261 | AX93: 0.8866666667 | AY93: 0.3400004902
A94: 281 | B94: 0.032 | C94: 0.062 | D94: 0.008 | E94: 0.034 | F94: 0.02705549852 | G94: 0.087 | H94: 0.081 | I94: 0.073 | J94: 0.08033333333 | K94: 0.007023769169 | L94: 0.116 | M94: 0.143 | N94: 0.121 | O94: 0.1266666667 | P94: 0.01436430762 | Q94: 0.146 | R94: 0.193 | S94: 0.151 | T94: 0.1633333333 | U94: 0.0258134332 | V94: 0.169 | W94: 0.232 | X94: 0.181 | Y94: 0.194 | Z94: 0.03345145737 | AA94: 0.215 | AB94: 0.233 | AC94: 0.2 | AD94: 0.216 | AE94: 0.01652271164 | AF94: 0.455 | AG94: 0.504 | AH94: 0.461 | AI94: 0.4733333333 | AJ94: 0.02672701505 | AK94: 0.588 | AL94: 0.696 | AM94: 0.516 | AN94: 0.6 | AO94: 0.09059801322 | AP94: 0.62 | AQ94: 0.934 | AR94: 0.703 | AS94: 0.7523333333 | AT94: 0.1627093523 | AU94: 0.759 | AV94: 0.803 | AW94: 1.288 | AX94: 0.95 | AY94: 0.2935421605
A95: 282 | B95: 0.039 | C95: 0.041 | D95: 0.009 | E95: 0.02966666667 | F95: 0.01792577288 | G95: 0.066 | H95: 0.083 | I95: 0.084 | J95: 0.07766666667 | K95: 0.01011599394 | L95: 0.143 | M95: 0.135 | N95: 0.12 | O95: 0.1326666667 | P95: 0.01167618659 | Q95: 0.166 | R95: 0.168 | S95: 0.173 | T95: 0.169 | U95: 0.003605551275 | V95: 0.18 | W95: 0.221 | X95: 0.166 | Y95: 0.189 | Z95: 0.02858321186 | AA95: 0.241 | AB95: 0.254 | AC95: 0.191 | AD95: 0.2286666667 | AE95: 0.03326158946 | AF95: 0.437 | AG95: 0.539 | AH95: 0.438 | AI95: 0.4713333333 | AJ95: 0.05860318535 | AK95: 0.644 | AL95: 0.741 | AM95: 0.586 | AN95: 0.657 | AO95: 0.07831347266 | AP95: 0.736 | AQ95: 0.947 | AR95: 0.849 | AS95: 0.844 | AT95: 0.1055888252 | AU95: 0.833 | AV95: 1.207 | AW95: 1.222 | AX95: 1.087333333 | AY95: 0.2203867812
A96: 283 | B96: 0.044 | C96: 0.015 | D96: 0.034 | E96: 0.031 | F96: 0.01473091986 | G96: 0.084 | H96: 0.095 | I96: 0.078 | J96: 0.08566666667 | K96: 0.008621678104 | L96: 0.181 | M96: 0.127 | N96: 0.131 | O96: 0.1463333333 | P96: 0.03008875759 | Q96: 0.186 | R96: 0.167 | S96: 0.2 | T96: 0.1843333333 | U96: 0.016563011 | V96: 0.207 | W96: 0.187 | X96: 0.206 | Y96: 0.2 | Z96: 0.01126942767 | AA96: 0.311 | AB96: 0.286 | AC96: 0.213 | AD96: 0.27 | AE96: 0.05092150823 | AF96: 0.407 | AG96: 0.582 | AH96: 0.429 | AI96: 0.4726666667 | AJ96: 0.09532226043 | AK96: 0.833 | AL96: 0.694 | AM96: 0.574 | AN96: 0.7003333333 | AO96: 0.1296160998 | AP96: 0.891 | AQ96: 1.088 | AR96: 0.878 | AS96: 0.9523333333 | AT96: 0.1176704438 | AU96: 0.86 | AV96: 1.23 | AW96: 1.08 | AX96: 1.056666667 | AY96: 0.1861003314
A97: 284 | B97: 0.026 | C97: -0.001 | D97: 0.024 | E97: 0.01633333333 | F97: 0.0150443788 | G97: 0.086 | H97: 0.088 | I97: 0.066 | J97: 0.08 | K97: 0.01216552506 | L97: 0.187 | M97: 0.128 | N97: 0.149 | O97: 0.1546666667 | P97: 0.02990540642 | Q97: 0.184 | R97: 0.186 | S97: 0.216 | T97: 0.1953333333 | U97: 0.01792577288 | V97: 0.22 | W97: 0.193 | X97: 0.247 | Y97: 0.22 | Z97: 0.027 | AA97: 0.365 | AB97: 0.282 | AC97: 0.263 | AD97: 0.3033333333 | AE97: 0.05424327915 | AF97: 0.464 | AG97: 0.532 | AH97: 0.485 | AI97: 0.4936666667 | AJ97: 0.03481857742 | AK97: 0.827 | AL97: 0.846 | AM97: 0.668 | AN97: 0.7803333333 | AO97: 0.09774627018 | AP97: 1.045 | AQ97: 1.155 | AR97: 0.865 | AS97: 1.021666667 | AT97: 0.146401275 | AU97: 0.861 | AV97: 1.167 | AW97: 0.843 | AX97: 0.957 | AY97: 0.1820878909
A98: 285 | B98: 0.02 | C98: 0.029 | D98: 0.036 | E98: 0.02833333333 | F98: 0.008020806277 | G98: 0.082 | H98: 0.095 | I98: 0.081 | J98: 0.086 | K98: 0.007810249676 | L98: 0.206 | M98: 0.174 | N98: 0.193 | O98: 0.191 | P98: 0.01609347694 | Q98: 0.214 | R98: 0.237 | S98: 0.297 | T98: 0.2493333333 | U98: 0.04285246006 | V98: 0.246 | W98: 0.245 | X98: 0.299 | Y98: 0.2633333333 | Z98: 0.03089228598 | AA98: 0.414 | AB98: 0.326 | AC98: 0.355 | AD98: 0.365 | AE98: 0.04484417465 | AF98: 0.61 | AG98: 0.599 | AH98: 0.576 | AI98: 0.595 | AJ98: 0.01734935157 | AK98: 0.898 | AL98: 0.879 | AM98: 0.744 | AN98: 0.8403333333 | AO98: 0.08396626307 | AP98: 1.245 | AQ98: 1.292 | AR98: 0.922 | AS98: 1.153 | AT98: 0.2014274063 | AU98: 1.045 | AV98: 1.08 | AW98: 1.004 | AX98: 1.043 | AY98: 0.0380394532
A99: 286 | B99: 0.029 | C99: 0.029 | D99: 0.034 | E99: 0.03066666667 | F99: 0.002886751346 | G99: 0.086 | H99: 0.099 | I99: 0.097 | J99: 0.094 | K99: 0.007 | L99: 0.206 | M99: 0.208 | N99: 0.206 | O99: 0.2066666667 | P99: 0.001154700538 | Q99: 0.243 | R99: 0.291 | S99: 0.325 | T99: 0.2863333333 | U99: 0.04119870548 | V99: 0.314 | W99: 0.334 | X99: 0.343 | Y99: 0.3303333333 | Z99: 0.01484362939 | AA99: 0.422 | AB99: 0.389 | AC99: 0.434 | AD99: 0.415 | AE99: 0.0233023604 | AF99: 0.778 | AG99: 0.703 | AH99: 0.715 | AI99: 0.732 | AJ99: 0.04028647416 | AK99: 0.998 | AL99: 1 | AM99: 0.933 | AN99: 0.977 | AO99: 0.03811823711 | AP99: 1.333 | AQ99: 1.255 | AR99: 1.044 | AS99: 1.210666667 | AT99: 0.149513656 | AU99: 1.192 | AV99: 1.168 | AW99: 1.33 | AX99: 1.23 | AY99: 0.08742997198
A100: 287 | B100: 0.05 | C100: 0.036 | D100: 0.052 | E100: 0.046 | F100: 0.008717797887 | G100: 0.104 | H100: 0.113 | I100: 0.129 | J100: 0.1153333333 | K100: 0.01266227994 | L100: 0.234 | M100: 0.242 | N100: 0.229 | O100: 0.235 | P100: 0.006557438524 | Q100: 0.3 | R100: 0.331 | S100: 0.337 | T100: 0.3226666667 | U100: 0.01985782801 | V100: 0.375 | W100: 0.392 | X100: 0.393 | Y100: 0.3866666667 | Z100: 0.01011599394 | AA100: 0.475 | AB100: 0.462 | AC100: 0.499 | AD100: 0.4786666667 | AE100: 0.0187705443 | AF100: 0.894 | AG100: 0.833 | AH100: 0.871 | AI100: 0.866 | AJ100: 0.0308058436 | AK100: 1.083 | AL100: 1.116 | AM100: 1.15 | AN100: 1.116333333 | AO100: 0.03350124376 | AP100: 1.405 | AQ100: 1.434 | AR100: 1.19 | AS100: 1.343 | AT100: 0.1332929105 | AU100: 1.277 | AV100: 1.473 | AW100: 1.671 | AX100: 1.473666667 | AY100: 0.197000846
A101: 288 | B101: 0.061 | C101: 0.047 | D101: 0.061 | E101: 0.05633333333 | F101: 0.008082903769 | G101: 0.124 | H101: 0.129 | I101: 0.138 | J101: 0.1303333333 | K101: 0.007094598885 | L101: 0.252 | M101: 0.255 | N101: 0.238 | O101: 0.2483333333 | P101: 0.009073771726 | Q101: 0.344 | R101: 0.352 | S101: 0.338 | T101: 0.3446666667 | U101: 0.007023769169 | V101: 0.415 | W101: 0.424 | X101: 0.43 | Y101: 0.423 | Z101: 0.007549834435 | AA101: 0.513 | AB101: 0.512 | AC101: 0.513 | AD101: 0.5126666667 | AE101: 0.0005773502692 | AF101: 0.963 | AG101: 0.914 | AH101: 0.935 | AI101: 0.9373333333 | AJ101: 0.02458319209 | AK101: 1.234 | AL101: 1.118 | AM101: 1.321 | AN101: 1.224333333 | AO101: 0.1018446529 | AP101: 1.476 | AQ101: 1.466 | AR101: 1.381 | AS101: 1.441 | AT101: 0.05220153254 | AU101: 1.539 | AV101: 1.559 | AW101: 1.891 | AX101: 1.663 | AY101: 0.1977068537
A102: 289 | B102: 0.057 | C102: 0.055 | D102: 0.056 | E102: 0.056 | F102: 0.001 | G102: 0.134 | H102: 0.144 | I102: 0.133 | J102: 0.137 | K102: 0.00608276253 | L102: 0.257 | M102: 0.249 | N102: 0.242 | O102: 0.2493333333 | P102: 0.007505553499 | Q102: 0.364 | R102: 0.366 | S102: 0.352 | T102: 0.3606666667 | U102: 0.007571877794 | V102: 0.43 | W102: 0.43 | X102: 0.424 | Y102: 0.428 | Z102: 0.003464101615 | AA102: 0.541 | AB102: 0.524 | AC102: 0.528 | AD102: 0.531 | AE102: 0.008888194417 | AF102: 0.973 | AG102: 0.97 | AH102: 1.016 | AI102: 0.9863333333 | AJ102: 0.02573583753 | AK102: 1.257 | AL102: 1.257 | AM102: 1.388 | AN102: 1.300666667 | AO102: 0.07563288526 | AP102: 1.499 | AQ102: 1.522 | AR102: 1.511 | AS102: 1.510666667 | AT102: 0.01150362262 | AU102: 1.491 | AV102: 1.54 | AW102: 1.774 | AX102: 1.601666667 | AY102: 0.1512426307
A103: 290 | B103: 0.052 | C103: 0.058 | D103: 0.055 | E103: 0.055 | F103: 0.003 | G103: 0.131 | H103: 0.137 | I103: 0.136 | J103: 0.1346666667 | K103: 0.003214550254 | L103: 0.257 | M103: 0.244 | N103: 0.239 | O103: 0.2466666667 | P103: 0.009291573243 | Q103: 0.357 | R103: 0.36 | S103: 0.357 | T103: 0.358 | U103: 0.001732050808 | V103: 0.418 | W103: 0.428 | X103: 0.421 | Y103: 0.4223333333 | Z103: 0.005131601439 | AA103: 0.534 | AB103: 0.517 | AC103: 0.51 | AD103: 0.5203333333 | AE103: 0.01234233905 | AF103: 0.986 | AG103: 0.975 | AH103: 1.005 | AI103: 0.9886666667 | AJ103: 0.01517673658 | AK103: 1.26 | AL103: 1.305 | AM103: 1.324 | AN103: 1.296333333 | AO103: 0.03286842456 | AP103: 1.573 | AQ103: 1.602 | AR103: 1.651 | AS103: 1.608666667 | AT103: 0.03942503435 | AU103: 1.637 | AV103: 1.746 | AW103: 1.769 | AX103: 1.717333333 | AY103: 0.07051477387
A104: 291 | B104: 0.056 | C104: 0.058 | D104: 0.056 | E104: 0.05666666667 | F104: 0.001154700538 | G104: 0.138 | H104: 0.135 | I104: 0.131 | J104: 0.1346666667 | K104: 0.003511884584 | L104: 0.254 | M104: 0.235 | N104: 0.237 | O104: 0.242 | P104: 0.01044030651 | Q104: 0.356 | R104: 0.351 | S104: 0.345 | T104: 0.3506666667 | U104: 0.005507570547 | V104: 0.408 | W104: 0.427 | X104: 0.41 | Y104: 0.415 | Z104: 0.01044030651 | AA104: 0.511 | AB104: 0.509 | AC104: 0.504 | AD104: 0.508 | AE104: 0.003605551275 | AF104: 0.98 | AG104: 0.958 | AH104: 0.967 | AI104: 0.9683333333 | AJ104: 0.01106044002 | AK104: 1.257 | AL104: 1.268 | AM104: 1.29 | AN104: 1.271666667 | AO104: 0.01680277755 | AP104: 1.516 | AQ104: 1.531 | AR104: 1.609 | AS104: 1.552 | AT104: 0.04992995093 | AU104: 1.694 | AV104: 1.889 | AW104: 1.472 | AX104: 1.685 | AY104: 0.2086456326
A105: 292 | B105: 0.066 | C105: 0.061 | D105: 0.06 | E105: 0.06233333333 | F105: 0.003214550254 | G105: 0.141 | H105: 0.141 | I105: 0.133 | J105: 0.1383333333 | K105: 0.004618802154 | L105: 0.253 | M105: 0.235 | N105: 0.234 | O105: 0.2406666667 | P105: 0.01069267662 | Q105: 0.36 | R105: 0.349 | S105: 0.341 | T105: 0.35 | U105: 0.009539392014 | V105: 0.41 | W105: 0.42 | X105: 0.408 | Y105: 0.4126666667 | Z105: 0.006429100507 | AA105: 0.493 | AB105: 0.508 | AC105: 0.503 | AD105: 0.5013333333 | AE105: 0.007637626158 | AF105: 0.961 | AG105: 0.945 | AH105: 0.959 | AI105: 0.955 | AJ105: 0.008717797887 | AK105: 1.19 | AL105: 1.259 | AM105: 1.233 | AN105: 1.227333333 | AO105: 0.03484728588 | AP105: 1.429 | AQ105: 1.602 | AR105: 1.535 | AS105: 1.522 | AT105: 0.08722958214 | AU105: 1.709 | AV105: 1.875 | AW105: 1.719 | AX105: 1.767666667 | AY105: 0.0930877722
A106: 293 | B106: 0.07 | C106: 0.064 | D106: 0.064 | E106: 0.066 | F106: 0.003464101615 | G106: 0.146 | H106: 0.146 | I106: 0.138 | J106: 0.1433333333 | K106: 0.004618802154 | L106: 0.261 | M106: 0.244 | N106: 0.24 | O106: 0.2483333333 | P106: 0.01115048579 | Q106: 0.364 | R106: 0.354 | S106: 0.354 | T106: 0.3573333333 | U106: 0.005773502692 | V106: 0.429 | W106: 0.427 | X106: 0.421 | Y106: 0.4256666667 | Z106: 0.004163331999 | AA106: 0.507 | AB106: 0.525 | AC106: 0.508 | AD106: 0.5133333333 | AE106: 0.01011599394 | AF106: 0.98 | AG106: 0.968 | AH106: 0.989 | AI106: 0.979 | AJ106: 0.01053565375 | AK106: 1.297 | AL106: 1.328 | AM106: 1.329 | AN106: 1.318 | AO106: 0.0181934054 | AP106: 1.55 | AQ106: 1.669 | AR106: 1.635 | AS106: 1.618 | AT106: 0.06129437168 | AU106: 1.939 | AV106: 1.892 | AW106: 1.945 | AX106: 1.925333333 | AY106: 0.0290229794
A107: 294 | B107: 0.071 | C107: 0.065 | D107: 0.068 | E107: 0.068 | F107: 0.003 | G107: 0.153 | H107: 0.154 | I107: 0.145 | J107: 0.1506666667 | K107: 0.004932882862 | L107: 0.271 | M107: 0.255 | N107: 0.249 | O107: 0.2583333333 | P107: 0.01137248141 | Q107: 0.374 | R107: 0.37 | S107: 0.371 | T107: 0.3716666667 | U107: 0.002081665999 | V107: 0.447 | W107: 0.44 | X107: 0.44 | Y107: 0.4423333333 | Z107: 0.004041451884 | AA107: 0.535 | AB107: 0.552 | AC107: 0.531 | AD107: 0.5393333333 | AE107: 0.01115048579 | AF107: 1.046 | AG107: 1.075 | AH107: 1.064 | AI107: 1.061666667 | AJ107: 0.0146401275 | AK107: 1.451 | AL107: 1.503 | AM107: 1.503 | AN107: 1.485666667 | AO107: 0.030022214 | AP107: 1.777 | AQ107: 1.768 | AR107: 1.721 | AS107: 1.755333333 | AT107: 0.0300721355 | AU107: 1.972 | AV107: 1.957 | AW107: 2.205 | AX107: 2.044666667 | AY107: 0.1390551449
A108: 295 | B108: 0.068 | C108: 0.068 | D108: 0.07 | E108: 0.06866666667 | F108: 0.001154700538 | G108: 0.152 | H108: 0.154 | I108: 0.152 | J108: 0.1526666667 | K108: 0.001154700538 | L108: 0.276 | M108: 0.262 | N108: 0.256 | O108: 0.2646666667 | P108: 0.01026320288 | Q108: 0.38 | R108: 0.378 | S108: 0.376 | T108: 0.378 | U108: 0.002 | V108: 0.45 | W108: 0.45 | X108: 0.45 | Y108: 0.45 | Z108: 0 | AA108: 0.559 | AB108: 0.563 | AC108: 0.544 | AD108: 0.5553333333 | AE108: 0.0100166528 | AF108: 1.126 | AG108: 1.138 | AH108: 1.127 | AI108: 1.130333333 | AJ108: 0.006658328118 | AK108: 1.571 | AL108: 1.631 | AM108: 1.623 | AN108: 1.608333333 | AO108: 0.03257811126 | AP108: 2.025 | AQ108: 2.025 | AR108: 1.967 | AS108: 2.005666667 | AT108: 0.03348631561 | AU108: 2.09 | AV108: 2.336 | AW108: 2.305 | AX108: 2.243666667 | AY108: 0.1339788541
A109: 296 | B109: 0.069 | C109: 0.071 | D109: 0.072 | E109: 0.07066666667 | F109: 0.001527525232 | G109: 0.156 | H109: 0.156 | I109: 0.15 | J109: 0.154 | K109: 0.003464101615 | L109: 0.28 | M109: 0.264 | N109: 0.259 | O109: 0.2676666667 | P109: 0.01096965511 | Q109: 0.389 | R109: 0.382 | S109: 0.381 | T109: 0.384 | U109: 0.004358898944 | V109: 0.45 | W109: 0.454 | X109: 0.447 | Y109: 0.4503333333 | Z109: 0.003511884584 | AA109: 0.563 | AB109: 0.566 | AC109: 0.556 | AD109: 0.5616666667 | AE109: 0.005131601439 | AF109: 1.173 | AG109: 1.154 | AH109: 1.154 | AI109: 1.160333333 | AJ109: 0.01096965511 | AK109: 1.681 | AL109: 1.64 | AM109: 1.684 | AN109: 1.668333333 | AO109: 0.02458319209 | AP109: 2.084 | AQ109: 2.209 | AR109: 2.12 | AS109: 2.137666667 | AT109: 0.06434542201 | AU109: 2.295 | AV109: 2.515 | AW109: 2.268 | AX109: 2.359333333 | AY109: 0.1354855466
A110: 297 | B110: 0.07 | C110: 0.072 | D110: 0.074 | E110: 0.072 | F110: 0.002 | G110: 0.157 | H110: 0.157 | I110: 0.149 | J110: 0.1543333333 | K110: 0.004618802154 | L110: 0.277 | M110: 0.264 | N110: 0.257 | O110: 0.266 | P110: 0.01014889157 | Q110: 0.388 | R110: 0.382 | S110: 0.379 | T110: 0.383 | U110: 0.004582575695 | V110: 0.447 | W110: 0.45 | X110: 0.448 | Y110: 0.4483333333 | Z110: 0.001527525232 | AA110: 0.564 | AB110: 0.562 | AC110: 0.554 | AD110: 0.56 | AE110: 0.005291502622 | AF110: 1.163 | AG110: 1.151 | AH110: 1.155 | AI110: 1.156333333 | AJ110: 0.006110100927 | AK110: 1.679 | AL110: 1.641 | AM110: 1.696 | AN110: 1.672 | AO110: 0.02816025568 | AP110: 2.135 | AQ110: 2.197 | AR110: 2.211 | AS110: 2.181 | AT110: 0.04044749683 | AU110: 2.408 | AV110: 2.466 | AW110: 2.457 | AX110: 2.443666667 | AY110: 0.03121431296
A111: 298 | B111: 0.072 | C111: 0.075 | D111: 0.076 | E111: 0.07433333333 | F111: 0.002081665999 | G111: 0.159 | H111: 0.16 | I111: 0.152 | J111: 0.157 | K111: 0.004358898944 | L111: 0.278 | M111: 0.264 | N111: 0.257 | O111: 0.2663333333 | P111: 0.01069267662 | Q111: 0.387 | R111: 0.383 | S111: 0.379 | T111: 0.383 | U111: 0.004 | V111: 0.447 | W111: 0.448 | X111: 0.445 | Y111: 0.4466666667 | Z111: 0.001527525232 | AA111: 0.559 | AB111: 0.557 | AC111: 0.55 | AD111: 0.5553333333 | AE111: 0.004725815626 | AF111: 1.145 | AG111: 1.138 | AH111: 1.138 | AI111: 1.140333333 | AJ111: 0.004041451884 | AK111: 1.713 | AL111: 1.664 | AM111: 1.675 | AN111: 1.684 | AO111: 0.02570992026 | AP111: 2.148 | AQ111: 2.155 | AR111: 2.192 | AS111: 2.165 | AT111: 0.02364318084 | AU111: 2.682 | AV111: 2.34 | AW111: 2.553 | AX111: 2.525 | AY111: 0.1727107408
A112: 299 | B112: 0.074 | C112: 0.075 | D112: 0.075 | E112: 0.07466666667 | F112: 0.0005773502692 | G112: 0.159 | H112: 0.16 | I112: 0.153 | J112: 0.1573333333 | K112: 0.003785938897 | L112: 0.277 | M112: 0.261 | N112: 0.255 | O112: 0.2643333333 | P112: 0.01137248141 | Q112: 0.386 | R112: 0.381 | S112: 0.374 | T112: 0.3803333333 | U112: 0.006027713773 | V112: 0.441 | W112: 0.444 | X112: 0.44 | Y112: 0.4416666667 | Z112: 0.002081665999 | AA112: 0.552 | AB112: 0.55 | AC112: 0.541 | AD112: 0.5476666667 | AE112: 0.005859465277 | AF112: 1.123 | AG112: 1.124 | AH112: 1.117 | AI112: 1.121333333 | AJ112: 0.003785938897 | AK112: 1.699 | AL112: 1.676 | AM112: 1.678 | AN112: 1.684333333 | AO112: 0.0127410099 | AP112: 2.129 | AQ112: 2.099 | AR112: 2.133 | AS112: 2.120333333 | AT112: 0.01858314649 | AU112: 2.786 | AV112: 2.35 | AW112: 2.506 | AX112: 2.547333333 | AY112: 0.2209192914
A113: 300 | B113: 0.074 | C113: 0.074 | D113: 0.075 | E113: 0.07433333333 | F113: 0.0005773502692 | G113: 0.159 | H113: 0.159 | I113: 0.153 | J113: 0.157 | K113: 0.003464101615 | L113: 0.274 | M113: 0.258 | N113: 0.253 | O113: 0.2616666667 | P113: 0.01096965511 | Q113: 0.382 | R113: 0.377 | S113: 0.37 | T113: 0.3763333333 | U113: 0.006027713773 | V113: 0.434 | W113: 0.436 | X113: 0.435 | Y113: 0.435 | Z113: 0.001 | AA113: 0.543 | AB113: 0.54 | AC113: 0.532 | AD113: 0.5383333333 | AE113: 0.005686240703 | AF113: 1.107 | AG113: 1.115 | AH113: 1.102 | AI113: 1.108 | AJ113: 0.006557438524 | AK113: 1.666 | AL113: 1.671 | AM113: 1.667 | AN113: 1.668 | AO113: 0.002645751311 | AP113: 2.104 | AQ113: 2.127 | AR113: 2.171 | AS113: 2.134 | AT113: 0.03404408906 | AU113: 2.835 | AV113: 2.399 | AW113: 2.389 | AX113: 2.541 | AY113: 0.2546605584
A114: 301 | B114: 0.073 | C114: 0.072 | D114: 0.074 | E114: 0.073 | F114: 0.001 | G114: 0.159 | H114: 0.158 | I114: 0.152 | J114: 0.1563333333 | K114: 0.003785938897 | L114: 0.272 | M114: 0.257 | N114: 0.251 | O114: 0.26 | P114: 0.01081665383 | Q114: 0.379 | R114: 0.374 | S114: 0.365 | T114: 0.3726666667 | U114: 0.007094598885 | V114: 0.427 | W114: 0.431 | X114: 0.428 | Y114: 0.4286666667 | Z114: 0.002081665999 | AA114: 0.537 | AB114: 0.533 | AC114: 0.524 | AD114: 0.5313333333 | AE114: 0.006658328118 | AF114: 1.098 | AG114: 1.097 | AH114: 1.092 | AI114: 1.095666667 | AJ114: 0.003214550254 | AK114: 1.619 | AL114: 1.637 | AM114: 1.648 | AN114: 1.634666667 | AO114: 0.0146401275 | AP114: 2.061 | AQ114: 2.153 | AR114: 2.198 | AS114: 2.137333333 | AT114: 0.06983074776 | AU114: 2.736 | AV114: 2.398 | AW114: 2.441 | AX114: 2.525 | AY114: 0.1839918476
A115: 302 | B115: 0.073 | C115: 0.072 | D115: 0.074 | E115: 0.073 | F115: 0.001 | G115: 0.159 | H115: 0.158 | I115: 0.152 | J115: 0.1563333333 | K115: 0.003785938897 | L115: 0.27 | M115: 0.256 | N115: 0.25 | O115: 0.2586666667 | P115: 0.01026320288 | Q115: 0.375 | R115: 0.37 | S115: 0.361 | T115: 0.3686666667 | U115: 0.007094598885 | V115: 0.423 | W115: 0.428 | X115: 0.424 | Y115: 0.425 | Z115: 0.002645751311 | AA115: 0.53 | AB115: 0.528 | AC115: 0.517 | AD115: 0.525 | AE115: 0.007 | AF115: 1.086 | AG115: 1.087 | AH115: 1.081 | AI115: 1.084666667 | AJ115: 0.003214550254 | AK115: 1.59 | AL115: 1.607 | AM115: 1.628 | AN115: 1.608333333 | AO115: 0.01903505538 | AP115: 2.105 | AQ115: 2.148 | AR115: 2.106 | AS115: 2.119666667 | AT115: 0.02454248018 | AU115: 2.472 | AV115: 2.412 | AW115: 2.453 | AX115: 2.445666667 | AY115: 0.03066485502
A116: 303 | B116: 0.074 | C116: 0.073 | D116: 0.074 | E116: 0.07366666667 | F116: 0.0005773502692 | G116: 0.159 | H116: 0.158 | I116: 0.151 | J116: 0.156 | K116: 0.004358898944 | L116: 0.27 | M116: 0.256 | N116: 0.248 | O116: 0.258 | P116: 0.01113552873 | Q116: 0.373 | R116: 0.367 | S116: 0.359 | T116: 0.3663333333 | U116: 0.007023769169 | V116: 0.42 | W116: 0.424 | X116: 0.421 | Y116: 0.4216666667 | Z116: 0.002081665999 | AA116: 0.523 | AB116: 0.52 | AC116: 0.513 | AD116: 0.5186666667 | AE116: 0.005131601439 | AF116: 1.082 | AG116: 1.073 | AH116: 1.076 | AI116: 1.077 | AJ116: 0.004582575695 | AK116: 1.601 | AL116: 1.601 | AM116: 1.579 | AN116: 1.593666667 | AO116: 0.01270170592 | AP116: 2.084 | AQ116: 2.118 | AR116: 2.044 | AS116: 2.082 | AT116: 0.03704051835 | AU116: 2.449 | AV116: 2.404 | AW116: 2.439 | AX116: 2.430666667 | AY116: 0.02362907813
A117: 304 | B117: 0.074 | C117: 0.073 | D117: 0.074 | E117: 0.07366666667 | F117: 0.0005773502692 | G117: 0.158 | H117: 0.158 | I117: 0.15 | J117: 0.1553333333 | K117: 0.004618802154 | L117: 0.269 | M117: 0.253 | N117: 0.245 | O117: 0.2556666667 | P117: 0.01222020185 | Q117: 0.37 | R117: 0.364 | S117: 0.356 | T117: 0.3633333333 | U117: 0.007023769169 | V117: 0.416 | W117: 0.42 | X117: 0.416 | Y117: 0.4173333333 | Z117: 0.002309401077 | AA117: 0.516 | AB117: 0.514 | AC117: 0.507 | AD117: 0.5123333333 | AE117: 0.004725815626 | AF117: 1.069 | AG117: 1.066 | AH117: 1.066 | AI117: 1.067 | AJ117: 0.001732050808 | AK117: 1.597 | AL117: 1.591 | AM117: 1.544 | AN117: 1.577333333 | AO117: 0.0290229794 | AP117: 2.059 | AQ117: 2.047 | AR117: 2.016 | AS117: 2.040666667 | AT117: 0.02218858565 | AU117: 2.384 | AV117: 2.575 | AW117: 2.453 | AX117: 2.470666667 | AY117: 0.09671780257
A118: 305 | B118: 0.073 | C118: 0.072 | D118: 0.073 | E118: 0.07266666667 | F118: 0.0005773502692 | G118: 0.156 | H118: 0.157 | I118: 0.149 | J118: 0.154 | K118: 0.004358898944 | L118: 0.267 | M118: 0.25 | N118: 0.241 | O118: 0.2526666667 | P118: 0.01320353488 | Q118: 0.366 | R118: 0.358 | S118: 0.352 | T118: 0.3586666667 | U118: 0.007023769169 | V118: 0.41 | W118: 0.414 | X118: 0.411 | Y118: 0.4116666667 | Z118: 0.002081665999 | AA118: 0.508 | AB118: 0.508 | AC118: 0.501 | AD118: 0.5056666667 | AE118: 0.004041451884 | AF118: 1.062 | AG118: 1.065 | AH118: 1.054 | AI118: 1.060333333 | AJ118: 0.005686240703 | AK118: 1.58 | AL118: 1.592 | AM118: 1.555 | AN118: 1.575666667 | AO118: 0.01887679351 | AP118: 2.089 | AQ118: 2.041 | AR118: 2.002 | AS118: 2.044 | AT118: 0.04357751714 | AU118: 2.503 | AV118: 2.65 | AW118: 2.516 | AX118: 2.556333333 | AY118: 0.08137772013
A119: 306 | B119: 0.073 | C119: 0.072 | D119: 0.073 | E119: 0.07266666667 | F119: 0.0005773502692 | G119: 0.156 | H119: 0.157 | I119: 0.149 | J119: 0.154 | K119: 0.004358898944 | L119: 0.265 | M119: 0.249 | N119: 0.24 | O119: 0.2513333333 | P119: 0.01266227994 | Q119: 0.364 | R119: 0.355 | S119: 0.35 | T119: 0.3563333333 | U119: 0.007094598885 | V119: 0.406 | W119: 0.408 | X119: 0.407 | Y119: 0.407 | Z119: 0.001 | AA119: 0.505 | AB119: 0.504 | AC119: 0.495 | AD119: 0.5013333333 | AE119: 0.005507570547 | AF119: 1.054 | AG119: 1.049 | AH119: 1.043 | AI119: 1.048666667 | AJ119: 0.005507570547 | AK119: 1.553 | AL119: 1.582 | AM119: 1.554 | AN119: 1.563 | AO119: 0.01646207763 | AP119: 2.104 | AQ119: 2.052 | AR119: 2.041 | AS119: 2.065666667 | AT119: 0.03365016097 | AU119: 2.449 | AV119: 2.571 | AW119: 2.603 | AX119: 2.541 | AY119: 0.08126499862
A120: 307 | B120: 0.073 | C120: 0.073 | D120: 0.074 | E120: 0.07333333333 | F120: 0.0005773502692 | G120: 0.158 | H120: 0.158 | I120: 0.149 | J120: 0.155 | K120: 0.005196152423 | L120: 0.264 | M120: 0.248 | N120: 0.24 | O120: 0.2506666667 | P120: 0.01222020185 | Q120: 0.362 | R120: 0.354 | S120: 0.348 | T120: 0.3546666667 | U120: 0.007023769169 | V120: 0.404 | W120: 0.406 | X120: 0.403 | Y120: 0.4043333333 | Z120: 0.001527525232 | AA120: 0.501 | AB120: 0.5 | AC120: 0.491 | AD120: 0.4973333333 | AE120: 0.005507570547 | AF120: 1.046 | AG120: 1.04 | AH120: 1.036 | AI120: 1.040666667 | AJ120: 0.005033222957 | AK120: 1.543 | AL120: 1.552 | AM120: 1.553 | AN120: 1.549333333 | AO120: 0.005507570547 | AP120: 2.087 | AQ120: 2.093 | AR120: 2.068 | AS120: 2.082666667 | AT120: 0.0130511813 | AU120: 2.487 | AV120: 2.454 | AW120: 2.541 | AX120: 2.494 | AY120: 0.04392038251
A121: 308 | B121: 0.073 | C121: 0.074 | D121: 0.075 | E121: 0.074 | F121: 0.001 | G121: 0.158 | H121: 0.158 | I121: 0.151 | J121: 0.1556666667 | K121: 0.004041451884 | L121: 0.264 | M121: 0.248 | N121: 0.24 | O121: 0.2506666667 | P121: 0.01222020185 | Q121: 0.36 | R121: 0.352 | S121: 0.348 | T121: 0.3533333333 | U121: 0.006110100927 | V121: 0.402 | W121: 0.405 | X121: 0.402 | Y121: 0.403 | Z121: 0.001732050808 | AA121: 0.497 | AB121: 0.496 | AC121: 0.489 | AD121: 0.494 | AE121: 0.004358898944 | AF121: 1.035 | AG121: 1.033 | AH121: 1.035 | AI121: 1.034333333 | AJ121: 0.001154700538 | AK121: 1.544 | AL121: 1.539 | AM121: 1.542 | AN121: 1.541666667 | AO121: 0.002516611478 | AP121: 2.029 | AQ121: 2.096 | AR121: 2.12 | AS121: 2.081666667 | AT121: 0.04716283848 | AU121: 2.388 | AV121: 2.325 | AW121: 2.423 | AX121: 2.378666667 | AY121: 0.04966219219
A122: 309 | B122: 0.074 | C122: 0.074 | D122: 0.076 | E122: 0.07466666667 | F122: 0.001154700538 | G122: 0.159 | H122: 0.157 | I122: 0.151 | J122: 0.1556666667 | K122: 0.004163331999 | L122: 0.263 | M122: 0.248 | N122: 0.24 | O122: 0.2503333333 | P122: 0.01167618659 | Q122: 0.359 | R122: 0.351 | S122: 0.346 | T122: 0.352 | U122: 0.006557438524 | V122: 0.401 | W122: 0.404 | X122: 0.399 | Y122: 0.4013333333 | Z122: 0.002516611478 | AA122: 0.494 | AB122: 0.492 | AC122: 0.484 | AD122: 0.49 | AE122: 0.005291502622 | AF122: 1.025 | AG122: 1.031 | AH122: 1.031 | AI122: 1.029 | AJ122: 0.003464101615 | AK122: 1.539 | AL122: 1.533 | AM122: 1.541 | AN122: 1.537666667 | AO122: 0.004163331999 | AP122: 1.986 | AQ122: 2.063 | AR122: 2.077 | AS122: 2.042 | AT122: 0.049 | AU122: 2.357 | AV122: 2.324 | AW122: 2.452 | AX122: 2.377666667 | AY122: 0.06645549889
A123: 310 | B123: 0.075 | C123: 0.074 | D123: 0.076 | E123: 0.075 | F123: 0.001 | G123: 0.159 | H123: 0.157 | I123: 0.151 | J123: 0.1556666667 | K123: 0.004163331999 | L123: 0.261 | M123: 0.247 | N123: 0.239 | O123: 0.249 | P123: 0.01113552873 | Q123: 0.357 | R123: 0.348 | S123: 0.343 | T123: 0.3493333333 | U123: 0.007094598885 | V123: 0.398 | W123: 0.4 | X123: 0.396 | Y123: 0.398 | Z123: 0.002 | AA123: 0.489 | AB123: 0.489 | AC123: 0.48 | AD123: 0.486 | AE123: 0.005196152423 | AF123: 1.014 | AG123: 1.029 | AH123: 1.023 | AI123: 1.022 | AJ123: 0.007549834435 | AK123: 1.532 | AL123: 1.543 | AM123: 1.539 | AN123: 1.538 | AO123: 0.005567764363 | AP123: 2.003 | AQ123: 2.042 | AR123: 2.026 | AS123: 2.023666667 | AT123: 0.01960442127 | AU123: 2.385 | AV123: 2.309 | AW123: 2.498 | AX123: 2.397333333 | AY123: 0.09510169995
A124: 311 | B124: 0.076 | C124: 0.075 | D124: 0.077 | E124: 0.076 | F124: 0.001 | G124: 0.159 | H124: 0.157 | I124: 0.151 | J124: 0.1556666667 | K124: 0.004163331999 | L124: 0.26 | M124: 0.245 | N124: 0.238 | O124: 0.2476666667 | P124: 0.0112398102 | Q124: 0.355 | R124: 0.347 | S124: 0.341 | T124: 0.3476666667 | U124: 0.007023769169 | V124: 0.395 | W124: 0.396 | X124: 0.393 | Y124: 0.3946666667 | Z124: 0.001527525232 | AA124: 0.484 | AB124: 0.484 | AC124: 0.475 | AD124: 0.481 | AE124: 0.005196152423 | AF124: 1.008 | AG124: 1.017 | AH124: 1.012 | AI124: 1.012333333 | AJ124: 0.004509249753 | AK124: 1.506 | AL124: 1.535 | AM124: 1.521 | AN124: 1.520666667 | AO124: 0.01450287328 | AP124: 2.024 | AQ124: 2.015 | AR124: 1.975 | AS124: 2.004666667 | AT124: 0.02608320021 | AU124: 2.395 | AV124: 2.396 | AW124: 2.507 | AX124: 2.432666667 | AY124: 0.06437649675
A125: 312 | B125: 0.076 | C125: 0.076 | D125: 0.077 | E125: 0.07633333333 | F125: 0.0005773502692 | G125: 0.16 | H125: 0.158 | I125: 0.151 | J125: 0.1563333333 | K125: 0.004725815626 | L125: 0.26 | M125: 0.245 | N125: 0.237 | O125: 0.2473333333 | P125: 0.01167618659 | Q125: 0.354 | R125: 0.346 | S125: 0.339 | T125: 0.3463333333 | U125: 0.007505553499 | V125: 0.392 | W125: 0.393 | X125: 0.39 | Y125: 0.3916666667 | Z125: 0.001527525232 | AA125: 0.479 | AB125: 0.48 | AC125: 0.472 | AD125: 0.477 | AE125: 0.004358898944 | AF125: 1.002 | AG125: 1.003 | AH125: 1.007 | AI125: 1.004 | AJ125: 0.002645751311 | AK125: 1.488 | AL125: 1.505 | AM125: 1.497 | AN125: 1.496666667 | AO125: 0.008504900548 | AP125: 2.052 | AQ125: 1.979 | AR125: 1.987 | AS125: 2.006 | AT125: 0.04003748244 | AU125: 2.363 | AV125: 2.388 | AW125: 2.444 | AX125: 2.398333333 | AY125: 0.0414769012
A126: 313 | B126: 0.076 | C126: 0.077 | D126: 0.077 | E126: 0.07666666667 | F126: 0.0005773502692 | G126: 0.16 | H126: 0.159 | I126: 0.151 | J126: 0.1566666667 | K126: 0.004932882862 | L126: 0.26 | M126: 0.243 | N126: 0.235 | O126: 0.246 | P126: 0.01276714533 | Q126: 0.352 | R126: 0.344 | S126: 0.337 | T126: 0.3443333333 | U126: 0.007505553499 | V126: 0.39 | W126: 0.39 | X126: 0.386 | Y126: 0.3886666667 | Z126: 0.002309401077 | AA126: 0.476 | AB126: 0.476 | AC126: 0.468 | AD126: 0.4733333333 | AE126: 0.004618802154 | AF126: 0.999 | AG126: 0.992 | AH126: 1.002 | AI126: 0.9976666667 | AJ126: 0.005131601439 | AK126: 1.481 | AL126: 1.48 | AM126: 1.487 | AN126: 1.482666667 | AO126: 0.003785938897 | AP126: 2.009 | AQ126: 1.993 | AR126: 2.027 | AS126: 2.009666667 | AT126: 0.0170098011 | AU126: 2.302 | AV126: 2.456 | AW126: 2.356 | AX126: 2.371333333 | AY126: 0.07813663247
A127: 314 | B127: 0.074 | C127: 0.074 | D127: 0.075 | E127: 0.07433333333 | F127: 0.0005773502692 | G127: 0.158 | H127: 0.158 | I127: 0.15 | J127: 0.1553333333 | K127: 0.004618802154 | L127: 0.258 | M127: 0.241 | N127: 0.233 | O127: 0.244 | P127: 0.01276714533 | Q127: 0.348 | R127: 0.34 | S127: 0.333 | T127: 0.3403333333 | U127: 0.007505553499 | V127: 0.385 | W127: 0.385 | X127: 0.382 | Y127: 0.384 | Z127: 0.001732050808 | AA127: 0.471 | AB127: 0.47 | AC127: 0.461 | AD127: 0.4673333333 | AE127: 0.005507570547 | AF127: 0.994 | AG127: 0.988 | AH127: 0.996 | AI127: 0.9926666667 | AJ127: 0.004163331999 | AK127: 1.468 | AL127: 1.468 | AM127: 1.476 | AN127: 1.470666667 | AO127: 0.004618802154 | AP127: 1.973 | AQ127: 2.019 | AR127: 1.998 | AS127: 1.996666667 | AT127: 0.02302896727 | AU127: 2.22 | AV127: 2.448 | AW127: 2.407 | AX127: 2.358333333 | AY127: 0.1215414881
A128: 315 | B128: 0.075 | C128: 0.074 | D128: 0.075 | E128: 0.07466666667 | F128: 0.0005773502692 | G128: 0.158 | H128: 0.157 | I128: 0.15 | J128: 0.155 | K128: 0.004358898944 | L128: 0.257 | M128: 0.241 | N128: 0.232 | O128: 0.2433333333 | P128: 0.01266227994 | Q128: 0.347 | R128: 0.338 | S128: 0.331 | T128: 0.3386666667 | U128: 0.008020806277 | V128: 0.382 | W128: 0.383 | X128: 0.379 | Y128: 0.3813333333 | Z128: 0.002081665999 | AA128: 0.467 | AB128: 0.464 | AC128: 0.457 | AD128: 0.4626666667 | AE128: 0.005131601439 | AF128: 0.981 | AG128: 0.98 | AH128: 0.984 | AI128: 0.9816666667 | AJ128: 0.002081665999 | AK128: 1.459 | AL128: 1.461 | AM128: 1.465 | AN128: 1.461666667 | AO128: 0.003055050463 | AP128: 1.983 | AQ128: 1.998 | AR128: 1.94 | AS128: 1.973666667 | AT128: 0.03010537051 | AU128: 2.355 | AV128: 2.433 | AW128: 2.362 | AX128: 2.383333333 | AY128: 0.04315476026
A129: 316 | B129: 0.073 | C129: 0.073 | D129: 0.075 | E129: 0.07366666667 | F129: 0.001154700538 | G129: 0.156 | H129: 0.155 | I129: 0.147 | J129: 0.1526666667 | K129: 0.004932882862 | L129: 0.254 | M129: 0.239 | N129: 0.23 | O129: 0.241 | P129: 0.01212435565 | Q129: 0.343 | R129: 0.335 | S129: 0.328 | T129: 0.3353333333 | U129: 0.007505553499 | V129: 0.377 | W129: 0.38 | X129: 0.376 | Y129: 0.3776666667 | Z129: 0.002081665999 | AA129: 0.463 | AB129: 0.459 | AC129: 0.453 | AD129: 0.4583333333 | AE129: 0.005033222957 | AF129: 0.974 | AG129: 0.973 | AH129: 0.969 | AI129: 0.972 | AJ129: 0.002645751311 | AK129: 1.459 | AL129: 1.456 | AM129: 1.464 | AN129: 1.459666667 | AO129: 0.004041451884 | AP129: 2.008 | AQ129: 1.949 | AR129: 1.894 | AS129: 1.950333333 | AT129: 0.05701169471 | AU129: 2.568 | AV129: 2.413 | AW129: 2.294 | AX129: 2.425 | AY129: 0.1373935952
A130: 317 | B130: 0.073 | C130: 0.074 | D130: 0.075 | E130: 0.074 | F130: 0.001 | G130: 0.155 | H130: 0.154 | I130: 0.147 | J130: 0.152 | K130: 0.004358898944 | L130: 0.251 | M130: 0.237 | N130: 0.229 | O130: 0.239 | P130: 0.01113552873 | Q130: 0.34 | R130: 0.333 | S130: 0.326 | T130: 0.333 | U130: 0.007 | V130: 0.374 | W130: 0.377 | X130: 0.373 | Y130: 0.3746666667 | Z130: 0.002081665999 | AA130: 0.46 | AB130: 0.456 | AC130: 0.45 | AD130: 0.4553333333 | AE130: 0.005033222957 | AF130: 0.968 | AG130: 0.964 | AH130: 0.959 | AI130: 0.9636666667 | AJ130: 0.004509249753 | AK130: 1.453 | AL130: 1.449 | AM130: 1.446 | AN130: 1.449333333 | AO130: 0.003511884584 | AP130: 2.016 | AQ130: 1.928 | AR130: 1.909 | AS130: 1.951 | AT130: 0.0570876519 | AU130: 2.632 | AV130: 2.283 | AW130: 2.283 | AX130: 2.399333333 | AY130: 0.2014952439
A131: 318 | B131: 0.072 | C131: 0.073 | D131: 0.073 | E131: 0.07266666667 | F131: 0.0005773502692 | G131: 0.153 | H131: 0.153 | I131: 0.146 | J131: 0.1506666667 | K131: 0.004041451884 | L131: 0.248 | M131: 0.233 | N131: 0.227 | O131: 0.236 | P131: 0.01081665383 | Q131: 0.336 | R131: 0.33 | S131: 0.323 | T131: 0.3296666667 | U131: 0.006506407099 | V131: 0.371 | W131: 0.372 | X131: 0.368 | Y131: 0.3703333333 | Z131: 0.002081665999 | AA131: 0.457 | AB131: 0.454 | AC131: 0.447 | AD131: 0.4526666667 | AE131: 0.005131601439 | AF131: 0.966 | AG131: 0.962 | AH131: 0.954 | AI131: 0.9606666667 | AJ131: 0.006110100927 | AK131: 1.447 | AL131: 1.429 | AM131: 1.433 | AN131: 1.436333333 | AO131: 0.009451631253 | AP131: 1.964 | AQ131: 1.93 | AR131: 1.936 | AS131: 1.943333333 | AT131: 0.01814754345 | AU131: 2.551 | AV131: 2.225 | AW131: 2.263 | AX131: 2.346333333 | AY131: 0.1782619795
A132: 319 | B132: 0.069 | C132: 0.07 | D132: 0.069 | E132: =AVERAGE(B132:D132) -> 0.06933333333 | F132: =STDEV(B132:D132) -> 0.0005773502692 | G132: 0.15 | H132: 0.15 | I132: 0.144 | J132: =AVERAGE(G132:I132) -> 0.148 | K132: =STDEV(G132:I132) -> 0.003464101615 | L132: 0.244 | M132: 0.229 | N132: 0.222 | O132: =AVERAGE(L132:N132) -> 0.2316666667 | P132: =STDEV(L132:N132) -> 0.0112398102 | Q132: 0.332 | R132: 0.324 | S132: 0.318 | T132: =AVERAGE(Q132:S132) -> 0.3246666667 | U132: =STDEV(Q132:S132) -> 0.007023769169 | V132: 0.365 | W132: 0.366 | X132: 0.363 | Y132: =AVERAGE(V132:X132) -> 0.3646666667 | Z132: =STDEV(V132:X132) -> 0.001527525232 | AA132: 0.451 | AB132: 0.448 | AC132: 0.44 | AD132: =AVERAGE(AA132:AC132) -> 0.4463333333 | AE132: =STDEV(AA132:AC132) -> 0.005686240703 | AF132: 0.959 | AG132: 0.959 | AH132: 0.948 | AI132: =AVERAGE(AF132:AH132) -> 0.9553333333 | AJ132: =STDEV(AF132:AH132) -> 0.006350852961 | AK132: 1.428 | AL132: 1.414 | AM132: 1.421 | AN132: =AVERAGE(AK132:AM132) -> 1.421 | AO132: =STDEV(AK132:AM132) -> 0.007 | AP132: 1.921 | AQ132: 1.936 | AR132: 1.932 | AS132: =AVERAGE(AP132:AR132) -> 1.929666667 | AT132: =STDEV(AP132:AR132) -> 0.007767453465 | AU132: 2.338 | AV132: 2.225 | AW132: 2.319 | AX132: =AVERAGE(AU132:AW132) -> 2.294 | AY132: =STDEV(AU132:AW132) -> 0.06050619803
A133: 320 | B133: 0.068 | C133: 0.069 | D133: 0.068 | E133: 0.06833333333 | F133: 0.0005773502692 | G133: 0.148 | H133: 0.148 | I133: 0.142 | J133: 0.146 | K133: 0.003464101615 | L133: 0.243 | M133: 0.228 | N133: 0.22 | O133: 0.2303333333 | P133: 0.01167618659 | Q133: 0.329 | R133: 0.321 | S133: 0.316 | T133: 0.322 | U133: 0.006557438524 | V133: 0.362 | W133: 0.363 | X133: 0.359 | Y133: 0.3613333333 | Z133: 0.002081665999 | AA133: 0.445 | AB133: 0.443 | AC133: 0.435 | AD133: 0.441 | AE133: 0.005291502622 | AF133: 0.946 | AG133: 0.946 | AH133: 0.943 | AI133: 0.945 | AJ133: 0.001732050808 | AK133: 1.41 | AL133: 1.402 | AM133: 1.405 | AN133: 1.405666667 | AO133: 0.004041451884 | AP133: 1.887 | AQ133: 1.919 | AR133: 1.892 | AS133: 1.899333333 | AT133: 0.01721433511 | AU133: 2.283 | AV133: 2.315 | AW133: 2.278 | AX133: 2.292 | AY133: 0.0200748599
A134: 321 | B134: 0.067 | C134: 0.067 | D134: 0.067 | E134: 0.067 | F134: 0 | G134: 0.146 | H134: 0.146 | I134: 0.14 | J134: 0.144 | K134: 0.003464101615 | L134: 0.241 | M134: 0.226 | N134: 0.218 | O134: 0.2283333333 | P134: 0.01167618659 | Q134: 0.324 | R134: 0.316 | S134: 0.312 | T134: 0.3173333333 | U134: 0.006110100927 | V134: 0.357 | W134: 0.359 | X134: 0.356 | Y134: 0.3573333333 | Z134: 0.001527525232 | AA134: 0.44 | AB134: 0.439 | AC134: 0.43 | AD134: 0.4363333333 | AE134: 0.005507570547 | AF134: 0.935 | AG134: 0.937 | AH134: 0.932 | AI134: 0.9346666667 | AJ134: 0.002516611478 | AK134: 1.406 | AL134: 1.401 | AM134: 1.399 | AN134: 1.402 | AO134: 0.003605551275 | AP134: 1.861 | AQ134: 1.921 | AR134: 1.877 | AS134: 1.886333333 | AT134: 0.03106981386 | AU134: 2.245 | AV134: 2.386 | AW134: 2.195 | AX134: 2.275333333 | AY134: 0.09904712683
A135: 322 | B135: 0.066 | C135: 0.067 | D135: 0.066 | E135: 0.06633333333 | F135: 0.0005773502692 | G135: 0.145 | H135: 0.145 | I135: 0.139 | J135: 0.143 | K135: 0.003464101615 | L135: 0.239 | M135: 0.223 | N135: 0.216 | O135: 0.226 | P135: 0.01178982612 | Q135: 0.321 | R135: 0.314 | S135: 0.309 | T135: 0.3146666667 | U135: 0.006027713773 | V135: 0.353 | W135: 0.356 | X135: 0.351 | Y135: 0.3533333333 | Z135: 0.002516611478 | AA135: 0.435 | AB135: 0.436 | AC135: 0.426 | AD135: 0.4323333333 | AE135: 0.005507570547 | AF135: 0.926 | AG135: 0.925 | AH135: 0.923 | AI135: 0.9246666667 | AJ135: 0.001527525232 | AK135: 1.399 | AL135: 1.399 | AM135: 1.388 | AN135: 1.395333333 | AO135: 0.006350852961 | AP135: 1.866 | AQ135: 1.909 | AR135: 1.899 | AS135: 1.891333333 | AT135: 0.02250185178 | AU135: 2.218 | AV135: 2.389 | AW135: 2.194 | AX135: 2.267 | AY135: 0.1063343783
A136: 323 | B136: 0.065 | C136: 0.066 | D136: 0.066 | E136: 0.06566666667 | F136: 0.0005773502692 | G136: 0.145 | H136: 0.145 | I136: 0.138 | J136: 0.1426666667 | K136: 0.004041451884 | L136: 0.237 | M136: 0.222 | N136: 0.215 | O136: 0.2246666667 | P136: 0.0112398102 | Q136: 0.318 | R136: 0.311 | S136: 0.306 | T136: 0.3116666667 | U136: 0.006027713773 | V136: 0.35 | W136: 0.353 | X136: 0.349 | Y136: 0.3506666667 | Z136: 0.002081665999 | AA136: 0.432 | AB136: 0.432 | AC136: 0.423 | AD136: 0.429 | AE136: 0.005196152423 | AF136: 0.922 | AG136: 0.919 | AH136: 0.918 | AI136: 0.9196666667 | AJ136: 0.002081665999 | AK136: 1.389 | AL136: 1.389 | AM136: 1.383 | AN136: 1.387 | AO136: 0.003464101615 | AP136: 1.89 | AQ136: 1.885 | AR136: 1.894 | AS136: 1.889666667 | AT136: 0.004509249753 | AU136: 2.189 | AV136: 2.305 | AW136: 2.234 | AX136: 2.242666667 | AY136: 0.05848361594
A137: 324 | B137: 0.064 | C137: 0.066 | D137: 0.066 | E137: 0.06533333333 | F137: 0.001154700538 | G137: 0.144 | H137: 0.143 | I137: 0.137 | J137: 0.1413333333 | K137: 0.003785938897 | L137: 0.235 | M137: 0.22 | N137: 0.213 | O137: 0.2226666667 | P137: 0.0112398102 | Q137: 0.317 | R137: 0.309 | S137: 0.303 | T137: 0.3096666667 | U137: 0.007023769169 | V137: 0.347 | W137: 0.35 | X137: 0.346 | Y137: 0.3476666667 | Z137: 0.002081665999 | AA137: 0.429 | AB137: 0.427 | AC137: 0.419 | AD137: 0.425 | AE137: 0.005291502622 | AF137: 0.916 | AG137: 0.914 | AH137: 0.914 | AI137: 0.9146666667 | AJ137: 0.001154700538 | AK137: 1.373 | AL137: 1.379 | AM137: 1.372 | AN137: 1.374666667 | AO137: 0.003785938897 | AP137: 1.901 | AQ137: 1.843 | AR137: 1.868 | AS137: 1.870666667 | AT137: 0.0290918087 | AU137: 2.231 | AV137: 2.259 | AW137: 2.283 | AX137: 2.257666667 | AY137: 0.02602562839
A138: 325 | B138: 0.064 | C138: 0.065 | D138: 0.066 | E138: 0.065 | F138: 0.001 | G138: 0.143 | H138: 0.142 | I138: 0.136 | J138: 0.1403333333 | K138: 0.003785938897 | L138: 0.234 | M138: 0.219 | N138: 0.212 | O138: 0.2216666667 | P138: 0.0112398102 | Q138: 0.315 | R138: 0.307 | S138: 0.302 | T138: 0.308 | U138: 0.006557438524 | V138: 0.345 | W138: 0.347 | X138: 0.343 | Y138: 0.345 | Z138: 0.002 | AA138: 0.425 | AB138: 0.423 | AC138: 0.416 | AD138: 0.4213333333 | AE138: 0.004725815626 | AF138: 0.913 | AG138: 0.908 | AH138: 0.909 | AI138: 0.91 | AJ138: 0.002645751311 | AK138: 1.364 | AL138: 1.358 | AM138: 1.36 | AN138: 1.360666667 | AO138: 0.003055050463 | AP138: 1.894 | AQ138: 1.815 | AR138: 1.858 | AS138: 1.855666667 | AT138: 0.03955165399 | AU138: 2.279 | AV138: 2.221 | AW138: 2.278 | AX138: 2.259333333 | AY138: 0.03320140559
A139: 326 | B139: 0.064 | C139: 0.065 | D139: 0.066 | E139: 0.065 | F139: 0.001 | G139: 0.143 | H139: 0.142 | I139: 0.135 | J139: 0.14 | K139: 0.004358898944 | L139: 0.231 | M139: 0.217 | N139: 0.21 | O139: 0.2193333333 | P139: 0.01069267662 | Q139: 0.312 | R139: 0.303 | S139: 0.299 | T139: 0.3046666667 | U139: 0.006658328118 | V139: 0.342 | W139: 0.343 | X139: 0.339 | Y139: 0.3413333333 | Z139: 0.002081665999 | AA139: 0.42 | AB139: 0.417 | AC139: 0.411 | AD139: 0.416 | AE139: 0.004582575695 | AF139: 0.904 | AG139: 0.901 | AH139: 0.899 | AI139: 0.9013333333 | AJ139: 0.002516611478 | AK139: 1.353 | AL139: 1.35 | AM139: 1.353 | AN139: 1.352 | AO139: 0.001732050808 | AP139: 1.886 | AQ139: 1.814 | AR139: 1.855 | AS139: 1.851666667 | AT139: 0.03611555528 | AU139: 2.35 | AV139: 2.263 | AW139: 2.233 | AX139: 2.282 | AY139: 0.06077005842
A140: 327 | B140: 0.065 | C140: 0.065 | D140: 0.065 | E140: 0.065 | F140: 0 | G140: 0.143 | H140: 0.142 | I140: 0.135 | J140: 0.14 | K140: 0.004358898944 | L140: 0.23 | M140: 0.216 | N140: 0.209 | O140: 0.2183333333 | P140: 0.01069267662 | Q140: 0.309 | R140: 0.302 | S140: 0.297 | T140: 0.3026666667 | U140: 0.006027713773 | V140: 0.339 | W140: 0.34 | X140: 0.336 | Y140: 0.3383333333 | Z140: 0.002081665999 | AA140: 0.415 | AB140: 0.414 | AC140: 0.407 | AD140: 0.412 | AE140: 0.004358898944 | AF140: 0.893 | AG140: 0.89 | AH140: 0.889 | AI140: 0.8906666667 | AJ140: 0.002081665999 | AK140: 1.343 | AL140: 1.343 | AM140: 1.336 | AN140: 1.340666667 | AO140: 0.004041451884 | AP140: 1.847 | AQ140: 1.82 | AR140: 1.864 | AS140: 1.843666667 | AT140: 0.02218858565 | AU140: 2.354 | AV140: 2.243 | AW140: 2.242 | AX140: 2.279666667 | AY140: 0.06437649675
A141: 328 | B141: 0.065 | C141: 0.065 | D141: 0.065 | E141: 0.065 | F141: 0 | G141: 0.141 | H141: 0.141 | I141: 0.134 | J141: 0.1386666667 | K141: 0.004041451884 | L141: 0.228 | M141: 0.214 | N141: 0.207 | O141: 0.2163333333 | P141: 0.01069267662 | Q141: 0.306 | R141: 0.299 | S141: 0.294 | T141: 0.2996666667 | U141: 0.006027713773 | V141: 0.336 | W141: 0.337 | X141: 0.332 | Y141: 0.335 | Z141: 0.002645751311 | AA141: 0.41 | AB141: 0.409 | AC141: 0.403 | AD141: 0.4073333333 | AE141: 0.003785938897 | AF141: 0.882 | AG141: 0.878 | AH141: 0.88 | AI141: 0.88 | AJ141: 0.002 | AK141: 1.33 | AL141: 1.336 | AM141: 1.318 | AN141: 1.328 | AO141: 0.00916515139 | AP141: 1.8 | AQ141: 1.819 | AR141: 1.827 | AS141: 1.815333333 | AT141: 0.01386842938 | AU141: 2.304 | AV141: 2.209 | AW141: 2.233 | AX141: 2.248666667 | AY141: 0.04939973009
A142: 329 | B142: 0.064 | C142: 0.064 | D142: 0.065 | E142: 0.06433333333 | F142: 0.0005773502692 | G142: 0.14 | H142: 0.139 | I142: 0.133 | J142: 0.1373333333 | K142: 0.003785938897 | L142: 0.226 | M142: 0.213 | N142: 0.205 | O142: 0.2146666667 | P142: 0.01059874206 | Q142: 0.304 | R142: 0.296 | S142: 0.29 | T142: 0.2966666667 | U142: 0.007023769169 | V142: 0.332 | W142: 0.333 | X142: 0.329 | Y142: 0.3313333333 | Z142: 0.002081665999 | AA142: 0.407 | AB142: 0.405 | AC142: 0.399 | AD142: 0.4036666667 | AE142: 0.004163331999 | AF142: 0.871 | AG142: 0.868 | AH142: 0.874 | AI142: 0.871 | AJ142: 0.003 | AK142: 1.316 | AL142: 1.316 | AM142: 1.306 | AN142: 1.312666667 | AO142: 0.005773502692 | AP142: 1.772 | AQ142: 1.781 | AR142: 1.796 | AS142: 1.783 | AT142: 0.01212435565 | AU142: 2.241 | AV142: 2.207 | AW142: 2.188 | AX142: 2.212 | AY142: 0.02685144316
A143: 330 | B143: 0.062 | C143: 0.062 | D143: 0.063 | E143: 0.06233333333 | F143: 0.0005773502692 | G143: 0.138 | H143: 0.137 | I143: 0.13 | J143: 0.135 | K143: 0.004358898944 | L143: 0.224 | M143: 0.209 | N143: 0.202 | O143: 0.2116666667 | P143: 0.0112398102 | Q143: 0.301 | R143: 0.293 | S143: 0.289 | T143: 0.2943333333 | U143: 0.006110100927 | V143: 0.328 | W143: 0.33 | X143: 0.326 | Y143: 0.328 | Z143: 0.002 | AA143: 0.402 | AB143: 0.4 | AC143: 0.393 | AD143: 0.3983333333 | AE143: 0.004725815626 | AF143: 0.865 | AG143: 0.861 | AH143: 0.867 | AI143: 0.8643333333 | AJ143: 0.003055050463 | AK143: 1.302 | AL143: 1.298 | AM143: 1.304 | AN143: 1.301333333 | AO143: 0.003055050463 | AP143: 1.756 | AQ143: 1.776 | AR143: 1.785 | AS143: 1.772333333 | AT143: 0.01484362939 | AU143: 2.202 | AV143: 2.223 | AW143: 2.188 | AX143: 2.204333333 | AY143: 0.01761628035
A144: 331 | B144: 0.059 | C144: 0.06 | D144: 0.061 | E144: 0.06 | F144: 0.001 | G144: 0.136 | H144: 0.136 | I144: 0.128 | J144: 0.1333333333 | K144: 0.004618802154 | L144: 0.222 | M144: 0.206 | N144: 0.2 | O144: 0.2093333333 | P144: 0.01137248141 | Q144: 0.297 | R144: 0.289 | S144: 0.286 | T144: 0.2906666667 | U144: 0.005686240703 | V144: 0.324 | W144: 0.326 | X144: 0.323 | Y144: 0.3243333333 | Z144: 0.001527525232 | AA144: 0.398 | AB144: 0.395 | AC144: 0.389 | AD144: 0.394 | AE144: 0.004582575695 | AF144: 0.859 | AG144: 0.857 | AH144: 0.859 | AI144: 0.8583333333 | AJ144: 0.001154700538 | AK144: 1.284 | AL144: 1.288 | AM144: 1.301 | AN144: 1.291 | AO144: 0.008888194417 | AP144: 1.754 | AQ144: 1.776 | AR144: 1.785 | AS144: 1.771666667 | AT144: 0.01594783162 | AU144: 2.212 | AV144: 2.292 | AW144: 2.165 | AX144: 2.223 | AY144: 0.06421059103
A145: 332 | B145: 0.059 | C145: 0.059 | D145: 0.06 | E145: 0.05933333333 | F145: 0.0005773502692 | G145: 0.135 | H145: 0.134 | I145: 0.128 | J145: 0.1323333333 | K145: 0.003785938897 | L145: 0.219 | M145: 0.204 | N145: 0.198 | O145: 0.207 | P145: 0.01081665383 | Q145: 0.294 | R145: 0.287 | S145: 0.283 | T145: 0.288 | U145: 0.005567764363 | V145: 0.32 | W145: 0.323 | X145: 0.319 | Y145: 0.3206666667 | Z145: 0.002081665999 | AA145: 0.395 | AB145: 0.394 | AC145: 0.385 | AD145: 0.3913333333 | AE145: 0.005507570547 | AF145: 0.853 | AG145: 0.855 | AH145: 0.849 | AI145: 0.8523333333 | AJ145: 0.003055050463 | AK145: 1.275 | AL145: 1.284 | AM145: 1.285 | AN145: 1.281333333 | AO145: 0.005507570547 | AP145: 1.76 | AQ145: 1.786 | AR145: 1.782 | AS145: 1.776 | AT145: 0.014 | AU145: 2.199 | AV145: 2.314 | AW145: 2.228 | AX145: 2.247 | AY145: 0.05980802622
A146: 333 | B146: 0.057 | C146: 0.057 | D146: 0.057 | E146: 0.057 | F146: 0 | G146: 0.132 | H146: 0.132 | I146: 0.125 | J146: 0.1296666667 | K146: 0.004041451884 | L146: 0.216 | M146: 0.201 | N146: 0.194 | O146: 0.2036666667 | P146: 0.0112398102 | Q146: 0.291 | R146: 0.283 | S146: 0.278 | T146: 0.284 | U146: 0.006557438524 | V146: 0.316 | W146: 0.318 | X146: 0.314 | Y146: 0.316 | Z146: 0.002 | AA146: 0.391 | AB146: 0.39 | AC146: 0.381 | AD146: 0.3873333333 | AE146: 0.005507570547 | AF146: 0.846 | AG146: 0.847 | AH146: 0.839 | AI146: 0.844 | AJ146: 0.004358898944 | AK146: 1.269 | AL146: 1.271 | AM146: 1.269 | AN146: 1.269666667 | AO146: 0.001154700538 | AP146: 1.748 | AQ146: 1.765 | AR146: 1.78 | AS146: 1.764333333 | AT146: 0.01601041328 | AU146: 2.209 | AV146: 2.32 | AW146: 2.229 | AX146: 2.252666667 | AY146: 0.05916361494
A147: 334 | B147: 0.055 | C147: 0.056 | D147: 0.055 | E147: 0.05533333333 | F147: 0.0005773502692 | G147: 0.131 | H147: 0.13 | I147: 0.122 | J147: 0.1276666667 | K147: 0.004932882862 | L147: 0.213 | M147: 0.198 | N147: 0.191 | O147: 0.2006666667 | P147: 0.0112398102 | Q147: 0.287 | R147: 0.278 | S147: 0.274 | T147: 0.2796666667 | U147: 0.006658328118 | V147: 0.311 | W147: 0.314 | X147: 0.309 | Y147: 0.3113333333 | Z147: 0.002516611478 | AA147: 0.387 | AB147: 0.385 | AC147: 0.378 | AD147: 0.3833333333 | AE147: 0.004725815626 | AF147: 0.838 | AG147: 0.838 | AH147: 0.832 | AI147: 0.836 | AJ147: 0.003464101615 | AK147: 1.267 | AL147: 1.255 | AM147: 1.261 | AN147: 1.261 | AO147: 0.006 | AP147: 1.732 | AQ147: 1.738 | AR147: 1.775 | AS147: 1.748333333 | AT147: 0.0232880513 | AU147: 2.17 | AV147: 2.23 | AW147: 2.209 | AX147: 2.203 | AY147: 0.0304466747
A148: 335 | B148: 0.053 | C148: 0.053 | D148: 0.053 | E148: 0.053 | F148: 0 | G148: 0.129 | H148: 0.127 | I148: 0.12 | J148: 0.1253333333 | K148: 0.004725815626 | L148: 0.21 | M148: 0.196 | N148: 0.187 | O148: 0.1976666667 | P148: 0.01159022577 | Q148: 0.283 | R148: 0.275 | S148: 0.27 | T148: 0.276 | U148: 0.006557438524 | V148: 0.306 | W148: 0.308 | X148: 0.305 | Y148: 0.3063333333 | Z148: 0.001527525232 | AA148: 0.381 | AB148: 0.38 | AC148: 0.374 | AD148: 0.3783333333 | AE148: 0.003785938897 | AF148: 0.832 | AG148: 0.829 | AH148: 0.826 | AI148: 0.829 | AJ148: 0.003 | AK148: 1.253 | AL148: 1.244 | AM148: 1.256 | AN148: 1.251 | AO148: 0.006244997998 | AP148: 1.717 | AQ148: 1.723 | AR148: 1.752 | AS148: 1.730666667 | AT148: 0.01871719352 | AU148: 2.143 | AV148: 2.18 | AW148: 2.169 | AX148: 2.164 | AY148: 0.019
A149: 336 | B149: 0.052 | C149: 0.053 | D149: 0.053 | E149: 0.05266666667 | F149: 0.0005773502692 | G149: 0.128 | H149: 0.126 | I149: 0.119 | J149: 0.1243333333 | K149: 0.004725815626 | L149: 0.209 | M149: 0.195 | N149: 0.187 | O149: 0.197 | P149: 0.01113552873 | Q149: 0.28 | R149: 0.273 | S149: 0.267 | T149: 0.2733333333 | U149: 0.006506407099 | V149: 0.304 | W149: 0.306 | X149: 0.302 | Y149: 0.304 | Z149: 0.002 | AA149: 0.376 | AB149: 0.376 | AC149: 0.371 | AD149: 0.3743333333 | AE149: 0.002886751346 | AF149: 0.825 | AG149: 0.82 | AH149: 0.818 | AI149: 0.821 | AJ149: 0.003605551275 | AK149: 1.235 | AL149: 1.235 | AM149: 1.244 | AN149: 1.238 | AO149: 0.005196152423 | AP149: 1.703 | AQ149: 1.732 | AR149: 1.722 | AS149: 1.719 | AT149: 0.01473091986 | AU149: 2.178 | AV149: 2.13 | AW149: 2.12 | AX149: 2.142666667 | AY149: 0.03100537588
A150: 337 | B150: 0.052 | C150: 0.052 | D150: 0.053 | E150: 0.05233333333 | F150: 0.0005773502692 | G150: 0.127 | H150: 0.126 | I150: 0.119 | J150: 0.124 | K150: 0.004358898944 | L150: 0.207 | M150: 0.194 | N150: 0.186 | O150: 0.1956666667 | P150: 0.01059874206 | Q150: 0.278 | R150: 0.271 | S150: 0.266 | T150: 0.2716666667 | U150: 0.006027713773 | V150: 0.301 | W150: 0.304 | X150: 0.299 | Y150: 0.3013333333 | Z150: 0.002516611478 | AA150: 0.373 | AB150: 0.374 | AC150: 0.368 | AD150: 0.3716666667 | AE150: 0.003214550254 | AF150: 0.818 | AG150: 0.814 | AH150: 0.812 | AI150: 0.8146666667 | AJ150: 0.003055050463 | AK150: 1.229 | AL150: 1.227 | AM150: 1.231 | AN150: 1.229 | AO150: 0.002 | AP150: 1.712 | AQ150: 1.727 | AR150: 1.701 | AS150: 1.713333333 | AT150: 0.0130511813 | AU150: 2.153 | AV150: 2.13 | AW150: 2.154 | AX150: 2.145666667 | AY150: 0.01357694124
A151: 338 | B151: 0.051 | C151: 0.051 | D151: 0.052 | E151: 0.05133333333 | F151: 0.0005773502692 | G151: 0.126 | H151: 0.125 | I151: 0.118 | J151: 0.123 | K151: 0.004358898944 | L151: 0.205 | M151: 0.19 | N151: 0.184 | O151: 0.193 | P151: 0.01081665383 | Q151: 0.275 | R151: 0.268 | S151: 0.264 | T151: 0.269 | U151: 0.005567764363 | V151: 0.298 | W151: 0.301 | X151: 0.297 | Y151: 0.2986666667 | Z151: 0.002081665999 | AA151: 0.37 | AB151: 0.371 | AC151: 0.364 | AD151: 0.3683333333 | AE151: 0.003785938897 | AF151: 0.81 | AG151: 0.809 | AH151: 0.805 | AI151: 0.808 | AJ151: 0.002645751311 | AK151: 1.222 | AL151: 1.219 | AM151: 1.224 | AN151: 1.221666667 | AO151: 0.002516611478 | AP151: 1.712 | AQ151: 1.692 | AR151: 1.7 | AS151: 1.701333333 | AT151: 0.01006644591 | AU151: 2.164 | AV151: 2.148 | AW151: 2.163 | AX151: 2.158333333 | AY151: 0.00896288644
A152: 339 | B152: 0.049 | C152: 0.051 | D152: 0.051 | E152: 0.05033333333 | F152: 0.001154700538 | G152: 0.124 | H152: 0.123 | I152: 0.117 | J152: 0.1213333333 | K152: 0.003785938897 | L152: 0.203 | M152: 0.187 | N152: 0.181 | O152: 0.1903333333 | P152: 0.01137248141 | Q152: 0.273 | R152: 0.265 | S152: 0.261 | T152: 0.2663333333 | U152: 0.006110100927 | V152: 0.294 | W152: 0.297 | X152: 0.293 | Y152: 0.2946666667 | Z152: 0.002081665999 | AA152: 0.368 | AB152: 0.367 | AC152: 0.36 | AD152: 0.365 | AE152: 0.004358898944 | AF152: 0.805 | AG152: 0.804 | AH152: 0.801 | AI152: 0.8033333333 | AJ152: 0.002081665999 | AK152: 1.218 | AL152: 1.212 | AM152: 1.212 | AN152: 1.214 | AO152: 0.003464101615 | AP152: 1.704 | AQ152: 1.673 | AR152: 1.701 | AS152: 1.692666667 | AT152: 0.01709775814 | AU152: 2.131 | AV152: 2.088 | AW152: 2.164 | AX152: 2.127666667 | AY152: 0.03810949138
A153: 340 | B153: 0.048 | C153: 0.05 | D153: 0.051 | E153: 0.04966666667 | F153: 0.001527525232 | G153: 0.123 | H153: 0.123 | I153: 0.116 | J153: 0.1206666667 | K153: 0.004041451884 | L153: 0.202 | M153: 0.186 | N153: 0.179 | O153: 0.189 | P153: 0.01178982612 | Q153: 0.271 | R153: 0.263 | S153: 0.258 | T153: 0.264 | U153: 0.006557438524 | V153: 0.29 | W153: 0.293 | X153: 0.291 | Y153: 0.2913333333 | Z153: 0.001527525232 | AA153: 0.365 | AB153: 0.364 | AC153: 0.356 | AD153: 0.3616666667 | AE153: 0.004932882862 | AF153: 0.798 | AG153: 0.799 | AH153: 0.797 | AI153: 0.798 | AJ153: 0.001 | AK153: 1.209 | AL153: 1.204 | AM153: 1.203 | AN153: 1.205333333 | AO153: 0.003214550254 | AP153: 1.686 | AQ153: 1.66 | AR153: 1.693 | AS153: 1.679666667 | AT153: 0.01738773514 | AU153: 2.138 | AV153: 2.098 | AW153: 2.134 | AX153: 2.123333333 | AY153: 0.02203028219
A154: 341 | B154: 0.048 | C154: 0.05 | D154: 0.05 | E154: 0.04933333333 | F154: 0.001154700538 | G154: 0.121 | H154: 0.122 | I154: 0.114 | J154: 0.119 | K154: 0.004358898944 | L154: 0.202 | M154: 0.184 | N154: 0.179 | O154: 0.1883333333 | P154: 0.01209683154 | Q154: 0.269 | R154: 0.262 | S154: 0.256 | T154: 0.2623333333 | U154: 0.006506407099 | V154: 0.287 | W154: 0.292 | X154: 0.288 | Y154: 0.289 | Z154: 0.002645751311 | AA154: 0.362 | AB154: 0.36 | AC154: 0.354 | AD154: 0.3586666667 | AE154: 0.004163331999 | AF154: 0.792 | AG154: 0.79 | AH154: 0.788 | AI154: 0.79 | AJ154: 0.002 | AK154: 1.196 | AL154: 1.197 | AM154: 1.193 | AN154: 1.195333333 | AO154: 0.002081665999 | AP154: 1.646 | AQ154: 1.666 | AR154: 1.678 | AS154: 1.663333333 | AT154: 0.01616580754 | AU154: 2.122 | AV154: 2.093 | AW154: 2.132 | AX154: 2.115666667 | AY154: 0.02025668614
A155: 342 | B155: 0.047 | C155: 0.048 | D155: 0.048 | E155: 0.04766666667 | F155: 0.0005773502692 | G155: 0.12 | H155: 0.121 | I155: 0.113 | J155: 0.118 | K155: 0.004358898944 | L155: 0.2 | M155: 0.183 | N155: 0.177 | O155: 0.1866666667 | P155: 0.01193035345 | Q155: 0.266 | R155: 0.259 | S155: 0.253 | T155: 0.2593333333 | U155: 0.006506407099 | V155: 0.286 | W155: 0.289 | X155: 0.285 | Y155: 0.2866666667 | Z155: 0.002081665999 | AA155: 0.358 | AB155: 0.358 | AC155: 0.35 | AD155: 0.3553333333 | AE155: 0.004618802154 | AF155: 0.787 | AG155: 0.785 | AH155: 0.781 | AI155: 0.7843333333 | AJ155: 0.003055050463 | AK155: 1.188 | AL155: 1.185 | AM155: 1.186 | AN155: 1.186333333 | AO155: 0.001527525232 | AP155: 1.627 | AQ155: 1.66 | AR155: 1.663 | AS155: 1.65 | AT155: 0.01997498436 | AU155: 2.089 | AV155: 2.111 | AW155: 2.1 | AX155: 2.1 | AY155: 0.011
A156: 343 | B156: 0.046 | C156: 0.048 | D156: 0.048 | E156: 0.04733333333 | F156: 0.001154700538 | G156: 0.121 | H156: 0.12 | I156: 0.113 | J156: 0.118 | K156: 0.004358898944 | L156: 0.199 | M156: 0.183 | N156: 0.177 | O156: 0.1863333333 | P156: 0.01137248141 | Q156: 0.264 | R156: 0.258 | S156: 0.252 | T156: 0.258 | U156: 0.006 | V156: 0.285 | W156: 0.287 | X156: 0.283 | Y156: 0.285 | Z156: 0.002 | AA156: 0.356 | AB156: 0.356 | AC156: 0.348 | AD156: 0.3533333333 | AE156: 0.004618802154 | AF156: 0.782 | AG156: 0.782 | AH156: 0.777 | AI156: 0.7803333333 | AJ156: 0.002886751346 | AK156: 1.181 | AL156: 1.181 | AM156: 1.184 | AN156: 1.182 | AO156: 0.001732050808 | AP156: 1.629 | AQ156: 1.654 | AR156: 1.654 | AS156: 1.645666667 | AT156: 0.01443375673 | AU156: 2.067 | AV156: 2.1 | AW156: 2.057 | AX156: 2.074666667 | AY156: 0.02250185178
A157: 344 | B157: 0.046 | C157: 0.047 | D157: 0.048 | E157: 0.047 | F157: 0.001 | G157: 0.12 | H157: 0.118 | I157: 0.113 | J157: 0.117 | K157: 0.003605551275 | L157: 0.197 | M157: 0.182 | N157: 0.175 | O157: 0.1846666667 | P157: 0.0112398102 | Q157: 0.263 | R157: 0.255 | S157: 0.25 | T157: 0.256 | U157: 0.006557438524 | V157: 0.283 | W157: 0.284 | X157: 0.28 | Y157: 0.2823333333 | Z157: 0.002081665999 | AA157: 0.352 | AB157: 0.352 | AC157: 0.345 | AD157: 0.3496666667 | AE157: 0.004041451884 | AF157: 0.777 | AG157: 0.778 | AH157: 0.773 | AI157: 0.776 | AJ157: 0.002645751311 | AK157: 1.175 | AL157: 1.175 | AM157: 1.178 | AN157: 1.176 | AO157: 0.001732050808 | AP157: 1.636 | AQ157: 1.645 | AR157: 1.633 | AS157: 1.638 | AT157: 0.006244997998 | AU157: 2.033 | AV157: 2.071 | AW157: 2.019 | AX157: 2.041 | AY157: 0.02690724809
A158: 345 | B158: 0.047 | C158: 0.047 | D158: 0.048 | E158: 0.04733333333 | F158: 0.0005773502692 | G158: 0.121 | H158: 0.119 | I158: 0.113 | J158: 0.1176666667 | K158: 0.004163331999 | L158: 0.196 | M158: 0.182 | N158: 0.174 | O158: 0.184 | P158: 0.01113552873 | Q158: 0.262 | R158: 0.253 | S158: 0.249 | T158: 0.2546666667 | U158: 0.006658328118 | V158: 0.281 | W158: 0.283 | X158: 0.279 | Y158: 0.281 | Z158: 0.002 | AA158: 0.35 | AB158: 0.351 | AC158: 0.343 | AD158: 0.348 | AE158: 0.004358898944 | AF158: 0.772 | AG158: 0.773 | AH158: 0.77 | AI158: 0.7716666667 | AJ158: 0.001527525232 | AK158: 1.169 | AL158: 1.167 | AM158: 1.173 | AN158: 1.169666667 | AO158: 0.003055050463 | AP158: 1.633 | AQ158: 1.636 | AR158: 1.621 | AS158: 1.63 | AT158: 0.007937253933 | AU158: 2.049 | AV158: 2.048 | AW158: 2.007 | AX158: 2.034666667 | AY158: 0.02396525262
A159: 346 | B159: 0.047 | C159: 0.048 | D159: 0.049 | E159: 0.048 | F159: 0.001 | G159: 0.12 | H159: 0.119 | I159: 0.113 | J159: 0.1173333333 | K159: 0.003785938897 | L159: 0.196 | M159: 0.18 | N159: 0.174 | O159: 0.1833333333 | P159: 0.01137248141 | Q159: 0.261 | R159: 0.253 | S159: 0.248 | T159: 0.254 | U159: 0.006557438524 | V159: 0.279 | W159: 0.281 | X159: 0.278 | Y159: 0.2793333333 | Z159: 0.001527525232 | AA159: 0.348 | AB159: 0.347 | AC159: 0.342 | AD159: 0.3456666667 | AE159: 0.003214550254 | AF159: 0.769 | AG159: 0.766 | AH159: 0.765 | AI159: 0.7666666667 | AJ159: 0.002081665999 | AK159: 1.157 | AL159: 1.159 | AM159: 1.165 | AN159: 1.160333333 | AO159: 0.004163331999 | AP159: 1.619 | AQ159: 1.623 | AR159: 1.621 | AS159: 1.621 | AT159: 0.002 | AU159: 2.046 | AV159: 2.023 | AW159: 2.027 | AX159: 2.032 | AY159: 0.01228820573
A160: 347 | B160: 0.047 | C160: 0.047 | D160: 0.049 | E160: 0.04766666667 | F160: 0.001154700538 | G160: 0.12 | H160: 0.119 | I160: 0.113 | J160: 0.1173333333 | K160: 0.003785938897 | L160: 0.196 | M160: 0.18 | N160: 0.173 | O160: 0.183 | P160: 0.01178982612 | Q160: 0.259 | R160: 0.252 | S160: 0.246 | T160: 0.2523333333 | U160: 0.006506407099 | V160: 0.278 | W160: 0.279 | X160: 0.277 | Y160: 0.278 | Z160: 0.001 | AA160: 0.345 | AB160: 0.344 | AC160: 0.339 | AD160: 0.3426666667 | AE160: 0.003214550254 | AF160: 0.763 | AG160: 0.76 | AH160: 0.758 | AI160: 0.7603333333 | AJ160: 0.002516611478 | AK160: 1.155 | AL160: 1.147 | AM160: 1.158 | AN160: 1.153333333 | AO160: 0.005686240703 | AP160: 1.61 | AQ160: 1.607 | AR160: 1.616 | AS160: 1.611 | AT160: 0.004582575695 | AU160: 2.053 | AV160: 2.018 | AW160: 2.005 | AX160: 2.025333333 | AY160: 0.02482606158
A161: 348 | B161: 0.047 | C161: 0.047 | D161: 0.048 | E161: 0.04733333333 | F161: 0.0005773502692 | G161: 0.12 | H161: 0.12 | I161: 0.112 | J161: 0.1173333333 | K161: 0.004618802154 | L161: 0.195 | M161: 0.18 | N161: 0.172 | O161: 0.1823333333 | P161: 0.01167618659 | Q161: 0.258 | R161: 0.251 | S161: 0.245 | T161: 0.2513333333 | U161: 0.006506407099 | V161: 0.275 | W161: 0.277 | X161: 0.276 | Y161: 0.276 | Z161: 0.001 | AA161: 0.343 | AB161: 0.342 | AC161: 0.338 | AD161: 0.341 | AE161: 0.002645751311 | AF161: 0.758 | AG161: 0.757 | AH161: 0.754 | AI161: 0.7563333333 | AJ161: 0.002081665999 | AK161: 1.153 | AL161: 1.137 | AM161: 1.151 | AN161: 1.147 | AO161: 0.008717797887 | AP161: 1.607 | AQ161: 1.603 | AR161: 1.592 | AS161: 1.600666667 | AT161: 0.007767453465 | AU161: 2.059 | AV161: 2.021 | AW161: 1.999 | AX161: 2.026333333 | AY161: 0.03035347317
A162: 349 | B162: 0.046 | C162: 0.047 | D162: 0.047 | E162: 0.04666666667 | F162: 0.0005773502692 | G162: 0.12 | H162: 0.119 | I162: 0.112 | J162: 0.117 | K162: 0.004358898944 | L162: 0.193 | M162: 0.179 | N162: 0.171 | O162: 0.181 | P162: 0.01113552873 | Q162: 0.257 | R162: 0.249 | S162: 0.243 | T162: 0.2496666667 | U162: 0.007023769169 | V162: 0.273 | W162: 0.274 | X162: 0.274 | Y162: 0.2736666667 | Z162: 0.0005773502692 | AA162: 0.341 | AB162: 0.34 | AC162: 0.335 | AD162: 0.3386666667 | AE162: 0.003214550254 | AF162: 0.753 | AG162: 0.754 | AH162: 0.75 | AI162: 0.7523333333 | AJ162: 0.002081665999 | AK162: 1.146 | AL162: 1.134 | AM162: 1.145 | AN162: 1.141666667 | AO162: 0.006658328118 | AP162: 1.592 | AQ162: 1.593 | AR162: 1.576 | AS162: 1.587 | AT162: 0.009539392014 | AU162: 2.022 | AV162: 2.043 | AW162: 2.01 | AX162: 2.025 | AY162: 0.01670329309
A163: 350 | B163: 0.045 | C163: 0.047 | D163: 0.047 | E163: 0.04633333333 | F163: 0.001154700538 | G163: 0.12 | H163: 0.118 | I163: 0.111 | J163: 0.1163333333 | K163: 0.004725815626 | L163: 0.193 | M163: 0.177 | N163: 0.17 | O163: 0.18 | P163: 0.01178982612 | Q163: 0.255 | R163: 0.247 | S163: 0.241 | T163: 0.2476666667 | U163: 0.007023769169 | V163: 0.272 | W163: 0.273 | X163: 0.271 | Y163: 0.272 | Z163: 0.001 | AA163: 0.338 | AB163: 0.338 | AC163: 0.332 | AD163: 0.336 | AE163: 0.003464101615 | AF163: 0.748 | AG163: 0.751 | AH163: 0.746 | AI163: 0.7483333333 | AJ163: 0.002516611478 | AK163: 1.136 | AL163: 1.131 | AM163: 1.14 | AN163: 1.135666667 | AO163: 0.004509249753 | AP163: 1.582 | AQ163: 1.582 | AR163: 1.577 | AS163: 1.580333333 | AT163: 0.002886751346 | AU163: 2 | AV163: 2.06 | AW163: 1.994 | AX163: 2.018 | AY163: 0.03649657518
A164: 351 | B164: 0.043 | C164: 0.045 | D164: 0.045 | E164: 0.04433333333 | F164: 0.001154700538 | G164: 0.117 | H164: 0.116 | I164: 0.11 | J164: 0.1143333333 | K164: 0.003785938897 | L164: 0.19 | M164: 0.174 | N164: 0.168 | O164: 0.1773333333 | P164: 0.01137248141 | Q164: 0.252 | R164: 0.244 | S164: 0.238 | T164: 0.2446666667 | U164: 0.007023769169 | V164: 0.269 | W164: 0.269 | X164: 0.267 | Y164: 0.2683333333 | Z164: 0.001154700538 | AA164: 0.334 | AB164: 0.333 | AC164: 0.327 | AD164: 0.3313333333 | AE164: 0.003785938897 | AF164: 0.744 | AG164: 0.746 | AH164: 0.744 | AI164: 0.7446666667 | AJ164: 0.001154700538 | AK164: 1.124 | AL164: 1.127 | AM164: 1.13 | AN164: 1.127 | AO164: 0.003 | AP164: 1.572 | AQ164: 1.57 | AR164: 1.588 | AS164: 1.576666667 | AT164: 0.009865765725 | AU164: 1.976 | AV164: 2.037 | AW164: 1.969 | AX164: 1.994 | AY164: 0.03740320842
A165: 352 | B165: 0.043 | C165: 0.045 | D165: 0.045 | E165: 0.04433333333 | F165: 0.001154700538 | G165: 0.117 | H165: 0.116 | I165: 0.109 | J165: 0.114 | K165: 0.004358898944 | L165: 0.19 | M165: 0.173 | N165: 0.166 | O165: 0.1763333333 | P165: 0.01234233905 | Q165: 0.25 | R165: 0.242 | S165: 0.237 | T165: 0.243 | U165: 0.006557438524 | V165: 0.267 | W165: 0.267 | X165: 0.266 | Y165: 0.2666666667 | Z165: 0.0005773502692 | AA165: 0.331 | AB165: 0.331 | AC165: 0.326 | AD165: 0.3293333333 | AE165: 0.002886751346 | AF165: 0.742 | AG165: 0.741 | AH165: 0.74 | AI165: 0.741 | AJ165: 0.001 | AK165: 1.119 | AL165: 1.12 | AM165: 1.12 | AN165: 1.119666667 | AO165: 0.0005773502692 | AP165: 1.56 | AQ165: 1.56 | AR165: 1.582 | AS165: 1.567333333 | AT165: 0.01270170592 | AU165: 1.982 | AV165: 1.999 | AW165: 1.968 | AX165: 1.983 | AY165: 0.0155241747
A166: 353 | B166: 0.043 | C166: 0.045 | D166: 0.046 | E166: 0.04466666667 | F166: 0.001527525232 | G166: 0.118 | H166: 0.117 | I166: 0.109 | J166: 0.1146666667 | K166: 0.004932882862 | L166: 0.19 | M166: 0.173 | N166: 0.166 | O166: 0.1763333333 | P166: 0.01234233905 | Q166: 0.249 | R166: 0.241 | S166: 0.237 | T166: 0.2423333333 | U166: 0.006110100927 | V166: 0.266 | W166: 0.267 | X166: 0.265 | Y166: 0.266 | Z166: 0.001 | AA166: 0.33 | AB166: 0.33 | AC166: 0.324 | AD166: 0.328 | AE166: 0.003464101615 | AF166: 0.738 | AG166: 0.737 | AH166: 0.735 | AI166: 0.7366666667 | AJ166: 0.001527525232 | AK166: 1.116 | AL166: 1.114 | AM166: 1.117 | AN166: 1.115666667 | AO166: 0.001527525232 | AP166: 1.558 | AQ166: 1.56 | AR166: 1.563 | AS166: 1.560333333 | AT166: 0.002516611478 | AU166: 1.984 | AV166: 1.964 | AW166: 1.993 | AX166: 1.980333333 | AY166: 0.01484362939
A167: 354 | B167: 0.043 | C167: 0.045 | D167: 0.046 | E167: 0.04466666667 | F167: 0.001527525232 | G167: 0.118 | H167: 0.116 | I167: 0.109 | J167: 0.1143333333 | K167: 0.004725815626 | L167: 0.189 | M167: 0.173 | N167: 0.166 | O167: 0.176 | P167: 0.01178982612 | Q167: 0.248 | R167: 0.241 | S167: 0.236 | T167: 0.2416666667 | U167: 0.006027713773 | V167: 0.265 | W167: 0.266 | X167: 0.264 | Y167: 0.265 | Z167: 0.001 | AA167: 0.329 | AB167: 0.329 | AC167: 0.323 | AD167: 0.327 | AE167: 0.003464101615 | AF167: 0.732 | AG167: 0.733 | AH167: 0.731 | AI167: 0.732 | AJ167: 0.001 | AK167: 1.11 | AL167: 1.109 | AM167: 1.117 | AN167: 1.112 | AO167: 0.004358898944 | AP167: 1.556 | AQ167: 1.556 | AR167: 1.554 | AS167: 1.555333333 | AT167: 0.001154700538 | AU167: 1.98 | AV167: 1.958 | AW167: 2.001 | AX167: 1.979666667 | AY167: 0.0215019379
A168: 355 | B168: 0.043 | C168: 0.044 | D168: 0.045 | E168: 0.044 | F168: 0.001 | G168: 0.117 | H168: 0.116 | I168: 0.109 | J168: 0.114 | K168: 0.004358898944 | L168: 0.189 | M168: 0.173 | N168: 0.165 | O168: 0.1756666667 | P168: 0.01222020185 | Q168: 0.246 | R168: 0.239 | S168: 0.233 | T168: 0.2393333333 | U168: 0.006506407099 | V168: 0.263 | W168: 0.264 | X168: 0.263 | Y168: 0.2633333333 | Z168: 0.0005773502692 | AA168: 0.327 | AB168: 0.328 | AC168: 0.322 | AD168: 0.3256666667 | AE168: 0.003214550254 | AF168: 0.729 | AG168: 0.731 | AH168: 0.726 | AI168: 0.7286666667 | AJ168: 0.002516611478 | AK168: 1.106 | AL168: 1.103 | AM168: 1.115 | AN168: 1.108 | AO168: 0.006244997998 | AP168: 1.558 | AQ168: 1.554 | AR168: 1.555 | AS168: 1.555666667 | AT168: 0.002081665999 | AU168: 1.979 | AV168: 1.975 | AW168: 1.998 | AX168: 1.984 | AY168: 0.01228820573
A169: 356 | B169: 0.043 | C169: 0.043 | D169: 0.044 | E169: 0.04333333333 | F169: 0.0005773502692 | G169: 0.116 | H169: 0.115 | I169: 0.108 | J169: 0.113 | K169: 0.004358898944 | L169: 0.187 | M169: 0.171 | N169: 0.164 | O169: 0.174 | P169: 0.01178982612 | Q169: 0.244 | R169: 0.238 | S169: 0.232 | T169: 0.238 | U169: 0.006 | V169: 0.261 | W169: 0.264 | X169: 0.26 | Y169: 0.2616666667 | Z169: 0.002081665999 | AA169: 0.325 | AB169: 0.325 | AC169: 0.319 | AD169: 0.323 | AE169: 0.003464101615 | AF169: 0.728 | AG169: 0.728 | AH169: 0.723 | AI169: 0.7263333333 | AJ169: 0.002886751346 | AK169: 1.107 | AL169: 1.099 | AM169: 1.108 | AN169: 1.104666667 | AO169: 0.004932882862 | AP169: 1.55 | AQ169: 1.553 | AR169: 1.555 | AS169: 1.552666667 | AT169: 0.002516611478 | AU169: 1.959 | AV169: 1.984 | AW169: 1.978 | AX169: 1.973666667 | AY169: 0.0130511813
A170: 357 | B170: 0.043 | C170: 0.043 | D170: 0.045 | E170: 0.04366666667 | F170: 0.001154700538 | G170: 0.116 | H170: 0.115 | I170: 0.108 | J170: 0.113 | K170: 0.004358898944 | L170: 0.186 | M170: 0.171 | N170: 0.164 | O170: 0.1736666667 | P170: 0.0112398102 | Q170: 0.244 | R170: 0.237 | S170: 0.231 | T170: 0.2373333333 | U170: 0.006506407099 | V170: 0.26 | W170: 0.262 | X170: 0.259 | Y170: 0.2603333333 | Z170: 0.001527525232 | AA170: 0.324 | AB170: 0.323 | AC170: 0.318 | AD170: 0.3216666667 | AE170: 0.003214550254 | AF170: 0.728 | AG170: 0.726 | AH170: 0.721 | AI170: 0.725 | AJ170: 0.003605551275 | AK170: 1.106 | AL170: 1.098 | AM170: 1.1 | AN170: 1.101333333 | AO170: 0.004163331999 | AP170: 1.546 | AQ170: 1.546 | AR170: 1.55 | AS170: 1.547333333 | AT170: 0.002309401077 | AU170: 1.967 | AV170: 1.981 | AW170: 1.963 | AX170: 1.970333333 | AY170: 0.009451631253
A171: 358 | B171: 0.043 | C171: 0.043 | D171: 0.045 | E171: 0.04366666667 | F171: 0.001154700538 | G171: 0.115 | H171: 0.114 | I171: 0.107 | J171: 0.112 | K171: 0.004358898944 | L171: 0.185 | M171: 0.17 | N171: 0.163 | O171: 0.1726666667 | P171: 0.0112398102 | Q171: 0.243 | R171: 0.236 | S171: 0.23 | T171: 0.2363333333 | U171: 0.006506407099 | V171: 0.258 | W171: 0.26 | X171: 0.256 | Y171: 0.258 | Z171: 0.002 | AA171: 0.321 | AB171: 0.321 | AC171: 0.316 | AD171: 0.3193333333 | AE171: 0.002886751346 | AF171: 0.724 | AG171: 0.723 | AH171: 0.719 | AI171: 0.722 | AJ171: 0.002645751311 | AK171: 1.099 | AL171: 1.096 | AM171: 1.095 | AN171: 1.096666667 | AO171: 0.002081665999 | AP171: 1.556 | AQ171: 1.541 | AR171: 1.535 | AS171: 1.544 | AT171: 0.01081665383 | AU171: 1.964 | AV171: 1.96 | AW171: 1.929 | AX171: 1.951 | AY171: 0.01915724406
A172: 359 | B172: 0.043 | C172: 0.042 | D172: 0.044 | E172: 0.043 | F172: 0.001 | G172: 0.114 | H172: 0.113 | I172: 0.106 | J172: 0.111 | K172: 0.004358898944 | L172: 0.185 | M172: 0.169 | N172: 0.162 | O172: 0.172 | P172: 0.01178982612 | Q172: 0.242 | R172: 0.234 | S172: 0.229 | T172: 0.235 | U172: 0.006557438524 | V172: 0.257 | W172: 0.258 | X172: 0.255 | Y172: 0.2566666667 | Z172: 0.001527525232 | AA172: 0.319 | AB172: 0.319 | AC172: 0.313 | AD172: 0.317 | AE172: 0.003464101615 | AF172: 0.72 | AG172: 0.72 | AH172: 0.717 | AI172: 0.719 | AJ172: 0.001732050808 | AK172: 1.092 | AL172: 1.091 | AM172: 1.092 | AN172: 1.091666667 | AO172: 0.0005773502692 | AP172: 1.547 | AQ172: 1.538 | AR172: 1.528 | AS172: 1.537666667 | AT172: 0.009504384953 | AU172: 1.968 | AV172: 1.934 | AW172: 1.914 | AX172: 1.938666667 | AY172: 0.02730079364
A173: 360 | B173: 0.042 | C173: 0.042 | D173: 0.043 | E173: 0.04233333333 | F173: 0.0005773502692 | G173: 0.114 | H173: 0.113 | I173: 0.106 | J173: 0.111 | K173: 0.004358898944 | L173: 0.185 | M173: 0.168 | N173: 0.162 | O173: 0.1716666667 | P173: 0.01193035345 | Q173: 0.241 | R173: 0.233 | S173: 0.227 | T173: 0.2336666667 | U173: 0.007023769169 | V173: 0.256 | W173: 0.257 | X173: 0.254 | Y173: 0.2556666667 | Z173: 0.001527525232 | AA173: 0.318 | AB173: 0.319 | AC173: 0.312 | AD173: 0.3163333333 | AE173: 0.003785938897 | AF173: 0.717 | AG173: 0.718 | AH173: 0.716 | AI173: 0.717 | AJ173: 0.001 | AK173: 1.085 | AL173: 1.085 | AM173: 1.091 | AN173: 1.087 | AO173: 0.003464101615 | AP173: 1.534 | AQ173: 1.539 | AR173: 1.535 | AS173: 1.536 | AT173: 0.002645751311 | AU173: 1.966 | AV173: 1.939 | AW173: 1.932 | AX173: 1.945666667 | AY173: 0.01795364401
A174: 361 | B174: 0.042 | C174: 0.042 | D174: 0.042 | E174: 0.042 | F174: 0 | G174: 0.114 | H174: 0.113 | I174: 0.106 | J174: 0.111 | K174: 0.004358898944 | L174: 0.183 | M174: 0.168 | N174: 0.161 | O174: 0.1706666667 | P174: 0.0112398102 | Q174: 0.24 | R174: 0.232 | S174: 0.227 | T174: 0.233 | U174: 0.006557438524 | V174: 0.256 | W174: 0.257 | X174: 0.254 | Y174: 0.2556666667 | Z174: 0.001527525232 | AA174: 0.317 | AB174: 0.317 | AC174: 0.31 | AD174: 0.3146666667 | AE174: 0.004041451884 | AF174: 0.714 | AG174: 0.714 | AH174: 0.712 | AI174: 0.7133333333 | AJ174: 0.001154700538 | AK174: 1.082 | AL174: 1.082 | AM174: 1.089 | AN174: 1.084333333 | AO174: 0.004041451884 | AP174: 1.528 | AQ174: 1.537 | AR174: 1.54 | AS174: 1.535 | AT174: 0.006244997998 | AU174: 1.946 | AV174: 1.936 | AW174: 1.944 | AX174: 1.942 | AY174: 0.005291502622
A175: 362 | B175: 0.042 | C175: 0.042 | D175: 0.042 | E175: 0.042 | F175: 0 | G175: 0.114 | H175: 0.113 | I175: 0.106 | J175: 0.111 | K175: 0.004358898944 | L175: 0.182 | M175: 0.167 | N175: 0.159 | O175: 0.1693333333 | P175: 0.01167618659 | Q175: 0.239 | R175: 0.231 | S175: 0.225 | T175: 0.2316666667 | U175: 0.007023769169 | V175: 0.254 | W175: 0.255 | X175: 0.253 | Y175: 0.254 | Z175: 0.001 | AA175: 0.316 | AB175: 0.315 | AC175: 0.309 | AD175: 0.3133333333 | AE175: 0.003785938897 | AF175: 0.71 | AG175: 0.709 | AH175: 0.709 | AI175: 0.7093333333 | AJ175: 0.0005773502692 | AK175: 1.078 | AL175: 1.08 | AM175: 1.085 | AN175: 1.081 | AO175: 0.003605551275 | AP175: 1.523 | AQ175: 1.528 | AR175: 1.535 | AS175: 1.528666667 | AT175: 0.006027713773 | AU175: 1.94 | AV175: 1.921 | AW175: 1.955 | AX175: 1.938666667 | AY175: 0.01703917056
A176: 363 | B176: 0.041 | C176: 0.04 | D176: 0.042 | E176: 0.041 | F176: 0.001 | G176: 0.112 | H176: 0.112 | I176: 0.105 | J176: 0.1096666667 | K176: 0.004041451884 | L176: 0.179 | M176: 0.165 | N176: 0.158 | O176: 0.1673333333 | P176: 0.01069267662 | Q176: 0.237 | R176: 0.229 | S176: 0.223 | T176: 0.2296666667 | U176: 0.007023769169 | V176: 0.252 | W176: 0.253 | X176: 0.251 | Y176: 0.252 | Z176: 0.001 | AA176: 0.313 | AB176: 0.312 | AC176: 0.307 | AD176: 0.3106666667 | AE176: 0.003214550254 | AF176: 0.706 | AG176: 0.704 | AH176: 0.705 | AI176: 0.705 | AJ176: 0.001 | AK176: 1.072 | AL176: 1.076 | AM176: 1.078 | AN176: 1.075333333 | AO176: 0.003055050463 | AP176: 1.519 | AQ176: 1.515 | AR176: 1.523 | AS176: 1.519 | AT176: 0.004 | AU176: 1.925 | AV176: 1.913 | AW176: 1.935 | AX176: 1.924333333 | AY176: 0.01101514109
A177: 364 | B177: 0.04 | C177: 0.04 | D177: 0.042 | E177: 0.04066666667 | F177: 0.001154700538 | G177: 0.112 | H177: 0.111 | I177: 0.104 | J177: 0.109 | K177: 0.004358898944 | L177: 0.179 | M177: 0.163 | N177: 0.157 | O177: 0.1663333333 | P177: 0.01137248141 | Q177: 0.236 | R177: 0.228 | S177: 0.222 | T177: 0.2286666667 | U177: 0.007023769169 | V177: 0.25 | W177: 0.252 | X177: 0.249 | Y177: 0.2503333333 | Z177: 0.001527525232 | AA177: 0.311 | AB177: 0.311 | AC177: 0.305 | AD177: 0.309 | AE177: 0.003464101615 | AF177: 0.704 | AG177: 0.699 | AH177: 0.701 | AI177: 0.7013333333 | AJ177: 0.002516611478 | AK177: 1.068 | AL177: 1.066 | AM177: 1.069 | AN177: 1.067666667 | AO177: 0.001527525232 | AP177: 1.504 | AQ177: 1.506 | AR177: 1.504 | AS177: 1.504666667 | AT177: 0.001154700538 | AU177: 1.915 | AV177: 1.905 | AW177: 1.914 | AX177: 1.911333333 | AY177: 0.005507570547
A178: 365 | B178: 0.04 | C178: 0.039 | D178: 0.041 | E178: 0.04 | F178: 0.001 | G178: 0.111 | H178: 0.11 | I178: 0.103 | J178: 0.108 | K178: 0.004358898944 | L178: 0.178 | M178: 0.162 | N178: 0.156 | O178: 0.1653333333 | P178: 0.01137248141 | Q178: 0.234 | R178: 0.227 | S178: 0.222 | T178: 0.2276666667 | U178: 0.006027713773 | V178: 0.249 | W178: 0.25 | X178: 0.247 | Y178: 0.2486666667 | Z178: 0.001527525232 | AA178: 0.31 | AB178: 0.309 | AC178: 0.305 | AD178: 0.308 | AE178: 0.002645751311 | AF178: 0.7 | AG178: 0.696 | AH178: 0.697 | AI178: 0.6976666667 | AJ178: 0.002081665999 | AK178: 1.061 | AL178: 1.059 | AM178: 1.061 | AN178: 1.060333333 | AO178: 0.001154700538 | AP178: 1.496 | AQ178: 1.506 | AR178: 1.498 | AS178: 1.5 | AT178: 0.005291502622 | AU178: 1.92 | AV178: 1.924 | AW178: 1.896 | AX178: 1.913333333 | AY178: 0.01514375559
A179: 366 | B179: 0.039 | C179: 0.039 | D179: 0.04 | E179: 0.03933333333 | F179: 0.0005773502692 | G179: 0.111 | H179: 0.109 | I179: 0.102 | J179: 0.1073333333 | K179: 0.004725815626 | L179: 0.177 | M179: 0.161 | N179: 0.155 | O179: 0.1643333333 | P179: 0.01137248141 | Q179: 0.232 | R179: 0.225 | S179: 0.22 | T179: 0.2256666667 | U179: 0.006027713773 | V179: 0.247 | W179: 0.248 | X179: 0.246 | Y179: 0.247 | Z179: 0.001 | AA179: 0.308 | AB179: 0.308 | AC179: 0.303 | AD179: 0.3063333333 | AE179: 0.002886751346 | AF179: 0.698 | AG179: 0.695 | AH179: 0.692 | AI179: 0.695 | AJ179: 0.003 | AK179: 1.059 | AL179: 1.056 | AM179: 1.058 | AN179: 1.057666667 | AO179: 0.001527525232 | AP179: 1.498 | AQ179: 1.507 | AR179: 1.493 | AS179: 1.499333333 | AT179: 0.007094598885 | AU179: 1.92 | AV179: 1.918 | AW179: 1.901 | AX179: 1.913 | AY179: 0.01044030651
A180: 367 | B180: 0.038 | C180: 0.039 | D180: 0.04 | E180: 0.039 | F180: 0.001 | G180: 0.111 | H180: 0.109 | I180: 0.103 | J180: 0.1076666667 | K180: 0.004163331999 | L180: 0.176 | M180: 0.16 | N180: 0.154 | O180: 0.1633333333 | P180: 0.01137248141 | Q180: 0.231 | R180: 0.224 | S180: 0.219 | T180: 0.2246666667 | U180: 0.006027713773 | V180: 0.246 | W180: 0.248 | X180: 0.246 | Y180: 0.2466666667 | Z180: 0.001154700538 | AA180: 0.307 | AB180: 0.307 | AC180: 0.302 | AD180: 0.3053333333 | AE180: 0.002886751346 | AF180: 0.695 | AG180: 0.695 | AH180: 0.689 | AI180: 0.693 | AJ180: 0.003464101615 | AK180: 1.054 | AL180: 1.056 | AM180: 1.056 | AN180: 1.055333333 | AO180: 0.001154700538 | AP180: 1.488 | AQ180: 1.506 | AR180: 1.493 | AS180: 1.495666667 | AT180: 0.009291573243 | AU180: 1.908 | AV180: 1.913 | AW180: 1.902 | AX180: 1.907666667 | AY180: 0.005507570547
A181: 368 | B181: 0.038 | C181: 0.038 | D181: 0.039 | E181: 0.03833333333 | F181: 0.0005773502692 | G181: 0.11 | H181: 0.108 | I181: 0.102 | J181: 0.1066666667 | K181: 0.004163331999 | L181: 0.174 | M181: 0.159 | N181: 0.153 | O181: 0.162 | P181: 0.01081665383 | Q181: 0.229 | R181: 0.223 | S181: 0.218 | T181: 0.2233333333 | U181: 0.005507570547 | V181: 0.246 | W181: 0.247 | X181: 0.245 | Y181: 0.246 | Z181: 0.001 | AA181: 0.306 | AB181: 0.306 | AC181: 0.3 | AD181: 0.304 | AE181: 0.003464101615 | AF181: 0.691 | AG181: 0.692 | AH181: 0.686 | AI181: 0.6896666667 | AJ181: 0.003214550254 | AK181: 1.051 | AL181: 1.054 | AM181: 1.052 | AN181: 1.052333333 | AO181: 0.001527525232 | AP181: 1.486 | AQ181: 1.495 | AR181: 1.487 | AS181: 1.489333333 | AT181: 0.004932882862 | AU181: 1.907 | AV181: 1.899 | AW181: 1.904 | AX181: 1.903333333 | AY181: 0.004041451884
A182: 369 | B182: 0.038 | C182: 0.038 | D182: 0.039 | E182: 0.03833333333 | F182: 0.0005773502692 | G182: 0.108 | H182: 0.107 | I182: 0.101 | J182: 0.1053333333 | K182: 0.003785938897 | L182: 0.174 | M182: 0.159 | N182: 0.152 | O182: 0.1616666667 | P182: 0.0112398102 | Q182: 0.229 | R182: 0.222 | S182: 0.218 | T182: 0.223 | U182: 0.005567764363 | V182: 0.245 | W182: 0.247 | X182: 0.243 | Y182: 0.245 | Z182: 0.002 | AA182: 0.305 | AB182: 0.305 | AC182: 0.299 | AD182: 0.303 | AE182: 0.003464101615 | AF182: 0.69 | AG182: 0.69 | AH182: 0.684 | AI182: 0.688 | AJ182: 0.003464101615 | AK182: 1.049 | AL182: 1.048 | AM182: 1.048 | AN182: 1.048333333 | AO182: 0.0005773502692 | AP182: 1.485 | AQ182: 1.488 | AR182: 1.479 | AS182: 1.484 | AT182: 0.004582575695 | AU182: 1.897 | AV182: 1.908 | AW182: 1.914 | AX182: 1.906333333 | AY182: 0.008621678104
A183: 370 | B183: 0.037 | C183: 0.038 | D183: 0.039 | E183: 0.038 | F183: 0.001 | G183: 0.107 | H183: 0.106 | I183: 0.1 | J183: 0.1043333333 | K183: 0.003785938897 | L183: 0.173 | M183: 0.158 | N183: 0.151 | O183: 0.1606666667 | P183: 0.0112398102 | Q183: 0.229 | R183: 0.221 | S183: 0.217 | T183: 0.2223333333 | U183: 0.006110100927 | V183: 0.244 | W183: 0.246 | X183: 0.242 | Y183: 0.244 | Z183: 0.002 | AA183: 0.303 | AB183: 0.303 | AC183: 0.298 | AD183: 0.3013333333 | AE183: 0.002886751346 | AF183: 0.689 | AG183: 0.688 | AH183: 0.683 | AI183: 0.6866666667 | AJ183: 0.003214550254 | AK183: 1.045 | AL183: 1.045 | AM183: 1.046 | AN183: 1.045333333 | AO183: 0.0005773502692 | AP183: 1.494 | AQ183: 1.484 | AR183: 1.479 | AS183: 1.485666667 | AT183: 0.007637626158 | AU183: 1.888 | AV183: 1.912 | AW183: 1.902 | AX183: 1.900666667 | AY183: 0.01205542755
A184: 371 | B184: 0.037 | C184: 0.037 | D184: 0.038 | E184: 0.03733333333 | F184: 0.0005773502692 | G184: 0.106 | H184: 0.106 | I184: 0.099 | J184: 0.1036666667 | K184: 0.004041451884 | L184: 0.173 | M184: 0.157 | N184: 0.151 | O184: 0.1603333333 | P184: 0.01137248141 | Q184: 0.228 | R184: 0.22 | S184: 0.216 | T184: 0.2213333333 | U184: 0.006110100927 | V184: 0.243 | W184: 0.246 | X184: 0.242 | Y184: 0.2436666667 | Z184: 0.002081665999 | AA184: 0.302 | AB184: 0.303 | AC184: 0.298 | AD184: 0.301 | AE184: 0.002645751311 | AF184: 0.688 | AG184: 0.685 | AH184: 0.682 | AI184: 0.685 | AJ184: 0.003 | AK184: 1.044 | AL184: 1.044 | AM184: 1.045 | AN184: 1.044333333 | AO184: 0.0005773502692 | AP184: 1.494 | AQ184: 1.48 | AR184: 1.472 | AS184: 1.482 | AT184: 0.01113552873 | AU184: 1.892 | AV184: 1.895 | AW184: 1.887 | AX184: 1.891333333 | AY184: 0.004041451884
A185: 372 | B185: 0.037 | C185: 0.037 | D185: 0.039 | E185: 0.03766666667 | F185: 0.001154700538 | G185: 0.105 | H185: 0.106 | I185: 0.1 | J185: 0.1036666667 | K185: 0.003214550254 | L185: 0.172 | M185: 0.157 | N185: 0.15 | O185: 0.1596666667 | P185: 0.0112398102 | Q185: 0.227 | R185: 0.22 | S185: 0.215 | T185: 0.2206666667 | U185: 0.006027713773 | V185: 0.243 | W185: 0.245 | X185: 0.243 | Y185: 0.2436666667 | Z185: 0.001154700538 | AA185: 0.302 | AB185: 0.302 | AC185: 0.298 | AD185: 0.3006666667 | AE185: 0.002309401077 | AF185: 0.685 | AG185: 0.682 | AH185: 0.681 | AI185: 0.6826666667 | AJ185: 0.002081665999 | AK185: 1.038 | AL185: 1.041 | AM185: 1.045 | AN185: 1.041333333 | AO185: 0.003511884584 | AP185: 1.481 | AQ185: 1.474 | AR185: 1.476 | AS185: 1.477 | AT185: 0.003605551275 | AU185: 1.888 | AV185: 1.877 | AW185: 1.861 | AX185: 1.875333333 | AY185: 0.01357694124
A186: 373 | B186: 0.037 | C186: 0.038 | D186: 0.039 | E186: 0.038 | F186: 0.001 | G186: 0.106 | H186: 0.106 | I186: 0.1 | J186: 0.104 | K186: 0.003464101615 | L186: 0.171 | M186: 0.157 | N186: 0.15 | O186: 0.1593333333 | P186: 0.01069267662 | Q186: 0.226 | R186: 0.219 | S186: 0.214 | T186: 0.2196666667 | U186: 0.006027713773 | V186: 0.243 | W186: 0.245 | X186: 0.243 | Y186: 0.2436666667 | Z186: 0.001154700538 | AA186: 0.301 | AB186: 0.302 | AC186: 0.298 | AD186: 0.3003333333 | AE186: 0.002081665999 | AF186: 0.682 | AG186: 0.678 | AH186: 0.677 | AI186: 0.679 | AJ186: 0.002645751311 | AK186: 1.033 | AL186: 1.035 | AM186: 1.041 | AN186: 1.036333333 | AO186: 0.004163331999 | AP186: 1.476 | AQ186: 1.476 | AR186: 1.471 | AS186: 1.474333333 | AT186: 0.002886751346 | AU186: 1.892 | AV186: 1.867 | AW186: 1.851 | AX186: 1.87 | AY186: 0.02066397832
A187: 374 | B187: 0.037 | C187: 0.038 | D187: 0.038 | E187: 0.03766666667 | F187: 0.0005773502692 | G187: 0.106 | H187: 0.105 | I187: 0.1 | J187: 0.1036666667 | K187: 0.003214550254 | L187: 0.17 | M187: 0.156 | N187: 0.15 | O187: 0.1586666667 | P187: 0.01026320288 | Q187: 0.225 | R187: 0.219 | S187: 0.214 | T187: 0.2193333333 | U187: 0.005507570547 | V187: 0.242 | W187: 0.245 | X187: 0.242 | Y187: 0.243 | Z187: 0.001732050808 | AA187: 0.301 | AB187: 0.301 | AC187: 0.298 | AD187: 0.3 | AE187: 0.001732050808 | AF187: 0.679 | AG187: 0.676 | AH187: 0.673 | AI187: 0.676 | AJ187: 0.003 | AK187: 1.03 | AL187: 1.032 | AM187: 1.035 | AN187: 1.032333333 | AO187: 0.002516611478 | AP187: 1.471 | AQ187: 1.473 | AR187: 1.47 | AS187: 1.471333333 | AT187: 0.001527525232 | AU187: 1.889 | AV187: 1.874 | AW187: 1.851 | AX187: 1.871333333 | AY187: 0.01913983629
A188: 375 | B188: 0.037 | C188: 0.038 | D188: 0.038 | E188: 0.03766666667 | F188: 0.0005773502692 | G188: 0.106 | H188: 0.105 | I188: 0.1 | J188: 0.1036666667 | K188: 0.003214550254 | L188: 0.17 | M188: 0.156 | N188: 0.15 | O188: 0.1586666667 | P188: 0.01026320288 | Q188: 0.225 | R188: 0.219 | S188: 0.214 | T188: 0.2193333333 | U188: 0.005507570547 | V188: 0.242 | W188: 0.244 | X188: 0.242 | Y188: 0.2426666667 | Z188: 0.001154700538 | AA188: 0.3 | AB188: 0.3 | AC188: 0.297 | AD188: 0.299 | AE188: 0.001732050808 | AF188: 0.677 | AG188: 0.677 | AH188: 0.672 | AI188: 0.6753333333 | AJ188: 0.002886751346 | AK188: 1.031 | AL188: 1.031 | AM188: 1.033 | AN188: 1.031666667 | AO188: 0.001154700538 | AP188: 1.472 | AQ188: 1.471 | AR188: 1.469 | AS188: 1.470666667 | AT188: 0.001527525232 | AU188: 1.888 | AV188: 1.872 | AW188: 1.842 | AX188: 1.867333333 | AY188: 0.02335237318
A189: 376 | B189: 0.036 | C189: 0.037 | D189: 0.038 | E189: 0.037 | F189: 0.001 | G189: 0.105 | H189: 0.104 | I189: 0.099 | J189: 0.1026666667 | K189: 0.003214550254 | L189: 0.168 | M189: 0.155 | N189: 0.149 | O189: 0.1573333333 | P189: 0.009712534856 | Q189: 0.224 | R189: 0.218 | S189: 0.213 | T189: 0.2183333333 | U189: 0.005507570547 | V189: 0.242 | W189: 0.243 | X189: 0.241 | Y189: 0.242 | Z189: 0.001 | AA189: 0.299 | AB189: 0.299 | AC189: 0.296 | AD189: 0.298 | AE189: 0.001732050808 | AF189: 0.676 | AG189: 0.675 | AH189: 0.67 | AI189: 0.6736666667 | AJ189: 0.003214550254 | AK189: 1.031 | AL189: 1.032 | AM189: 1.031 | AN189: 1.031333333 | AO189: 0.0005773502692 | AP189: 1.467 | AQ189: 1.469 | AR189: 1.467 | AS189: 1.467666667 | AT189: 0.001154700538 | AU189: 1.896 | AV189: 1.859 | AW189: 1.843 | AX189: 1.866 | AY189: 0.02718455444
A190: 377 | B190: 0.036 | C190: 0.037 | D190: 0.038 | E190: 0.037 | F190: 0.001 | G190: 0.104 | H190: 0.104 | I190: 0.099 | J190: 0.1023333333 | K190: 0.002886751346 | L190: 0.167 | M190: 0.154 | N190: 0.148 | O190: 0.1563333333 | P190: 0.009712534856 | Q190: 0.224 | R190: 0.218 | S190: 0.213 | T190: 0.2183333333 | U190: 0.005507570547 | V190: 0.242 | W190: 0.243 | X190: 0.24 | Y190: 0.2416666667 | Z190: 0.001527525232 | AA190: 0.3 | AB190: 0.298 | AC190: 0.295 | AD190: 0.2976666667 | AE190: 0.002516611478 | AF190: 0.674 | AG190: 0.672 | AH190: 0.669 | AI190: 0.6716666667 | AJ190: 0.002516611478 | AK190: 1.029 | AL190: 1.028 | AM190: 1.031 | AN190: 1.029333333 | AO190: 0.001527525232 | AP190: 1.464 | AQ190: 1.46 | AR190: 1.468 | AS190: 1.464 | AT190: 0.004 | AU190: 1.889 | AV190: 1.864 | AW190: 1.852 | AX190: 1.868333333 | AY190: 0.01887679351
A191: 378 | B191: 0.036 | C191: 0.037 | D191: 0.038 | E191: 0.037 | F191: 0.001 | G191: 0.103 | H191: 0.103 | I191: 0.098 | J191: 0.1013333333 | K191: 0.002886751346 | L191: 0.166 | M191: 0.153 | N191: 0.147 | O191: 0.1553333333 | P191: 0.009712534856 | Q191: 0.222 | R191: 0.217 | S191: 0.212 | T191: 0.217 | U191: 0.005 | V191: 0.241 | W191: 0.242 | X191: 0.24 | Y191: 0.241 | Z191: 0.001 | AA191: 0.299 | AB191: 0.298 | AC191: 0.294 | AD191: 0.297 | AE191: 0.002645751311 | AF191: 0.671 | AG191: 0.67 | AH191: 0.666 | AI191: 0.669 | AJ191: 0.002645751311 | AK191: 1.024 | AL191: 1.021 | AM191: 1.027 | AN191: 1.024 | AO191: 0.003 | AP191: 1.458 | AQ191: 1.458 | AR191: 1.462 | AS191: 1.459333333 | AT191: 0.002309401077 | AU191: 1.876 | AV191: 1.865 | AW191: 1.849 | AX191: 1.863333333 | AY191: 0.01357694124
A192: 379 | B192: 0.035 | C192: 0.036 | D192: 0.036 | E192: 0.03566666667 | F192: 0.0005773502692 | G192: 0.102 | H192: 0.101 | I192: 0.095 | J192: 0.09933333333 | K192: 0.003785938897 | L192: 0.165 | M192: 0.151 | N192: 0.145 | O192: 0.1536666667 | P192: 0.01026320288 | Q192: 0.22 | R192: 0.214 | S192: 0.209 | T192: 0.2143333333 | U192: 0.005507570547 | V192: 0.239 | W192: 0.24 | X192: 0.238 | Y192: 0.239 | Z192: 0.001 | AA192: 0.297 | AB192: 0.297 | AC192: 0.293 | AD192: 0.2956666667 | AE192: 0.002309401077 | AF192: 0.669 | AG192: 0.669 | AH192: 0.663 | AI192: 0.667 | AJ192: 0.003464101615 | AK192: 1.021 | AL192: 1.015 | AM192: 1.022 | AN192: 1.019333333 | AO192: 0.003785938897 | AP192: 1.459 | AQ192: 1.454 | AR192: 1.455 | AS192: 1.456 | AT192: 0.002645751311 | AU192: 1.852 | AV192: 1.849 | AW192: 1.857 | AX192: 1.852666667 | AY192: 0.004041451884
A193: 380 | B193: 0.034 | C193: 0.035 | D193: 0.035 | E193: 0.03466666667 | F193: 0.0005773502692 | G193: 0.1 | H193: 0.099 | I193: 0.094 | J193: 0.09766666667 | K193: 0.003214550254 | L193: 0.163 | M193: 0.15 | N193: 0.144 | O193: 0.1523333333 | P193: 0.009712534856 | Q193: 0.218 | R193: 0.213 | S193: 0.207 | T193: 0.2126666667 | U193: 0.005507570547 | V193: 0.238 | W193: 0.239 | X193: 0.237 | Y193: 0.238 | Z193: 0.001 | AA193: 0.294 | AB193: 0.295 | AC193: 0.292 | AD193: 0.2936666667 | AE193: 0.001527525232 | AF193: 0.666 | AG193: 0.667 | AH193: 0.662 | AI193: 0.665 | AJ193: 0.002645751311 | AK193: 1.019 | AL193: 1.012 | AM193: 1.019 | AN193: 1.016666667 | AO193: 0.004041451884 | AP193: 1.46 | AQ193: 1.455 | AR193: 1.453 | AS193: 1.456 | AT193: 0.003605551275 | AU193: 1.835 | AV193: 1.845 | AW193: 1.852 | AX193: 1.844 | AY193: 0.008544003745
A194: 381 | B194: 0.033 | C194: 0.033 | D194: 0.033 | E194: 0.033 | F194: 0 | G194: 0.099 | H194: 0.098 | I194: 0.092 | J194: 0.09633333333 | K194: 0.003785938897 | L194: 0.161 | M194: 0.148 | N194: 0.142 | O194: 0.1503333333 | P194: 0.009712534856 | Q194: 0.216 | R194: 0.21 | S194: 0.205 | T194: 0.2103333333 | U194: 0.005507570547 | V194: 0.236 | W194: 0.237 | X194: 0.235 | Y194: 0.236 | Z194: 0.001 | AA194: 0.292 | AB194: 0.293 | AC194: 0.289 | AD194: 0.2913333333 | AE194: 0.002081665999 | AF194: 0.663 | AG194: 0.663 | AH194: 0.659 | AI194: 0.6616666667 | AJ194: 0.002309401077 | AK194: 1.014 | AL194: 1.009 | AM194: 1.013 | AN194: 1.012 | AO194: 0.002645751311 | AP194: 1.453 | AQ194: 1.448 | AR194: 1.453 | AS194: 1.451333333 | AT194: 0.002886751346 | AU194: 1.821 | AV194: 1.839 | AW194: 1.844 | AX194: 1.834666667 | AY194: 0.01209683154
A195: 382 | B195: 0.032 | C195: 0.033 | D195: 0.033 | E195: 0.03266666667 | F195: 0.0005773502692 | G195: 0.098 | H195: 0.097 | I195: 0.092 | J195: 0.09566666667 | K195: 0.003214550254 | L195: 0.159 | M195: 0.147 | N195: 0.141 | O195: 0.149 | P195: 0.00916515139 | Q195: 0.215 | R195: 0.209 | S195: 0.204 | T195: 0.2093333333 | U195: 0.005507570547 | V195: 0.235 | W195: 0.236 | X195: 0.233 | Y195: 0.2346666667 | Z195: 0.001527525232 | AA195: 0.291 | AB195: 0.291 | AC195: 0.288 | AD195: 0.29 | AE195: 0.001732050808 | AF195: 0.661 | AG195: 0.66 | AH195: 0.658 | AI195: 0.6596666667 | AJ195: 0.001527525232 | AK195: 1.011 | AL195: 1.009 | AM195: 1.008 | AN195: 1.009333333 | AO195: 0.001527525232 | AP195: 1.445 | AQ195: 1.445 | AR195: 1.45 | AS195: 1.446666667 | AT195: 0.002886751346 | AU195: 1.833 | AV195: 1.852 | AW195: 1.823 | AX195: 1.836 | AY195: 0.01473091986
A196: 383 | B196: 0.032 | C196: 0.033 | D196: 0.033 | E196: =AVERAGE(B196:D196) -> 0.03266666667 | F196: =STDEV(B196:D196) -> 0.0005773502692 | G196: 0.097 | H196: 0.097 | I196: 0.092 | J196: =AVERAGE(G196:I196) -> 0.09533333333 | K196: =STDEV(G196:I196) -> 0.002886751346 | L196: 0.158 | M196: 0.145 | N196: 0.141 | O196: =AVERAGE(L196:N196) -> 0.148 | P196: =STDEV(L196:N196) -> 0.008888194417 | Q196: 0.214 | R196: 0.207 | S196: 0.203 | T196: =AVERAGE(Q196:S196) -> 0.208 | U196: =STDEV(Q196:S196) -> 0.005567764363 | V196: 0.234 | W196: 0.234 | X196: 0.233 | Y196: =AVERAGE(V196:X196) -> 0.2336666667 | Z196: =STDEV(V196:X196) -> 0.0005773502692 | AA196: 0.291 | AB196: 0.29 | AC196: 0.288 | AD196: =AVERAGE(AA196:AC196) -> 0.2896666667 | AE196: =STDEV(AA196:AC196) -> 0.001527525232 | AF196: 0.66 | AG196: 0.66 | AH196: 0.656 | AI196: =AVERAGE(AF196:AH196) -> 0.6586666667 | AJ196: =STDEV(AF196:AH196) -> 0.002309401077 | AK196: 1.009 | AL196: 1.008 | AM196: 1.008 | AN196: =AVERAGE(AK196:AM196) -> 1.008333333 | AO196: =STDEV(AK196:AM196) -> 0.0005773502692 | AP196: 1.44 | AQ196: 1.445 | AR196: 1.445 | AS196: =AVERAGE(AP196:AR196) -> 1.443333333 | AT196: =STDEV(AP196:AR196) -> 0.002886751346 | AU196: 1.829 | AV196: 1.845 | AW196: 1.827 | AX196: =AVERAGE(AU196:AW196) -> 1.833666667 | AY196: =STDEV(AU196:AW196) -> 0.009865765725
A197: 384 | B197: 0.032 | C197: 0.033 | D197: 0.033 | E197: 0.03266666667 | F197: 0.0005773502692 | G197: 0.097 | H197: 0.096 | I197: 0.091 | J197: 0.09466666667 | K197: 0.003214550254 | L197: 0.157 | M197: 0.145 | N197: 0.14 | O197: 0.1473333333 | P197: 0.008736894948 | Q197: 0.213 | R197: 0.207 | S197: 0.203 | T197: 0.2076666667 | U197: 0.005033222957 | V197: 0.234 | W197: 0.233 | X197: 0.233 | Y197: 0.2333333333 | Z197: 0.0005773502692 | AA197: 0.291 | AB197: 0.289 | AC197: 0.287 | AD197: 0.289 | AE197: 0.002 | AF197: 0.66 | AG197: 0.659 | AH197: 0.657 | AI197: 0.6586666667 | AJ197: 0.001527525232 | AK197: 1.006 | AL197: 1.007 | AM197: 1.009 | AN197: 1.007333333 | AO197: 0.001527525232 | AP197: 1.444 | AQ197: 1.444 | AR197: 1.445 | AS197: 1.444333333 | AT197: 0.0005773502692 | AU197: 1.838 | AV197: 1.826 | AW197: 1.846 | AX197: 1.836666667 | AY197: 0.01006644591
A198: 385 | B198: 0.032 | C198: 0.032 | D198: 0.033 | E198: 0.03233333333 | F198: 0.0005773502692 | G198: 0.096 | H198: 0.095 | I198: 0.09 | J198: 0.09366666667 | K198: 0.003214550254 | L198: 0.156 | M198: 0.144 | N198: 0.139 | O198: 0.1463333333 | P198: 0.008736894948 | Q198: 0.212 | R198: 0.206 | S198: 0.202 | T198: 0.2066666667 | U198: 0.005033222957 | V198: 0.233 | W198: 0.233 | X198: 0.232 | Y198: 0.2326666667 | Z198: 0.0005773502692 | AA198: 0.289 | AB198: 0.289 | AC198: 0.287 | AD198: 0.2883333333 | AE198: 0.001154700538 | AF198: 0.658 | AG198: 0.658 | AH198: 0.656 | AI198: 0.6573333333 | AJ198: 0.001154700538 | AK198: 1.005 | AL198: 1.007 | AM198: 1.007 | AN198: 1.006333333 | AO198: 0.001154700538 | AP198: 1.444 | AQ198: 1.444 | AR198: 1.445 | AS198: 1.444333333 | AT198: 0.0005773502692 | AU198: 1.839 | AV198: 1.828 | AW198: 1.849 | AX198: 1.838666667 | AY198: 0.0105039675
A199: 386 | B199: 0.03 | C199: 0.031 | D199: 0.031 | E199: 0.03066666667 | F199: 0.0005773502692 | G199: 0.094 | H199: 0.094 | I199: 0.089 | J199: 0.09233333333 | K199: 0.002886751346 | L199: 0.153 | M199: 0.142 | N199: 0.136 | O199: 0.1436666667 | P199: 0.008621678104 | Q199: 0.209 | R199: 0.204 | S199: 0.2 | T199: 0.2043333333 | U199: 0.004509249753 | V199: 0.231 | W199: 0.232 | X199: 0.231 | Y199: 0.2313333333 | Z199: 0.0005773502692 | AA199: 0.286 | AB199: 0.287 | AC199: 0.284 | AD199: 0.2856666667 | AE199: 0.001527525232 | AF199: 0.657 | AG199: 0.657 | AH199: 0.653 | AI199: 0.6556666667 | AJ199: 0.002309401077 | AK199: 1.003 | AL199: 1.005 | AM199: 1.004 | AN199: 1.004 | AO199: 0.001 | AP199: 1.437 | AQ199: 1.443 | AR199: 1.444 | AS199: 1.441333333 | AT199: 0.003785938897 | AU199: 1.851 | AV199: 1.834 | AW199: 1.837 | AX199: 1.840666667 | AY199: 0.009073771726
A200: 387 | B200: 0.029 | C200: 0.03 | D200: 0.03 | E200: 0.02966666667 | F200: 0.0005773502692 | G200: 0.093 | H200: 0.092 | I200: 0.088 | J200: 0.091 | K200: 0.002645751311 | L200: 0.152 | M200: 0.141 | N200: 0.135 | O200: 0.1426666667 | P200: 0.008621678104 | Q200: 0.208 | R200: 0.202 | S200: 0.198 | T200: 0.2026666667 | U200: 0.005033222957 | V200: 0.23 | W200: 0.231 | X200: 0.23 | Y200: 0.2303333333 | Z200: 0.0005773502692 | AA200: 0.286 | AB200: 0.286 | AC200: 0.283 | AD200: 0.285 | AE200: 0.001732050808 | AF200: 0.656 | AG200: 0.654 | AH200: 0.65 | AI200: 0.6533333333 | AJ200: 0.003055050463 | AK200: 1.004 | AL200: 1.002 | AM200: 1 | AN200: 1.002 | AO200: 0.002 | AP200: 1.436 | AQ200: 1.436 | AR200: 1.438 | AS200: 1.436666667 | AT200: 0.001154700538 | AU200: 1.853 | AV200: 1.844 | AW200: 1.813 | AX200: 1.836666667 | AY200: 0.02098412098
... 453 more rows

Sheet Figure 4
A1: (a) Cys conc. | AF1: (b) Fe conc. | BF1: (c) S conc. | CF1: (d) pH
A2: Wavelength | B2: 1mM | G2: 2.5mM | L2: 3.5mM | Q2: 5mM | V2: 7.5mM | AA2: 10mM | AF2: Wavelength | AG2: 0.2mM | AL2: 0.4mM | AQ2: 0.6mM | AV2: 0.8mM | BA2: 1mM | BF2: Wavelength | BG2: 0.2mM | BL2: 0.4mM | BQ2: 0.6mM | BV2: 0.8mM | CA2: 1mM | CF2: Wavelength | CG2: pH 8 | CL2: pH 9 | CQ2: pH 10 | CV2: pH 11 | DA2: pH 12
B3: i | C3: ii | D3: iii | E3: Av | F3: SD | G3: i | H3: ii | I3: iii | J3: Av | K3: SD | L3: i | M3: ii | N3: iii | O3: Av | P3: SD | Q3: i | R3: ii | S3: iii | T3: Av | U3: SD | V3: i | W3: ii | X3: iii | Y3: Av | Z3: SD | AA3: i | AB3: ii | AC3: iii | AD3: Av | AE3: SD | AG3: i | AH3: ii | AI3: iii | AJ3: Av | AK3: SD | AL3: i | AM3: ii | AN3: iii | AO3: Av | AP3: SD | AQ3: i | AR3: ii | AS3: iii | AT3: Av | AU3: SD | AV3: i | AW3: ii | AX3: iii | AY3: Av | AZ3: SD | BA3: i | BB3: ii | BC3: iii | BD3: Av | BE3: SD | BG3: i | BH3: ii | BI3: iii | BJ3: Av | BK3: SD | BL3: i | BM3: ii | BN3: iii | BO3: Av | BP3: SD | BQ3: i | BR3: ii | BS3: iii | BT3: Av | BU3: SD | BV3: i | BW3: ii | BX3: iii | BY3: Av | BZ3: SD | CA3: i | CB3: ii | CC3: iii | CD3: Av | CE3: SD | CG3: i | CH3: ii | CI3: iii | CJ3: Av | CK3: SD | CL3: i | CM3: ii | CN3: iii | CO3: Av | CP3: SD | CQ3: i | CR3: ii | CS3: iii | CT3: Av | CU3: SD | CV3: i | CW3: ii | CX3: iii | CY3: Av | CZ3: SD | DA3: i | DB3: ii | DC3: iii | DD3: Av | DE3: SD
A4: 190 | B4: 0.421 | C4: 0.205 | D4: 0.294 | E4: =AVERAGE(B4:D4) -> 0.307 | F4: =STDEV(B4:D4) -> 0.109 | G4: 0.185 | H4: 0.312 | I4: 0.186 | J4: =AVERAGE(G4:I4) -> 0.228 | K4: =STDEV(G4:I4) -> 0.073 | L4: 0.369 | M4: 0.373 | N4: 0.362 | O4: =AVERAGE(L4:N4) -> 0.368 | P4: =STDEV(L4:N4) -> 0.006 | Q4: 0.766 | R4: 0.988 | S4: 0.875 | T4: =AVERAGE(Q4:S4) -> 0.876 | U4: =STDEV(Q4:S4) -> 0.111 | V4: 0.83 | W4: 0.818 | X4: 0.799 | Y4: =AVERAGE(V4:X4) -> 0.816 | Z4: =STDEV(V4:X4) -> 0.016 | AA4: 0.675 | AB4: 0.518 | AC4: 0.474 | AD4: =AVERAGE(AA4:AC4) -> 0.556 | AE4: =STDEV(AA4:AC4) -> 0.106 | AF4: 190 | AG4: 0.295 | AH4: 0.536 | AI4: 0.682 | AJ4: =AVERAGE(AG4:AI4) -> 0.504 | AK4: =STDEV(AG4:AI4) -> 0.195 | AL4: 0.806 | AM4: 1.135 | AN4: 0.909 | AO4: =AVERAGE(AL4:AN4) -> 0.950 | AP4: =STDEV(AL4:AN4) -> 0.168 | AQ4: 0.756 | AR4: 0.702 | AS4: 0.79 | AT4: =AVERAGE(AQ4:AS4) -> 0.749 | AU4: =STDEV(AQ4:AS4) -> 0.044 | AV4: 0.896 | AW4: 0.738 | AX4: 0.862 | AY4: =AVERAGE(AV4:AX4) -> 0.832 | AZ4: =STDEV(AV4:AX4) -> 0.083 | BA4: 0.4 | BB4: 0.657 | BC4: 0.657 | BD4: =AVERAGE(BA4:BC4) -> 0.571 | BE4: =STDEV(BA4:BC4) -> 0.148 | BF4: 190 | BG4: 0.611 | BH4: 0.543 | BI4: 0.487 | BJ4: =AVERAGE(BG4:BI4) -> 0.547 | BK4: =STDEV(BG4:BI4) -> 0.062 | BL4: 0.875 | BM4: 0.722 | BN4: 0.507 | BO4: =AVERAGE(BL4:BN4) -> 0.701 | BP4: =STDEV(BL4:BN4) -> 0.185 | BQ4: 0.544 | BR4: 0.633 | BS4: 0.853 | BT4: =AVERAGE(BQ4:BS4) -> 0.677 | BU4: =STDEV(BQ4:BS4) -> 0.159 | BV4: 1.185 | BW4: 0.635 | BX4: 1.103 | BY4: =AVERAGE(BV4:BX4) -> 0.974 | BZ4: =STDEV(BV4:BX4) -> 0.297 | CA4: 0.4 | CB4: 0.657 | CC4: 0.657 | CD4: =AVERAGE(CA4:CC4) -> 0.571 | CE4: =STDEV(CA4:CC4) -> 0.148 | CF4: 190 | CG4: -0.078 | CH4: 0.527 | CI4: 0.293 | CJ4: =AVERAGE(CG4:CI4) -> 0.247 | CK4: =STDEV(CG4:CI4) -> 0.305 | CL4: 0.4 | CM4: 0.657 | CN4: 0.657 | CO4: =AVERAGE(CL4:CN4) -> 0.571 | CP4: =STDEV(CL4:CN4) -> 0.148 | CQ4: 1.104 | CR4: 0.423 | CS4: 0.4 | CT4: =AVERAGE(CQ4:CS4) -> 0.642 | CU4: =STDEV(CQ4:CS4) -> 0.400 | CV4: 0.31 | CW4: 0.372 | CX4: 0.427 | CY4: =AVERAGE(CV4:CX4) -> 0.370 | CZ4: =STDEV(CV4:CX4) -> 0.059 | DA4: 0.892 | DB4: 0.591 | DC4: 0.503 | DD4: =AVERAGE(DA4:DC4) -> 0.662 | DE4: =STDEV(DA4:DC4) -> 0.204
A5: 191 | B5: 0.39 | C5: 0.236 | D5: 0.056 | E5: =AVERAGE(B5:D5) -> 0.227 | F5: =STDEV(B5:D5) -> 0.167 | G5: -0.044 | H5: 0.04 | I5: 0.076 | J5: =AVERAGE(G5:I5) -> 0.024 | K5: =STDEV(G5:I5) -> 0.062 | L5: 0.399 | M5: 0.274 | N5: 0.242 | O5: =AVERAGE(L5:N5) -> 0.305 | P5: =STDEV(L5:N5) -> 0.083 | Q5: 0.734 | R5: 0.621 | S5: 0.792 | T5: =AVERAGE(Q5:S5) -> 0.716 | U5: =STDEV(Q5:S5) -> 0.087 | V5: 0.728 | W5: 0.692 | X5: 0.855 | Y5: =AVERAGE(V5:X5) -> 0.758 | Z5: =STDEV(V5:X5) -> 0.086 | AA5: 0.525 | AB5: 0.385 | AC5: 0.373 | AD5: =AVERAGE(AA5:AC5) -> 0.428 | AE5: =STDEV(AA5:AC5) -> 0.085 | AF5: 191 | AG5: 0.262 | AH5: 0.703 | AI5: 0.654 | AJ5: =AVERAGE(AG5:AI5) -> 0.540 | AK5: =STDEV(AG5:AI5) -> 0.242 | AL5: 0.976 | AM5: 1.12 | AN5: 0.933 | AO5: =AVERAGE(AL5:AN5) -> 1.010 | AP5: =STDEV(AL5:AN5) -> 0.098 | AQ5: 0.902 | AR5: 0.905 | AS5: 0.709 | AT5: =AVERAGE(AQ5:AS5) -> 0.839 | AU5: =STDEV(AQ5:AS5) -> 0.112 | AV5: 1.085 | AW5: 1.021 | AX5: 0.949 | AY5: =AVERAGE(AV5:AX5) -> 1.018 | AZ5: =STDEV(AV5:AX5) -> 0.068 | BA5: 0.547 | BB5: 0.676 | BC5: 0.735 | BD5: =AVERAGE(BA5:BC5) -> 0.653 | BE5: =STDEV(BA5:BC5) -> 0.096 | BF5: 191 | BG5: 0.599 | BH5: 0.713 | BI5: 0.602 | BJ5: =AVERAGE(BG5:BI5) -> 0.638 | BK5: =STDEV(BG5:BI5) -> 0.065 | BL5: 0.813 | BM5: 0.591 | BN5: 0.531 | BO5: =AVERAGE(BL5:BN5) -> 0.645 | BP5: =STDEV(BL5:BN5) -> 0.149 | BQ5: 0.524 | BR5: 0.746 | BS5: 1.056 | BT5: =AVERAGE(BQ5:BS5) -> 0.775 | BU5: =STDEV(BQ5:BS5) -> 0.267 | BV5: 1.097 | BW5: 0.925 | BX5: 0.845 | BY5: =AVERAGE(BV5:BX5) -> 0.956 | BZ5: =STDEV(BV5:BX5) -> 0.129 | CA5: 0.547 | CB5: 0.676 | CC5: 0.735 | CD5: =AVERAGE(CA5:CC5) -> 0.653 | CE5: =STDEV(CA5:CC5) -> 0.096 | CF5: 191 | CG5: -0.154 | CH5: 0.406 | CI5: 0.189 | CJ5: =AVERAGE(CG5:CI5) -> 0.147 | CK5: =STDEV(CG5:CI5) -> 0.282 | CL5: 0.547 | CM5: 0.676 | CN5: 0.735 | CO5: =AVERAGE(CL5:CN5) -> 0.653 | CP5: =STDEV(CL5:CN5) -> 0.096 | CQ5: 0.852 | CR5: 0.356 | CS5: 0.547 | CT5: =AVERAGE(CQ5:CS5) -> 0.585 | CU5: =STDEV(CQ5:CS5) -> 0.250 | CV5: 0.47 | CW5: 0.502 | CX5: 0.353 | CY5: =AVERAGE(CV5:CX5) -> 0.442 | CZ5: =STDEV(CV5:CX5) -> 0.078 | DA5: 0.881 | DB5: 0.638 | DC5: 0.449 | DD5: =AVERAGE(DA5:DC5) -> 0.656 | DE5: =STDEV(DA5:DC5) -> 0.217
A6: 192 | B6: 0.017 | C6: 0.066 | D6: -0.069 | E6: 0.005 | F6: 0.068 | G6: -0.117 | H6: 0.015 | I6: -0.045 | J6: -0.049 | K6: 0.066 | L6: 0.594 | M6: 0.238 | N6: 0.492 | O6: 0.441 | P6: 0.183 | Q6: 0.679 | R6: 0.343 | S6: 0.624 | T6: 0.549 | U6: 0.180 | V6: 0.754 | W6: 0.532 | X6: 0.804 | Y6: 0.697 | Z6: 0.145 | AA6: 0.336 | AB6: 0.299 | AC6: 0.354 | AD6: 0.330 | AE6: 0.028 | AF6: 192 | AG6: 0.226 | AH6: 0.689 | AI6: 0.618 | AJ6: 0.511 | AK6: 0.249 | AL6: 1.07 | AM6: 0.972 | AN6: 0.836 | AO6: 0.959 | AP6: 0.118 | AQ6: 0.882 | AR6: 0.927 | AS6: 0.693 | AT6: 0.834 | AU6: 0.124 | AV6: 1.19 | AW6: 1 | AX6: 0.922 | AY6: 1.037 | AZ6: 0.138 | BA6: 0.499 | BB6: 0.657 | BC6: 0.562 | BD6: 0.573 | BE6: 0.080 | BF6: 192 | BG6: 0.654 | BH6: 0.686 | BI6: 0.578 | BJ6: 0.639 | BK6: 0.055 | BL6: 0.672 | BM6: 0.286 | BN6: 0.725 | BO6: 0.561 | BP6: 0.240 | BQ6: 0.633 | BR6: 0.601 | BS6: 0.948 | BT6: 0.727 | BU6: 0.192 | BV6: 0.893 | BW6: 0.841 | BX6: 0.845 | BY6: 0.860 | BZ6: 0.029 | CA6: 0.499 | CB6: 0.657 | CC6: 0.562 | CD6: 0.573 | CE6: 0.080 | CF6: 192 | CG6: 0.03 | CH6: 0.219 | CI6: -0.025 | CJ6: 0.075 | CK6: 0.128 | CL6: 0.499 | CM6: 0.657 | CN6: 0.562 | CO6: 0.573 | CP6: 0.080 | CQ6: 0.665 | CR6: 0.593 | CS6: 0.499 | CT6: 0.586 | CU6: 0.083 | CV6: 0.588 | CW6: 0.625 | CX6: 0.553 | CY6: 0.589 | CZ6: 0.036 | DA6: 0.954 | DB6: 0.744 | DC6: 0.332 | DD6: 0.677 | DE6: 0.316
A7: 193 | B7: -0.086 | C7: -0.07 | D7: -0.039 | E7: -0.065 | F7: 0.024 | G7: -0.073 | H7: -0.065 | I7: -0.094 | J7: -0.077 | K7: 0.015 | L7: 0.79 | M7: 0.25 | N7: 0.646 | O7: 0.562 | P7: 0.280 | Q7: 0.79 | R7: 0.465 | S7: 0.456 | T7: 0.570 | U7: 0.190 | V7: 0.654 | W7: 0.187 | X7: 0.767 | Y7: 0.536 | Z7: 0.307 | AA7: 0.247 | AB7: 0.341 | AC7: 0.325 | AD7: 0.304 | AE7: 0.050 | AF7: 193 | AG7: 0.204 | AH7: 0.618 | AI7: 0.539 | AJ7: 0.454 | AK7: 0.220 | AL7: 1.168 | AM7: 0.792 | AN7: 0.593 | AO7: 0.851 | AP7: 0.292 | AQ7: 0.698 | AR7: 0.616 | AS7: 0.645 | AT7: 0.653 | AU7: 0.042 | AV7: 1.093 | AW7: 0.769 | AX7: 0.722 | AY7: 0.861 | AZ7: 0.202 | BA7: 0.509 | BB7: 0.632 | BC7: 0.438 | BD7: 0.526 | BE7: 0.098 | BF7: 193 | BG7: 0.599 | BH7: 0.629 | BI7: 0.439 | BJ7: 0.556 | BK7: 0.102 | BL7: 0.504 | BM7: 0.288 | BN7: 0.794 | BO7: 0.529 | BP7: 0.254 | BQ7: 0.746 | BR7: 0.696 | BS7: 0.76 | BT7: 0.734 | BU7: 0.034 | BV7: 0.773 | BW7: 0.753 | BX7: 0.787 | BY7: 0.771 | BZ7: 0.017 | CA7: 0.509 | CB7: 0.632 | CC7: 0.438 | CD7: 0.526 | CE7: 0.098 | CF7: 193 | CG7: 0.32 | CH7: 0.104 | CI7: -0.08 | CJ7: 0.115 | CK7: 0.200 | CL7: 0.509 | CM7: 0.632 | CN7: 0.438 | CO7: 0.526 | CP7: 0.098 | CQ7: 0.456 | CR7: 0.614 | CS7: 0.509 | CT7: 0.526 | CU7: 0.080 | CV7: 0.662 | CW7: 0.93 | CX7: 0.654 | CY7: 0.749 | CZ7: 0.157 | DA7: 0.794 | DB7: 0.537 | DC7: 0.165 | DD7: 0.499 | DE7: 0.316
A8: 194 | B8: -0.121 | C8: 0.048 | D8: 0.1 | E8: 0.009 | F8: 0.116 | G8: -0.02 | H8: 0.155 | I8: 0.023 | J8: 0.053 | K8: 0.091 | L8: 0.653 | M8: 0.314 | N8: 0.692 | O8: 0.553 | P8: 0.208 | Q8: 0.721 | R8: 0.629 | S8: 0.218 | T8: 0.523 | U8: 0.268 | V8: 0.551 | W8: 0.276 | X8: 0.955 | Y8: 0.594 | Z8: 0.342 | AA8: 0.224 | AB8: 0.392 | AC8: 0.249 | AD8: 0.288 | AE8: 0.091 | AF8: 194 | AG8: 0.191 | AH8: 0.725 | AI8: 0.504 | AJ8: 0.473 | AK8: 0.268 | AL8: 1.098 | AM8: 0.796 | AN8: 0.639 | AO8: 0.844 | AP8: 0.233 | AQ8: 0.718 | AR8: 0.453 | AS8: 0.7 | AT8: 0.624 | AU8: 0.148 | AV8: 1.001 | AW8: 0.731 | AX8: 0.823 | AY8: 0.852 | AZ8: 0.137 | BA8: 0.6 | BB8: 0.753 | BC8: 0.438 | BD8: 0.597 | BE8: 0.158 | BF8: 194 | BG8: 0.596 | BH8: 0.813 | BI8: 0.421 | BJ8: 0.610 | BK8: 0.196 | BL8: 0.497 | BM8: 0.465 | BN8: 0.742 | BO8: 0.568 | BP8: 0.152 | BQ8: 0.603 | BR8: 0.873 | BS8: 0.871 | BT8: 0.782 | BU8: 0.155 | BV8: 0.858 | BW8: 0.824 | BX8: 0.933 | BY8: 0.872 | BZ8: 0.056 | CA8: 0.6 | CB8: 0.753 | CC8: 0.438 | CD8: 0.597 | CE8: 0.158 | CF8: 194 | CG8: 0.468 | CH8: -0.02 | CI8: 0.045 | CJ8: 0.164 | CK8: 0.265 | CL8: 0.6 | CM8: 0.753 | CN8: 0.438 | CO8: 0.597 | CP8: 0.158 | CQ8: 0.217 | CR8: 0.514 | CS8: 0.6 | CT8: 0.444 | CU8: 0.201 | CV8: 0.574 | CW8: 0.9 | CX8: 0.793 | CY8: 0.756 | CZ8: 0.166 | DA8: 0.705 | DB8: 0.482 | DC8: 0.348 | DD8: 0.512 | DE8: 0.180
A9: 195 | B9: -0.272 | C9: 0.004 | D9: 0.078 | E9: -0.063 | F9: 0.184 | G9: 0.021 | H9: 0.046 | I9: 0.08 | J9: 0.049 | K9: 0.030 | L9: 0.524 | M9: 0.634 | N9: 0.661 | O9: 0.606 | P9: 0.073 | Q9: 0.708 | R9: 0.676 | S9: 0.185 | T9: 0.523 | U9: 0.293 | V9: 0.344 | W9: 0.487 | X9: 0.642 | Y9: 0.491 | Z9: 0.149 | AA9: 0.369 | AB9: 0.424 | AC9: 0.151 | AD9: 0.315 | AE9: 0.144 | AF9: 195 | AG9: 0.188 | AH9: 0.806 | AI9: 0.5 | AJ9: 0.498 | AK9: 0.309 | AL9: 0.809 | AM9: 0.799 | AN9: 0.846 | AO9: 0.818 | AP9: 0.025 | AQ9: 0.643 | AR9: 0.562 | AS9: 0.603 | AT9: 0.603 | AU9: 0.041 | AV9: 0.896 | AW9: 0.648 | AX9: 0.889 | AY9: 0.811 | AZ9: 0.141 | BA9: 0.488 | BB9: 0.691 | BC9: 0.516 | BD9: 0.565 | BE9: 0.110 | BF9: 195 | BG9: 0.525 | BH9: 0.656 | BI9: 0.446 | BJ9: 0.542 | BK9: 0.106 | BL9: 0.586 | BM9: 0.543 | BN9: 0.503 | BO9: 0.544 | BP9: 0.042 | BQ9: 0.486 | BR9: 0.957 | BS9: 0.83 | BT9: 0.758 | BU9: 0.244 | BV9: 0.896 | BW9: 0.803 | BX9: 0.915 | BY9: 0.871 | BZ9: 0.060 | CA9: 0.488 | CB9: 0.691 | CC9: 0.516 | CD9: 0.565 | CE9: 0.110 | CF9: 195 | CG9: 0.198 | CH9: -0.018 | CI9: 0.16 | CJ9: 0.113 | CK9: 0.115 | CL9: 0.488 | CM9: 0.691 | CN9: 0.516 | CO9: 0.565 | CP9: 0.110 | CQ9: 0.273 | CR9: 0.467 | CS9: 0.488 | CT9: 0.409 | CU9: 0.119 | CV9: 0.408 | CW9: 0.773 | CX9: 0.713 | CY9: 0.631 | CZ9: 0.196 | DA9: 0.541 | DB9: 0.244 | DC9: 0.358 | DD9: 0.381 | DE9: 0.150
A10: 196 | B10: -0.264 | C10: 0.326 | D10: 0.114 | E10: 0.059 | F10: 0.299 | G10: 0.168 | H10: 0.095 | I10: -0.09 | J10: 0.058 | K10: 0.133 | L10: 0.327 | M10: 0.88 | N10: 0.506 | O10: 0.571 | P10: 0.282 | Q10: 0.621 | R10: 0.7 | S10: 0.374 | T10: 0.565 | U10: 0.170 | V10: 0.387 | W10: 0.902 | X10: 0.627 | Y10: 0.639 | Z10: 0.258 | AA10: 0.605 | AB10: 0.546 | AC10: 0.479 | AD10: 0.543 | AE10: 0.063 | AF10: 196 | AG10: 0.179 | AH10: 0.856 | AI10: 0.761 | AJ10: 0.599 | AK10: 0.367 | AL10: 0.634 | AM10: 0.803 | AN10: 0.78 | AO10: 0.739 | AP10: 0.092 | AQ10: 0.559 | AR10: 0.779 | AS10: 0.668 | AT10: 0.669 | AU10: 0.110 | AV10: 0.817 | AW10: 0.884 | AX10: 0.93 | AY10: 0.877 | AZ10: 0.057 | BA10: 0.469 | BB10: 0.615 | BC10: 0.487 | BD10: 0.524 | BE10: 0.080 | BF10: 196 | BG10: 0.522 | BH10: 0.524 | BI10: 0.507 | BJ10: 0.518 | BK10: 0.009 | BL10: 0.645 | BM10: 0.534 | BN10: 0.465 | BO10: 0.548 | BP10: 0.091 | BQ10: 0.589 | BR10: 0.897 | BS10: 0.923 | BT10: 0.803 | BU10: 0.186 | BV10: 0.649 | BW10: 0.976 | BX10: 0.862 | BY10: 0.829 | BZ10: 0.166 | CA10: 0.469 | CB10: 0.615 | CC10: 0.487 | CD10: 0.524 | CE10: 0.080 | CF10: 196 | CG10: -0.231 | CH10: -0.111 | CI10: 0.035 | CJ10: -0.102 | CK10: 0.133 | CL10: 0.469 | CM10: 0.615 | CN10: 0.487 | CO10: 0.524 | CP10: 0.080 | CQ10: 0.319 | CR10: 0.504 | CS10: 0.469 | CT10: 0.431 | CU10: 0.098 | CV10: 0.384 | CW10: 0.581 | CX10: 0.482 | CY10: 0.482 | CZ10: 0.099 | DA10: 0.341 | DB10: 0.181 | DC10: 0.295 | DD10: 0.272 | DE10: 0.082
A11: 197 | B11: -0.268 | C11: 0.199 | D11: 0.11 | E11: 0.014 | F11: 0.248 | G11: 0.263 | H11: -0.071 | I11: -0.167 | J11: 0.008 | K11: 0.226 | L11: 0.265 | M11: 0.76 | N11: 0.276 | O11: 0.434 | P11: 0.283 | Q11: 0.581 | R11: 0.659 | S11: 0.542 | T11: 0.594 | U11: 0.060 | V11: 0.717 | W11: 0.963 | X11: 0.664 | Y11: 0.781 | Z11: 0.160 | AA11: 0.691 | AB11: 0.808 | AC11: 0.903 | AD11: 0.801 | AE11: 0.106 | AF11: 197 | AG11: 0.175 | AH11: 0.644 | AI11: 0.792 | AJ11: 0.537 | AK11: 0.322 | AL11: 0.619 | AM11: 0.828 | AN11: 0.925 | AO11: 0.791 | AP11: 0.156 | AQ11: 0.432 | AR11: 1.032 | AS11: 0.71 | AT11: 0.725 | AU11: 0.300 | AV11: 0.736 | AW11: 0.908 | AX11: 0.883 | AY11: 0.842 | AZ11: 0.093 | BA11: 0.171 | BB11: 0.526 | BC11: 0.452 | BD11: 0.383 | BE11: 0.187 | BF11: 197 | BG11: 0.937 | BH11: 0.41 | BI11: 0.559 | BJ11: 0.635 | BK11: 0.272 | BL11: 0.569 | BM11: 0.439 | BN11: 0.615 | BO11: 0.541 | BP11: 0.091 | BQ11: 0.598 | BR11: 0.69 | BS11: 0.837 | BT11: 0.708 | BU11: 0.121 | BV11: 0.468 | BW11: 1.002 | BX11: 0.899 | BY11: 0.790 | BZ11: 0.283 | CA11: 0.171 | CB11: 0.526 | CC11: 0.452 | CD11: 0.383 | CE11: 0.187 | CF11: 197 | CG11: -0.422 | CH11: -0.135 | CI11: -0.08 | CJ11: -0.212 | CK11: 0.184 | CL11: 0.171 | CM11: 0.526 | CN11: 0.452 | CO11: 0.383 | CP11: 0.187 | CQ11: 0.618 | CR11: 0.408 | CS11: 0.171 | CT11: 0.399 | CU11: 0.224 | CV11: 0.368 | CW11: 0.444 | CX11: 0.465 | CY11: 0.426 | CZ11: 0.051 | DA11: 0.34 | DB11: 0.162 | DC11: 0.216 | DD11: 0.239 | DE11: 0.091
A12: 198 | B12: 0.014 | C12: 0.139 | D12: 0.063 | E12: 0.072 | F12: 0.063 | G12: 0.096 | H12: -0.221 | I12: -0.295 | J12: -0.140 | K12: 0.208 | L12: 0.299 | M12: 0.755 | N12: 0.338 | O12: 0.464 | P12: 0.253 | Q12: 0.341 | R12: 0.53 | S12: 0.675 | T12: 0.515 | U12: 0.167 | V12: 0.921 | W12: 0.565 | X12: 0.647 | Y12: 0.711 | Z12: 0.186 | AA12: 0.591 | AB12: 0.939 | AC12: 0.84 | AD12: 0.790 | AE12: 0.179 | AF12: 198 | AG12: 0.175 | AH12: 0.348 | AI12: 0.845 | AJ12: 0.456 | AK12: 0.348 | AL12: 0.575 | AM12: 1.084 | AN12: 0.947 | AO12: 0.869 | AP12: 0.263 | AQ12: 0.51 | AR12: 0.916 | AS12: 0.788 | AT12: 0.738 | AU12: 0.208 | AV12: 0.592 | AW12: 0.796 | AX12: 0.913 | AY12: 0.767 | AZ12: 0.162 | BA12: 0.238 | BB12: 0.292 | BC12: 0.282 | BD12: 0.271 | BE12: 0.029 | BF12: 198 | BG12: 0.94 | BH12: 0.431 | BI12: 0.325 | BJ12: 0.565 | BK12: 0.329 | BL12: 0.561 | BM12: 0.339 | BN12: 0.471 | BO12: 0.457 | BP12: 0.112 | BQ12: 0.649 | BR12: 0.648 | BS12: 0.59 | BT12: 0.629 | BU12: 0.034 | BV12: 0.347 | BW12: 0.96 | BX12: 0.67 | BY12: 0.659 | BZ12: 0.307 | CA12: 0.238 | CB12: 0.292 | CC12: 0.282 | CD12: 0.271 | CE12: 0.029 | CF12: 198 | CG12: -0.263 | CH12: 0.05 | CI12: -0.07 | CJ12: -0.094 | CK12: 0.158 | CL12: 0.238 | CM12: 0.292 | CN12: 0.282 | CO12: 0.271 | CP12: 0.029 | CQ12: 0.88 | CR12: 0.391 | CS12: 0.238 | CT12: 0.503 | CU12: 0.335 | CV12: 0.366 | CW12: 0.346 | CX12: 0.4 | CY12: 0.371 | CZ12: 0.027 | DA12: 0.32 | DB12: 0.074 | DC12: 0.274 | DD12: 0.223 | DE12: 0.131
A13: 199 | B13: 0.184 | C13: -0.033 | D13: 0.093 | E13: 0.081 | F13: 0.109 | G13: -0.177 | H13: -0.19 | I13: -0.288 | J13: -0.218 | K13: 0.061 | L13: 0.439 | M13: 0.721 | N13: 0.618 | O13: 0.593 | P13: 0.143 | Q13: 0.297 | R13: 0.275 | S13: 0.668 | T13: 0.413 | U13: 0.221 | V13: 0.68 | W13: 0.368 | X13: 0.783 | Y13: 0.610 | Z13: 0.216 | AA13: 0.493 | AB13: 0.696 | AC13: 0.53 | AD13: 0.573 | AE13: 0.108 | AF13: 199 | AG13: 0.172 | AH13: 0.205 | AI13: 0.637 | AJ13: 0.338 | AK13: 0.259 | AL13: 0.506 | AM13: 1.035 | AN13: 0.749 | AO13: 0.763 | AP13: 0.265 | AQ13: 0.579 | AR13: 0.663 | AS13: 0.943 | AT13: 0.728 | AU13: 0.191 | AV13: 0.56 | AW13: 0.535 | AX13: 1.055 | AY13: 0.717 | AZ13: 0.293 | BA13: 0.509 | BB13: 0.476 | BC13: 0.108 | BD13: 0.364 | BE13: 0.223 | BF13: 199 | BG13: 0.781 | BH13: 0.342 | BI13: 0.2 | BJ13: 0.441 | BK13: 0.303 | BL13: 0.478 | BM13: 0.298 | BN13: 0.319 | BO13: 0.365 | BP13: 0.098 | BQ13: 0.342 | BR13: 0.614 | BS13: 0.325 | BT13: 0.427 | BU13: 0.162 | BV13: 0.642 | BW13: 0.709 | BX13: 0.543 | BY13: 0.631 | BZ13: 0.084 | CA13: 0.509 | CB13: 0.476 | CC13: 0.108 | CD13: 0.364 | CE13: 0.223 | CF13: 199 | CG13: 0.178 | CH13: 0.108 | CI13: 0.16 | CJ13: 0.149 | CK13: 0.036 | CL13: 0.509 | CM13: 0.476 | CN13: 0.108 | CO13: 0.364 | CP13: 0.223 | CQ13: 0.85 | CR13: 0.479 | CS13: 0.509 | CT13: 0.613 | CU13: 0.206 | CV13: 0.487 | CW13: 0.551 | CX13: 0.546 | CY13: 0.528 | CZ13: 0.036 | DA13: 0.518 | DB13: 0.069 | DC13: 0.416 | DD13: 0.334 | DE13: 0.235
A14: 200 | B14: 0.151 | C14: -0.176 | D14: 0.172 | E14: 0.049 | F14: 0.195 | G14: -0.277 | H14: -0.086 | I14: -0.203 | J14: -0.189 | K14: 0.096 | L14: 0.55 | M14: 0.711 | N14: 0.572 | O14: 0.611 | P14: 0.087 | Q14: 0.448 | R14: 0.156 | S14: 0.58 | T14: 0.395 | U14: 0.217 | V14: 0.413 | W14: 0.386 | X14: 0.688 | Y14: 0.496 | Z14: 0.167 | AA14: 0.257 | AB14: 0.517 | AC14: 0.178 | AD14: 0.317 | AE14: 0.177 | AF14: 200 | AG14: 0.174 | AH14: 0.107 | AI14: 0.348 | AJ14: 0.210 | AK14: 0.124 | AL14: 0.273 | AM14: 0.738 | AN14: 0.64 | AO14: 0.550 | AP14: 0.245 | AQ14: 0.5 | AR14: 0.491 | AS14: 0.715 | AT14: 0.569 | AU14: 0.127 | AV14: 0.58 | AW14: 0.417 | AX14: 1.07 | AY14: 0.689 | AZ14: 0.340 | BA14: 0.782 | BB14: 0.534 | BC14: 0.379 | BD14: 0.565 | BE14: 0.203 | BF14: 200 | BG14: 0.483 | BH14: 0.199 | BI14: 0.109 | BJ14: 0.264 | BK14: 0.195 | BL14: 0.294 | BM14: 0.257 | BN14: 0.354 | BO14: 0.302 | BP14: 0.049 | BQ14: 0.46 | BR14: 0.755 | BS14: 0.328 | BT14: 0.514 | BU14: 0.219 | BV14: 0.697 | BW14: 0.564 | BX14: 0.305 | BY14: 0.522 | BZ14: 0.199 | CA14: 0.782 | CB14: 0.534 | CC14: 0.379 | CD14: 0.565 | CE14: 0.203 | CF14: 200 | CG14: 0.481 | CH14: 0.022 | CI14: 0.085 | CJ14: 0.196 | CK14: 0.249 | CL14: 0.782 | CM14: 0.534 | CN14: 0.379 | CO14: 0.565 | CP14: 0.203 | CQ14: 0.883 | CR14: 0.574 | CS14: 0.782 | CT14: 0.746 | CU14: 0.158 | CV14: 0.467 | CW14: 0.584 | CX14: 0.653 | CY14: 0.568 | CZ14: 0.094 | DA14: 0.496 | DB14: 0.193 | DC14: 0.617 | DD14: 0.435 | DE14: 0.218
A15: 201 | B15: 0.162 | C15: 0.02 | D15: 0.247 | E15: 0.143 | F15: 0.115 | G15: -0.219 | H15: -0.082 | I15: -0.057 | J15: -0.119 | K15: 0.087 | L15: 0.504 | M15: 0.696 | N15: 0.545 | O15: 0.582 | P15: 0.101 | Q15: 0.453 | R15: 0.499 | S15: 0.499 | T15: 0.484 | U15: 0.027 | V15: 0.276 | W15: 0.403 | X15: 0.626 | Y15: 0.435 | Z15: 0.177 | AA15: 0.412 | AB15: 0.484 | AC15: 0.346 | AD15: 0.414 | AE15: 0.069 | AF15: 201 | AG15: 0.175 | AH15: 0.206 | AI15: 0.27 | AJ15: 0.217 | AK15: 0.048 | AL15: 0.407 | AM15: 0.507 | AN15: 0.511 | AO15: 0.475 | AP15: 0.059 | AQ15: 0.588 | AR15: 0.513 | AS15: 0.689 | AT15: 0.597 | AU15: 0.088 | AV15: 0.757 | AW15: 0.646 | AX15: 0.94 | AY15: 0.781 | AZ15: 0.148 | BA15: 0.832 | BB15: 0.446 | BC15: 0.408 | BD15: 0.562 | BE15: 0.235 | BF15: 201 | BG15: 0.322 | BH15: 0.101 | BI15: 0.18 | BJ15: 0.201 | BK15: 0.112 | BL15: 0.279 | BM15: 0.375 | BN15: 0.446 | BO15: 0.367 | BP15: 0.084 | BQ15: 0.47 | BR15: 0.686 | BS15: 0.506 | BT15: 0.554 | BU15: 0.116 | BV15: 0.666 | BW15: 0.327 | BX15: 0.342 | BY15: 0.445 | BZ15: 0.192 | CA15: 0.832 | CB15: 0.446 | CC15: 0.408 | CD15: 0.562 | CE15: 0.235 | CF15: 201 | CG15: 0.521 | CH15: -0.042 | CI15: 0.198 | CJ15: 0.226 | CK15: 0.283 | CL15: 0.832 | CM15: 0.446 | CN15: 0.408 | CO15: 0.562 | CP15: 0.235 | CQ15: 0.724 | CR15: 0.568 | CS15: 0.832 | CT15: 0.708 | CU15: 0.133 | CV15: 0.376 | CW15: 0.454 | CX15: 1.032 | CY15: 0.621 | CZ15: 0.358 | DA15: 0.396 | DB15: 0.324 | DC15: 0.604 | DD15: 0.441 | DE15: 0.145
A16: 202 | B16: 0.156 | C16: 0.232 | D16: 0.42 | E16: 0.269 | F16: 0.136 | G16: 0.014 | H16: -0.358 | I16: 0.182 | J16: -0.054 | K16: 0.276 | L16: 0.499 | M16: 0.572 | N16: 0.13 | O16: 0.400 | P16: 0.237 | Q16: 0.589 | R16: 0.756 | S16: 0.517 | T16: 0.621 | U16: 0.123 | V16: 0.359 | W16: 0.606 | X16: 0.754 | Y16: 0.573 | Z16: 0.200 | AA16: 0.382 | AB16: 0.8 | AC16: 0.629 | AD16: 0.604 | AE16: 0.210 | AF16: 202 | AG16: 0.176 | AH16: 0.346 | AI16: 0.108 | AJ16: 0.210 | AK16: 0.123 | AL16: 0.661 | AM16: 0.493 | AN16: 0.791 | AO16: 0.648 | AP16: 0.149 | AQ16: 0.587 | AR16: 0.71 | AS16: 0.588 | AT16: 0.628 | AU16: 0.071 | AV16: 0.87 | AW16: 0.69 | AX16: 0.697 | AY16: 0.752 | AZ16: 0.102 | BA16: 0.665 | BB16: 0.612 | BC16: 0.561 | BD16: 0.613 | BE16: 0.052 | BF16: 202 | BG16: 0.145 | BH16: -0.122 | BI16: -0.012 | BJ16: 0.004 | BK16: 0.134 | BL16: -0.057 | BM16: 0.227 | BN16: 0.209 | BO16: 0.126 | BP16: 0.159 | BQ16: 0.273 | BR16: 0.393 | BS16: 0.601 | BT16: 0.422 | BU16: 0.166 | BV16: 0.52 | BW16: 0.127 | BX16: 0.213 | BY16: 0.287 | BZ16: 0.207 | CA16: 0.665 | CB16: 0.612 | CC16: 0.561 | CD16: 0.613 | CE16: 0.052 | CF16: 202 | CG16: 0.411 | CH16: 0.025 | CI16: 0.286 | CJ16: 0.241 | CK16: 0.197 | CL16: 0.665 | CM16: 0.612 | CN16: 0.561 | CO16: 0.613 | CP16: 0.052 | CQ16: 0.77 | CR16: 0.608 | CS16: 0.665 | CT16: 0.681 | CU16: 0.082 | CV16: 0.183 | CW16: 0.547 | CX16: 0.956 | CY16: 0.562 | CZ16: 0.387 | DA16: 0.246 | DB16: 0.358 | DC16: 0.63 | DD16: 0.411 | DE16: 0.197
A17: 203 | B17: 0.227 | C17: 0.331 | D17: 0.513 | E17: 0.357 | F17: 0.145 | G17: 0.181 | H17: -0.23 | I17: 0.065 | J17: 0.005 | K17: 0.212 | L17: 0.588 | M17: 0.524 | N17: 0.298 | O17: 0.470 | P17: 0.152 | Q17: 0.757 | R17: 0.742 | S17: 0.466 | T17: 0.655 | U17: 0.164 | V17: 0.608 | W17: 0.725 | X17: 0.947 | Y17: 0.760 | Z17: 0.172 | AA17: 0.425 | AB17: 1.053 | AC17: 0.604 | AD17: 0.694 | AE17: 0.324 | AF17: 203 | AG17: 0.174 | AH17: 0.358 | AI17: 0.193 | AJ17: 0.242 | AK17: 0.101 | AL17: 0.638 | AM17: 0.565 | AN17: 0.639 | AO17: 0.614 | AP17: 0.042 | AQ17: 0.539 | AR17: 0.552 | AS17: 0.467 | AT17: 0.519 | AU17: 0.046 | AV17: 0.743 | AW17: 0.833 | AX17: 0.331 | AY17: 0.636 | AZ17: 0.268 | BA17: 0.738 | BB17: 0.702 | BC17: 0.531 | BD17: 0.657 | BE17: 0.111 | BF17: 203 | BG17: 0.094 | BH17: -0.176 | BI17: -0.126 | BJ17: -0.069 | BK17: 0.144 | BL17: 0.031 | BM17: 0.025 | BN17: 0.049 | BO17: 0.035 | BP17: 0.012 | BQ17: 0.308 | BR17: 0.109 | BS17: 0.79 | BT17: 0.402 | BU17: 0.350 | BV17: 0.357 | BW17: 0.184 | BX17: 0.246 | BY17: 0.262 | BZ17: 0.088 | CA17: 0.738 | CB17: 0.702 | CC17: 0.531 | CD17: 0.657 | CE17: 0.111 | CF17: 203 | CG17: 0.191 | CH17: 0.134 | CI17: 0.193 | CJ17: 0.173 | CK17: 0.034 | CL17: 0.738 | CM17: 0.702 | CN17: 0.531 | CO17: 0.657 | CP17: 0.111 | CQ17: 0.919 | CR17: 0.732 | CS17: 0.738 | CT17: 0.796 | CU17: 0.106 | CV17: 0.29 | CW17: 0.39 | CX17: 0.739 | CY17: 0.473 | CZ17: 0.236 | DA17: 0.333 | DB17: 0.345 | DC17: 0.59 | DD17: 0.423 | DE17: 0.145
A18: 204 | B18: 0.322 | C18: 0.204 | D18: 0.433 | E18: 0.320 | F18: 0.115 | G18: 0.169 | H18: -0.094 | I18: 0.035 | J18: 0.037 | K18: 0.132 | L18: 0.619 | M18: 0.491 | N18: 0.331 | O18: 0.480 | P18: 0.144 | Q18: 0.87 | R18: 0.625 | S18: 0.632 | T18: 0.709 | U18: 0.139 | V18: 0.609 | W18: 0.813 | X18: 1.052 | Y18: 0.825 | Z18: 0.222 | AA18: 0.577 | AB18: 0.915 | AC18: 0.569 | AD18: 0.687 | AE18: 0.197 | AF18: 204 | AG18: 0.17 | AH18: 0.317 | AI18: 0.247 | AJ18: 0.245 | AK18: 0.074 | AL18: 0.479 | AM18: 0.646 | AN18: 0.467 | AO18: 0.531 | AP18: 0.100 | AQ18: 0.429 | AR18: 0.491 | AS18: 0.275 | AT18: 0.398 | AU18: 0.111 | AV18: 0.695 | AW18: 0.612 | AX18: 0.365 | AY18: 0.557 | AZ18: 0.172 | BA18: 0.582 | BB18: 0.626 | BC18: 0.5 | BD18: 0.569 | BE18: 0.064 | BF18: 204 | BG18: 0.12 | BH18: -0.274 | BI18: 0.019 | BJ18: -0.045 | BK18: 0.205 | BL18: -0.012 | BM18: -0.127 | BN18: -0.207 | BO18: -0.115 | BP18: 0.098 | BQ18: 0.28 | BR18: 0.086 | BS18: 0.625 | BT18: 0.330 | BU18: 0.273 | BV18: 0.19 | BW18: 0.323 | BX18: 0.53 | BY18: 0.348 | BZ18: 0.171 | CA18: 0.582 | CB18: 0.626 | CC18: 0.5 | CD18: 0.569 | CE18: 0.064 | CF18: 204 | CG18: -0.155 | CH18: 0.241 | CI18: 0.02 | CJ18: 0.035 | CK18: 0.198 | CL18: 0.582 | CM18: 0.626 | CN18: 0.5 | CO18: 0.569 | CP18: 0.064 | CQ18: 0.468 | CR18: 0.857 | CS18: 0.582 | CT18: 0.636 | CU18: 0.200 | CV18: 0.365 | CW18: 0.541 | CX18: 0.373 | CY18: 0.426 | CZ18: 0.099 | DA18: 0.229 | DB18: 0.033 | DC18: 0.278 | DD18: 0.180 | DE18: 0.130
A19: 205 | B19: 0.457 | C19: -0.088 | D19: 0.227 | E19: 0.199 | F19: 0.274 | G19: 0.137 | H19: 0.184 | I19: -0.076 | J19: 0.082 | K19: 0.139 | L19: 0.427 | M19: 0.484 | N19: 0.306 | O19: 0.406 | P19: 0.091 | Q19: 0.793 | R19: 0.535 | S19: 0.702 | T19: 0.677 | U19: 0.131 | V19: 0.909 | W19: 0.711 | X19: 0.923 | Y19: 0.848 | Z19: 0.119 | AA19: 0.672 | AB19: 0.886 | AC19: 0.414 | AD19: 0.657 | AE19: 0.236 | AF19: 205 | AG19: 0.173 | AH19: 0.279 | AI19: 0.32 | AJ19: 0.257 | AK19: 0.076 | AL19: 0.123 | AM19: 0.601 | AN19: 0.411 | AO19: 0.378 | AP19: 0.241 | AQ19: 0.281 | AR19: 0.436 | AS19: 0.124 | AT19: 0.280 | AU19: 0.156 | AV19: 0.572 | AW19: 0.672 | AX19: 0.503 | AY19: 0.582 | AZ19: 0.085 | BA19: 0.632 | BB19: 0.628 | BC19: 0.563 | BD19: 0.608 | BE19: 0.039 | BF19: 205 | BG19: 0.384 | BH19: -0.091 | BI19: 0.155 | BJ19: 0.149 | BK19: 0.238 | BL19: 0.127 | BM19: -0.075 | BN19: 0.031 | BO19: 0.028 | BP19: 0.101 | BQ19: 0.478 | BR19: 0.374 | BS19: 0.724 | BT19: 0.525 | BU19: 0.180 | BV19: -0.01 | BW19: 0.718 | BX19: 0.641 | BY19: 0.450 | BZ19: 0.400 | CA19: 0.632 | CB19: 0.628 | CC19: 0.563 | CD19: 0.608 | CE19: 0.039 | CF19: 205 | CG19: -0.004 | CH19: 0.258 | CI19: -0.073 | CJ19: 0.060 | CK19: 0.175 | CL19: 0.632 | CM19: 0.628 | CN19: 0.563 | CO19: 0.608 | CP19: 0.039 | CQ19: 0.314 | CR19: 0.792 | CS19: 0.632 | CT19: 0.579 | CU19: 0.243 | CV19: 0.526 | CW19: 0.648 | CX19: 0.35 | CY19: 0.508 | CZ19: 0.150 | DA19: 0.218 | DB19: 0.23 | DC19: 0.285 | DD19: 0.244 | DE19: 0.036
A20: 206 | B20: 0.235 | C20: -0.144 | D20: -0.001 | E20: 0.030 | F20: 0.191 | G20: -0.019 | H20: 0.261 | I20: -0.216 | J20: 0.009 | K20: 0.240 | L20: 0.233 | M20: 0.573 | N20: 0.439 | O20: 0.415 | P20: 0.171 | Q20: 0.317 | R20: 0.608 | S20: 0.487 | T20: 0.471 | U20: 0.146 | V20: 0.9 | W20: 0.41 | X20: 0.74 | Y20: 0.683 | Z20: 0.250 | AA20: 0.728 | AB20: 0.532 | AC20: 0.548 | AD20: 0.603 | AE20: 0.109 | AF20: 206 | AG20: 0.176 | AH20: 0.495 | AI20: 0.317 | AJ20: 0.329 | AK20: 0.160 | AL20: 0.013 | AM20: 0.703 | AN20: 0.801 | AO20: 0.506 | AP20: 0.429 | AQ20: 0.439 | AR20: 0.457 | AS20: 0.301 | AT20: 0.399 | AU20: 0.085 | AV20: 0.755 | AW20: 0.534 | AX20: 0.901 | AY20: 0.730 | AZ20: 0.185 | BA20: 0.641 | BB20: 0.605 | BC20: 0.678 | BD20: 0.641 | BE20: 0.037 | BF20: 206 | BG20: 0.508 | BH20: -0.137 | BI20: 0.238 | BJ20: 0.203 | BK20: 0.324 | BL20: 0.197 | BM20: 0.163 | BN20: 0.274 | BO20: 0.211 | BP20: 0.057 | BQ20: 0.242 | BR20: 0.268 | BS20: 0.719 | BT20: 0.410 | BU20: 0.268 | BV20: 0.088 | BW20: 0.691 | BX20: 0.487 | BY20: 0.422 | BZ20: 0.307 | CA20: 0.641 | CB20: 0.605 | CC20: 0.678 | CD20: 0.641 | CE20: 0.037 | CF20: 206 | CG20: -0.083 | CH20: 0.392 | CI20: 0.063 | CJ20: 0.124 | CK20: 0.243 | CL20: 0.641 | CM20: 0.605 | CN20: 0.678 | CO20: 0.641 | CP20: 0.037 | CQ20: 0.277 | CR20: 0.785 | CS20: 0.641 | CT20: 0.568 | CU20: 0.262 | CV20: 0.478 | CW20: 0.786 | CX20: 0.665 | CY20: 0.643 | CZ20: 0.155 | DA20: 0.155 | DB20: 0.335 | DC20: 0.164 | DD20: 0.218 | DE20: 0.101
A21: 207 | B21: 0 | C21: -0.026 | D21: 0.002 | E21: -0.008 | F21: 0.016 | G21: -0.087 | H21: 0.246 | I21: -0.171 | J21: -0.004 | K21: 0.221 | L21: 0.189 | M21: 0.765 | N21: 0.351 | O21: 0.435 | P21: 0.297 | Q21: 0.204 | R21: 0.674 | S21: 0.507 | T21: 0.462 | U21: 0.238 | V21: 0.618 | W21: 0.532 | X21: 0.627 | Y21: 0.592 | Z21: 0.052 | AA21: 0.526 | AB21: 0.63 | AC21: 0.534 | AD21: 0.563 | AE21: 0.058 | AF21: 207 | AG21: 0.177 | AH21: 0.653 | AI21: 0.331 | AJ21: 0.387 | AK21: 0.243 | AL21: 0.097 | AM21: 0.633 | AN21: 1.091 | AO21: 0.607 | AP21: 0.498 | AQ21: 0.591 | AR21: 0.626 | AS21: 0.449 | AT21: 0.555 | AU21: 0.094 | AV21: 0.66 | AW21: 0.405 | AX21: 0.934 | AY21: 0.666 | AZ21: 0.265 | BA21: 0.594 | BB21: 0.727 | BC21: 0.513 | BD21: 0.611 | BE21: 0.108 | BF21: 207 | BG21: 0.119 | BH21: -0.343 | BI21: 0.062 | BJ21: -0.054 | BK21: 0.252 | BL21: -0.101 | BM21: 0.148 | BN21: 0.255 | BO21: 0.101 | BP21: 0.183 | BQ21: -0.01 | BR21: 0.048 | BS21: 0.396 | BT21: 0.145 | BU21: 0.220 | BV21: -0.022 | BW21: 0.611 | BX21: 0.025 | BY21: 0.205 | BZ21: 0.353 | CA21: 0.594 | CB21: 0.727 | CC21: 0.513 | CD21: 0.611 | CE21: 0.108 | CF21: 207 | CG21: 0.032 | CH21: 0.416 | CI21: 0.243 | CJ21: 0.230 | CK21: 0.192 | CL21: 0.594 | CM21: 0.727 | CN21: 0.513 | CO21: 0.611 | CP21: 0.108 | CQ21: 0.49 | CR21: 0.832 | CS21: 0.594 | CT21: 0.639 | CU21: 0.175 | CV21: 0.214 | CW21: 0.979 | CX21: 0.769 | CY21: 0.654 | CZ21: 0.395 | DA21: 0.25 | DB21: 0.488 | DC21: 0.199 | DD21: 0.312 | DE21: 0.154
A22: 208 | B22: -0.283 | C22: -0.002 | D22: 0.131 | E22: -0.051 | F22: 0.211 | G22: 0.009 | H22: 0.122 | I22: -0.099 | J22: 0.011 | K22: 0.111 | L22: 0.483 | M22: 0.739 | N22: 0.449 | O22: 0.557 | P22: 0.159 | Q22: 0.529 | R22: 0.734 | S22: 0.603 | T22: 0.622 | U22: 0.104 | V22: 0.521 | W22: 0.848 | X22: 0.815 | Y22: 0.728 | Z22: 0.180 | AA22: 0.311 | AB22: 0.613 | AC22: 0.479 | AD22: 0.468 | AE22: 0.151 | AF22: 208 | AG22: 0.176 | AH22: 0.591 | AI22: 0.222 | AJ22: 0.330 | AK22: 0.227 | AL22: 0.417 | AM22: 0.456 | AN22: 0.709 | AO22: 0.527 | AP22: 0.159 | AQ22: 0.36 | AR22: 0.39 | AS22: 0.481 | AT22: 0.410 | AU22: 0.063 | AV22: 0.498 | AW22: 0.537 | AX22: 0.596 | AY22: 0.544 | AZ22: 0.049 | BA22: 0.708 | BB22: 0.593 | BC22: 0.577 | BD22: 0.626 | BE22: 0.071 | BF22: 208 | BG22: -0.076 | BH22: -0.339 | BI22: -0.067 | BJ22: -0.161 | BK22: 0.155 | BL22: -0.194 | BM22: -0.004 | BN22: 0.176 | BO22: -0.007 | BP22: 0.185 | BQ22: -0.241 | BR22: -0.242 | BS22: 0.156 | BT22: -0.109 | BU22: 0.229 | BV22: -0.148 | BW22: 0.396 | BX22: -0.142 | BY22: 0.035 | BZ22: 0.312 | CA22: 0.708 | CB22: 0.593 | CC22: 0.577 | CD22: 0.626 | CE22: 0.071 | CF22: 208 | CG22: 0.079 | CH22: 0.477 | CI22: 0.207 | CJ22: 0.254 | CK22: 0.203 | CL22: 0.708 | CM22: 0.593 | CN22: 0.577 | CO22: 0.626 | CP22: 0.071 | CQ22: 0.651 | CR22: 0.533 | CS22: 0.708 | CT22: 0.631 | CU22: 0.089 | CV22: 0.412 | CW22: 0.672 | CX22: 0.767 | CY22: 0.617 | CZ22: 0.184 | DA22: 0.437 | DB22: 0.61 | DC22: 0.139 | DD22: 0.395 | DE22: 0.238
A23: 209 | B23: -0.365 | C23: 0.188 | D23: 0.253 | E23: 0.025 | F23: 0.340 | G23: -0.155 | H23: -0.01 | I23: 0.137 | J23: -0.009 | K23: 0.146 | L23: 0.64 | M23: 0.595 | N23: 0.491 | O23: 0.575 | P23: 0.076 | Q23: 0.717 | R23: 0.547 | S23: 0.761 | T23: 0.675 | U23: 0.113 | V23: 0.362 | W23: 1.095 | X23: 0.887 | Y23: 0.781 | Z23: 0.378 | AA23: 0.161 | AB23: 0.439 | AC23: 0.654 | AD23: 0.418 | AE23: 0.247 | AF23: 209 | AG23: 0.172 | AH23: 0.333 | AI23: 0.118 | AJ23: 0.208 | AK23: 0.112 | AL23: 0.626 | AM23: 0.61 | AN23: 0.619 | AO23: 0.618 | AP23: 0.008 | AQ23: 0.448 | AR23: 0.4 | AS23: 0.549 | AT23: 0.466 | AU23: 0.076 | AV23: 0.634 | AW23: 0.492 | AX23: 0.46 | AY23: 0.529 | AZ23: 0.093 | BA23: 0.649 | BB23: 0.489 | BC23: 0.629 | BD23: 0.589 | BE23: 0.087 | BF23: 209 | BG23: -0.11 | BH23: -0.162 | BI23: -0.063 | BJ23: -0.112 | BK23: 0.050 | BL23: -0.215 | BM23: -0.029 | BN23: 0.168 | BO23: -0.025 | BP23: 0.192 | BQ23: 0.017 | BR23: 0.062 | BS23: 0.083 | BT23: 0.054 | BU23: 0.034 | BV23: 0.026 | BW23: 0.28 | BX23: 0.153 | BY23: 0.153 | BZ23: 0.127 | CA23: 0.649 | CB23: 0.489 | CC23: 0.629 | CD23: 0.589 | CE23: 0.087 | CF23: 209 | CG23: 0.229 | CH23: 0.345 | CI23: 0.155 | CJ23: 0.243 | CK23: 0.096 | CL23: 0.649 | CM23: 0.489 | CN23: 0.629 | CO23: 0.589 | CP23: 0.087 | CQ23: 0.647 | CR23: 0.75 | CS23: 0.649 | CT23: 0.682 | CU23: 0.059 | CV23: 0.467 | CW23: 0.428 | CX23: 0.689 | CY23: 0.528 | CZ23: 0.141 | DA23: 0.47 | DB23: 0.46 | DC23: 0.356 | DD23: 0.429 | DE23: 0.063
A24: 210 | B24: -0.048 | C24: 0.112 | D24: 0.333 | E24: 0.132 | F24: 0.191 | G24: -0.285 | H24: 0 | I24: 0.286 | J24: 0.000 | K24: 0.286 | L24: 0.39 | M24: 0.574 | N24: 0.45 | O24: 0.471 | P24: 0.094 | Q24: 0.769 | R24: 0.421 | S24: 0.658 | T24: 0.616 | U24: 0.178 | V24: 0.666 | W24: 0.822 | X24: 0.749 | Y24: 0.746 | Z24: 0.078 | AA24: 0.256 | AB24: 0.488 | AC24: 0.424 | AD24: 0.389 | AE24: 0.120 | AF24: 210 | AG24: 0.174 | AH24: 0.123 | AI24: 0.169 | AJ24: 0.155 | AK24: 0.028 | AL24: 0.665 | AM24: 0.732 | AN24: 0.526 | AO24: 0.641 | AP24: 0.105 | AQ24: 0.536 | AR24: 0.426 | AS24: 0.375 | AT24: 0.446 | AU24: 0.082 | AV24: 0.482 | AW24: 0.692 | AX24: 0.465 | AY24: 0.546 | AZ24: 0.126 | BA24: 0.476 | BB24: 0.441 | BC24: 0.622 | BD24: 0.513 | BE24: 0.096 | BF24: 210 | BG24: -0.01 | BH24: -0.145 | BI24: -0.168 | BJ24: -0.108 | BK24: 0.085 | BL24: -0.141 | BM24: 0.08 | BN24: -0.055 | BO24: -0.039 | BP24: 0.111 | BQ24: 0.133 | BR24: 0.175 | BS24: -0.214 | BT24: 0.031 | BU24: 0.214 | BV24: 0.211 | BW24: -0.1 | BX24: 0.231 | BY24: 0.114 | BZ24: 0.186 | CA24: 0.476 | CB24: 0.441 | CC24: 0.622 | CD24: 0.513 | CE24: 0.096 | CF24: 210 | CG24: 0.539 | CH24: 0.271 | CI24: -0.085 | CJ24: 0.242 | CK24: 0.313 | CL24: 0.476 | CM24: 0.441 | CN24: 0.622 | CO24: 0.513 | CP24: 0.096 | CQ24: 0.783 | CR24: 0.685 | CS24: 0.476 | CT24: 0.648 | CU24: 0.157 | CV24: 0.57 | CW24: 0.358 | CX24: 0.616 | CY24: 0.515 | CZ24: 0.138 | DA24: 0.329 | DB24: 0.371 | DC24: 0.659 | DD24: 0.453 | DE24: 0.180
A25: 211 | B25: 0.006 | C25: 0.114 | D25: 0.368 | E25: 0.163 | F25: 0.186 | G25: -0.429 | H25: -0.103 | I25: 0.13 | J25: -0.134 | K25: 0.281 | L25: 0.569 | M25: 0.512 | N25: 0.533 | O25: 0.538 | P25: 0.029 | Q25: 0.367 | R25: 0.21 | S25: 0.543 | T25: 0.373 | U25: 0.167 | V25: 0.685 | W25: 0.65 | X25: 0.491 | Y25: 0.609 | Z25: 0.103 | AA25: 0.234 | AB25: 0.247 | AC25: 0.37 | AD25: 0.284 | AE25: 0.075 | AF25: 211 | AG25: 0.172 | AH25: 0.282 | AI25: 0.447 | AJ25: 0.300 | AK25: 0.138 | AL25: 0.652 | AM25: 0.918 | AN25: 0.716 | AO25: 0.762 | AP25: 0.139 | AQ25: 0.74 | AR25: 0.725 | AS25: 0.444 | AT25: 0.636 | AU25: 0.167 | AV25: 0.654 | AW25: 0.84 | AX25: 0.642 | AY25: 0.712 | AZ25: 0.111 | BA25: 0.58 | BB25: 0.455 | BC25: 0.665 | BD25: 0.567 | BE25: 0.106 | BF25: 211 | BG25: 0.11 | BH25: 0.003 | BI25: -0.269 | BJ25: -0.052 | BK25: 0.195 | BL25: 0.153 | BM25: 0.191 | BN25: -0.234 | BO25: 0.037 | BP25: 0.235 | BQ25: 0.23 | BR25: 0.035 | BS25: -0.025 | BT25: 0.080 | BU25: 0.133 | BV25: 0.353 | BW25: -0.168 | BX25: 0.156 | BY25: 0.114 | BZ25: 0.263 | CA25: 0.58 | CB25: 0.455 | CC25: 0.665 | CD25: 0.567 | CE25: 0.106 | CF25: 211 | CG25: 0.504 | CH25: 0.376 | CI25: -0.101 | CJ25: 0.260 | CK25: 0.319 | CL25: 0.58 | CM25: 0.455 | CN25: 0.665 | CO25: 0.567 | CP25: 0.106 | CQ25: 0.908 | CR25: 0.84 | CS25: 0.58 | CT25: 0.776 | CU25: 0.173 | CV25: 0.704 | CW25: 0.499 | CX25: 0.671 | CY25: 0.625 | CZ25: 0.110 | DA25: 0.295 | DB25: 0.285 | DC25: 0.84 | DD25: 0.473 | DE25: 0.318
A26: 212 | B26: 0.024 | C26: 0.036 | D26: 0.411 | E26: 0.157 | F26: 0.220 | G26: -0.314 | H26: -0.015 | I26: -0.011 | J26: -0.113 | K26: 0.174 | L26: 0.516 | M26: 0.547 | N26: 0.659 | O26: 0.574 | P26: 0.075 | Q26: 0.386 | R26: 0.258 | S26: 0.748 | T26: 0.464 | U26: 0.254 | V26: 0.581 | W26: 0.594 | X26: 0.639 | Y26: 0.605 | Z26: 0.030 | AA26: 0.521 | AB26: 0.569 | AC26: 0.334 | AD26: 0.475 | AE26: 0.124 | AF26: 212 | AG26: 0.172 | AH26: 0.453 | AI26: 0.705 | AJ26: 0.443 | AK26: 0.267 | AL26: 0.389 | AM26: 0.876 | AN26: 0.608 | AO26: 0.624 | AP26: 0.244 | AQ26: 0.714 | AR26: 0.963 | AS26: 0.536 | AT26: 0.738 | AU26: 0.214 | AV26: 0.787 | AW26: 0.749 | AX26: 0.737 | AY26: 0.758 | AZ26: 0.026 | BA26: 0.598 | BB26: 0.538 | BC26: 0.217 | BD26: 0.451 | BE26: 0.205 | BF26: 212 | BG26: 0.403 | BH26: 0.249 | BI26: 0.068 | BJ26: 0.240 | BK26: 0.168 | BL26: 0.44 | BM26: 0.332 | BN26: -0.034 | BO26: 0.246 | BP26: 0.248 | BQ26: 0.506 | BR26: 0.369 | BS26: 0.202 | BT26: 0.359 | BU26: 0.152 | BV26: 0.516 | BW26: 0.11 | BX26: 0.506 | BY26: 0.377 | BZ26: 0.232 | CA26: 0.598 | CB26: 0.538 | CC26: 0.217 | CD26: 0.451 | CE26: 0.205 | CF26: 212 | CG26: 0.291 | CH26: 0.122 | CI26: 0.097 | CJ26: 0.170 | CK26: 0.106 | CL26: 0.598 | CM26: 0.538 | CN26: 0.217 | CO26: 0.451 | CP26: 0.205 | CQ26: 0.935 | CR26: 0.598 | CS26: 0.598 | CT26: 0.710 | CU26: 0.195 | CV26: 0.667 | CW26: 0.368 | CX26: 0.575 | CY26: 0.537 | CZ26: 0.153 | DA26: 0.234 | DB26: 0.317 | DC26: 0.704 | DD26: 0.418 | DE26: 0.251
A27: 213 | B27: -0.198 | C27: -0.063 | D27: 0.212 | E27: -0.016 | F27: 0.209 | G27: -0.051 | H27: -0.214 | I27: -0.128 | J27: -0.131 | K27: 0.082 | L27: 0.591 | M27: 0.541 | N27: 0.815 | O27: 0.649 | P27: 0.146 | Q27: 0.484 | R27: 0.442 | S27: 1.059 | T27: 0.662 | U27: 0.345 | V27: 0.58 | W27: 0.72 | X27: 0.775 | Y27: 0.692 | Z27: 0.101 | AA27: 0.754 | AB27: 0.607 | AC27: 0.349 | AD27: 0.570 | AE27: 0.205 | AF27: 213 | AG27: 0.173 | AH27: 0.524 | AI27: 0.713 | AJ27: 0.470 | AK27: 0.274 | AL27: 0.477 | AM27: 0.586 | AN27: 0.542 | AO27: 0.535 | AP27: 0.055 | AQ27: 0.495 | AR27: 0.818 | AS27: 0.574 | AT27: 0.629 | AU27: 0.168 | AV27: 0.816 | AW27: 0.512 | AX27: 0.663 | AY27: 0.664 | AZ27: 0.152 | BA27: 0.832 | BB27: 0.573 | BC27: 0.262 | BD27: 0.556 | BE27: 0.285 | BF27: 213 | BG27: 0.37 | BH27: 0.436 | BI27: 0.253 | BJ27: 0.353 | BK27: 0.093 | BL27: 0.493 | BM27: 0.181 | BN27: 0.083 | BO27: 0.252 | BP27: 0.214 | BQ27: 0.6 | BR27: 0.474 | BS27: 0.302 | BT27: 0.459 | BU27: 0.150 | BV27: 0.563 | BW27: 0.352 | BX27: 0.759 | BY27: 0.558 | BZ27: 0.204 | CA27: 0.832 | CB27: 0.573 | CC27: 0.262 | CD27: 0.556 | CE27: 0.285 | CF27: 213 | CG27: 0.069 | CH27: 0.089 | CI27: 0.025 | CJ27: 0.061 | CK27: 0.033 | CL27: 0.832 | CM27: 0.573 | CN27: 0.262 | CO27: 0.556 | CP27: 0.285 | CQ27: 0.909 | CR27: 0.422 | CS27: 0.832 | CT27: 0.721 | CU27: 0.262 | CV27: 0.93 | CW27: 0.29 | CX27: 0.384 | CY27: 0.535 | CZ27: 0.346 | DA27: 0.41 | DB27: 0.621 | DC27: 0.547 | DD27: 0.526 | DE27: 0.107
A28: 214 | B28: -0.316 | C28: 0.064 | D28: 0.034 | E28: -0.073 | F28: 0.211 | G28: 0.069 | H28: -0.185 | I28: -0.057 | J28: -0.058 | K28: 0.127 | L28: 0.673 | M28: 0.521 | N28: 0.996 | O28: 0.730 | P28: 0.243 | Q28: 0.403 | R28: 0.45 | S28: 1.073 | T28: 0.642 | U28: 0.374 | V28: 0.666 | W28: 0.817 | X28: 0.964 | Y28: 0.816 | Z28: 0.149 | AA28: 0.859 | AB28: 0.639 | AC28: 0.741 | AD28: 0.746 | AE28: 0.110 | AF28: 214 | AG28: 0.176 | AH28: 0.52 | AI28: 0.427 | AJ28: 0.374 | AK28: 0.178 | AL28: 0.605 | AM28: 0.568 | AN28: 0.738 | AO28: 0.637 | AP28: 0.089 | AQ28: 0.39 | AR28: 0.841 | AS28: 0.687 | AT28: 0.639 | AU28: 0.229 | AV28: 0.939 | AW28: 0.215 | AX28: 0.722 | AY28: 0.625 | AZ28: 0.372 | BA28: 0.723 | BB28: 0.723 | BC28: 0.324 | BD28: 0.590 | BE28: 0.230 | BF28: 214 | BG28: 0.457 | BH28: 0.462 | BI28: 0.493 | BJ28: 0.471 | BK28: 0.020 | BL28: 0.529 | BM28: 0.289 | BN28: 0.528 | BO28: 0.449 | BP28: 0.138 | BQ28: 0.88 | BR28: 0.751 | BS28: 0.703 | BT28: 0.778 | BU28: 0.092 | BV28: 0.572 | BW28: 0.533 | BX28: 1.229 | BY28: 0.778 | BZ28: 0.391 | CA28: 0.723 | CB28: 0.723 | CC28: 0.324 | CD28: 0.590 | CE28: 0.230 | CF28: 214 | CG28: 0 | CH28: -0.022 | CI28: 0.123 | CJ28: 0.034 | CK28: 0.078 | CL28: 0.723 | CM28: 0.723 | CN28: 0.324 | CO28: 0.590 | CP28: 0.230 | CQ28: 0.789 | CR28: 0.512 | CS28: 0.723 | CT28: 0.675 | CU28: 0.145 | CV28: 0.817 | CW28: 0.24 | CX28: 0.358 | CY28: 0.472 | CZ28: 0.305 | DA28: 0.395 | DB28: 0.559 | DC28: 0.229 | DD28: 0.394 | DE28: 0.165
A29: 215 | B29: -0.179 | C29: -0.131 | D29: -0.063 | E29: -0.124 | F29: 0.058 | G29: 0.203 | H29: -0.379 | I29: -0.078 | J29: -0.085 | K29: 0.291 | L29: 0.314 | M29: 0.615 | N29: 0.811 | O29: 0.580 | P29: 0.250 | Q29: 0.512 | R29: 0.534 | S29: 0.679 | T29: 0.575 | U29: 0.091 | V29: 1.011 | W29: 0.527 | X29: 0.663 | Y29: 0.734 | Z29: 0.250 | AA29: 0.58 | AB29: 0.722 | AC29: 0.848 | AD29: 0.717 | AE29: 0.134 | AF29: 215 | AG29: 0.182 | AH29: 0.483 | AI29: 0.306 | AJ29: 0.324 | AK29: 0.151 | AL29: 0.805 | AM29: 0.625 | AN29: 0.811 | AO29: 0.747 | AP29: 0.106 | AQ29: 0.412 | AR29: 0.804 | AS29: 0.85 | AT29: 0.689 | AU29: 0.241 | AV29: 0.708 | AW29: 0.406 | AX29: 0.727 | AY29: 0.614 | AZ29: 0.180 | BA29: 0.563 | BB29: 0.614 | BC29: 0.515 | BD29: 0.564 | BE29: 0.050 | BF29: 215 | BG29: 0.354 | BH29: 0.209 | BI29: 0.39 | BJ29: 0.318 | BK29: 0.096 | BL29: 0.288 | BM29: 0.213 | BN29: 0.48 | BO29: 0.327 | BP29: 0.138 | BQ29: 0.964 | BR29: 0.668 | BS29: 0.672 | BT29: 0.768 | BU29: 0.170 | BV29: 0.683 | BW29: 0.464 | BX29: 1.149 | BY29: 0.765 | BZ29: 0.350 | CA29: 0.563 | CB29: 0.614 | CC29: 0.515 | CD29: 0.564 | CE29: 0.050 | CF29: 215 | CG29: -0.186 | CH29: 0.252 | CI29: -0.144 | CJ29: -0.026 | CK29: 0.242 | CL29: 0.563 | CM29: 0.614 | CN29: 0.515 | CO29: 0.564 | CP29: 0.050 | CQ29: 0.66 | CR29: 0.612 | CS29: 0.563 | CT29: 0.612 | CU29: 0.049 | CV29: 0.49 | CW29: 0.506 | CX29: 0.374 | CY29: 0.457 | CZ29: 0.072 | DA29: 0.373 | DB29: 0.311 | DC29: 0.229 | DD29: 0.304 | DE29: 0.072
A30: 216 | B30: -0.013 | C30: -0.295 | D30: -0.005 | E30: -0.104 | F30: 0.165 | G30: -0.034 | H30: -0.378 | I30: -0.181 | J30: -0.198 | K30: 0.173 | L30: 0.399 | M30: 0.622 | N30: 0.661 | O30: 0.561 | P30: 0.141 | Q30: 0.383 | R30: 0.615 | S30: 0.338 | T30: 0.445 | U30: 0.149 | V30: 1.034 | W30: 0.476 | X30: 0.43 | Y30: 0.647 | Z30: 0.336 | AA30: 0.311 | AB30: 0.531 | AC30: 0.952 | AD30: 0.598 | AE30: 0.326 | AF30: 216 | AG30: 0.181 | AH30: 0.549 | AI30: 0.528 | AJ30: 0.419 | AK30: 0.207 | AL30: 0.932 | AM30: 0.618 | AN30: 0.805 | AO30: 0.785 | AP30: 0.158 | AQ30: 0.82 | AR30: 0.776 | AS30: 1.033 | AT30: 0.876 | AU30: 0.137 | AV30: 0.706 | AW30: 0.912 | AX30: 0.852 | AY30: 0.823 | AZ30: 0.106 | BA30: 0.489 | BB30: 0.727 | BC30: 0.618 | BD30: 0.611 | BE30: 0.119 | BF30: 216 | BG30: 0.38 | BH30: 0.472 | BI30: 0.34 | BJ30: 0.397 | BK30: 0.068 | BL30: 0.378 | BM30: 0.456 | BN30: 0.494 | BO30: 0.443 | BP30: 0.059 | BQ30: 0.908 | BR30: 0.606 | BS30: 0.983 | BT30: 0.832 | BU30: 0.200 | BV30: 0.922 | BW30: 0.775 | BX30: 1.113 | BY30: 0.937 | BZ30: 0.169 | CA30: 0.489 | CB30: 0.727 | CC30: 0.618 | CD30: 0.611 | CE30: 0.119 | CF30: 216 | CG30: -0.213 | CH30: 0.482 | CI30: -0.279 | CJ30: -0.003 | CK30: 0.422 | CL30: 0.489 | CM30: 0.727 | CN30: 0.618 | CO30: 0.611 | CP30: 0.119 | CQ30: 0.889 | CR30: 0.598 | CS30: 0.489 | CT30: 0.659 | CU30: 0.207 | CV30: 0.391 | CW30: 0.676 | CX30: 0.506 | CY30: 0.524 | CZ30: 0.143 | DA30: 0.271 | DB30: 0.046 | DC30: 0.304 | DD30: 0.207 | DE30: 0.140
A31: 217 | B31: 0.073 | C31: -0.398 | D31: -0.024 | E31: -0.116 | F31: 0.249 | G31: -0.196 | H31: -0.205 | I31: -0.374 | J31: -0.258 | K31: 0.100 | L31: 0.482 | M31: 0.457 | N31: 0.557 | O31: 0.499 | P31: 0.052 | Q31: 0.555 | R31: 0.56 | S31: 0.386 | T31: 0.500 | U31: 0.099 | V31: 0.683 | W31: 0.601 | X31: 0.558 | Y31: 0.614 | Z31: 0.064 | AA31: 0.313 | AB31: 0.493 | AC31: 0.695 | AD31: 0.500 | AE31: 0.191 | AF31: 217 | AG31: 0.181 | AH31: 0.65 | AI31: 0.759 | AJ31: 0.530 | AK31: 0.307 | AL31: 0.882 | AM31: 0.948 | AN31: 0.847 | AO31: 0.892 | AP31: 0.051 | AQ31: 1.068 | AR31: 0.984 | AS31: 1.057 | AT31: 1.036 | AU31: 0.046 | AV31: 0.922 | AW31: 1.374 | AX31: 1.132 | AY31: 1.143 | AZ31: 0.226 | BA31: 0.532 | BB31: 0.653 | BC31: 0.517 | BD31: 0.567 | BE31: 0.075 | BF31: 217 | BG31: 0.75 | BH31: 0.757 | BI31: 0.538 | BJ31: 0.682 | BK31: 0.124 | BL31: 0.624 | BM31: 0.755 | BN31: 0.763 | BO31: 0.714 | BP31: 0.078 | BQ31: 0.842 | BR31: 1.138 | BS31: 1.291 | BT31: 1.090 | BU31: 0.228 | BV31: 1.21 | BW31: 0.925 | BX31: 1.155 | BY31: 1.097 | BZ31: 0.151 | CA31: 0.532 | CB31: 0.653 | CC31: 0.517 | CD31: 0.567 | CE31: 0.075 | CF31: 217 | CG31: -0.081 | CH31: 0.415 | CI31: -0.124 | CJ31: 0.070 | CK31: 0.300 | CL31: 0.532 | CM31: 0.653 | CN31: 0.517 | CO31: 0.567 | CP31: 0.075 | CQ31: 0.67 | CR31: 0.308 | CS31: 0.532 | CT31: 0.503 | CU31: 0.183 | CV31: 0.4 | CW31: 0.627 | CX31: 0.563 | CY31: 0.530 | CZ31: 0.117 | DA31: 0.225 | DB31: -0.037 | DC31: 0.396 | DD31: 0.195 | DE31: 0.218
A32: 218 | B32: 0.08 | C32: -0.347 | D32: -0.07 | E32: -0.112 | F32: 0.217 | G32: -0.435 | H32: 0.026 | I32: -0.529 | J32: -0.313 | K32: 0.297 | L32: 0.817 | M32: 0.268 | N32: 0.515 | O32: 0.533 | P32: 0.275 | Q32: 0.702 | R32: 0.447 | S32: 0.566 | T32: 0.572 | U32: 0.128 | V32: 0.383 | W32: 0.822 | X32: 0.714 | Y32: 0.640 | Z32: 0.229 | AA32: 0.6 | AB32: 0.375 | AC32: 0.317 | AD32: 0.431 | AE32: 0.149 | AF32: 218 | AG32: 0.179 | AH32: 0.798 | AI32: 0.99 | AJ32: 0.656 | AK32: 0.424 | AL32: 1.012 | AM32: 1.156 | AN32: 1.104 | AO32: 1.091 | AP32: 0.073 | AQ32: 1.318 | AR32: 1.17 | AS32: 1.098 | AT32: 1.195 | AU32: 0.112 | AV32: 1.027 | AW32: 1.547 | AX32: 1.496 | AY32: 1.357 | AZ32: 0.287 | BA32: 0.6 | BB32: 0.458 | BC32: 0.479 | BD32: 0.512 | BE32: 0.077 | BF32: 218 | BG32: 1.052 | BH32: 0.97 | BI32: 0.75 | BJ32: 0.924 | BK32: 0.156 | BL32: 0.792 | BM32: 0.876 | BN32: 0.861 | BO32: 0.843 | BP32: 0.045 | BQ32: 0.971 | BR32: 1.383 | BS32: 1.368 | BT32: 1.241 | BU32: 0.234 | BV32: 1.504 | BW32: 0.943 | BX32: 1.281 | BY32: 1.243 | BZ32: 0.282 | CA32: 0.6 | CB32: 0.458 | CC32: 0.479 | CD32: 0.512 | CE32: 0.077 | CF32: 218 | CG32: -0.002 | CH32: 0.105 | CI32: -0.135 | CJ32: -0.011 | CK32: 0.120 | CL32: 0.6 | CM32: 0.458 | CN32: 0.479 | CO32: 0.512 | CP32: 0.077 | CQ32: 0.548 | CR32: 0.084 | CS32: 0.6 | CT32: 0.411 | CU32: 0.284 | CV32: 0.534 | CW32: 0.556 | CX32: 0.645 | CY32: 0.578 | CZ32: 0.059 | DA32: 0.313 | DB32: 0.067 | DC32: 0.461 | DD32: 0.280 | DE32: 0.199
A33: 219 | B33: 0.127 | C33: -0.079 | D33: -0.117 | E33: -0.023 | F33: 0.131 | G33: -0.33 | H33: 0.204 | I33: -0.306 | J33: -0.144 | K33: 0.302 | L33: 1.104 | M33: 0.332 | N33: 0.675 | O33: 0.704 | P33: 0.387 | Q33: 0.464 | R33: 0.321 | S33: 0.658 | T33: 0.481 | U33: 0.169 | V33: 0.233 | W33: 0.634 | X33: 0.798 | Y33: 0.555 | Z33: 0.291 | AA33: 0.834 | AB33: 0.334 | AC33: 0.169 | AD33: 0.446 | AE33: 0.346 | AF33: 219 | AG33: 0.177 | AH33: 1.04 | AI33: 0.992 | AJ33: 0.736 | AK33: 0.485 | AL33: 1.169 | AM33: 1.324 | AN33: 1.467 | AO33: 1.320 | AP33: 0.149 | AQ33: 1.184 | AR33: 1.38 | AS33: 1.071 | AT33: 1.212 | AU33: 0.156 | AV33: 1.323 | AW33: 1.439 | AX33: 1.805 | AY33: 1.522 | AZ33: 0.252 | BA33: 0.874 | BB33: 0.469 | BC33: 0.499 | BD33: 0.614 | BE33: 0.226 | BF33: 219 | BG33: 1.223 | BH33: 0.987 | BI33: 1.004 | BJ33: 1.071 | BK33: 0.132 | BL33: 0.999 | BM33: 1.167 | BN33: 1.111 | BO33: 1.092 | BP33: 0.086 | BQ33: 1.225 | BR33: 1.476 | BS33: 1.474 | BT33: 1.392 | BU33: 0.144 | BV33: 1.438 | BW33: 1.131 | BX33: 1.407 | BY33: 1.325 | BZ33: 0.169 | CA33: 0.874 | CB33: 0.469 | CC33: 0.499 | CD33: 0.614 | CE33: 0.226 | CF33: 219 | CG33: 0.172 | CH33: 0.153 | CI33: 0.214 | CJ33: 0.180 | CK33: 0.031 | CL33: 0.874 | CM33: 0.469 | CN33: 0.499 | CO33: 0.614 | CP33: 0.226 | CQ33: 0.623 | CR33: 0.177 | CS33: 0.874 | CT33: 0.558 | CU33: 0.353 | CV33: 0.557 | CW33: 0.401 | CX33: 0.65 | CY33: 0.536 | CZ33: 0.126 | DA33: 0.323 | DB33: 0.15 | DC33: 0.398 | DD33: 0.290 | DE33: 0.127
A34: 220 | B34: 0.079 | C34: 0.206 | D34: -0.125 | E34: 0.053 | F34: 0.167 | G34: -0.107 | H34: 0.028 | I34: 0.003 | J34: -0.025 | K34: 0.072 | L34: 0.793 | M34: 0.552 | N34: 0.668 | O34: 0.671 | P34: 0.121 | Q34: 0.71 | R34: 0.187 | S34: 0.55 | T34: 0.482 | U34: 0.268 | V34: 0.313 | W34: 0.576 | X34: 0.66 | Y34: 0.516 | Z34: 0.181 | AA34: 0.62 | AB34: 0.337 | AC34: 0.057 | AD34: 0.338 | AE34: 0.282 | AF34: 220 | AG34: 0.177 | AH34: 1.157 | AI34: 1.029 | AJ34: 0.788 | AK34: 0.533 | AL34: 1.391 | AM34: 1.404 | AN34: 1.552 | AO34: 1.449 | AP34: 0.089 | AQ34: 1.098 | AR34: 1.385 | AS34: 1.225 | AT34: 1.236 | AU34: 0.144 | AV34: 1.454 | AW34: 1.609 | AX34: 1.735 | AY34: 1.599 | AZ34: 0.141 | BA34: 0.97 | BB34: 0.607 | BC34: 0.692 | BD34: 0.756 | BE34: 0.190 | BF34: 220 | BG34: 1.199 | BH34: 0.99 | BI34: 1.132 | BJ34: 1.107 | BK34: 0.107 | BL34: 1.108 | BM34: 1.207 | BN34: 1.133 | BO34: 1.149 | BP34: 0.051 | BQ34: 1.489 | BR34: 1.374 | BS34: 1.394 | BT34: 1.419 | BU34: 0.061 | BV34: 1.412 | BW34: 1.459 | BX34: 1.396 | BY34: 1.422 | BZ34: 0.033 | CA34: 0.97 | CB34: 0.607 | CC34: 0.692 | CD34: 0.756 | CE34: 0.190 | CF34: 220 | CG34: 0.184 | CH34: 0.396 | CI34: 0.335 | CJ34: 0.305 | CK34: 0.109 | CL34: 0.97 | CM34: 0.607 | CN34: 0.692 | CO34: 0.756 | CP34: 0.190 | CQ34: 0.663 | CR34: 0.645 | CS34: 0.97 | CT34: 0.759 | CU34: 0.183 | CV34: 0.457 | CW34: 0.531 | CX34: 0.55 | CY34: 0.513 | CZ34: 0.049 | DA34: 0.452 | DB34: 0.279 | DC34: 0.55 | DD34: 0.427 | DE34: 0.137
A35: 221 | B35: 0.322 | C35: 0.297 | D35: 0.045 | E35: 0.221 | F35: 0.153 | G35: 0.228 | H35: 0.082 | I35: 0.335 | J35: 0.215 | K35: 0.127 | L35: 0.731 | M35: 0.79 | N35: 1.008 | O35: 0.843 | P35: 0.146 | Q35: 0.657 | R35: 0.457 | S35: 0.321 | T35: 0.478 | U35: 0.169 | V35: 0.25 | W35: 0.596 | X35: 0.553 | Y35: 0.466 | Z35: 0.189 | AA35: 0.41 | AB35: 0.25 | AC35: 0.316 | AD35: 0.325 | AE35: 0.080 | AF35: 221 | AG35: 0.174 | AH35: 1.265 | AI35: 1.125 | AJ35: 0.855 | AK35: 0.594 | AL35: 1.747 | AM35: 1.372 | AN35: 1.422 | AO35: 1.514 | AP35: 0.204 | AQ35: 1.243 | AR35: 1.19 | AS35: 1.261 | AT35: 1.231 | AU35: 0.037 | AV35: 1.437 | AW35: 1.748 | AX35: 1.512 | AY35: 1.566 | AZ35: 0.162 | BA35: 0.738 | BB35: 0.94 | BC35: 0.865 | BD35: 0.848 | BE35: 0.102 | BF35: 221 | BG35: 1.087 | BH35: 1.134 | BI35: 1.182 | BJ35: 1.134 | BK35: 0.048 | BL35: 1.214 | BM35: 1.387 | BN35: 1.269 | BO35: 1.290 | BP35: 0.088 | BQ35: 1.649 | BR35: 1.156 | BS35: 1.325 | BT35: 1.377 | BU35: 0.251 | BV35: 1.406 | BW35: 1.688 | BX35: 1.377 | BY35: 1.490 | BZ35: 0.172 | CA35: 0.738 | CB35: 0.94 | CC35: 0.865 | CD35: 0.848 | CE35: 0.102 | CF35: 221 | CG35: 0.143 | CH35: 0.396 | CI35: 0.451 | CJ35: 0.330 | CK35: 0.164 | CL35: 0.738 | CM35: 0.94 | CN35: 0.865 | CO35: 0.848 | CP35: 0.102 | CQ35: 0.869 | CR35: 0.886 | CS35: 0.738 | CT35: 0.831 | CU35: 0.081 | CV35: 0.491 | CW35: 0.603 | CX35: 0.5 | CY35: 0.531 | CZ35: 0.062 | DA35: 0.364 | DB35: 0.319 | DC35: 0.505 | DD35: 0.396 | DE35: 0.097
A36: 222 | B36: 0.352 | C36: 0.261 | D36: 0.229 | E36: 0.281 | F36: 0.064 | G36: 0.475 | H36: 0.121 | I36: 0.548 | J36: 0.381 | K36: 0.228 | L36: 0.561 | M36: 0.648 | N36: 1.059 | O36: 0.756 | P36: 0.266 | Q36: 0.755 | R36: 0.455 | S36: 0.415 | T36: 0.542 | U36: 0.186 | V36: 0.456 | W36: 0.695 | X36: 0.595 | Y36: 0.582 | Z36: 0.120 | AA36: 0.331 | AB36: 0.323 | AC36: 0.492 | AD36: 0.382 | AE36: 0.095 | AF36: 222 | AG36: 0.175 | AH36: 1.397 | AI36: 1.305 | AJ36: 0.959 | AK36: 0.681 | AL36: 1.812 | AM36: 1.42 | AN36: 1.337 | AO36: 1.523 | AP36: 0.254 | AQ36: 1.289 | AR36: 1.282 | AS36: 1.267 | AT36: 1.279 | AU36: 0.011 | AV36: 1.588 | AW36: 1.864 | AX36: 1.41 | AY36: 1.621 | AZ36: 0.229 | BA36: 0.693 | BB36: 0.948 | BC36: 1.224 | BD36: 0.955 | BE36: 0.266 | BF36: 222 | BG36: 1.106 | BH36: 1.226 | BI36: 1.15 | BJ36: 1.161 | BK36: 0.061 | BL36: 1.312 | BM36: 1.434 | BN36: 1.442 | BO36: 1.396 | BP36: 0.073 | BQ36: 1.836 | BR36: 1.43 | BS36: 1.41 | BT36: 1.559 | BU36: 0.240 | BV36: 1.412 | BW36: 1.648 | BX36: 1.285 | BY36: 1.448 | BZ36: 0.184 | CA36: 0.693 | CB36: 0.948 | CC36: 1.224 | CD36: 0.955 | CE36: 0.266 | CF36: 222 | CG36: 0.35 | CH36: 0.565 | CI36: 0.474 | CJ36: 0.463 | CK36: 0.108 | CL36: 0.693 | CM36: 0.948 | CN36: 1.224 | CO36: 0.955 | CP36: 0.266 | CQ36: 0.886 | CR36: 1.118 | CS36: 0.693 | CT36: 0.899 | CU36: 0.213 | CV36: 0.669 | CW36: 0.703 | CX36: 0.586 | CY36: 0.653 | CZ36: 0.060 | DA36: 0.484 | DB36: 0.419 | DC36: 0.429 | DD36: 0.444 | DE36: 0.035
A37: 223 | B37: 0.262 | C37: 0.276 | D37: 0.443 | E37: 0.327 | F37: 0.101 | G37: 0.2 | H37: 0.131 | I37: 0.445 | J37: 0.259 | K37: 0.165 | L37: 0.64 | M37: 0.403 | N37: 0.824 | O37: 0.622 | P37: 0.211 | Q37: 0.653 | R37: 0.481 | S37: 0.577 | T37: 0.570 | U37: 0.086 | V37: 0.669 | W37: 0.619 | X37: 0.726 | Y37: 0.671 | Z37: 0.054 | AA37: 0.42 | AB37: 0.509 | AC37: 0.509 | AD37: 0.479 | AE37: 0.051 | AF37: 223 | AG37: 0.178 | AH37: 1.428 | AI37: 1.431 | AJ37: 1.012 | AK37: 0.723 | AL37: 2.112 | AM37: 1.504 | AN37: 1.39 | AO37: 1.669 | AP37: 0.388 | AQ37: 1.496 | AR37: 1.504 | AS37: 1.659 | AT37: 1.553 | AU37: 0.092 | AV37: 1.531 | AW37: 1.943 | AX37: 1.64 | AY37: 1.705 | AZ37: 0.213 | BA37: 0.668 | BB37: 0.85 | BC37: 1.179 | BD37: 0.899 | BE37: 0.259 | BF37: 223 | BG37: 1.255 | BH37: 1.29 | BI37: 1.19 | BJ37: 1.245 | BK37: 0.051 | BL37: 1.451 | BM37: 1.479 | BN37: 1.469 | BO37: 1.466 | BP37: 0.014 | BQ37: 2.011 | BR37: 1.621 | BS37: 1.487 | BT37: 1.706 | BU37: 0.272 | BV37: 1.711 | BW37: 1.366 | BX37: 1.404 | BY37: 1.494 | BZ37: 0.189 | CA37: 0.668 | CB37: 0.85 | CC37: 1.179 | CD37: 0.899 | CE37: 0.259 | CF37: 223 | CG37: 0.345 | CH37: 0.414 | CI37: 0.493 | CJ37: 0.417 | CK37: 0.074 | CL37: 0.668 | CM37: 0.85 | CN37: 1.179 | CO37: 0.899 | CP37: 0.259 | CQ37: 0.873 | CR37: 0.908 | CS37: 0.668 | CT37: 0.816 | CU37: 0.130 | CV37: 0.612 | CW37: 0.595 | CX37: 0.684 | CY37: 0.630 | CZ37: 0.047 | DA37: 0.425 | DB37: 0.417 | DC37: 0.431 | DD37: 0.424 | DE37: 0.007
A38: 224 | B38: 0.058 | C38: 0.474 | D38: 0.403 | E38: 0.312 | F38: 0.223 | G38: 0.156 | H38: 0.131 | I38: 0.426 | J38: 0.238 | K38: 0.164 | L38: 0.717 | M38: 0.692 | N38: 0.816 | O38: 0.742 | P38: 0.066 | Q38: 0.487 | R38: 0.432 | S38: 0.641 | T38: 0.520 | U38: 0.108 | V38: 0.955 | W38: 0.525 | X38: 0.686 | Y38: 0.722 | Z38: 0.217 | AA38: 0.504 | AB38: 0.72 | AC38: 0.438 | AD38: 0.554 | AE38: 0.147 | AF38: 224 | AG38: 0.178 | AH38: 1.506 | AI38: 1.498 | AJ38: 1.061 | AK38: 0.764 | AL38: 2.056 | AM38: 1.555 | AN38: 1.573 | AO38: 1.728 | AP38: 0.284 | AQ38: 1.606 | AR38: 1.653 | AS38: 1.87 | AT38: 1.710 | AU38: 0.141 | AV38: 1.923 | AW38: 1.77 | AX38: 1.761 | AY38: 1.818 | AZ38: 0.091 | BA38: 0.604 | BB38: 0.835 | BC38: 0.884 | BD38: 0.774 | BE38: 0.150 | BF38: 224 | BG38: 1.392 | BH38: 1.335 | BI38: 1.294 | BJ38: 1.340 | BK38: 0.049 | BL38: 1.608 | BM38: 1.631 | BN38: 1.522 | BO38: 1.587 | BP38: 0.057 | BQ38: 1.974 | BR38: 1.971 | BS38: 1.772 | BT38: 1.906 | BU38: 0.116 | BV38: 1.925 | BW38: 1.483 | BX38: 1.751 | BY38: 1.720 | BZ38: 0.223 | CA38: 0.604 | CB38: 0.835 | CC38: 0.884 | CD38: 0.774 | CE38: 0.150 | CF38: 224 | CG38: 0.4 | CH38: 0.332 | CI38: 0.349 | CJ38: 0.360 | CK38: 0.035 | CL38: 0.604 | CM38: 0.835 | CN38: 0.884 | CO38: 0.774 | CP38: 0.150 | CQ38: 0.846 | CR38: 0.634 | CS38: 0.604 | CT38: 0.695 | CU38: 0.132 | CV38: 0.414 | CW38: 0.479 | CX38: 0.562 | CY38: 0.485 | CZ38: 0.074 | DA38: 0.321 | DB38: 0.391 | DC38: 0.346 | DD38: 0.353 | DE38: 0.035
A39: 225 | B39: 0.081 | C39: 0.507 | D39: 0.362 | E39: 0.317 | F39: 0.217 | G39: 0.087 | H39: 0.092 | I39: 0.374 | J39: 0.184 | K39: 0.164 | L39: 0.559 | M39: 0.961 | N39: 0.632 | O39: 0.717 | P39: 0.214 | Q39: 0.555 | R39: 0.336 | S39: 0.658 | T39: 0.516 | U39: 0.164 | V39: 0.93 | W39: 0.598 | X39: 0.466 | Y39: 0.665 | Z39: 0.239 | AA39: 0.493 | AB39: 0.693 | AC39: 0.298 | AD39: 0.495 | AE39: 0.198 | AF39: 225 | AG39: 0.179 | AH39: 1.524 | AI39: 1.585 | AJ39: 1.096 | AK39: 0.795 | AL39: 1.948 | AM39: 1.722 | AN39: 1.715 | AO39: 1.795 | AP39: 0.133 | AQ39: 1.647 | AR39: 1.721 | AS39: 1.961 | AT39: 1.776 | AU39: 0.164 | AV39: 2.036 | AW39: 1.884 | AX39: 1.841 | AY39: 1.920 | AZ39: 0.102 | BA39: 0.742 | BB39: 0.722 | BC39: 0.521 | BD39: 0.662 | BE39: 0.122 | BF39: 225 | BG39: 1.496 | BH39: 1.449 | BI39: 1.461 | BJ39: 1.469 | BK39: 0.024 | BL39: 1.623 | BM39: 1.688 | BN39: 1.539 | BO39: 1.617 | BP39: 0.075 | BQ39: 1.846 | BR39: 2.229 | BS39: 2.01 | BT39: 2.028 | BU39: 0.192 | BV39: 2.177 | BW39: 1.81 | BX39: 2.036 | BY39: 2.008 | BZ39: 0.185 | CA39: 0.742 | CB39: 0.722 | CC39: 0.521 | CD39: 0.662 | CE39: 0.122 | CF39: 225 | CG39: 0.446 | CH39: 0.19 | CI39: 0.274 | CJ39: 0.303 | CK39: 0.130 | CL39: 0.742 | CM39: 0.722 | CN39: 0.521 | CO39: 0.662 | CP39: 0.122 | CQ39: 0.662 | CR39: 0.572 | CS39: 0.742 | CT39: 0.659 | CU39: 0.085 | CV39: 0.2 | CW39: 0.413 | CX39: 0.393 | CY39: 0.335 | CZ39: 0.118 | DA39: 0.269 | DB39: 0.334 | DC39: 0.282 | DD39: 0.295 | DE39: 0.034
A40: 226 | B40: 0.404 | C40: 0.344 | D40: 0.407 | E40: 0.385 | F40: 0.036 | G40: 0.301 | H40: 0.2 | I40: 0.16 | J40: 0.220 | K40: 0.073 | L40: 0.579 | M40: 1.01 | N40: 0.62 | O40: 0.736 | P40: 0.238 | Q40: 0.599 | R40: 0.314 | S40: 0.515 | T40: 0.476 | U40: 0.146 | V40: 0.832 | W40: 0.71 | X40: 0.319 | Y40: 0.620 | Z40: 0.268 | AA40: 0.447 | AB40: 0.588 | AC40: 0.313 | AD40: 0.449 | AE40: 0.138 | AF40: 226 | AG40: 0.179 | AH40: 1.677 | AI40: 1.729 | AJ40: 1.195 | AK40: 0.880 | AL40: 2.012 | AM40: 2.009 | AN40: 1.865 | AO40: 1.962 | AP40: 0.084 | AQ40: 1.796 | AR40: 1.747 | AS40: 1.945 | AT40: 1.829 | AU40: 0.103 | AV40: 2.232 | AW40: 1.923 | AX40: 1.937 | AY40: 2.031 | AZ40: 0.175 | BA40: 0.639 | BB40: 0.784 | BC40: 0.283 | BD40: 0.569 | BE40: 0.258 | BF40: 226 | BG40: 1.622 | BH40: 1.559 | BI40: 1.65 | BJ40: 1.610 | BK40: 0.047 | BL40: 1.718 | BM40: 1.795 | BN40: 1.638 | BO40: 1.717 | BP40: 0.079 | BQ40: 2.046 | BR40: 2.201 | BS40: 2.082 | BT40: 2.110 | BU40: 0.081 | BV40: 2.229 | BW40: 1.91 | BX40: 2.242 | BY40: 2.127 | BZ40: 0.188 | CA40: 0.639 | CB40: 0.784 | CC40: 0.283 | CD40: 0.569 | CE40: 0.258 | CF40: 226 | CG40: 0.313 | CH40: 0.046 | CI40: 0.28 | CJ40: 0.213 | CK40: 0.146 | CL40: 0.639 | CM40: 0.784 | CN40: 0.283 | CO40: 0.569 | CP40: 0.258 | CQ40: 0.504 | CR40: 0.337 | CS40: 0.639 | CT40: 0.493 | CU40: 0.151 | CV40: 0.273 | CW40: 0.487 | CX40: 0.646 | CY40: 0.469 | CZ40: 0.187 | DA40: 0.287 | DB40: 0.335 | DC40: 0.194 | DD40: 0.272 | DE40: 0.072
A41: 227 | B41: 0.489 | C41: 0.211 | D41: 0.231 | E41: 0.310 | F41: 0.155 | G41: 0.512 | H41: 0.295 | I41: 0.136 | J41: 0.314 | K41: 0.189 | L41: 0.476 | M41: 0.82 | N41: 0.504 | O41: 0.600 | P41: 0.191 | Q41: 0.58 | R41: 0.398 | S41: 0.416 | T41: 0.465 | U41: 0.100 | V41: 0.747 | W41: 0.726 | X41: 0.495 | Y41: 0.656 | Z41: 0.140 | AA41: 0.432 | AB41: 0.531 | AC41: 0.307 | AD41: 0.423 | AE41: 0.112 | AF41: 227 | AG41: 0.179 | AH41: 1.866 | AI41: 1.903 | AJ41: 1.316 | AK41: 0.985 | AL41: 1.911 | AM41: 2.213 | AN41: 1.992 | AO41: 2.039 | AP41: 0.156 | AQ41: 1.958 | AR41: 1.846 | AS41: 1.912 | AT41: 1.905 | AU41: 0.056 | AV41: 2.459 | AW41: 2.21 | AX41: 2.163 | AY41: 2.277 | AZ41: 0.159 | BA41: 0.723 | BB41: 0.677 | BC41: 0.574 | BD41: 0.658 | BE41: 0.076 | BF41: 227 | BG41: 1.874 | BH41: 1.674 | BI41: 1.865 | BJ41: 1.804 | BK41: 0.113 | BL41: 1.858 | BM41: 2.006 | BN41: 1.769 | BO41: 1.878 | BP41: 0.120 | BQ41: 2.258 | BR41: 2.396 | BS41: 2.25 | BT41: 2.301 | BU41: 0.082 | BV41: 2.245 | BW41: 2.116 | BX41: 2.251 | BY41: 2.204 | BZ41: 0.076 | CA41: 0.723 | CB41: 0.677 | CC41: 0.574 | CD41: 0.658 | CE41: 0.076 | CF41: 227 | CG41: 0.31 | CH41: 0.339 | CI41: 0.104 | CJ41: 0.251 | CK41: 0.128 | CL41: 0.723 | CM41: 0.677 | CN41: 0.574 | CO41: 0.658 | CP41: 0.076 | CQ41: 0.581 | CR41: 0.57 | CS41: 0.723 | CT41: 0.625 | CU41: 0.085 | CV41: 0.404 | CW41: 0.455 | CX41: 0.812 | CY41: 0.557 | CZ41: 0.222 | DA41: 0.351 | DB41: 0.361 | DC41: 0.221 | DD41: 0.311 | DE41: 0.078
A42: 228 | B42: 0.369 | C42: 0.161 | D42: 0.373 | E42: 0.301 | F42: 0.121 | G42: 0.419 | H42: 0.368 | I42: 0.203 | J42: 0.330 | K42: 0.113 | L42: 0.55 | M42: 0.59 | N42: 0.51 | O42: 0.550 | P42: 0.040 | Q42: 0.468 | R42: 0.573 | S42: 0.474 | T42: 0.505 | U42: 0.059 | V42: 0.716 | W42: 0.549 | X42: 0.749 | Y42: 0.671 | Z42: 0.107 | AA42: 0.424 | AB42: 0.513 | AC42: 0.261 | AD42: 0.399 | AE42: 0.128 | AF42: 228 | AG42: 0.18 | AH42: 2.051 | AI42: 2.14 | AJ42: 1.457 | AK42: 1.107 | AL42: 2.191 | AM42: 2.377 | AN42: 2.378 | AO42: 2.315 | AP42: 0.108 | AQ42: 2.158 | AR42: 2.138 | AS42: 2.179 | AT42: 2.158 | AU42: 0.021 | AV42: 2.422 | AW42: 2.797 | AX42: 2.295 | AY42: 2.505 | AZ42: 0.261 | BA42: 0.72 | BB42: 0.759 | BC42: 0.664 | BD42: 0.714 | BE42: 0.048 | BF42: 228 | BG42: 2.12 | BH42: 1.947 | BI42: 2 | BJ42: 2.022 | BK42: 0.089 | BL42: 2.092 | BM42: 2.226 | BN42: 1.954 | BO42: 2.091 | BP42: 0.136 | BQ42: 2.482 | BR42: 2.405 | BS42: 2.404 | BT42: 2.430 | BU42: 0.045 | BV42: 2.342 | BW42: 2.335 | BX42: 2.165 | BY42: 2.281 | BZ42: 0.100 | CA42: 0.72 | CB42: 0.759 | CC42: 0.664 | CD42: 0.714 | CE42: 0.048 | CF42: 228 | CG42: 0.339 | CH42: 0.518 | CI42: 0.215 | CJ42: 0.357 | CK42: 0.152 | CL42: 0.72 | CM42: 0.759 | CN42: 0.664 | CO42: 0.714 | CP42: 0.048 | CQ42: 0.475 | CR42: 0.69 | CS42: 0.72 | CT42: 0.628 | CU42: 0.134 | CV42: 0.464 | CW42: 0.47 | CX42: 0.787 | CY42: 0.574 | CZ42: 0.185 | DA42: 0.401 | DB42: 0.382 | DC42: 0.448 | DD42: 0.410 | DE42: 0.034
A43: 229 | B43: 0.345 | C43: 0.319 | D43: 0.558 | E43: 0.407 | F43: 0.131 | G43: 0.292 | H43: 0.466 | I43: 0.504 | J43: 0.421 | K43: 0.113 | L43: 0.706 | M43: 0.637 | N43: 0.642 | O43: 0.662 | P43: 0.038 | Q43: 0.562 | R43: 0.609 | S43: 0.528 | T43: 0.566 | U43: 0.041 | V43: 0.787 | W43: 0.56 | X43: 0.77 | Y43: 0.706 | Z43: 0.126 | AA43: 0.394 | AB43: 0.53 | AC43: 0.372 | AD43: 0.432 | AE43: 0.086 | AF43: 229 | AG43: 0.179 | AH43: 2.201 | AI43: 2.266 | AJ43: 1.549 | AK43: 1.187 | AL43: 2.301 | AM43: 2.429 | AN43: 2.509 | AO43: 2.413 | AP43: 0.105 | AQ43: 2.32 | AR43: 2.328 | AS43: 2.392 | AT43: 2.347 | AU43: 0.039 | AV43: 2.541 | AW43: 3.102 | AX43: 2.49 | AY43: 2.711 | AZ43: 0.340 | BA43: 0.565 | BB43: 0.756 | BC43: 0.646 | BD43: 0.656 | BE43: 0.096 | BF43: 229 | BG43: 2.204 | BH43: 2.185 | BI43: 2.106 | BJ43: 2.165 | BK43: 0.052 | BL43: 2.224 | BM43: 2.2 | BN43: 2.118 | BO43: 2.181 | BP43: 0.056 | BQ43: 2.375 | BR43: 2.38 | BS43: 2.522 | BT43: 2.426 | BU43: 0.083 | BV43: 2.415 | BW43: 2.459 | BX43: 2.329 | BY43: 2.401 | BZ43: 0.066 | CA43: 0.565 | CB43: 0.756 | CC43: 0.646 | CD43: 0.656 | CE43: 0.096 | CF43: 229 | CG43: 0.429 | CH43: 0.403 | CI43: 0.161 | CJ43: 0.331 | CK43: 0.148 | CL43: 0.565 | CM43: 0.756 | CN43: 0.646 | CO43: 0.656 | CP43: 0.096 | CQ43: 0.595 | CR43: 0.829 | CS43: 0.565 | CT43: 0.663 | CU43: 0.145 | CV43: 0.555 | CW43: 0.621 | CX43: 0.704 | CY43: 0.627 | CZ43: 0.075 | DA43: 0.392 | DB43: 0.377 | DC43: 0.516 | DD43: 0.428 | DE43: 0.076
A44: 230 | B44: 0.452 | C44: 0.32 | D44: 0.747 | E44: 0.506 | F44: 0.219 | G44: 0.16 | H44: 0.497 | I44: 0.611 | J44: 0.423 | K44: 0.235 | L44: 0.734 | M44: 0.7 | N44: 0.775 | O44: 0.736 | P44: 0.038 | Q44: 0.5 | R44: 0.504 | S44: 0.802 | T44: 0.602 | U44: 0.173 | V44: 0.716 | W44: 0.471 | X44: 0.628 | Y44: 0.605 | Z44: 0.124 | AA44: 0.404 | AB44: 0.565 | AC44: 0.482 | AD44: 0.484 | AE44: 0.081 | AF44: 230 | AG44: 0.178 | AH44: 2.205 | AI44: 2.226 | AJ44: 1.536 | AK44: 1.176 | AL44: 2.343 | AM44: 2.403 | AN44: 2.496 | AO44: 2.414 | AP44: 0.077 | AQ44: 2.457 | AR44: 2.375 | AS44: 2.419 | AT44: 2.417 | AU44: 0.041 | AV44: 2.396 | AW44: 3.044 | AX44: 2.643 | AY44: 2.694 | AZ44: 0.327 | BA44: 0.658 | BB44: 0.706 | BC44: 0.549 | BD44: 0.638 | BE44: 0.080 | BF44: 230 | BG44: 2.228 | BH44: 2.259 | BI44: 2.094 | BJ44: 2.194 | BK44: 0.088 | BL44: 2.138 | BM44: 2.29 | BN44: 2.195 | BO44: 2.208 | BP44: 0.077 | BQ44: 2.512 | BR44: 2.442 | BS44: 2.424 | BT44: 2.459 | BU44: 0.046 | BV44: 2.449 | BW44: 2.471 | BX44: 2.533 | BY44: 2.484 | BZ44: 0.044 | CA44: 0.658 | CB44: 0.706 | CC44: 0.549 | CD44: 0.638 | CE44: 0.080 | CF44: 230 | CG44: 0.56 | CH44: 0.32 | CI44: 0.123 | CJ44: 0.334 | CK44: 0.219 | CL44: 0.658 | CM44: 0.706 | CN44: 0.549 | CO44: 0.638 | CP44: 0.080 | CQ44: 0.931 | CR44: 1.106 | CS44: 0.658 | CT44: 0.898 | CU44: 0.226 | CV44: 0.578 | CW44: 0.593 | CX44: 0.392 | CY44: 0.521 | CZ44: 0.112 | DA44: 0.358 | DB44: 0.322 | DC44: 0.466 | DD44: 0.382 | DE44: 0.075
A45: 231 | B45: 0.531 | C45: 0.337 | D45: 0.6 | E45: 0.489 | F45: 0.136 | G45: 0.368 | H45: 0.463 | I45: 0.353 | J45: 0.395 | K45: 0.060 | L45: 0.617 | M45: 0.631 | N45: 0.854 | O45: 0.701 | P45: 0.133 | Q45: 0.503 | R45: 0.583 | S45: 0.772 | T45: 0.619 | U45: 0.138 | V45: 0.75 | W45: 0.448 | X45: 0.711 | Y45: 0.636 | Z45: 0.164 | AA45: 0.362 | AB45: 0.56 | AC45: 0.506 | AD45: 0.476 | AE45: 0.102 | AF45: 231 | AG45: 0.177 | AH45: 2.162 | AI45: 2.058 | AJ45: 1.466 | AK45: 1.117 | AL45: 2.311 | AM45: 2.416 | AN45: 2.281 | AO45: 2.336 | AP45: 0.071 | AQ45: 2.491 | AR45: 2.303 | AS45: 2.328 | AT45: 2.374 | AU45: 0.102 | AV45: 2.535 | AW45: 2.576 | AX45: 2.489 | AY45: 2.533 | AZ45: 0.044 | BA45: 0.634 | BB45: 0.774 | BC45: 0.621 | BD45: 0.676 | BE45: 0.085 | BF45: 231 | BG45: 2.09 | BH45: 2.179 | BI45: 2.004 | BJ45: 2.091 | BK45: 0.088 | BL45: 2.024 | BM45: 2.287 | BN45: 2.078 | BO45: 2.130 | BP45: 0.139 | BQ45: 2.602 | BR45: 2.243 | BS45: 2.299 | BT45: 2.381 | BU45: 0.193 | BV45: 2.578 | BW45: 2.215 | BX45: 2.595 | BY45: 2.463 | BZ45: 0.215 | CA45: 0.634 | CB45: 0.774 | CC45: 0.621 | CD45: 0.676 | CE45: 0.085 | CF45: 231 | CG45: 0.668 | CH45: 0.4 | CI45: 0.272 | CJ45: 0.447 | CK45: 0.202 | CL45: 0.634 | CM45: 0.774 | CN45: 0.621 | CO45: 0.676 | CP45: 0.085 | CQ45: 1.194 | CR45: 1.051 | CS45: 0.634 | CT45: 0.960 | CU45: 0.291 | CV45: 0.547 | CW45: 0.532 | CX45: 0.537 | CY45: 0.539 | CZ45: 0.008 | DA45: 0.335 | DB45: 0.276 | DC45: 0.351 | DD45: 0.321 | DE45: 0.040
A46: 232 | B46: 0.505 | C46: 0.146 | D46: 0.385 | E46: 0.345 | F46: 0.183 | G46: 0.428 | H46: 0.325 | I46: 0.144 | J46: 0.299 | K46: 0.144 | L46: 0.478 | M46: 0.465 | N46: 0.748 | O46: 0.564 | P46: 0.160 | Q46: 0.34 | R46: 0.672 | S46: 0.593 | T46: 0.535 | U46: 0.173 | V46: 0.521 | W46: 0.421 | X46: 0.804 | Y46: 0.582 | Z46: 0.199 | AA46: 0.3 | AB46: 0.569 | AC46: 0.429 | AD46: 0.433 | AE46: 0.135 | AF46: 232 | AG46: 0.176 | AH46: 2.043 | AI46: 1.941 | AJ46: 1.387 | AK46: 1.050 | AL46: 2.119 | AM46: 2.432 | AN46: 2.061 | AO46: 2.204 | AP46: 0.200 | AQ46: 2.351 | AR46: 2.118 | AS46: 2.221 | AT46: 2.230 | AU46: 0.117 | AV46: 2.493 | AW46: 2.284 | AX46: 2.543 | AY46: 2.440 | AZ46: 0.137 | BA46: 0.543 | BB46: 0.715 | BC46: 0.737 | BD46: 0.665 | BE46: 0.106 | BF46: 232 | BG46: 2.008 | BH46: 1.956 | BI46: 1.901 | BJ46: 1.955 | BK46: 0.054 | BL46: 1.972 | BM46: 2.34 | BN46: 2.015 | BO46: 2.109 | BP46: 0.201 | BQ46: 2.35 | BR46: 2.112 | BS46: 2.395 | BT46: 2.286 | BU46: 0.152 | BV46: 2.5 | BW46: 2.124 | BX46: 2.551 | BY46: 2.392 | BZ46: 0.233 | CA46: 0.543 | CB46: 0.715 | CC46: 0.737 | CD46: 0.665 | CE46: 0.106 | CF46: 232 | CG46: 0.48 | CH46: 0.64 | CI46: 0.599 | CJ46: 0.573 | CK46: 0.083 | CL46: 0.543 | CM46: 0.715 | CN46: 0.737 | CO46: 0.665 | CP46: 0.106 | CQ46: 1.163 | CR46: 0.742 | CS46: 0.543 | CT46: 0.816 | CU46: 0.317 | CV46: 0.432 | CW46: 0.64 | CX46: 0.626 | CY46: 0.566 | CZ46: 0.116 | DA46: 0.356 | DB46: 0.234 | DC46: 0.321 | DD46: 0.304 | DE46: 0.063
A47: 233 | B47: 0.442 | C47: 0.137 | D47: 0.268 | E47: 0.282 | F47: 0.153 | G47: 0.247 | H47: 0.248 | I47: 0.223 | J47: 0.239 | K47: 0.014 | L47: 0.521 | M47: 0.308 | N47: 0.683 | O47: 0.504 | P47: 0.188 | Q47: 0.333 | R47: 0.636 | S47: 0.422 | T47: 0.464 | U47: 0.156 | V47: 0.429 | W47: 0.302 | X47: 0.73 | Y47: 0.487 | Z47: 0.220 | AA47: 0.316 | AB47: 0.358 | AC47: 0.315 | AD47: 0.330 | AE47: 0.025 | AF47: 233 | AG47: 0.176 | AH47: 1.977 | AI47: 1.914 | AJ47: 1.356 | AK47: 1.022 | AL47: 2.134 | AM47: 2.448 | AN47: 2.091 | AO47: 2.224 | AP47: 0.195 | AQ47: 2.152 | AR47: 2.133 | AS47: 2.329 | AT47: 2.205 | AU47: 0.108 | AV47: 2.436 | AW47: 2.132 | AX47: 2.495 | AY47: 2.354 | AZ47: 0.195 | BA47: 0.524 | BB47: 0.693 | BC47: 0.932 | BD47: 0.716 | BE47: 0.205 | BF47: 233 | BG47: 1.969 | BH47: 1.907 | BI47: 1.8 | BJ47: 1.892 | BK47: 0.085 | BL47: 1.955 | BM47: 2.226 | BN47: 1.957 | BO47: 2.046 | BP47: 0.156 | BQ47: 2.208 | BR47: 2.091 | BS47: 2.373 | BT47: 2.224 | BU47: 0.142 | BV47: 2.376 | BW47: 2.108 | BX47: 2.306 | BY47: 2.263 | BZ47: 0.139 | CA47: 0.524 | CB47: 0.693 | CC47: 0.932 | CD47: 0.716 | CE47: 0.205 | CF47: 233 | CG47: 0.384 | CH47: 0.636 | CI47: 0.884 | CJ47: 0.635 | CK47: 0.250 | CL47: 0.524 | CM47: 0.693 | CN47: 0.932 | CO47: 0.716 | CP47: 0.205 | CQ47: 0.79 | CR47: 0.646 | CS47: 0.524 | CT47: 0.653 | CU47: 0.133 | CV47: 0.445 | CW47: 0.756 | CX47: 0.656 | CY47: 0.619 | CZ47: 0.159 | DA47: 0.496 | DB47: 0.28 | DC47: 0.409 | DD47: 0.395 | DE47: 0.109
A48: 234 | B48: 0.592 | C48: 0.321 | D48: 0.417 | E48: 0.443 | F48: 0.137 | G48: 0.085 | H48: 0.193 | I48: 0.152 | J48: 0.143 | K48: 0.055 | L48: 0.731 | M48: 0.495 | N48: 0.539 | O48: 0.588 | P48: 0.125 | Q48: 0.52 | R48: 0.573 | S48: 0.348 | T48: 0.480 | U48: 0.118 | V48: 0.381 | W48: 0.295 | X48: 0.631 | Y48: 0.436 | Z48: 0.175 | AA48: 0.357 | AB48: 0.2 | AC48: 0.418 | AD48: 0.325 | AE48: 0.112 | AF48: 234 | AG48: 0.176 | AH48: 1.931 | AI48: 1.912 | AJ48: 1.340 | AK48: 1.008 | AL48: 2.152 | AM48: 2.339 | AN48: 2.122 | AO48: 2.204 | AP48: 0.118 | AQ48: 2.057 | AR48: 2.139 | AS48: 2.235 | AT48: 2.144 | AU48: 0.089 | AV48: 2.327 | AW48: 2.171 | AX48: 2.497 | AY48: 2.332 | AZ48: 0.163 | BA48: 0.5 | BB48: 0.619 | BC48: 0.846 | BD48: 0.655 | BE48: 0.176 | BF48: 234 | BG48: 1.851 | BH48: 1.839 | BI48: 1.784 | BJ48: 1.825 | BK48: 0.036 | BL48: 2.046 | BM48: 2.012 | BN48: 2.033 | BO48: 2.030 | BP48: 0.017 | BQ48: 2.01 | BR48: 1.929 | BS48: 2.343 | BT48: 2.094 | BU48: 0.219 | BV48: 2.214 | BW48: 2.047 | BX48: 2.03 | BY48: 2.097 | BZ48: 0.102 | CA48: 0.5 | CB48: 0.619 | CC48: 0.846 | CD48: 0.655 | CE48: 0.176 | CF48: 234 | CG48: 0.218 | CH48: 0.582 | CI48: 0.891 | CJ48: 0.564 | CK48: 0.337 | CL48: 0.5 | CM48: 0.619 | CN48: 0.846 | CO48: 0.655 | CP48: 0.176 | CQ48: 0.559 | CR48: 0.604 | CS48: 0.5 | CT48: 0.554 | CU48: 0.052 | CV48: 0.546 | CW48: 0.72 | CX48: 0.702 | CY48: 0.656 | CZ48: 0.096 | DA48: 0.506 | DB48: 0.375 | DC48: 0.4 | DD48: 0.427 | DE48: 0.070
A49: 235 | B49: 0.779 | C49: 0.404 | D49: 0.462 | E49: 0.548 | F49: 0.202 | G49: 0.093 | H49: 0.401 | I49: 0.05 | J49: 0.181 | K49: 0.191 | L49: 0.774 | M49: 0.666 | N49: 0.51 | O49: 0.650 | P49: 0.133 | Q49: 0.603 | R49: 0.457 | S49: 0.481 | T49: 0.514 | U49: 0.078 | V49: 0.417 | W49: 0.399 | X49: 0.51 | Y49: 0.442 | Z49: 0.060 | AA49: 0.377 | AB49: 0.222 | AC49: 0.466 | AD49: 0.355 | AE49: 0.123 | AF49: 235 | AG49: 0.175 | AH49: 1.902 | AI49: 1.95 | AJ49: 1.342 | AK49: 1.011 | AL49: 2.145 | AM49: 2.249 | AN49: 2.089 | AO49: 2.161 | AP49: 0.081 | AQ49: 2.11 | AR49: 2.13 | AS49: 2.131 | AT49: 2.124 | AU49: 0.012 | AV49: 2.21 | AW49: 2.092 | AX49: 2.46 | AY49: 2.254 | AZ49: 0.188 | BA49: 0.468 | BB49: 0.784 | BC49: 0.772 | BD49: 0.675 | BE49: 0.179 | BF49: 235 | BG49: 1.873 | BH49: 1.816 | BI49: 1.802 | BJ49: 1.830 | BK49: 0.038 | BL49: 2.151 | BM49: 1.908 | BN49: 2.126 | BO49: 2.062 | BP49: 0.134 | BQ49: 2.073 | BR49: 2.138 | BS49: 2.386 | BT49: 2.199 | BU49: 0.165 | BV49: 2.225 | BW49: 2.162 | BX49: 2.138 | BY49: 2.175 | BZ49: 0.045 | CA49: 0.468 | CB49: 0.784 | CC49: 0.772 | CD49: 0.675 | CE49: 0.179 | CF49: 235 | CG49: 0.298 | CH49: 0.498 | CI49: 0.616 | CJ49: 0.471 | CK49: 0.161 | CL49: 0.468 | CM49: 0.784 | CN49: 0.772 | CO49: 0.675 | CP49: 0.179 | CQ49: 0.545 | CR49: 0.73 | CS49: 0.468 | CT49: 0.581 | CU49: 0.135 | CV49: 0.646 | CW49: 0.535 | CX49: 0.484 | CY49: 0.555 | CZ49: 0.083 | DA49: 0.428 | DB49: 0.398 | DC49: 0.395 | DD49: 0.407 | DE49: 0.018
A50: 236 | B50: 0.715 | C50: 0.506 | D50: 0.504 | E50: 0.575 | F50: 0.121 | G50: 0.305 | H50: 0.416 | I50: -0.005 | J50: 0.239 | K50: 0.218 | L50: 0.801 | M50: 0.933 | N50: 0.481 | O50: 0.738 | P50: 0.232 | Q50: 0.618 | R50: 0.53 | S50: 0.437 | T50: 0.528 | U50: 0.091 | V50: 0.771 | W50: 0.46 | X50: 0.625 | Y50: 0.619 | Z50: 0.156 | AA50: 0.395 | AB50: 0.317 | AC50: 0.482 | AD50: 0.398 | AE50: 0.083 | AF50: 236 | AG50: 0.175 | AH50: 1.955 | AI50: 1.973 | AJ50: 1.368 | AK50: 1.033 | AL50: 2.16 | AM50: 2.141 | AN50: 2.189 | AO50: 2.163 | AP50: 0.024 | AQ50: 2.175 | AR50: 2.117 | AS50: 2.038 | AT50: 2.110 | AU50: 0.069 | AV50: 2.203 | AW50: 2.171 | AX50: 2.128 | AY50: 2.167 | AZ50: 0.038 | BA50: 0.471 | BB50: 0.795 | BC50: 0.86 | BD50: 0.709 | BE50: 0.208 | BF50: 236 | BG50: 1.853 | BH50: 1.85 | BI50: 1.775 | BJ50: 1.826 | BK50: 0.044 | BL50: 2.121 | BM50: 1.852 | BN50: 2.156 | BO50: 2.043 | BP50: 0.166 | BQ50: 2.112 | BR50: 2.248 | BS50: 2.289 | BT50: 2.216 | BU50: 0.093 | BV50: 2.357 | BW50: 2.241 | BX50: 2.169 | BY50: 2.256 | BZ50: 0.095 | CA50: 0.471 | CB50: 0.795 | CC50: 0.86 | CD50: 0.709 | CE50: 0.208 | CF50: 236 | CG50: 0.65 | CH50: 0.444 | CI50: 0.173 | CJ50: 0.422 | CK50: 0.239 | CL50: 0.471 | CM50: 0.795 | CN50: 0.86 | CO50: 0.709 | CP50: 0.208 | CQ50: 0.522 | CR50: 0.7 | CS50: 0.471 | CT50: 0.564 | CU50: 0.120 | CV50: 0.56 | CW50: 0.413 | CX50: 0.345 | CY50: 0.439 | CZ50: 0.110 | DA50: 0.327 | DB50: 0.315 | DC50: 0.316 | DD50: 0.319 | DE50: 0.007
A51: 237 | B51: 0.751 | C51: 0.393 | D51: 0.638 | E51: 0.594 | F51: 0.183 | G51: 0.252 | H51: 0.289 | I51: 0.136 | J51: 0.226 | K51: 0.080 | L51: 0.64 | M51: 0.904 | N51: 0.453 | O51: 0.666 | P51: 0.227 | Q51: 0.537 | R51: 0.513 | S51: 0.534 | T51: 0.528 | U51: 0.013 | V51: 0.975 | W51: 0.404 | X51: 0.731 | Y51: 0.703 | Z51: 0.287 | AA51: 0.399 | AB51: 0.422 | AC51: 0.455 | AD51: 0.425 | AE51: 0.028 | AF51: 237 | AG51: 0.175 | AH51: 1.94 | AI51: 1.97 | AJ51: 1.362 | AK51: 1.028 | AL51: 2.068 | AM51: 2.073 | AN51: 2.267 | AO51: 2.136 | AP51: 0.113 | AQ51: 2.18 | AR51: 2.049 | AS51: 2.087 | AT51: 2.105 | AU51: 0.067 | AV51: 2.09 | AW51: 2.279 | AX51: 2.232 | AY51: 2.200 | AZ51: 0.098 | BA51: 0.374 | BB51: 0.838 | BC51: 0.662 | BD51: 0.625 | BE51: 0.234 | BF51: 237 | BG51: 1.932 | BH51: 1.812 | BI51: 1.752 | BJ51: 1.832 | BK51: 0.092 | BL51: 2.048 | BM51: 1.855 | BN51: 2.182 | BO51: 2.028 | BP51: 0.164 | BQ51: 2.053 | BR51: 2.088 | BS51: 2.331 | BT51: 2.157 | BU51: 0.151 | BV51: 2.303 | BW51: 2.219 | BX51: 2.27 | BY51: 2.264 | BZ51: 0.042 | CA51: 0.374 | CB51: 0.838 | CC51: 0.662 | CD51: 0.625 | CE51: 0.234 | CF51: 237 | CG51: 0.633 | CH51: 0.448 | CI51: 0.135 | CJ51: 0.405 | CK51: 0.252 | CL51: 0.374 | CM51: 0.838 | CN51: 0.662 | CO51: 0.625 | CP51: 0.234 | CQ51: 0.454 | CR51: 0.76 | CS51: 0.374 | CT51: 0.529 | CU51: 0.204 | CV51: 0.456 | CW51: 0.373 | CX51: 0.324 | CY51: 0.384 | CZ51: 0.067 | DA51: 0.341 | DB51: 0.15 | DC51: 0.276 | DD51: 0.256 | DE51: 0.097
A52: 238 | B52: 0.613 | C52: 0.402 | D52: 0.561 | E52: 0.525 | F52: 0.110 | G52: 0.004 | H52: 0.136 | I52: 0.503 | J52: 0.214 | K52: 0.259 | L52: 0.666 | M52: 0.691 | N52: 0.349 | O52: 0.569 | P52: 0.191 | Q52: 0.544 | R52: 0.653 | S52: 0.589 | T52: 0.595 | U52: 0.055 | V52: 0.945 | W52: 0.422 | X52: 0.577 | Y52: 0.648 | Z52: 0.269 | AA52: 0.42 | AB52: 0.474 | AC52: 0.391 | AD52: 0.428 | AE52: 0.042 | AF52: 238 | AG52: 0.176 | AH52: 1.901 | AI52: 1.939 | AJ52: 1.339 | AK52: 1.007 | AL52: 2.128 | AM52: 2.046 | AN52: 2.316 | AO52: 2.163 | AP52: 0.138 | AQ52: 2.161 | AR52: 2.135 | AS52: 2.224 | AT52: 2.173 | AU52: 0.046 | AV52: 2.052 | AW52: 2.619 | AX52: 2.203 | AY52: 2.291 | AZ52: 0.294 | BA52: 0.552 | BB52: 0.693 | BC52: 0.711 | BD52: 0.652 | BE52: 0.087 | BF52: 238 | BG52: 1.955 | BH52: 1.802 | BI52: 1.746 | BJ52: 1.834 | BK52: 0.108 | BL52: 1.916 | BM52: 1.832 | BN52: 2.119 | BO52: 1.956 | BP52: 0.148 | BQ52: 2.027 | BR52: 2.146 | BS52: 2.246 | BT52: 2.140 | BU52: 0.110 | BV52: 2.17 | BW52: 2.059 | BX52: 2.426 | BY52: 2.218 | BZ52: 0.188 | CA52: 0.552 | CB52: 0.693 | CC52: 0.711 | CD52: 0.652 | CE52: 0.087 | CF52: 238 | CG52: 0.524 | CH52: 0.422 | CI52: 0.238 | CJ52: 0.395 | CK52: 0.145 | CL52: 0.552 | CM52: 0.693 | CN52: 0.711 | CO52: 0.652 | CP52: 0.087 | CQ52: 0.409 | CR52: 0.838 | CS52: 0.552 | CT52: 0.600 | CU52: 0.218 | CV52: 0.376 | CW52: 0.504 | CX52: 0.566 | CY52: 0.482 | CZ52: 0.097 | DA52: 0.391 | DB52: 0.179 | DC52: 0.274 | DD52: 0.281 | DE52: 0.106
A53: 239 | B53: 0.366 | C53: 0.373 | D53: 0.412 | E53: 0.384 | F53: 0.025 | G53: -0.002 | H53: -0.106 | I53: 0.54 | J53: 0.144 | K53: 0.347 | L53: 0.767 | M53: 0.601 | N53: 0.472 | O53: 0.613 | P53: 0.148 | Q53: 0.475 | R53: 0.638 | S53: 0.619 | T53: 0.577 | U53: 0.089 | V53: 0.784 | W53: 0.443 | X53: 0.646 | Y53: 0.624 | Z53: 0.172 | AA53: 0.408 | AB53: 0.504 | AC53: 0.468 | AD53: 0.460 | AE53: 0.048 | AF53: 239 | AG53: 0.175 | AH53: 1.891 | AI53: 1.848 | AJ53: 1.305 | AK53: 0.979 | AL53: 2.057 | AM53: 2.015 | AN53: 2.328 | AO53: 2.133 | AP53: 0.170 | AQ53: 2.091 | AR53: 2.097 | AS53: 2.356 | AT53: 2.181 | AU53: 0.151 | AV53: 2.146 | AW53: 2.722 | AX53: 2.219 | AY53: 2.362 | AZ53: 0.314 | BA53: 0.687 | BB53: 0.531 | BC53: 0.652 | BD53: 0.623 | BE53: 0.082 | BF53: 239 | BG53: 1.935 | BH53: 1.823 | BI53: 1.768 | BJ53: 1.842 | BK53: 0.085 | BL53: 1.898 | BM53: 1.925 | BN53: 2.066 | BO53: 1.963 | BP53: 0.090 | BQ53: 1.97 | BR53: 2.142 | BS53: 2.407 | BT53: 2.173 | BU53: 0.220 | BV53: 2.108 | BW53: 2.154 | BX53: 2.342 | BY53: 2.201 | BZ53: 0.124 | CA53: 0.687 | CB53: 0.531 | CC53: 0.652 | CD53: 0.623 | CE53: 0.082 | CF53: 239 | CG53: 0.144 | CH53: 0.437 | CI53: 0.389 | CJ53: 0.323 | CK53: 0.157 | CL53: 0.687 | CM53: 0.531 | CN53: 0.652 | CO53: 0.623 | CP53: 0.082 | CQ53: 0.606 | CR53: 0.815 | CS53: 0.687 | CT53: 0.703 | CU53: 0.105 | CV53: 0.361 | CW53: 0.611 | CX53: 0.721 | CY53: 0.564 | CZ53: 0.184 | DA53: 0.403 | DB53: 0.366 | DC53: 0.267 | DD53: 0.345 | DE53: 0.070
A54: 240 | B54: 0.298 | C54: 0.202 | D54: 0.228 | E54: 0.243 | F54: 0.050 | G54: 0.128 | H54: -0.193 | I54: 0.453 | J54: 0.129 | K54: 0.323 | L54: 0.715 | M54: 0.582 | N54: 0.601 | O54: 0.633 | P54: 0.072 | Q54: 0.586 | R54: 0.634 | S54: 0.554 | T54: 0.591 | U54: 0.040 | V54: 0.51 | W54: 0.481 | X54: 0.663 | Y54: 0.551 | Z54: 0.098 | AA54: 0.402 | AB54: 0.434 | AC54: 0.548 | AD54: 0.461 | AE54: 0.077 | AF54: 240 | AG54: 0.173 | AH54: 1.954 | AI54: 1.905 | AJ54: 1.344 | AK54: 1.014 | AL54: 2.206 | AM54: 2.083 | AN54: 2.172 | AO54: 2.154 | AP54: 0.064 | AQ54: 2.082 | AR54: 2.242 | AS54: 2.409 | AT54: 2.244 | AU54: 0.164 | AV54: 2.252 | AW54: 2.548 | AX54: 2.48 | AY54: 2.427 | AZ54: 0.155 | BA54: 0.845 | BB54: 0.526 | BC54: 0.577 | BD54: 0.649 | BE54: 0.171 | BF54: 240 | BG54: 1.926 | BH54: 1.892 | BI54: 1.838 | BJ54: 1.885 | BK54: 0.044 | BL54: 2.029 | BM54: 2.029 | BN54: 2.043 | BO54: 2.034 | BP54: 0.008 | BQ54: 1.985 | BR54: 2.404 | BS54: 2.519 | BT54: 2.303 | BU54: 0.281 | BV54: 2.079 | BW54: 2.491 | BX54: 2.315 | BY54: 2.295 | BZ54: 0.207 | CA54: 0.845 | CB54: 0.526 | CC54: 0.577 | CD54: 0.649 | CE54: 0.171 | CF54: 240 | CG54: 0.185 | CH54: 0.437 | CI54: 0.579 | CJ54: 0.400 | CK54: 0.200 | CL54: 0.845 | CM54: 0.526 | CN54: 0.577 | CO54: 0.649 | CP54: 0.171 | CQ54: 0.57 | CR54: 0.769 | CS54: 0.845 | CT54: 0.728 | CU54: 0.142 | CV54: 0.308 | CW54: 0.631 | CX54: 0.689 | CY54: 0.543 | CZ54: 0.205 | DA54: 0.342 | DB54: 0.496 | DC54: 0.362 | DD54: 0.400 | DE54: 0.084
A55: 241 | B55: 0.402 | C55: 0.257 | D55: 0.375 | E55: 0.345 | F55: 0.077 | G55: 0.317 | H55: -0.154 | I55: 0.299 | J55: 0.154 | K55: 0.267 | L55: 0.746 | M55: 0.565 | N55: 0.623 | O55: 0.645 | P55: 0.092 | Q55: 0.754 | R55: 0.628 | S55: 0.465 | T55: 0.616 | U55: 0.145 | V55: 0.569 | W55: 0.539 | X55: 0.895 | Y55: 0.668 | Z55: 0.197 | AA55: 0.446 | AB55: 0.461 | AC55: 0.569 | AD55: 0.492 | AE55: 0.067 | AF55: 241 | AG55: 0.173 | AH55: 2.055 | AI55: 2.071 | AJ55: 1.433 | AK55: 1.091 | AL55: 2.298 | AM55: 2.292 | AN55: 2.287 | AO55: 2.292 | AP55: 0.006 | AQ55: 2.177 | AR55: 2.414 | AS55: 2.545 | AT55: 2.379 | AU55: 0.187 | AV55: 2.339 | AW55: 2.376 | AX55: 2.688 | AY55: 2.468 | AZ55: 0.192 | BA55: 0.865 | BB55: 0.64 | BC55: 0.61 | BD55: 0.705 | BE55: 0.139 | BF55: 241 | BG55: 1.939 | BH55: 2.062 | BI55: 1.966 | BJ55: 1.989 | BK55: 0.065 | BL55: 2.177 | BM55: 2.101 | BN55: 2.152 | BO55: 2.143 | BP55: 0.039 | BQ55: 2.1 | BR55: 2.686 | BS55: 2.695 | BT55: 2.494 | BU55: 0.341 | BV55: 2.165 | BW55: 2.722 | BX55: 2.206 | BY55: 2.364 | BZ55: 0.310 | CA55: 0.865 | CB55: 0.64 | CC55: 0.61 | CD55: 0.705 | CE55: 0.139 | CF55: 241 | CG55: 0.28 | CH55: 0.48 | CI55: 0.29 | CJ55: 0.350 | CK55: 0.113 | CL55: 0.865 | CM55: 0.64 | CN55: 0.61 | CO55: 0.705 | CP55: 0.139 | CQ55: 0.749 | CR55: 0.717 | CS55: 0.865 | CT55: 0.777 | CU55: 0.078 | CV55: 0.369 | CW55: 0.641 | CX55: 0.564 | CY55: 0.525 | CZ55: 0.140 | DA55: 0.404 | DB55: 0.552 | DC55: 0.408 | DD55: 0.455 | DE55: 0.084
A56: 242 | B56: 0.726 | C56: 0.266 | D56: 0.37 | E56: 0.454 | F56: 0.241 | G56: 0.415 | H56: 0.078 | I56: 0.125 | J56: 0.206 | K56: 0.183 | L56: 0.803 | M56: 0.726 | N56: 0.646 | O56: 0.725 | P56: 0.079 | Q56: 0.85 | R56: 0.534 | S56: 0.502 | T56: 0.629 | U56: 0.192 | V56: 0.506 | W56: 0.469 | X56: 1.106 | Y56: 0.694 | Z56: 0.358 | AA56: 0.472 | AB56: 0.447 | AC56: 0.463 | AD56: 0.461 | AE56: 0.013 | AF56: 242 | AG56: 0.172 | AH56: 2.141 | AI56: 2.221 | AJ56: 1.511 | AK56: 1.161 | AL56: 2.532 | AM56: 2.431 | AN56: 2.394 | AO56: 2.452 | AP56: 0.071 | AQ56: 2.291 | AR56: 2.545 | AS56: 2.718 | AT56: 2.518 | AU56: 0.215 | AV56: 2.382 | AW56: 2.322 | AX56: 2.837 | AY56: 2.514 | AZ56: 0.282 | BA56: 0.824 | BB56: 0.821 | BC56: 0.401 | BD56: 0.682 | BE56: 0.243 | BF56: 242 | BG56: 2.015 | BH56: 2.13 | BI56: 2.09 | BJ56: 2.078 | BK56: 0.058 | BL56: 2.272 | BM56: 2.141 | BN56: 2.163 | BO56: 2.192 | BP56: 0.070 | BQ56: 2.507 | BR56: 2.604 | BS56: 2.673 | BT56: 2.595 | BU56: 0.083 | BV56: 2.38 | BW56: 2.693 | BX56: 2.279 | BY56: 2.451 | BZ56: 0.216 | CA56: 0.824 | CB56: 0.821 | CC56: 0.401 | CD56: 0.682 | CE56: 0.243 | CF56: 242 | CG56: 0.414 | CH56: 0.454 | CI56: 0.357 | CJ56: 0.408 | CK56: 0.049 | CL56: 0.824 | CM56: 0.821 | CN56: 0.401 | CO56: 0.682 | CP56: 0.243 | CQ56: 0.954 | CR56: 0.743 | CS56: 0.824 | CT56: 0.840 | CU56: 0.106 | CV56: 0.387 | CW56: 0.489 | CX56: 0.502 | CY56: 0.459 | CZ56: 0.063 | DA56: 0.393 | DB56: 0.466 | DC56: 0.464 | DD56: 0.441 | DE56: 0.042
A57: 243 | B57: 0.691 | C57: 0.364 | D57: 0.331 | E57: 0.462 | F57: 0.199 | G57: 0.208 | H57: 0.363 | I57: 0.182 | J57: 0.251 | K57: 0.098 | L57: 0.739 | M57: 0.692 | N57: 0.67 | O57: 0.700 | P57: 0.035 | Q57: 0.69 | R57: 0.493 | S57: 0.673 | T57: 0.619 | U57: 0.109 | V57: 0.462 | W57: 0.476 | X57: 0.889 | Y57: 0.609 | Z57: 0.243 | AA57: 0.479 | AB57: 0.34 | AC57: 0.426 | AD57: 0.415 | AE57: 0.070 | AF57: 243 | AG57: 0.171 | AH57: 2.156 | AI57: 2.22 | AJ57: 1.516 | AK57: 1.165 | AL57: 2.656 | AM57: 2.473 | AN57: 2.398 | AO57: 2.509 | AP57: 0.133 | AQ57: 2.373 | AR57: 2.46 | AS57: 2.694 | AT57: 2.509 | AU57: 0.166 | AV57: 2.456 | AW57: 2.46 | AX57: 2.787 | AY57: 2.568 | AZ57: 0.190 | BA57: 0.945 | BB57: 0.672 | BC57: 0.311 | BD57: 0.643 | BE57: 0.318 | BF57: 243 | BG57: 2.063 | BH57: 2.113 | BI57: 2.149 | BJ57: 2.108 | BK57: 0.043 | BL57: 2.252 | BM57: 2.217 | BN57: 2.184 | BO57: 2.218 | BP57: 0.034 | BQ57: 2.612 | BR57: 2.467 | BS57: 2.459 | BT57: 2.513 | BU57: 0.086 | BV57: 2.421 | BW57: 2.532 | BX57: 2.451 | BY57: 2.468 | BZ57: 0.057 | CA57: 0.945 | CB57: 0.672 | CC57: 0.311 | CD57: 0.643 | CE57: 0.318 | CF57: 243 | CG57: 0.451 | CH57: 0.495 | CI57: 0.53 | CJ57: 0.492 | CK57: 0.040 | CL57: 0.945 | CM57: 0.672 | CN57: 0.311 | CO57: 0.643 | CP57: 0.318 | CQ57: 0.857 | CR57: 0.649 | CS57: 0.945 | CT57: 0.817 | CU57: 0.152 | CV57: 0.33 | CW57: 0.406 | CX57: 0.49 | CY57: 0.409 | CZ57: 0.080 | DA57: 0.321 | DB57: 0.337 | DC57: 0.42 | DD57: 0.359 | DE57: 0.053
A58: 244 | B58: 0.405 | C58: 0.362 | D58: 0.297 | E58: 0.355 | F58: 0.054 | G58: 0.288 | H58: 0.476 | I58: 0.26 | J58: 0.341 | K58: 0.117 | L58: 0.807 | M58: 0.857 | N58: 0.838 | O58: 0.834 | P58: 0.025 | Q58: 0.427 | R58: 0.374 | S58: 0.73 | T58: 0.510 | U58: 0.192 | V58: 0.45 | W58: 0.47 | X58: 0.778 | Y58: 0.566 | Z58: 0.184 | AA58: 0.456 | AB58: 0.39 | AC58: 0.457 | AD58: 0.434 | AE58: 0.038 | AF58: 244 | AG58: 0.171 | AH58: 2.155 | AI58: 2.106 | AJ58: 1.477 | AK58: 1.132 | AL58: 2.415 | AM58: 2.375 | AN58: 2.373 | AO58: 2.388 | AP58: 0.024 | AQ58: 2.35 | AR58: 2.404 | AS58: 2.579 | AT58: 2.444 | AU58: 0.120 | AV58: 2.539 | AW58: 2.469 | AX58: 2.496 | AY58: 2.501 | AZ58: 0.035 | BA58: 0.899 | BB58: 0.797 | BC58: 0.399 | BD58: 0.698 | BE58: 0.264 | BF58: 244 | BG58: 2.021 | BH58: 2.087 | BI58: 2.093 | BJ58: 2.067 | BK58: 0.040 | BL58: 2.129 | BM58: 2.32 | BN58: 2.199 | BO58: 2.216 | BP58: 0.097 | BQ58: 2.522 | BR58: 2.222 | BS58: 2.277 | BT58: 2.340 | BU58: 0.160 | BV58: 2.477 | BW58: 2.58 | BX58: 2.49 | BY58: 2.516 | BZ58: 0.056 | CA58: 0.899 | CB58: 0.797 | CC58: 0.399 | CD58: 0.698 | CE58: 0.264 | CF58: 244 | CG58: 0.391 | CH58: 0.621 | CI58: 0.458 | CJ58: 0.490 | CK58: 0.118 | CL58: 0.899 | CM58: 0.797 | CN58: 0.399 | CO58: 0.698 | CP58: 0.264 | CQ58: 0.797 | CR58: 0.779 | CS58: 0.899 | CT58: 0.825 | CU58: 0.065 | CV58: 0.502 | CW58: 0.432 | CX58: 0.579 | CY58: 0.504 | CZ58: 0.074 | DA58: 0.311 | DB58: 0.354 | DC58: 0.356 | DD58: 0.340 | DE58: 0.025
A59: 245 | B59: 0.442 | C59: 0.325 | D59: 0.262 | E59: 0.343 | F59: 0.091 | G59: 0.434 | H59: 0.598 | I59: 0.345 | J59: 0.459 | K59: 0.128 | L59: 0.861 | M59: 0.861 | N59: 1.097 | O59: 0.940 | P59: 0.136 | Q59: 0.568 | R59: 0.468 | S59: 0.784 | T59: 0.607 | U59: 0.162 | V59: 0.532 | W59: 0.503 | X59: 0.591 | Y59: 0.542 | Z59: 0.045 | AA59: 0.476 | AB59: 0.422 | AC59: 0.531 | AD59: 0.476 | AE59: 0.055 | AF59: 245 | AG59: 0.171 | AH59: 2.18 | AI59: 2.153 | AJ59: 1.501 | AK59: 1.152 | AL59: 2.358 | AM59: 2.291 | AN59: 2.382 | AO59: 2.344 | AP59: 0.047 | AQ59: 2.387 | AR59: 2.491 | AS59: 2.254 | AT59: 2.377 | AU59: 0.119 | AV59: 2.636 | AW59: 2.408 | AX59: 2.433 | AY59: 2.492 | AZ59: 0.125 | BA59: 0.844 | BB59: 0.967 | BC59: 0.597 | BD59: 0.803 | BE59: 0.188 | BF59: 245 | BG59: 2.104 | BH59: 2.081 | BI59: 2.08 | BJ59: 2.088 | BK59: 0.014 | BL59: 2.109 | BM59: 2.347 | BN59: 2.142 | BO59: 2.199 | BP59: 0.129 | BQ59: 2.482 | BR59: 2.189 | BS59: 2.172 | BT59: 2.281 | BU59: 0.174 | BV59: 2.553 | BW59: 2.824 | BX59: 2.426 | BY59: 2.601 | BZ59: 0.203 | CA59: 0.844 | CB59: 0.967 | CC59: 0.597 | CD59: 0.803 | CE59: 0.188 | CF59: 245 | CG59: 0.364 | CH59: 0.52 | CI59: 0.456 | CJ59: 0.447 | CK59: 0.078 | CL59: 0.844 | CM59: 0.967 | CN59: 0.597 | CO59: 0.803 | CP59: 0.188 | CQ59: 0.628 | CR59: 0.747 | CS59: 0.844 | CT59: 0.740 | CU59: 0.108 | CV59: 0.645 | CW59: 0.373 | CX59: 0.533 | CY59: 0.517 | CZ59: 0.137 | DA59: 0.327 | DB59: 0.291 | DC59: 0.335 | DD59: 0.318 | DE59: 0.023
A60: 246 | B60: 0.359 | C60: 0.472 | D60: 0.207 | E60: 0.346 | F60: 0.133 | G60: 0.44 | H60: 0.402 | I60: 0.415 | J60: 0.419 | K60: 0.019 | L60: 0.717 | M60: 0.871 | N60: 1.185 | O60: 0.924 | P60: 0.239 | Q60: 0.597 | R60: 0.505 | S60: 0.672 | T60: 0.591 | U60: 0.084 | V60: 0.504 | W60: 0.526 | X60: 0.54 | Y60: 0.523 | Z60: 0.018 | AA60: 0.453 | AB60: 0.452 | AC60: 0.437 | AD60: 0.447 | AE60: 0.009 | AF60: 246 | AG60: 0.169 | AH60: 2.265 | AI60: 2.349 | AJ60: 1.594 | AK60: 1.235 | AL60: 2.357 | AM60: 2.358 | AN60: 2.439 | AO60: 2.385 | AP60: 0.047 | AQ60: 2.426 | AR60: 2.625 | AS60: 2.274 | AT60: 2.442 | AU60: 0.176 | AV60: 2.868 | AW60: 2.529 | AX60: 2.639 | AY60: 2.679 | AZ60: 0.173 | BA60: 0.615 | BB60: 1.149 | BC60: 0.759 | BD60: 0.841 | BE60: 0.276 | BF60: 246 | BG60: 2.226 | BH60: 2.211 | BI60: 2.214 | BJ60: 2.217 | BK60: 0.008 | BL60: 2.211 | BM60: 2.407 | BN60: 2.186 | BO60: 2.268 | BP60: 0.121 | BQ60: 2.503 | BR60: 2.417 | BS60: 2.304 | BT60: 2.408 | BU60: 0.100 | BV60: 2.733 | BW60: 2.835 | BX60: 2.31 | BY60: 2.626 | BZ60: 0.278 | CA60: 0.615 | CB60: 1.149 | CC60: 0.759 | CD60: 0.841 | CE60: 0.276 | CF60: 246 | CG60: 0.296 | CH60: 0.547 | CI60: 0.459 | CJ60: 0.434 | CK60: 0.127 | CL60: 0.615 | CM60: 1.149 | CN60: 0.759 | CO60: 0.841 | CP60: 0.276 | CQ60: 0.689 | CR60: 0.836 | CS60: 0.615 | CT60: 0.713 | CU60: 0.112 | CV60: 0.697 | CW60: 0.493 | CX60: 0.57 | CY60: 0.587 | CZ60: 0.103 | DA60: 0.41 | DB60: 0.345 | DC60: 0.336 | DD60: 0.364 | DE60: 0.040
A61: 247 | B61: 0.259 | C61: 0.402 | D61: 0.266 | E61: 0.309 | F61: 0.081 | G61: 0.376 | H61: 0.191 | I61: 0.458 | J61: 0.342 | K61: 0.137 | L61: 0.635 | M61: 0.88 | N61: 1.104 | O61: 0.873 | P61: 0.235 | Q61: 0.592 | R61: 0.472 | S61: 0.546 | T61: 0.537 | U61: 0.061 | V61: 0.714 | W61: 0.678 | X61: 0.74 | Y61: 0.711 | Z61: 0.031 | AA61: 0.428 | AB61: 0.425 | AC61: 0.349 | AD61: 0.401 | AE61: 0.045 | AF61: 247 | AG61: 0.167 | AH61: 2.358 | AI61: 2.489 | AJ61: 1.671 | AK61: 1.304 | AL61: 2.563 | AM61: 2.427 | AN61: 2.477 | AO61: 2.489 | AP61: 0.069 | AQ61: 2.385 | AR61: 2.656 | AS61: 2.39 | AT61: 2.477 | AU61: 0.155 | AV61: 2.984 | AW61: 2.58 | AX61: 2.769 | AY61: 2.778 | AZ61: 0.202 | BA61: 0.788 | BB61: 1.07 | BC61: 0.728 | BD61: 0.862 | BE61: 0.183 | BF61: 247 | BG61: 2.279 | BH61: 2.304 | BI61: 2.326 | BJ61: 2.303 | BK61: 0.024 | BL61: 2.328 | BM61: 2.334 | BN61: 2.193 | BO61: 2.285 | BP61: 0.080 | BQ61: 2.727 | BR61: 2.465 | BS61: 2.54 | BT61: 2.577 | BU61: 0.135 | BV61: 2.947 | BW61: 2.775 | BX61: 2.398 | BY61: 2.707 | BZ61: 0.281 | CA61: 0.788 | CB61: 1.07 | CC61: 0.728 | CD61: 0.862 | CE61: 0.183 | CF61: 247 | CG61: 0.159 | CH61: 0.381 | CI61: 0.535 | CJ61: 0.358 | CK61: 0.189 | CL61: 0.788 | CM61: 1.07 | CN61: 0.728 | CO61: 0.862 | CP61: 0.183 | CQ61: 0.83 | CR61: 0.728 | CS61: 0.788 | CT61: 0.782 | CU61: 0.051 | CV61: 0.625 | CW61: 0.664 | CX61: 0.624 | CY61: 0.638 | CZ61: 0.023 | DA61: 0.393 | DB61: 0.397 | DC61: 0.353 | DD61: 0.381 | DE61: 0.024
A62: 248 | B62: 0.275 | C62: 0.406 | D62: 0.412 | E62: 0.364 | F62: 0.077 | G62: 0.246 | H62: 0.12 | I62: 0.286 | J62: 0.217 | K62: 0.087 | L62: 0.5 | M62: 0.629 | N62: 0.865 | O62: 0.665 | P62: 0.185 | Q62: 0.58 | R62: 0.349 | S62: 0.424 | T62: 0.451 | U62: 0.118 | V62: 0.762 | W62: 0.702 | X62: 0.726 | Y62: 0.730 | Z62: 0.030 | AA62: 0.425 | AB62: 0.292 | AC62: 0.356 | AD62: 0.358 | AE62: 0.067 | AF62: 248 | AG62: 0.166 | AH62: 2.378 | AI62: 2.428 | AJ62: 1.657 | AK62: 1.292 | AL62: 2.669 | AM62: 2.492 | AN62: 2.415 | AO62: 2.525 | AP62: 0.130 | AQ62: 2.384 | AR62: 2.475 | AS62: 2.391 | AT62: 2.417 | AU62: 0.051 | AV62: 2.867 | AW62: 2.558 | AX62: 2.826 | AY62: 2.750 | AZ62: 0.168 | BA62: 0.933 | BB62: 0.716 | BC62: 0.763 | BD62: 0.804 | BE62: 0.114 | BF62: 248 | BG62: 2.286 | BH62: 2.298 | BI62: 2.297 | BJ62: 2.294 | BK62: 0.007 | BL62: 2.36 | BM62: 2.32 | BN62: 2.165 | BO62: 2.282 | BP62: 0.103 | BQ62: 2.63 | BR62: 2.325 | BS62: 2.547 | BT62: 2.501 | BU62: 0.158 | BV62: 2.967 | BW62: 2.776 | BX62: 2.312 | BY62: 2.685 | BZ62: 0.337 | CA62: 0.933 | CB62: 0.716 | CC62: 0.763 | CD62: 0.804 | CE62: 0.114 | CF62: 248 | CG62: 0.313 | CH62: 0.511 | CI62: 0.434 | CJ62: 0.419 | CK62: 0.100 | CL62: 0.933 | CM62: 0.716 | CN62: 0.763 | CO62: 0.804 | CP62: 0.114 | CQ62: 0.74 | CR62: 0.574 | CS62: 0.933 | CT62: 0.749 | CU62: 0.180 | CV62: 0.405 | CW62: 0.648 | CX62: 0.612 | CY62: 0.555 | CZ62: 0.131 | DA62: 0.401 | DB62: 0.356 | DC62: 0.365 | DD62: 0.374 | DE62: 0.024
A63: 249 | B63: 0.28 | C63: 0.223 | D63: 0.577 | E63: 0.360 | F63: 0.190 | G63: 0.248 | H63: 0.329 | I63: 0.164 | J63: 0.247 | K63: 0.083 | L63: 0.52 | M63: 0.551 | N63: 0.73 | O63: 0.600 | P63: 0.113 | Q63: 0.628 | R63: 0.513 | S63: 0.357 | T63: 0.499 | U63: 0.136 | V63: 0.863 | W63: 0.717 | X63: 0.792 | Y63: 0.791 | Z63: 0.073 | AA63: 0.504 | AB63: 0.33 | AC63: 0.372 | AD63: 0.402 | AE63: 0.091 | AF63: 249 | AG63: 0.167 | AH63: 2.244 | AI63: 2.242 | AJ63: 1.551 | AK63: 1.199 | AL63: 2.527 | AM63: 2.446 | AN63: 2.284 | AO63: 2.419 | AP63: 0.124 | AQ63: 2.331 | AR63: 2.327 | AS63: 2.362 | AT63: 2.340 | AU63: 0.019 | AV63: 2.842 | AW63: 2.48 | AX63: 2.588 | AY63: 2.637 | AZ63: 0.186 | BA63: 0.922 | BB63: 0.555 | BC63: 0.833 | BD63: 0.770 | BE63: 0.191 | BF63: 249 | BG63: 2.092 | BH63: 2.141 | BI63: 2.143 | BJ63: 2.125 | BK63: 0.029 | BL63: 2.196 | BM63: 2.219 | BN63: 2.142 | BO63: 2.186 | BP63: 0.040 | BQ63: 2.7 | BR63: 2.339 | BS63: 2.376 | BT63: 2.472 | BU63: 0.199 | BV63: 2.682 | BW63: 2.452 | BX63: 2.186 | BY63: 2.440 | BZ63: 0.248 | CA63: 0.922 | CB63: 0.555 | CC63: 0.833 | CD63: 0.770 | CE63: 0.191 | CF63: 249 | CG63: 0.554 | CH63: 0.741 | CI63: 0.142 | CJ63: 0.479 | CK63: 0.306 | CL63: 0.922 | CM63: 0.555 | CN63: 0.833 | CO63: 0.770 | CP63: 0.191 | CQ63: 0.694 | CR63: 0.729 | CS63: 0.922 | CT63: 0.782 | CU63: 0.123 | CV63: 0.434 | CW63: 0.627 | CX63: 0.622 | CY63: 0.561 | CZ63: 0.110 | DA63: 0.395 | DB63: 0.386 | DC63: 0.338 | DD63: 0.373 | DE63: 0.031
A64: 250 | B64: 0.599 | C64: 0.03 | D64: 0.546 | E64: 0.392 | F64: 0.314 | G64: 0.348 | H64: 0.648 | I64: 0.259 | J64: 0.418 | K64: 0.204 | L64: 0.596 | M64: 0.56 | N64: 0.807 | O64: 0.654 | P64: 0.133 | Q64: 0.761 | R64: 0.702 | S64: 0.675 | T64: 0.713 | U64: 0.044 | V64: 0.915 | W64: 0.546 | X64: 0.791 | Y64: 0.751 | Z64: 0.188 | AA64: 0.581 | AB64: 0.403 | AC64: 0.456 | AD64: 0.480 | AE64: 0.091 | AF64: 250 | AG64: 0.167 | AH64: 2.089 | AI64: 2.136 | AJ64: 1.464 | AK64: 1.123 | AL64: 2.297 | AM64: 2.341 | AN64: 2.271 | AO64: 2.303 | AP64: 0.035 | AQ64: 2.286 | AR64: 2.236 | AS64: 2.247 | AT64: 2.256 | AU64: 0.026 | AV64: 2.789 | AW64: 2.424 | AX64: 2.441 | AY64: 2.551 | AZ64: 0.206 | BA64: 0.78 | BB64: 0.602 | BC64: 0.932 | BD64: 0.771 | BE64: 0.165 | BF64: 250 | BG64: 2.025 | BH64: 1.986 | BI64: 2.016 | BJ64: 2.009 | BK64: 0.020 | BL64: 2.095 | BM64: 2.108 | BN64: 2.06 | BO64: 2.088 | BP64: 0.025 | BQ64: 2.56 | BR64: 2.374 | BS64: 2.246 | BT64: 2.393 | BU64: 0.158 | BV64: 2.526 | BW64: 2.382 | BX64: 2.093 | BY64: 2.334 | BZ64: 0.221 | CA64: 0.78 | CB64: 0.602 | CC64: 0.932 | CD64: 0.771 | CE64: 0.165 | CF64: 250 | CG64: 0.666 | CH64: 0.509 | CI64: 0.007 | CJ64: 0.394 | CK64: 0.344 | CL64: 0.78 | CM64: 0.602 | CN64: 0.932 | CO64: 0.771 | CP64: 0.165 | CQ64: 0.815 | CR64: 0.678 | CS64: 0.78 | CT64: 0.758 | CU64: 0.071 | CV64: 0.553 | CW64: 0.468 | CX64: 0.436 | CY64: 0.486 | CZ64: 0.060 | DA64: 0.386 | DB64: 0.335 | DC64: 0.319 | DD64: 0.347 | DE64: 0.035
A65: 251 | B65: 0.492 | C65: 0.133 | D65: 0.446 | E65: 0.357 | F65: 0.195 | G65: 0.314 | H65: 0.546 | I65: 0.452 | J65: 0.437 | K65: 0.117 | L65: 0.605 | M65: 0.615 | N65: 1.058 | O65: 0.759 | P65: 0.259 | Q65: 0.921 | R65: 0.699 | S65: 0.926 | T65: 0.849 | U65: 0.130 | V65: 0.712 | W65: 0.486 | X65: 0.549 | Y65: 0.582 | Z65: 0.117 | AA65: 0.598 | AB65: 0.441 | AC65: 0.402 | AD65: 0.480 | AE65: 0.104 | AF65: 251 | AG65: 0.166 | AH65: 2.053 | AI65: 2.119 | AJ65: 1.446 | AK65: 1.109 | AL65: 2.263 | AM65: 2.324 | AN65: 2.288 | AO65: 2.292 | AP65: 0.031 | AQ65: 2.353 | AR65: 2.261 | AS65: 2.199 | AT65: 2.271 | AU65: 0.077 | AV65: 2.721 | AW65: 2.447 | AX65: 2.473 | AY65: 2.547 | AZ65: 0.151 | BA65: 0.543 | BB65: 0.739 | BC65: 0.854 | BD65: 0.712 | BE65: 0.157 | BF65: 251 | BG65: 2.05 | BH65: 1.981 | BI65: 1.98 | BJ65: 2.004 | BK65: 0.040 | BL65: 2.133 | BM65: 2.07 | BN65: 2.104 | BO65: 2.102 | BP65: 0.032 | BQ65: 2.462 | BR65: 2.354 | BS65: 2.275 | BT65: 2.364 | BU65: 0.094 | BV65: 2.397 | BW65: 2.24 | BX65: 2.39 | BY65: 2.342 | BZ65: 0.089 | CA65: 0.543 | CB65: 0.739 | CC65: 0.854 | CD65: 0.712 | CE65: 0.157 | CF65: 251 | CG65: 0.892 | CH65: 0.402 | CI65: 0.264 | CJ65: 0.519 | CK65: 0.330 | CL65: 0.543 | CM65: 0.739 | CN65: 0.854 | CO65: 0.712 | CP65: 0.157 | CQ65: 0.8 | CR65: 0.671 | CS65: 0.543 | CT65: 0.671 | CU65: 0.129 | CV65: 0.502 | CW65: 0.463 | CX65: 0.319 | CY65: 0.428 | CZ65: 0.096 | DA65: 0.385 | DB65: 0.305 | DC65: 0.316 | DD65: 0.335 | DE65: 0.043
A66: 252 | B66: 0.257 | C66: 0.227 | D66: 0.545 | E66: 0.343 | F66: 0.176 | G66: 0.447 | H66: 0.275 | I66: 0.693 | J66: 0.472 | K66: 0.210 | L66: 0.601 | M66: 0.551 | N66: 1.038 | O66: 0.730 | P66: 0.268 | Q66: 0.863 | R66: 0.578 | S66: 1.013 | T66: 0.818 | U66: 0.221 | V66: 0.813 | W66: 0.743 | X66: 0.63 | Y66: 0.729 | Z66: 0.092 | AA66: 0.541 | AB66: 0.419 | AC66: 0.396 | AD66: 0.452 | AE66: 0.078 | AF66: 252 | AG66: 0.165 | AH66: 2.079 | AI66: 2.14 | AJ66: 1.461 | AK66: 1.123 | AL66: 2.379 | AM66: 2.305 | AN66: 2.366 | AO66: 2.350 | AP66: 0.040 | AQ66: 2.296 | AR66: 2.488 | AS66: 2.18 | AT66: 2.321 | AU66: 0.156 | AV66: 2.6 | AW66: 2.508 | AX66: 2.437 | AY66: 2.515 | AZ66: 0.082 | BA66: 0.722 | BB66: 0.602 | BC66: 0.666 | BD66: 0.663 | BE66: 0.060 | BF66: 252 | BG66: 2.091 | BH66: 1.995 | BI66: 1.959 | BJ66: 2.015 | BK66: 0.068 | BL66: 2.21 | BM66: 1.998 | BN66: 2.142 | BO66: 2.117 | BP66: 0.108 | BQ66: 2.361 | BR66: 2.274 | BS66: 2.338 | BT66: 2.324 | BU66: 0.045 | BV66: 2.399 | BW66: 2.267 | BX66: 2.72 | BY66: 2.462 | BZ66: 0.233 | CA66: 0.722 | CB66: 0.602 | CC66: 0.666 | CD66: 0.663 | CE66: 0.060 | CF66: 252 | CG66: 0.753 | CH66: 0.35 | CI66: 0.558 | CJ66: 0.554 | CK66: 0.202 | CL66: 0.722 | CM66: 0.602 | CN66: 0.666 | CO66: 0.663 | CP66: 0.060 | CQ66: 0.771 | CR66: 0.682 | CS66: 0.722 | CT66: 0.725 | CU66: 0.045 | CV66: 0.407 | CW66: 0.494 | CX66: 0.345 | CY66: 0.415 | CZ66: 0.075 | DA66: 0.307 | DB66: 0.251 | DC66: 0.302 | DD66: 0.287 | DE66: 0.031
A67: 253 | B67: 0.164 | C67: 0.294 | D67: 0.463 | E67: 0.307 | F67: 0.150 | G67: 0.515 | H67: 0.239 | I67: 0.587 | J67: 0.447 | K67: 0.184 | L67: 0.6 | M67: 0.518 | N67: 0.785 | O67: 0.634 | P67: 0.137 | Q67: 0.738 | R67: 0.507 | S67: 0.846 | T67: 0.697 | U67: 0.173 | V67: 0.632 | W67: 0.835 | X67: 0.95 | Y67: 0.806 | Z67: 0.161 | AA67: 0.438 | AB67: 0.424 | AC67: 0.367 | AD67: 0.410 | AE67: 0.038 | AF67: 253 | AG67: 0.163 | AH67: 2.117 | AI67: 2.116 | AJ67: 1.465 | AK67: 1.128 | AL67: 2.416 | AM67: 2.443 | AN67: 2.338 | AO67: 2.399 | AP67: 0.055 | AQ67: 2.296 | AR67: 2.606 | AS67: 2.213 | AT67: 2.372 | AU67: 0.207 | AV67: 2.473 | AW67: 2.504 | AX67: 2.449 | AY67: 2.475 | AZ67: 0.028 | BA67: 0.764 | BB67: 0.523 | BC67: 0.553 | BD67: 0.613 | BE67: 0.131 | BF67: 253 | BG67: 2.136 | BH67: 2.022 | BI67: 1.893 | BJ67: 2.017 | BK67: 0.122 | BL67: 2.204 | BM67: 2.015 | BN67: 2.088 | BO67: 2.102 | BP67: 0.095 | BQ67: 2.244 | BR67: 2.154 | BS67: 2.41 | BT67: 2.269 | BU67: 0.130 | BV67: 2.471 | BW67: 2.381 | BX67: 2.717 | BY67: 2.523 | BZ67: 0.174 | CA67: 0.764 | CB67: 0.523 | CC67: 0.553 | CD67: 0.613 | CE67: 0.131 | CF67: 253 | CG67: 0.58 | CH67: 0.58 | CI67: 0.482 | CJ67: 0.547 | CK67: 0.057 | CL67: 0.764 | CM67: 0.523 | CN67: 0.553 | CO67: 0.613 | CP67: 0.131 | CQ67: 0.612 | CR67: 0.71 | CS67: 0.764 | CT67: 0.695 | CU67: 0.077 | CV67: 0.338 | CW67: 0.517 | CX67: 0.459 | CY67: 0.438 | CZ67: 0.091 | DA67: 0.284 | DB67: 0.27 | DC67: 0.335 | DD67: 0.296 | DE67: 0.034
A68: 254 | B68: 0.2 | C68: 0.179 | D68: 0.554 | E68: 0.311 | F68: 0.211 | G68: 0.347 | H68: 0.255 | I68: 0.39 | J68: 0.331 | K68: 0.069 | L68: 0.744 | M68: 0.648 | N68: 0.596 | O68: 0.663 | P68: 0.075 | Q68: 0.588 | R68: 0.513 | S68: 0.505 | T68: 0.535 | U68: 0.046 | V68: 0.639 | W68: 0.858 | X68: 0.962 | Y68: 0.820 | Z68: 0.165 | AA68: 0.4 | AB68: 0.406 | AC68: 0.322 | AD68: 0.376 | AE68: 0.047 | AF68: 254 | AG68: 0.162 | AH68: 2.084 | AI68: 2.097 | AJ68: 1.448 | AK68: 1.113 | AL68: 2.313 | AM68: 2.451 | AN68: 2.214 | AO68: 2.326 | AP68: 0.119 | AQ68: 2.205 | AR68: 2.536 | AS68: 2.184 | AT68: 2.308 | AU68: 0.197 | AV68: 2.32 | AW68: 2.514 | AX68: 2.441 | AY68: 2.425 | AZ68: 0.098 | BA68: 0.757 | BB68: 0.5 | BC68: 0.586 | BD68: 0.614 | BE68: 0.131 | BF68: 254 | BG68: 2.005 | BH68: 1.93 | BI68: 1.905 | BJ68: 1.947 | BK68: 0.052 | BL68: 2.113 | BM68: 2.001 | BN68: 2.012 | BO68: 2.042 | BP68: 0.062 | BQ68: 2.358 | BR68: 2.206 | BS68: 2.348 | BT68: 2.304 | BU68: 0.085 | BV68: 2.414 | BW68: 2.354 | BX68: 2.498 | BY68: 2.422 | BZ68: 0.072 | CA68: 0.757 | CB68: 0.5 | CC68: 0.586 | CD68: 0.614 | CE68: 0.131 | CF68: 254 | CG68: 0.244 | CH68: 0.67 | CI68: 0.534 | CJ68: 0.483 | CK68: 0.218 | CL68: 0.757 | CM68: 0.5 | CN68: 0.586 | CO68: 0.614 | CP68: 0.131 | CQ68: 0.557 | CR68: 0.862 | CS68: 0.757 | CT68: 0.725 | CU68: 0.155 | CV68: 0.407 | CW68: 0.517 | CX68: 0.588 | CY68: 0.504 | CZ68: 0.091 | DA68: 0.336 | DB68: 0.335 | DC68: 0.4 | DD68: 0.357 | DE68: 0.037
A69: 255 | B69: 0.335 | C69: 0.25 | D69: 0.48 | E69: =AVERAGE(B69:D69) -> 0.355 | F69: =STDEV(B69:D69) -> 0.116 | G69: 0.404 | H69: 0.552 | I69: 0.353 | J69: =AVERAGE(G69:I69) -> 0.436 | K69: =STDEV(G69:I69) -> 0.103 | L69: 0.746 | M69: 0.706 | N69: 0.615 | O69: =AVERAGE(L69:N69) -> 0.689 | P69: =STDEV(L69:N69) -> 0.067 | Q69: 0.572 | R69: 0.567 | S69: 0.467 | T69: =AVERAGE(Q69:S69) -> 0.535 | U69: =STDEV(Q69:S69) -> 0.059 | V69: 0.598 | W69: 0.479 | X69: 0.874 | Y69: =AVERAGE(V69:X69) -> 0.650 | Z69: =STDEV(V69:X69) -> 0.203 | AA69: 0.392 | AB69: 0.386 | AC69: 0.35 | AD69: =AVERAGE(AA69:AC69) -> 0.376 | AE69: =STDEV(AA69:AC69) -> 0.023 | AF69: 255 | AG69: 0.161 | AH69: 2.025 | AI69: 2.044 | AJ69: =AVERAGE(AG69:AI69) -> 1.410 | AK69: =STDEV(AG69:AI69) -> 1.082 | AL69: 2.133 | AM69: 2.341 | AN69: 2.143 | AO69: =AVERAGE(AL69:AN69) -> 2.206 | AP69: =STDEV(AL69:AN69) -> 0.117 | AQ69: 2.254 | AR69: 2.364 | AS69: 2.182 | AT69: =AVERAGE(AQ69:AS69) -> 2.267 | AU69: =STDEV(AQ69:AS69) -> 0.092 | AV69: 2.334 | AW69: 2.482 | AX69: 2.391 | AY69: =AVERAGE(AV69:AX69) -> 2.402 | AZ69: =STDEV(AV69:AX69) -> 0.075 | BA69: 0.59 | BB69: 0.706 | BC69: 0.771 | BD69: =AVERAGE(BA69:BC69) -> 0.689 | BE69: =STDEV(BA69:BC69) -> 0.092 | BF69: 255 | BG69: 1.959 | BH69: 1.821 | BI69: 1.891 | BJ69: =AVERAGE(BG69:BI69) -> 1.890 | BK69: =STDEV(BG69:BI69) -> 0.069 | BL69: 2.055 | BM69: 2.003 | BN69: 1.976 | BO69: =AVERAGE(BL69:BN69) -> 2.011 | BP69: =STDEV(BL69:BN69) -> 0.040 | BQ69: 2.374 | BR69: 2.265 | BS69: 2.335 | BT69: =AVERAGE(BQ69:BS69) -> 2.325 | BU69: =STDEV(BQ69:BS69) -> 0.055 | BV69: 2.344 | BW69: 2.465 | BX69: 2.163 | BY69: =AVERAGE(BV69:BX69) -> 2.324 | BZ69: =STDEV(BV69:BX69) -> 0.152 | CA69: 0.59 | CB69: 0.706 | CC69: 0.771 | CD69: =AVERAGE(CA69:CC69) -> 0.689 | CE69: =STDEV(CA69:CC69) -> 0.092 | CF69: 255 | CG69: 0.065 | CH69: 0.613 | CI69: 0.55 | CJ69: =AVERAGE(CG69:CI69) -> 0.409 | CK69: =STDEV(CG69:CI69) -> 0.300 | CL69: 0.59 | CM69: 0.706 | CN69: 0.771 | CO69: =AVERAGE(CL69:CN69) -> 0.689 | CP69: =STDEV(CL69:CN69) -> 0.092 | CQ69: 0.486 | CR69: 0.791 | CS69: 0.59 | CT69: =AVERAGE(CQ69:CS69) -> 0.622 | CU69: =STDEV(CQ69:CS69) -> 0.155 | CV69: 0.485 | CW69: 0.536 | CX69: 0.566 | CY69: =AVERAGE(CV69:CX69) -> 0.529 | CZ69: =STDEV(CV69:CX69) -> 0.041 | DA69: 0.404 | DB69: 0.352 | DC69: 0.51 | DD69: =AVERAGE(DA69:DC69) -> 0.422 | DE69: =STDEV(DA69:DC69) -> 0.081
